{"text_format":"1","workbook":"xlsx","n_sheets":11,"sheets":["Hoofdmenu","Toelichting","NAW_gegevens","Voorblad","Kostenverzamelstaat","Specifieke informatie A","Specifieke informatie C","Contractinformatie","Controleoverzicht","Blad1","Parameters"],"not_rendered":{"charts":0,"images":1,"macros":1,"external_links":1,"defined_names":184,"comments":0,"pivot_tables":0},"unopened":[],"bounds":{"document_bytes":16777216,"sheet_cells":100000,"rows_first":2000,"rows_last":500,"rows_between":2000,"halvings":0,"cell_chars":16384,"cell_head_chars":4096},"cells_cut":0,"cells_raw":0,"read":"whole","date_system":"1900"}

{"sheet":"Hoofdmenu","index":0,"n_rows":3,"n_cols":2,"rows_kept":3,"cut":false,"hidden":false,"merged":[[0,0,0,1],[1,0,1,1]]}
["HOOFDMENU"]
[{"$f":"CONCATENATE(\"JAARSTAAT ZVW \",jaar_id)","v":"JAARSTAAT ZVW 2019"}]
["Navigatie","Afdrukken"]

{"sheet":"Toelichting","index":1,"n_rows":3,"n_cols":2,"rows_kept":3,"cut":false,"hidden":false,"merged":[]}
[]
[]
[null,{"$f":"CONCATENATE(\" JAARSTAAT ZVW \",jaar_id,\" (VERSIE: \",document_id,\")\")","v":" JAARSTAAT ZVW 2019 (VERSIE: JS2019ZVW.C)"}]

{"sheet":"NAW_gegevens","index":2,"n_rows":44,"n_cols":5,"rows_kept":44,"cut":false,"hidden":false,"merged":[[2,0,2,1],[3,0,3,1]]}
[]
[]
["NAW-GEGEVENS"]
["JAARSTAAT ZVW 2019"]
[" Selecteer uw nummer:>","0000 KIES UW UZOVI-NUMMER"]
[" Uzovi-nummer:",{"$f":"MID(keuze_uzovi_nummer,1,4)","v":"0000"}]
[" Verzekeraar:"]
[" Plaats:"]
[" Contactpersoon:"]
[" Telefoonnummer:"]
[" E-mail:"]
[]
[]
["Let op dat u het goede UZOVI-nummer invult, zie onderstaand overzicht:"]
[]
["UZOVI","NAAM",null,null,"PLAATS"]
["0101","N.V. UNIVÉ ZORG",null,null,"ARNHEM"]
["0104","CENTRALE ZIEKTEKOSTENVERZEKERING NZV N.V.",null,null,"TILBURG"]
["0201","OHRA ZIEKTEKOSTENVERZEKERINGEN N.V. ",null,null,"TILBURG"]
["0211","FBTO ZORGVERZEKERINGEN N.V.",null,null,"LEEUWARDEN"]
["0403","ASR BASIS ZIEKTEKOSTENVERZEKERINGEN N.V.",null,null,"AMERSFOORT"]
["0420","ZORGVERZEKERAAR CARES GOUDA  N.V.",null,null,"ARNHEM"]
["0699","IZA ZORGVERZEKERAAR N.V.",null,null,"ARNHEM"]
["0736","N.V. ZORGVERZEKERAAR UMC",null,null,"ARNHEM"]
["3311","ZILVEREN KRUIS ACHMEA ZORGVERZEKERINGEN N.V.",null,null,"AMSTERDAM"]
["3313","INTERPOLIS ZORGVERZEKERINGEN N.V.",null,null,"AMSTERDAM"]
["3314","OZF ACHMEA ZORGVERZEKERINGEN N.V. ",null,null,"HENGELO"]
[3329,"AVÉRO ACHMEA ZORGVERZEKERINGEN N.V.",null,null,"AMSTERDAM"]
[3332,"MENZIS ZORGVERZEKERAAR NV",null,null,"WAGENINGEN"]
[3333,"ANDERZORG NV",null,null,"WAGENINGEN"]
[3343,"ONVZ ZIEKTEKOSTENVERZEKERAAR N.V.",null,null,"HOUTEN"]
[3351,"FBTO ZORGVERZEKERINGEN N.V.",null,null,"LEEUWARDEN"]
[3352,"IPTIQ LIFE S.A.",null,null,"AMSTELVEEN"]
[3358,"DE FRIESLAND ZORGVERZEKERAAR N.V.",null,null,"LEEUWARDEN"]
[3359,"EUCARE INSURANCE PCC LTD",null,null,"TA' XBIEX"]
["7029","OWM ZORGVERZEKERAAR 'DSW' U.A.",null,null,"SCHIEDAM"]
["7032","ENO ZORGVERZEKERAAR N.V.",null,null,"DEVENTER"]
["7037","STAD HOLLAND ZORGVERZEKERAAR OWM U.A.",null,null,"SCHIEDAM"]
["7053","OHRA ZORGVERZEKERINGEN  N.V.",null,null,"TILBURG"]
["7084","DE FRIESLAND ZORGVERZEKERAAR N.V.",null,null,"LEEUWARDEN"]
["7085","OWM ZORGVERZEKERAAR ZORG EN ZEKERHEID U.A.",null,null,"LEIDEN"]
["7095","VGZ ZORGVERZEKERAAR N.V.",null,null,"ARNHEM"]
["7119","OWM CENTRALE ZORGVERZEKERAARS GROEP ZORGVERZEKERAAR UA",null,null,"TILBURG"]
["9015","VGZ VOOR DE ZORG N.V.",null,null,"ARNHEM"]

{"sheet":"Voorblad","index":3,"n_rows":35,"n_cols":4,"rows_kept":35,"cut":false,"hidden":false,"merged":[[13,3,14,11],[15,3,16,11],[19,3,20,11],[21,3,22,11]]}
[null,null,"VOORBLAD"]
[]
[]
[]
[]
["Pagina 1"]
[]
[]
[]
[]
[]
[]
[]
[]
[]
[null,null,null,{"$f":"CONCATENATE(\"JAARSTAAT ZVW \",jaar_id)","v":"JAARSTAAT ZVW 2019"}]
[]
[]
[]
[null,null,null,"SPECIFIEKE INFORMATIE"]
[]
[]
[]
[null,null,null,"  SPECIFIEKE INFORMATIE A (met accountantsverklaring)"]
[null,null,null,"     ● Kostenverzamelstaat (pagina 1 t/m 3)"]
[null,null,null,"     ● Specificatie informatie risicoverevening (pagina 1 t/m 3)"]
[null,null,null,"     ● Overige specificaties (pagina 3)"]
[]
[null,null,null,"  SPECIFIEKE INFORMATIE C (beleidsinformatie zonder accountantsverklaring)"]
[null,null,null,"     ● Specificaties van kosten en productie (pagina 1 t/m 12)"]
[null,null,null,"     ● Informatie t.b.v. afrekeningen met het buitenland (pagina 12 t/m 14)"]
[]
[null,null,null,"  CONTRACTINFORMATIE (pagina 1 t/m 2)"]
[]
[null,null,null,"  CONTROLEOVERZICHT (pagina 1 t/m 5)"]

{"sheet":"Kostenverzamelstaat","index":4,"n_rows":121,"n_cols":16,"rows_kept":121,"cut":false,"hidden":false,"merged":[[58,3,58,6],[12,7,13,7],[10,3,13,6],[48,10,49,10],[48,8,49,8],[48,9,49,9],[19,3,19,6],[20,3,20,6],[21,3,21,6],[22,3,22,6],[39,3,39,4],[55,3,55,6],[56,3,56,6],[57,3,57,6],[46,12,47,12],[46,8,47,9],[46,10,47,11],[46,3,49,6],[48,12,49,12],[48,11,49,11],[48,7,49,7],[10,12,11,12],[10,8,11,9],[10,10,11,11],[12,11,13,11],[12,12,13,12],[12,10,13,10],[12,9,13,9],[12,8,13,8],[69,3,69,6],[73,3,73,6],[71,3,71,6],[68,3,68,6],[59,3,59,6],[61,3,61,6],[65,3,65,6],[66,3,66,6],[72,3,72,6],[70,3,70,6],[63,3,63,6],[64,3,64,6],[62,3,62,6],[86,8,87,8],[84,8,85,9],[86,9,87,9],[86,11,87,11],[113,11,114,11],[113,10,114,10],[113,8,114,8],[113,9,114,9],[84,12,85,12],[113,12,114,12],[86,12,87,12],[86,10,87,10],[84,10,85,11],[77,3,77,4],[120,3,120,4],[113,3,114,6],[116,3,116,6],[115,3,115,6],[84,3,87,6],[111,3,111,7],[113,7,114,7],[86,7,87,7],[94,3,94,7]]}
[null,null,"INVULSPECIFICATIES SPECIFIEKE INFORMATIE A"]
[]
[]
[]
[]
["Pagina 1",null,null,{"$f":"CONCATENATE(\"JAARSTAAT ZVW \", jaar_id)","v":"JAARSTAAT ZVW 2019"}]
[null,null,null,"KOSTENVERZAMELSTAAT (SPECIFIEKE INFORMATIE A)"]
[null,null,null,{"$f":"IF(naw_uzovi_zorgverzekeraar<>\"0000\",CONCATENATE(UPPER(naw_naam_zorgverzekeraar),\", \",UPPER(naw_plaats_zorgverzekeraar)),\"\")","v":""},null,null,null,null,null,null,null,null,{"$f":"CONCATENATE(\"UZOVI: \",naw_uzovi_zorgverzekeraar)","v":"UZOVI: 0000"}]
[null,null,null,"SPECIFICATIES INFORMATIE RISICOVEREVENING"]
[null,null,null,"KOSTENVERZAMELSTAAT"]
[null,null,null," KOSTENRUBRIEK",null,null,null,null,{"$f":"CONCATENATE(\"LASTEN \",jaar_id,)","v":"LASTEN 2019"},null,{"$f":"CONCATENATE(\"LASTEN \",jaar_id-1,)","v":"LASTEN 2018"},null,{"$f":"CONCATENATE(\"LASTEN \",jaar_id-2,\" \nEN OUDER\")","v":"LASTEN 2017 \nEN OUDER"}]
[]
[null,null,null,null,null,null,null,"Code","Lasten 2019 inclusief balanspost ","Ontvangen en geaccepteerde declaraties m.b.t. 2019","Lasten 2018 inclusief balanspost","Ontvangen en geaccepteerde declaraties m.b.t. 2018","Ontvangen en geaccepteerde declaraties m.b.t. 2017 en ouder"]
[null,null,null,null,null,null,null,null,null,"Ontvangen en geaccepteerde declaraties mbt jaar T","Lasten jaar T-1 inclusief balanspost","Ontvangen en geaccepteerde declaraties mbt jaar T-1","Ontvangen en geaccepteerde declaraties mbt jaar T-1"]
[null,null,null," 01  HUISARTSENZORG en MDZ"]
[null,null,null," Bijzondere betalingen",null,null,null,"503   ",null,null,null,null,null,null,null,{"$f":"IF(OR((I16-J16)/IF(I16=0,1,I16)<-10%,(K16-L16)/IF(K16=0,1,K16)<-10%,(M16-N16)/IF(M16=0,1,M16)<-10%),\"De balans is < -10%, als dit plausibel is dan vragen wij u dit nader toe te lichten bij de opmerkingen, zo niet dan dient u uw raming aan te scherpen.\",\"\")","v":""}]
[null,null,null," Avond-, nacht- en weekenddiensten",null,null,null,"504   ",null,null,null,null,null,null,null,{"$f":"IF(OR((I17-J17)/IF(I17=0,1,I17)<-10%,(K17-L17)/IF(K17=0,1,K17)<-10%,(M17-N17)/IF(M17=0,1,M17)<-10%),\"De balans is < -10%, als dit plausibel is dan vragen wij u dit nader toe te lichten bij de opmerkingen, zo niet dan dient u uw raming aan te scherpen.\",\"\")","v":""}]
[null,null,null," Inschrijftarieven",null,null,null,"505   ",null,null,null,null,null,null,null,""]
[null,null,null," Consulttarieven",null,null,null,"506   ",null,null,null,null,null,null,null,""]
[null,null,null," Overige tarieven",null,null,null,"507   ",null,null,null,null,null,null,null,""]
[null,null,null," Multidisciplinaire zorg",null,null,null,"510   ",null,null,null,null,null,null,null,""]
[null,null,null," Resultaatbeloning en zorgvernieuwing huisartsen",null,null,null,"515   ",null,null,null,null,null,null,null,""]
[null,null,null," Resultaatbeloning en zorgvernieuwing MDZ",null,null,null,"516   ",null,null,null,null,null,null,null,""]
[null,null,null," TOTAAL RUBRIEK 01",null,null,null,null,{"$f":"SUM(I16:I23)","v":0},{"$f":"SUM(J16:J23)","v":0},{"$f":"SUM(K16:K23)","v":0},{"$f":"SUM(L16:L23)","v":0},{"$f":"SUM(M16:M23)","v":0}]
[null,null,null," 02 FARMACEUTISCHE ZORG"]
[null,null,null," TOTAAL RUBRIEK 02",null,null,null,"520   ",null,null,null,null,null,null,null,{"$f":"IF(OR((I26-J26)/IF(I26=0,1,I26)<-10%,(K26-L26)/IF(K26=0,1,K26)<-10%,(M26-N26)/IF(M26=0,1,M26)<-10%),\"De balans is < -10%, als dit plausibel is dan vragen wij u dit nader toe te lichten bij de opmerkingen, zo niet dan dient u uw raming aan te scherpen.\",\"\")","v":""}]
[null,null,null," 03 VERPLEGING EN VERZORGING"]
[null,null,null," Kosten van verpleging en verzorging ",null,null,null,"530   ",null,null,null,null,null,null,null,{"$f":"IF(OR((I28-J28)/IF(I28=0,1,I28)<-10%,(K28-L28)/IF(K28=0,1,K28)<-10%,(M28-N28)/IF(M28=0,1,M28)<-10%),\"De balans is < -10%, als dit plausibel is dan vragen wij u dit nader toe te lichten bij de opmerkingen, zo niet dan dient u uw raming aan te scherpen.\",\"\")","v":""}]
[null,null,null," 04  MONDZORG"]
[null,null,null," Kosten mondzorg volwassen verzekerden",null,null,null,"560.1",null,null,null,null,null,null,null,{"$f":"IF(OR((I30-J30)/IF(I30=0,1,I30)<-10%,(K30-L30)/IF(K30=0,1,K30)<-10%,(M30-N30)/IF(M30=0,1,M30)<-10%),\"De balans is < -10%, als dit plausibel is dan vragen wij u dit nader toe te lichten bij de opmerkingen, zo niet dan dient u uw raming aan te scherpen.\",\"\")","v":""}]
[null,null,null," Kosten mondzorg jeugdige verzekerden",null,null,null,"560.2",null,null,null,null,null,null,null,""]
[null,null,null," Kosten gebitsprothesen",null,null,null,"561   ",null,null,null,null,null,null,null,""]
[null,null,null," TOTAAL RUBRIEK 04",null,null,null,null,{"$f":"SUM(I30:I32)","v":0},{"$f":"SUM(J30:J32)","v":0},{"$f":"SUM(K30:K32)","v":0},{"$f":"SUM(L30:L32)","v":0},{"$f":"SUM(M30:M32)","v":0}]
[null,null,null," 05  VERLOSKUNDIGE ZORG"]
[null,null,null," Kosten verloskundige zorg door verloskundigen",null,null,null,"580   ",null,null,null,null,null,null,null,{"$f":"IF(OR((I35-J35)/IF(I35=0,1,I35)<-10%,(K35-L35)/IF(K35=0,1,K35)<-10%,(M35-N35)/IF(M35=0,1,M35)<-10%),\"De balans is < -10%, als dit plausibel is dan vragen wij u dit nader toe te lichten bij de opmerkingen, zo niet dan dient u uw raming aan te scherpen.\",\"\")","v":""}]
[null,null,null," Kosten verloskundige zorg door huisartsen",null,null,null,"581   ",null,null,null,null,null,null,null,""]
[null,null,null," TOTAAL RUBRIEK 05",null,null,null,null,{"$f":"SUM(I35:I36)","v":0},{"$f":"SUM(J35:J36)","v":0},{"$f":"SUM(K35:K36)","v":0},{"$f":"SUM(L35:L36)","v":0},{"$f":"SUM(M35:M36)","v":0}]
[]
[]
[null,null,null,{"$f":"NOW()","v":"2020-03-11T09:59:25.330"},null,null,null,null,null,null,null,null,{"$f":"CONCATENATE(\"Kostenverzamelstaat, \",LOWER(A6))","v":"Kostenverzamelstaat, pagina 1"}]
[]
["Pagina 2",null,null,{"$f":"CONCATENATE(\"JAARSTAAT ZVW \", jaar_id)","v":"JAARSTAAT ZVW 2019"}]
[null,null,null,"KOSTENVERZAMELSTAAT (SPECIFIEKE INFORMATIE A)"]
[null,null,null,{"$f":"IF(naw_uzovi_zorgverzekeraar<>\"0000\",CONCATENATE(UPPER(naw_naam_zorgverzekeraar),\", \",UPPER(naw_plaats_zorgverzekeraar)),\"\")","v":""},null,null,null,null,null,null,null,null,{"$f":"CONCATENATE(\"UZOVI: \",naw_uzovi_zorgverzekeraar)","v":"UZOVI: 0000"}]
[null,null,null,"SPECIFICATIES INFORMATIE RISICOVEREVENING"]
[null,null,null,"KOSTENVERZAMELSTAAT - vervolg"]
[null,null,null," KOSTENRUBRIEK",null,null,null,null,{"$f":"CONCATENATE(\"LASTEN \",jaar_id,)","v":"LASTEN 2019"},null,{"$f":"CONCATENATE(\"LASTEN \",jaar_id-1,)","v":"LASTEN 2018"},null,{"$f":"CONCATENATE(\"LASTEN \",jaar_id-2,\" \nEN OUDER\")","v":"LASTEN 2017 \nEN OUDER"}]
[]
[null,null,null,null,null,null,null,"Code","Lasten 2019 inclusief balanspost ","Ontvangen en geaccepteerde declaraties m.b.t. 2019","Lasten 2018 inclusief balanspost","Ontvangen en geaccepteerde declaraties m.b.t. 2018","Ontvangen en geaccepteerde declaraties m.b.t. 2017 en ouder"]
[null,null,null,null,null,null,null,null,null,"Ontvangen en geaccepteerde declaraties mbt jaar T","Lasten jaar T-1 inclusief balanspost","Ontvangen en geaccepteerde declaraties mbt jaar T-1","Ontvangen en geaccepteerde declaraties mbt jaar T-1"]
[null,null,null," 06  MEDISCH SPECIALISTISCHE ZORG"]
[null,null,null," Kosten specialisten mondziekten en kaakchirurgie",null,null,null,"545   ",null,null,null,null,null,null,null,{"$f":"IF(OR((I52-J52)/IF(I52=0,1,I52)<-10%,(K52-L52)/IF(K52=0,1,K52)<-10%,(M52-N52)/IF(M52=0,1,M52)<-10%),\"De balans is < -10%, als dit plausibel is dan vragen wij u dit nader toe te lichten bij de opmerkingen, zo niet dan dient u uw raming aan te scherpen.\",\"\")","v":""}]
[null,null,null," Overige kosten ziekenhuiszorg en curatieve zorg",null,null,null,"610   ",null,null,null,null,null,null,null,""]
[null,null,null," Overige zorgproducten ",null,null,null,"611   ",null,null,null,null,null,null,null,""]
[null,null,null," Kosten add-ons",null,null,null,"612   ",null,null,null,null,null,null,null,""]
[null,null,null," Kosten add-ons - Dure geneesmiddelen",null,null,null,"612.1   ",null,null,null,null,null,null,null,""]
[null,null,null," Kosten add-ons - IC",null,null,null,"612.2   ",null,null,null,null,null,null,null,""]
[null,null,null," Integrale kosten DBC-zorgproduct gereguleerde \n segment ",null,null,null,"613.1",null,null,null,null,null,null,null,""]
[null,null,null," Integrale kosten DBC-zorgproduct vrije segment ",null,null,null,"615.1",null,null,null,null,null,null,null,""]
[null,null,null," Integrale kosten extramuraal werkende \n specialisten",null,null,null,"619   ",null,null,null,null,null,null,null,""]
[null,null,null," TOTAAL RUBRIEK 06",null,null,null,null,{"$f":"SUM(I52:I60)","v":0},{"$f":"SUM(J52:J60)","v":0},{"$f":"SUM(K52:K60)","v":0},{"$f":"SUM(L52:L60)","v":0},{"$f":"SUM(M52:M60)","v":0}]
[null,null,null," 07  PARAMEDISCHE ZORG"]
[null,null,null," Kosten fysiotherapie",null,null,null,"620   ",null,null,null,null,null,null,null,{"$f":"IF(OR((I63-J63)/IF(I63=0,1,I63)<-10%,(K63-L63)/IF(K63=0,1,K63)<-10%,(M63-N63)/IF(M63=0,1,M63)<-10%),\"De balans is < -10%, als dit plausibel is dan vragen wij u dit nader toe te lichten bij de opmerkingen, zo niet dan dient u uw raming aan te scherpen.\",\"\")","v":""}]
[null,null,null," Kosten oefentherapie Mensendieck/Cesar",null,null,null,"621   ",null,null,null,null,null,null,null,""]
[null,null,null," Kosten logopedie",null,null,null,"623   ",null,null,null,null,null,null,null,""]
[null,null,null," Kosten ergotherapie",null,null,null,"624   ",null,null,null,null,null,null,null,""]
[null,null,null," Kosten dieetadvisering",null,null,null,"625   ",null,null,null,null,null,null,null,""]
[null,null,null," TOTAAL RUBRIEK 07",null,null,null,null,{"$f":"SUM(I63:I67)","v":0},{"$f":"SUM(J63:J67)","v":0},{"$f":"SUM(K63:K67)","v":0},{"$f":"SUM(L63:L67)","v":0},{"$f":"SUM(M63:M67)","v":0}]
[null,null,null," 08  HULPMIDDELENZORG"]
[null,null,null," TOTAAL RUBRIEK 08",null,null,null,"640   ",null,null,null,null,null,null,null,{"$f":"IF(OR((I70-J70)/IF(I70=0,1,I70)<-10%,(K70-L70)/IF(K70=0,1,K70)<-10%,(M70-N70)/IF(M70=0,1,M70)<-10%),\"De balans is < -10%, als dit plausibel is dan vragen wij u dit nader toe te lichten bij de opmerkingen, zo niet dan dient u uw raming aan te scherpen.\",\"\")","v":""}]
[null,null,null," 09  ZIEKENVERVOER"]
[null,null,null," Kosten vervoer per ambulance/helikopter",null,null,null,"650   ",null,null,null,null,null,null,null,""]
[null,null,null," Opbrengstenverrekeningen regionale \n ambulancevoorzieningen ",null,null,null,"650.1"]
[null,null,null," Kosten vervoer per openbaar vervoer, taxi \n en eigen auto",null,null,null,"651   ",null,null,null,null,null,null,null,""]
[null,null,null," TOTAAL RUBRIEK 09",null,null,null,null,{"$f":"SUM(I72:I74)","v":0},{"$f":"SUM(J72:J74)","v":0},{"$f":"SUM(K72:K74)","v":0},{"$f":"SUM(L72:L74)","v":0},{"$f":"SUM(M72:M74)","v":0}]
[]
[]
[null,null,null,{"$f":"NOW()","v":"2020-03-11T09:59:25.330"},null,null,null,null,null,null,null,null,{"$f":"CONCATENATE(\"Kostenverzamelstaat, \",LOWER(A42))","v":"Kostenverzamelstaat, pagina 2"}]
[]
["Pagina 3",null,null,{"$f":"CONCATENATE(\"JAARSTAAT ZVW \", jaar_id)","v":"JAARSTAAT ZVW 2019"}]
[null,null,null,"KOSTENVERZAMELSTAAT (SPECIFIEKE INFORMATIE A)"]
[null,null,null,{"$f":"IF(naw_uzovi_zorgverzekeraar<>\"0000\",CONCATENATE(UPPER(naw_naam_zorgverzekeraar),\", \",UPPER(naw_plaats_zorgverzekeraar)),\"\")","v":""},null,null,null,null,null,null,null,null,{"$f":"CONCATENATE(\"UZOVI: \",naw_uzovi_zorgverzekeraar)","v":"UZOVI: 0000"}]
[null,null,null,"SPECIFICATIES INFORMATIE RISICOVEREVENING"]
[null,null,null,"KOSTENVERZAMELSTAAT - vervolg"]
[null,null,null," KOSTENRUBRIEK",null,null,null,null,{"$f":"CONCATENATE(\"LASTEN \",jaar_id,)","v":"LASTEN 2019"},null,{"$f":"CONCATENATE(\"LASTEN \",jaar_id-1,)","v":"LASTEN 2018"},null,{"$f":"CONCATENATE(\"LASTEN \",jaar_id-2,\" \nEN OUDER\")","v":"LASTEN 2017 \nEN OUDER"}]
[]
[null,null,null,null,null,null,null,"Code","Lasten 2019 inclusief balanspost ","Ontvangen en geaccepteerde declaraties m.b.t. 2019","Lasten 2018 inclusief balanspost","Ontvangen en geaccepteerde declaraties m.b.t. 2018","Ontvangen en geaccepteerde declaraties m.b.t. 2017 en ouder"]
[null,null,null,null,null,null,null,null,null,"Ontvangen en geaccepteerde declaraties mbt jaar T","Lasten jaar T-1 inclusief balanspost","Ontvangen en geaccepteerde declaraties mbt jaar T-1","Ontvangen en geaccepteerde declaraties mbt jaar T-1"]
[null,null,null," 10 GENEESKUNDIGE GEESTELIJKE   \n     GEZONDHEIDSZORG"]
[null,null,null," Kosten specialistische GGZ met verblijf",null,null,null,"661   ",null,null,null,null,null,null,null,{"$f":"IF(OR((I90-J90)/IF(I90=0,1,I90)<-10%,(K90-L90)/IF(K90=0,1,K90)<-10%,(M90-N90)/IF(M90=0,1,M90)<-10%),\"De balans is < -10%, als dit plausibel is dan vragen wij u dit nader toe te lichten bij de opmerkingen, zo niet dan dient u uw raming aan te scherpen.\",\"\")","v":""}]
[null,null,null," Kosten LGGZ (langdurige GGZ, jaar 2 en 3)",null,null,null,"661.1",null,null,null,null,null,null,null,""]
[null,null,null," Kosten specialistische GGZ zonder verblijf",null,null,null,"662   ",null,null,null,null,null,null,null,""]
[null,null,null," Generalistische basis GGZ",null,null,null,"665   ",null,null,null,null,null,null,null,""]
[null,null,null," TOTAAL RUBRIEK 10",null,null,null,null,{"$f":"SUM(I90:I93)","v":0},{"$f":"SUM(J90:J93)","v":0},{"$f":"SUM(K90:K93)","v":0},{"$f":"SUM(L90:L93)","v":0},{"$f":"SUM(M90:M93)","v":0}]
[null,null,null," 11 GERIATRISCHE REVALIDATIE EN \n     EERSTELIJNSVERBLIJF"]
[null,null,null," Geriatrische Revalidatie ",null,null,null,"670   ",null,null,null,null,null,null,null,{"$f":"IF(OR((I96-J96)/IF(I96=0,1,I96)<-10%,(K96-L96)/IF(K96=0,1,K96)<-10%,(M96-N96)/IF(M96=0,1,M96)<-10%),\"De balans is < -10%, als dit plausibel is dan vragen wij u dit nader toe te lichten bij de opmerkingen, zo niet dan dient u uw raming aan te scherpen.\",\"\")","v":""}]
[null,null,null," Eerstelijnsverblijf ",null,null,null,"671   ",null,null,null,null,null,null,null,""]
[null,null,null," TOTAAL RUBRIEK 11",null,null,null,null,{"$f":"SUM(I96:I97)","v":0},{"$f":"SUM(J96:J97)","v":0},0,0,{"$f":"SUM(M96:M97)","v":0}]
[null,null,null," 12  KRAAMZORG"]
[null,null,null," TOTAAL RUBRIEK 12",null,null,null,"680   ",null,null,null,null,null,null,null,{"$f":"IF(OR((I100-J100)/IF(I100=0,1,I100)<-10%,(K100-L100)/IF(K100=0,1,K100)<-10%,(M100-N100)/IF(M100=0,1,M100)<-10%),\"De balans is < -10%, als dit plausibel is dan vragen wij u dit nader toe te lichten bij de opmerkingen, zo niet dan dient u uw raming aan te scherpen.\",\"\")","v":""}]
[null,null,null," 13  DIVERSE OVERIGE KOSTEN"]
[null,null,null," Overige kosten",null,null,null,"700   ",null,null,null,null,null,null,null,{"$f":"IF(OR((I102-J102)/IF(I102=0,1,I102)<-10%,(K102-L102)/IF(K102=0,1,K102)<-10%,(M102-N102)/IF(M102=0,1,M102)<-10%),\"De balans is < -10%, als dit plausibel is dan vragen wij u dit nader toe te lichten bij de opmerkingen, zo niet dan dient u uw raming aan te scherpen.\",\"\")","v":""}]
[null,null,null," Overige geneeskundige zorg",null,null,null,"701   ",null,null,null,null,null,null,null,""]
[null,null,null," Kosten van zorg zintuiglijk gehandicapten",null,null,null,"702   ",null,null,null,null,null,null,null,""]
[null,null,null," TOTAAL RUBRIEK 16",null,null,null,null,{"$f":"SUM(I102:I104)","v":0},{"$f":"SUM(J102:J104)","v":0},{"$f":"SUM(K102:K104)","v":0},{"$f":"SUM(L102:L104)","v":0},{"$f":"SUM(M102:M104)","v":0}]
[null,null,null," 15  GRENSOVERSCHRIJDENDE ZORG"]
[null,null,null," Kosten via verzekeraar",null,null,null,"720   ",null,null,null,null,null,null,null,{"$f":"IF(OR((I107-J107)/IF(I107=0,1,I107)<-10%,(K107-L107)/IF(K107=0,1,K107)<-10%,(M107-N107)/IF(M107=0,1,M107)<-10%),\"De balans is < -10%, als dit plausibel is dan vragen wij u dit nader toe te lichten bij de opmerkingen, zo niet dan dient u uw raming aan te scherpen.\",\"\")","v":""}]
[null,null,null," Kosten via verbindingsorgaan",null,null,null,"721   ",null,null,null,null,null,null,null,""]
[null,null,null," TOTAAL RUBRIEK 15",null,null,null,null,{"$f":"SUM(I107:I108)","v":0},{"$f":"SUM(J107:J108)","v":0},0,0,0]
[null,null,null," 16  KWALITEITSGELDEN",null,null,null,"   "]
[null,null,null," TOTAAL RUBRIEK 16",null,null,null,"730   ",null,null,null,null,null,null,null,{"$f":"IF(OR((I111-J111)/IF(I111=0,1,I111)<-10%,(K111-L111)/IF(K111=0,1,K111)<-10%,(M111-N111)/IF(M111=0,1,M111)<-10%),\"De balans is < -10%, als dit plausibel is dan vragen wij u dit nader toe te lichten bij de opmerkingen, zo niet dan dient u uw raming aan te scherpen.\",\"\")","v":""}]
[null,null,null," TOTAAL LASTEN  (bruto-schade, definitie ZIN)",null,null,null,null,{"$f":"SUM(I24,I26,I28,I33,I37,I61,I68,I70,I75,I94,I98,I100,I105,I109,I111)","v":0},{"$f":"SUM(J24,J26,J28,J33,J37,J61,J68,J70,J75,J94,J98,J100,J105,J109,J111)","v":0},{"$f":"SUM(K24,K26,K28,K33,K37,K61,K68,K70,K75,K94,K98,K100,K105,K109,K111)","v":0},{"$f":"SUM(L24,L26,L28,L33,L37,L61,L68,L70,L75,L94,L98,L100,L105,L109,L111)","v":0},{"$f":"SUM(M24,M26,M28,M33,M37,M61,M68,M70,M75,M94,M98,M100,M105,M109,M111)","v":0}]
[]
[null,null,null," BATEN ZVW",null,null,null,"Code","Totale baten 2019 inclusief balanspost ","waarvan ontvangen  m.b.t. 2019","Totale baten 2018 inclusief balanspost ","waarvan ontvangen m.b.t. 2018","Totale baten ontvangen m.b.t. 2017 en ouder"]
[null,null,null,null,null,null,null,null,null,"waarvan ontvangen  t/m 3e Kwartaal 2019"]
[null,null,null," OPBRENGSTEN VERHAAL",null,null,null,"890.1",null,null,null,null,null,null,null,{"$f":"IF(AND(OR(I116<0,J116<0,K116<0,L116<0,M116<0),OR((I116-J116)/IF(I116=0,1,I116)<-10%,(K116-L116)/IF(K116=0,1,K116)<-10%)), \"U rapporteert een bedrag <0. Kunt u dit vooraf toelichten bij de mededelingen? En De balans is < -10%, als dit plausibel is dan vragen wij u dit nader toe te lichten bij de opmerkingen, zo niet dan dient u uw raming aan te scherpen.\",IF(OR(I116<0,J116<0,K116<0,L116<0,M116<0),\"U rapporteert een bedrag <0. Kunt u dit vooraf toelichten bij de mededelingen?\",IF(OR((I116-J116)/IF(I116=0,1,I116)<-10%,(K116-L116)/IF(K116=0,1,K116)<-10%),\"De balans is < -10%, als dit plausibel is dan vragen wij u dit nader toe te lichten bij de opmerkingen, zo niet dan dient u uw raming aan te scherpen.\",\"\")))","v":""}]
[null,null,null," SCHADE T.L.V. HET VRIJWILLIG EIGEN RISICO",null,null,null,"910   ",null,null,null,null,null,null,null,{"$f":"IF(AND(OR(I117<0,J117<0,K117<0,L117<0,M117<0),OR((I117-J117)/IF(I117=0,1,I117)<-10%,(K117-L117)/IF(K117=0,1,K117)<-10%)), \"U rapporteert een bedrag <0. Kunt u dit vooraf toelichten bij de mededelingen? En De balans is < -10%, als dit plausibel is dan vragen wij u dit nader toe te lichten bij de opmerkingen, zo niet dan dient u uw raming aan te scherpen.\",IF(OR(I117<0,J117<0,K117<0,L117<0,M117<0),\"U rapporteert een bedrag <0. Kunt u dit vooraf toelichten bij de mededelingen?\",IF(OR((I117-J117)/IF(I117=0,1,I117)<-10%,(K117-L117)/IF(K117=0,1,K117)<-10%),\"De balans is < -10%, als dit plausibel is dan vragen wij u dit nader toe te lichten bij de opmerkingen, zo niet dan dient u uw raming aan te scherpen.\",\"\")))","v":""}]
[null,null,null," SCHADE T.L.V. HET VERPLICHT EIGEN RISICO",null,null,null,"915   ",null,null,null,null,null,null,null,""]
[null,null,null," NETTO PREMIEOPBRENGSTEN",null,null,null,"940   ",null,null,null,null,null,null,null,""]
[]
[null,null,null,{"$f":"NOW()","v":"2020-03-11T09:59:25.330"},null,null,null,null,null,null,null,null,{"$f":"CONCATENATE(\"Kostenverzamelstaat, \",LOWER(A80))","v":"Kostenverzamelstaat, pagina 3"}]

{"sheet":"Specifieke informatie A","index":5,"n_rows":169,"n_cols":12,"rows_kept":169,"cut":false,"hidden":false,"merged":[[90,11,91,11],[126,3,126,4],[90,3,91,3],[108,4,108,8],[108,9,108,10],[109,4,109,8],[109,9,109,10],[102,4,102,8],[102,9,102,10],[103,4,103,8],[103,9,103,10],[104,4,104,8],[121,3,121,10],[122,3,122,10],[114,4,114,8],[114,9,114,10],[115,4,115,8],[115,9,115,10],[116,4,116,8],[116,9,116,10],[113,4,113,8],[113,9,113,10],[100,4,100,8],[100,9,100,10],[22,3,22,9],[24,11,25,11],[24,3,25,9],[24,10,25,10],[20,11,21,11],[41,3,41,4],[26,3,26,9],[28,3,29,9],[28,10,29,10],[28,11,29,11],[30,3,30,9],[32,3,33,9],[32,10,33,10],[32,11,33,11],[34,3,34,9],[11,11,12,11],[13,3,13,9],[11,10,12,10],[11,3,12,9],[14,3,14,9],[16,3,16,9],[20,10,21,10],[20,3,21,9],[17,3,17,9],[15,3,15,9],[99,4,99,8],[82,3,82,4],[110,4,110,8],[110,9,110,10],[63,3,63,9],[74,3,74,9],[69,3,69,9],[70,3,70,9],[71,3,71,9],[72,3,72,9],[73,3,73,9],[75,3,75,9],[99,9,99,10],[104,9,104,10],[105,4,105,8],[105,9,105,10],[106,4,106,8],[106,9,106,10],[67,3,68,9],[67,10,68,10],[112,4,112,8],[112,9,112,10],[101,4,101,8],[101,9,101,10],[107,4,107,8],[107,9,107,10],[49,3,50,9],[49,10,50,10],[67,11,68,11],[58,3,59,9],[58,10,59,10],[58,11,59,11],[60,3,62,4],[60,5,60,9],[61,5,61,9],[62,5,62,9],[49,11,50,11],[51,3,51,9],[52,3,52,9],[53,3,53,9],[55,3,55,9],[56,3,56,9],[54,3,54,9],[98,9,98,10],[135,9,135,10],[136,9,136,10],[134,7,134,10],[135,7,135,8],[136,7,136,8],[135,3,135,5],[117,3,117,10],[90,9,91,10],[90,4,91,8],[92,9,92,10],[92,4,92,8],[93,4,93,8],[93,9,93,10],[94,4,94,8],[94,9,94,10],[95,4,95,8],[95,9,95,10],[96,4,96,8],[96,9,96,10],[97,4,97,8],[97,9,97,10],[98,4,98,8],[111,4,111,8],[111,9,111,10],[141,3,141,5],[141,7,141,8],[137,11,138,11],[143,8,143,10],[145,8,145,10],[168,3,168,4],[139,9,139,10],[140,9,140,10],[141,9,141,10],[139,7,139,8],[140,7,140,8],[137,6,138,6],[137,7,138,8],[137,9,138,10],[137,3,137,5],[138,3,138,5],[139,3,139,5],[140,3,140,5]]}
[null,null,"INVULSPECIFICATIES SPECIFIEKE INFORMATIE A"]
[]
[]
[]
[]
["Pagina 1",null,null,{"$f":"CONCATENATE(\"JAARSTAAT ZVW \", jaar_id)","v":"JAARSTAAT ZVW 2019"}]
[null,null,null,"SPECIFIEKE INFORMATIE A"]
[null,null,null,{"$f":"IF(naw_uzovi_zorgverzekeraar<>\"0000\",CONCATENATE(UPPER(naw_naam_zorgverzekeraar),\", \",UPPER(naw_plaats_zorgverzekeraar)),\"\")","v":""},null,null,null,null,null,null,null,{"$f":"CONCATENATE(\"UZOVI: \",naw_uzovi_zorgverzekeraar)","v":"UZOVI: 0000"}]
[]
[null,null,null,"SPECIFICATIES INFORMATIE RISICOVEREVENING"]
[null,null,null,"KOSTEN NAAR DEELBIJDRAGE"]
[null,null,null," KOSTEN NAAR DEELBIJDRAGE",null,null,null,null,null,null,"Lasten 2019 inclusief balanspost","Ontvangen en geaccepteerde declaraties m.b.t. 2017 en ouder"]
[]
[null,null,null," Variabele zorgkosten"]
[null,null,null," Vaste zorgkosten "]
[null,null,null," Kosten geneeskundige geestelijke gezondheidszorg"]
[null,null,null," Kosten van langdurige geestelijke gezondheidszorg (LGGZ)"]
[null,null,null," TOTAAL kosten ",null,null,null,null,null,null,{"$f":"SUM(K14:K17)","v":0},{"$f":"SUM(L14:L17)","v":0}]
[]
[null,null,null,"RUBRIEK 06 MEDISCH SPECIALISTISCHE ZORG"]
[null,null,null," CODE 610  - OVERIGE KOSTEN ZIEKENHUISZORG EN CURATIEVE ZORG",null,null,null,null,null,null,"Lasten 2019 inclusief balanspost","Ontvangen en geaccepteerde declaraties m.b.t. 2017 en ouder"]
[]
[null,null,null," Kosten SKION en NTS (deel code 610) "]
[]
[null,null,null," CODE 612  - KOSTEN ADD-ONS ",null,null,null,null,null,null,"Lasten 2019 inclusief balanspost","Ontvangen en geaccepteerde declaraties m.b.t. 2017 en ouder"]
[]
[null,null,null," Add-ons dure intramurale geneesmiddelen (artikel 1, regeling risicoverevening)"]
[]
[null,null,null," CODE 612.1  - KOSTEN ADD-ONS DURE GENEESMIDDELEN",null,null,null,null,null,null,"Lasten 2019 inclusief balanspost","Ontvangen en geaccepteerde declaraties m.b.t. 2017 en ouder"]
[]
[null,null,null," Kosten add-ons - Dure geneesmiddelen (artikel 1, regeling risicoverevening)"]
[]
[]
[]
[]
[]
[]
[]
[]
[]
[]
[null,null,null,{"$f":"NOW()","v":"2020-03-11T09:59:25.330"},null,null,null,null,null,null,null,{"$f":"CONCATENATE(\"Specifieke informatie A, \",LOWER(A6))","v":"Specifieke informatie A, pagina 1"}]
[]
["Pagina 2",null,null,{"$f":"CONCATENATE(\"JAARSTAAT ZVW \", jaar_id)","v":"JAARSTAAT ZVW 2019"}]
[null,null,null,"SPECIFIEKE INFORMATIE A"]
[null,null,null,{"$f":"IF(naw_uzovi_zorgverzekeraar<>\"0000\",CONCATENATE(UPPER(naw_naam_zorgverzekeraar),\", \",UPPER(naw_plaats_zorgverzekeraar)),\"\")","v":""},null,null,null,null,null,null,null,{"$f":"CONCATENATE(\"UZOVI: \",naw_uzovi_zorgverzekeraar)","v":"UZOVI: 0000"}]
[]
[null,null,null,"SPECIFICATIES INFORMATIE RISICOVEREVENING"]
[null,null,null,"RUBRIEK 15 GRENSOVERSCHRIJDENDE ZORG"]
[null,null,null," CODE 720 - KOSTEN GRENSOVERSCHRIJDENDE ZORG VIA VERZEKERAAR",null,null,null,null,null,null,"Lasten 2019 inclusief balanspost","Ontvangen en geaccepteerde declaraties m.b.t. 2017 en ouder"]
[]
[null,null,null," Variabele zorgkosten"]
[null,null,null," Kosten van verpleging en verzorging "]
[null,null,null," Kosten van geneeskundige geestelijke gezondheidszorg"]
[null,null,null," Kosten van langdurige geestelijke gezondheidszorg (LGGZ)"]
[null,null,null," Kosten van geneeskundig geestelijke gezondheidszorg"]
[null,null,null," TOTAAL CODE 720 kosten gemaakt in het buitenland, via verzekeraar",null,null,null,null,null,null,{"$f":"SUM(K52:K56)","v":0},{"$f":"SUM(L52:L56)","v":0}]
[]
[null,null,null," CODE 721 - KOSTEN GRENSOVERSCHRIJDENDE ZORG VIA VERBINDINGSORGAAN",null,null,null,null,null,null,"Lasten 2019 inclusief balanspost","Ontvangen en geaccepteerde declaraties m.b.t. 2017 en ouder"]
[]
[null,null,null," Toepassing verordening  \n of verdrag inzake sociale  \n zekerheid, via CAK ",null," Behandeling in het buitenland met toepassing van artikel 20. \n EG-verordening 883/2004 of overeenkomstige verdragsbepaling"]
[null,null,null,null,null," Kosten gemaakt bij tijdelijk verblijf in het buitenland van Zvw \n verzekerden die wonen in Nederland"]
[null,null,null,null,null," Kosten gemaakt in het buitenland van Zvw verzekerden die wonen\n in het buitenland"]
[null,null,null," TOTAAL CODE 721 kosten gemaakt in het buitenland, via verbindingsorgaan",null,null,null,null,null,null,{"$f":"SUM(K61:K63)","v":0},{"$f":"SUM(L61:L63)","v":0}]
[]
[]
[null,null,null,"RUBRIEK 16 KWALITEITSGELDEN"]
[null,null,null," CODE 730 - KWALITEITSGELDEN",null,null,null,null,null,null,"Lasten 2019 inclusief balanspost","Ontvangen en geaccepteerde declaraties m.b.t. 2017 en ouder"]
[]
[null,null,null," Kosten Stichting Kwaliteitsontwikkeling GGZ"]
[null,null,null," Kosten regionale ondersteuning en eerstelijnszorg"]
[null,null,null," Kosten Stichting Kwaliteitsgelden Medisch Specialisten "]
[null,null,null," Kosten Stichting Kwaliteitsgelden Patiënten Consumenten  "]
[null,null,null," Kosten Projectgelden kwaliteitsbeleid eerstelijnszorg"]
[null,null,null," Kosten Stichting Kwaliteitsgelden wijkverpleging"]
[null,null,null," TOTAAL code 730",null,null,null,null,null,null,{"$f":"SUM(K70:K75)","v":0},{"$f":"SUM(L70:L74)","v":0}]
[]
[]
[]
[]
[]
[]
[null,null,null,{"$f":"NOW()","v":"2020-03-11T09:59:25.330"},null,null,null,null,null,null,null,{"$f":"CONCATENATE(\"Specifieke informatie A, \",LOWER(A44))","v":"Specifieke informatie A, pagina 2"}]
[]
["Pagina 3",null,null,{"$f":"CONCATENATE(\"JAARSTAAT ZVW \", jaar_id)","v":"JAARSTAAT ZVW 2019"}]
[null,null,null,"SPECIFIEKE INFORMATIE A"]
[null,null,null,{"$f":"IF(naw_uzovi_zorgverzekeraar<>\"0000\",CONCATENATE(UPPER(naw_naam_zorgverzekeraar),\", \",UPPER(naw_plaats_zorgverzekeraar)),\"\")","v":""},null,null,null,null,null,null,null,{"$f":"CONCATENATE(\"UZOVI: \",naw_uzovi_zorgverzekeraar)","v":"UZOVI: 0000"}]
[]
[null,null,null,"INFORMATIE OPBRENGSTVERREKENING"]
[null,null,null,"KOSTEN REGIONALE AMBULANCEVOORZIENINGEN 2018"]
[null,null,null," NZa-code","Naam Instelling",null,null,null,null,"Plaats",null," Kosten van vervoer per ambulance 2018"]
[]
[null,null,null," 240-4290"," Veiligheidsregio Zuid-Holland Zuid "," Veiligheidsregio Zuid-Holland Zuid "," Veiligheidsregio Zuid-Holland Zuid "," Veiligheidsregio Zuid-Holland Zuid "," Veiligheidsregio Zuid-Holland Zuid "," Zwijndrecht"]
[null,null,null," 240-4380"," Regionale Ambulancevoorziening Flevoland"," Regionale Ambulancevoorziening Flevoland"," Regionale Ambulancevoorziening Flevoland"," Regionale Ambulancevoorziening Flevoland"," Regionale Ambulancevoorziening Flevoland"," Lelystad"]
[null,null,null," 240-4440"," Stichting Regionale Ambulancevoorziening UMCG"," Stichting Regionale Ambulancevoorziening UMCG"," Stichting Regionale Ambulancevoorziening UMCG"," Stichting Regionale Ambulancevoorziening UMCG"," Stichting Regionale Ambulancevoorziening UMCG"," Tynaarlo"]
[null,null,null," 240-4590"," Regionale Ambulancevoorziening IJsselland"," Regionale Ambulancevoorziening IJsselland"," Regionale Ambulancevoorziening IJsselland"," Regionale Ambulancevoorziening IJsselland"," Regionale Ambulancevoorziening IJsselland"," Zwolle"]
[null,null,null," 240-4650"," Ambulance Oost"," Ambulance Oost"," Ambulance Oost"," Ambulance Oost"," Ambulance Oost"," Hengelo (OV) "]
[null,null,null," 240-4660"," Regionale Ambulancevoorziening Brabant Noord"," Regionale Ambulancevoorziening Brabant Noord"," Regionale Ambulancevoorziening Brabant Noord"," Regionale Ambulancevoorziening Brabant Noord"," Regionale Ambulancevoorziening Brabant Noord"," 's-Hertogenbosch "]
[null,null,null," 240-4690"," Regionale Ambulancevoorziening Gelderland-Zuid"," Regionale Ambulancevoorziening Gelderland-Zuid"," Regionale Ambulancevoorziening Gelderland-Zuid"," Regionale Ambulancevoorziening Gelderland-Zuid"," Regionale Ambulancevoorziening Gelderland-Zuid"," Nijmegen"]
[null,null,null," 240-4700"," Regionale Ambulancevoorziening Gelderland-Midden "," Regionale Ambulancevoorziening Gelderland-Midden "," Regionale Ambulancevoorziening Gelderland-Midden "," Regionale Ambulancevoorziening Gelderland-Midden "," Regionale Ambulancevoorziening Gelderland-Midden "," Arnhem "]
[null,null,null," 240-4730"," Ambulance Amsterdam B.V. (regio Amsterdam Amstelland)"," Ambulance Amsterdam B.V. (regio Amsterdam Amstelland)"," Ambulance Amsterdam B.V. (regio Amsterdam Amstelland)"," Ambulance Amsterdam B.V. (regio Amsterdam Amstelland)"," Ambulance Amsterdam B.V. (regio Amsterdam Amstelland)"," Amsterdam"]
[null,null,null," 240-5000"," Regionale Ambulancevoorziening Utrecht (RAVU)"," Regionale Ambulancevoorziening Utrecht (RAVU)"," Regionale Ambulancevoorziening Utrecht (RAVU)"," Regionale Ambulancevoorziening Utrecht (RAVU)"," Regionale Ambulancevoorziening Utrecht (RAVU)"," Bilthoven"]
[null,null,null," 240-5100"," Regionale Ambulancevoorziening Limburg-Noord"," Regionale Ambulancevoorziening Limburg-Noord"," Regionale Ambulancevoorziening Limburg-Noord"," Regionale Ambulancevoorziening Limburg-Noord"," Regionale Ambulancevoorziening Limburg-Noord"," Venlo"]
[null,null,null," 240-5200"," Regionale Ambulancevoorziening Zuid-Limburg"," Regionale Ambulancevoorziening Zuid-Limburg"," Regionale Ambulancevoorziening Zuid-Limburg"," Regionale Ambulancevoorziening Zuid-Limburg"," Regionale Ambulancevoorziening Zuid-Limburg"," Geleen"]
[null,null,null," 240-5310"," Veiligheidsregio Brabant-Zuidoost"," Veiligheidsregio Brabant-Zuidoost"," Veiligheidsregio Brabant-Zuidoost"," Veiligheidsregio Brabant-Zuidoost"," Veiligheidsregio Brabant-Zuidoost"," Eindhoven"]
[null,null,null," 240-5410"," Regionale Ambulancevoorziening Midden-West Brabant"," Regionale Ambulancevoorziening Midden-West Brabant"," Regionale Ambulancevoorziening Midden-West Brabant"," Regionale Ambulancevoorziening Midden-West Brabant"," Regionale Ambulancevoorziening Midden-West Brabant"," 's-Hertogenbosch"]
[null,null,null," 240-6320"," Regionale Ambulancevoorziening Groningen"," Regionale Ambulancevoorziening Groningen"," Regionale Ambulancevoorziening Groningen"," Regionale Ambulancevoorziening Groningen"," Regionale Ambulancevoorziening Groningen"," Groningen"]
[null,null,null," 240-6710"," Regionale Ambulancevoorziening Hollands Midden"," Regionale Ambulancevoorziening Hollands Midden"," Regionale Ambulancevoorziening Hollands Midden"," Regionale Ambulancevoorziening Hollands Midden"," Regionale Ambulancevoorziening Hollands Midden"," Leiden"]
[null,null,null," 240-6900"," Regionale Ambulancevoorziening Gooi en Vechtstreek"," Regionale Ambulancevoorziening Gooi en Vechtstreek"," Regionale Ambulancevoorziening Gooi en Vechtstreek"," Regionale Ambulancevoorziening Gooi en Vechtstreek"," Regionale Ambulancevoorziening Gooi en Vechtstreek"," Bussum"]
[null,null,null," 240-7004"," Coöperatie AmbulanceZorg Rotterdam Rijnmond U.A."," Coöperatie AmbulanceZorg Rotterdam Rijnmond U.A."," Coöperatie AmbulanceZorg Rotterdam Rijnmond U.A."," Coöperatie AmbulanceZorg Rotterdam Rijnmond U.A."," Coöperatie AmbulanceZorg Rotterdam Rijnmond U.A."," Barendrecht"]
[null,null,null," 240-7005 "," Witte Kruis Ambulance Services B.V. (regio Zeeland)"," Witte Kruis Ambulance Services B.V. (regio Zeeland)"," Witte Kruis Ambulance Services B.V. (regio Zeeland)"," Witte Kruis Ambulance Services B.V. (regio Zeeland)"," Witte Kruis Ambulance Services B.V. (regio Zeeland)"," Alkmaar"]
[null,null,null," 240-7006"," Coöperatie Regionale Ambulancevoorziening Fryslan U.A."," Coöperatie Regionale Ambulancevoorziening Fryslan U.A."," Coöperatie Regionale Ambulancevoorziening Fryslan U.A."," Coöperatie Regionale Ambulancevoorziening Fryslan U.A."," Coöperatie Regionale Ambulancevoorziening Fryslan U.A."," Tynaarlo"]
[null,null,null," 240-7007"," Regionale Ambulancevoorziening Haaglanden"," Regionale Ambulancevoorziening Haaglanden"," Regionale Ambulancevoorziening Haaglanden"," Regionale Ambulancevoorziening Haaglanden"," Regionale Ambulancevoorziening Haaglanden"," 's-Gravenhage"]
[null,null,null," 240-7008"," Witte Kruis Ambulance Services B.V. (regio Noordoost Gelderland)"," Witte Kruis Ambulance Services B.V. (regio Noordoost Gelderland)"," Witte Kruis Ambulance Services B.V. (regio Noordoost Gelderland)"," Witte Kruis Ambulance Services B.V. (regio Noordoost Gelderland)"," Witte Kruis Ambulance Services B.V. (regio Noordoost Gelderland)"," Alkmaar "]
[null,null,null," 240-7009"," Vereniging Ambulancezorg U.A. (regio Noord-Holland Noord)"," Vereniging Ambulancezorg U.A. (regio Noord-Holland Noord)"," Vereniging Ambulancezorg U.A. (regio Noord-Holland Noord)"," Vereniging Ambulancezorg U.A. (regio Noord-Holland Noord)"," Vereniging Ambulancezorg U.A. (regio Noord-Holland Noord)"," Alkmaar"]
[null,null,null," 240-7010"," Ambulance Amsterdam B.V. (regio Zaanstreek-Waterland)"," Ambulance Amsterdam B.V. (regio Zaanstreek-Waterland)"," Ambulance Amsterdam B.V. (regio Zaanstreek-Waterland)"," Ambulance Amsterdam B.V. (regio Zaanstreek-Waterland)"," Ambulance Amsterdam B.V. (regio Zaanstreek-Waterland)"," Amsterdam"]
[null,null,null," 240-7011"," Coöperatie Regionale Ambulancevoorziening Kennemerland"," Coöperatie Regionale Ambulancevoorziening Kennemerland"," Coöperatie Regionale Ambulancevoorziening Kennemerland"," Coöperatie Regionale Ambulancevoorziening Kennemerland"," Coöperatie Regionale Ambulancevoorziening Kennemerland"," Haarlem"]
[null,null,null," TOTALE KOSTEN VAN VERVOER PER AMBULANCE ",null,null,null," TOTALE KOSTEN VAN VERVOER PER AMBULANCE ",null,null,null,{"$f":"SUM(L93:L117)","v":0}]
[]
[null,null,null,"OVERIGE SPECIFICATIES"]
[null,null,null,"BEREKENDE NOMINALE REKENPREMIES GEDETINEERDEN"]
[null,null,null,null,null,null,null,null,null,null,null,"BEDRAG"]
[null,null,null," Totaal berekende nominale rekenpremies 2019 tijdens de detentieperiode van verzekerden van 18 jaar en ouder"]
[]
[]
[]
[null,null,null,{"$f":"NOW()","v":"2020-03-11T09:59:25.330"},null,null,null,null,null,null,null,{"$f":"CONCATENATE(\"Specifieke informatie A, \",LOWER(A85))","v":"Specifieke informatie A, pagina 3"}]
[]
["Pagina 4",null,null,{"$f":"CONCATENATE(\"JAARSTAAT ZVW \", jaar_id)","v":"JAARSTAAT ZVW 2019"}]
[null,null,null,"SPECIFIEKE INFORMATIE A"]
[null,null,null,{"$f":"IF(naw_uzovi_zorgverzekeraar<>\"0000\",CONCATENATE(UPPER(naw_naam_zorgverzekeraar),\", \",UPPER(naw_plaats_zorgverzekeraar)),\"\")","v":""},null,null,null,null,null,null,null,{"$f":"CONCATENATE(\"UZOVI: \",naw_uzovi_zorgverzekeraar)","v":"UZOVI: 0000"}]
[null,null,null,"WANBETALERS"]
[]
[null,null,null,"WANBETALERSBIJDRAGE"]
[null,null,null,null,null,null,"VERSLAGJAAR","CORRECTIE VOORGAANDE JAREN",null,null,null,"TOTAAL"]
[null,null,null,"JAARSTAAT",null,null,2019,2018,null,"2017 en voorgaande jaren"]
[]
[null,null,null,"AANTAL"]
[null,null,null,"PREMIEMAANDEN"]
[]
[null,null,null,"STANDAARDPREMIE"]
[null,null,null,"TOTALE BIJDRAGE",null,null,{"$f":"G138*G141","v":0},{"$f":"H138*H141","v":0},0,0,0,{"$f":"SUM(G142:K142)","v":0}]
[]
[null,null,null,null,null,null,null,null,"Ontvangen voorschot jaar T"]
[]
[null,null,null,null,null,null,null,null,"Nog te ontvangen/Te verreken met CAK",null,null,{"$f":"L142-L144","v":0}]
[]
[]
[]
[]
[]
[]
[]
[]
[]
[]
[]
[]
[]
[]
[]
[]
[]
[]
[]
[]
[]
[]
[null,null,null,{"$f":"NOW()","v":"2020-03-11T09:59:25.330"},null,null,null,null,null,null,null,{"$f":"CONCATENATE(\"Specifieke informatie A, \",LOWER(A129))","v":"Specifieke informatie A, pagina 4"}]

{"sheet":"Specifieke informatie C","index":6,"n_rows":607,"n_cols":15,"rows_kept":607,"cut":false,"hidden":false,"merged":[[24,3,24,9],[25,3,25,9],[493,3,494,10],[493,11,494,11],[495,3,495,10],[496,3,496,10],[497,3,497,10],[498,3,498,10],[240,11,241,11],[246,3,246,6],[245,3,245,6],[244,3,244,6],[243,3,243,6],[242,3,242,6],[267,5,267,6],[266,3,266,6],[267,3,267,4],[454,3,455,9],[434,3,435,8],[438,3,438,8],[454,11,455,11],[454,10,455,10],[452,3,452,9],[443,11,444,11],[451,3,451,9],[434,11,435,11],[227,3,227,8],[443,10,444,10],[445,3,445,9],[450,3,450,9],[447,3,447,9],[446,3,446,9],[443,3,444,9],[449,3,449,9],[448,3,448,9],[434,10,435,10],[436,3,436,8],[434,9,435,9],[440,3,440,8],[278,3,278,9],[258,5,260,6],[259,8,260,8],[261,7,261,11],[270,3,270,6],[264,3,264,6],[265,3,265,6],[269,3,269,6],[267,7,267,11],[259,11,260,11],[231,11,232,11],[167,5,167,9],[203,7,204,7],[208,3,208,6],[203,8,204,8],[184,10,185,10],[194,7,194,8],[194,3,196,6],[195,8,196,8],[223,3,223,8],[178,11,179,11],[226,3,226,8],[220,10,221,10],[240,7,241,7],[240,8,241,8],[210,3,210,6],[222,3,222,8],[225,3,225,8],[582,11,583,11],[573,3,573,10],[575,3,576,10],[577,3,577,10],[578,3,578,10],[575,11,576,11],[547,3,547,10],[545,3,545,10],[542,3,543,10],[570,3,570,10],[568,11,569,11],[554,3,554,10],[549,3,550,10],[552,3,552,10],[542,11,543,11],[549,11,550,11],[572,3,572,10],[571,3,571,10],[582,3,583,10],[553,3,553,10],[551,3,551,10],[546,3,546,10],[544,3,544,10],[606,3,606,4],[568,3,569,10],[580,3,580,10],[579,3,579,10],[561,3,561,4],[512,3,512,10],[521,3,522,10],[157,3,158,9],[585,3,585,10],[587,3,587,10],[586,3,586,10],[584,3,584,10],[540,3,540,10],[537,3,537,10],[539,3,539,10],[165,10,166,10],[220,3,221,8],[190,3,191,9],[184,3,185,9],[171,3,171,4],[159,3,159,9],[220,9,221,9],[209,3,209,6],[205,3,205,4],[470,3,470,4],[477,3,478,9],[112,3,113,4],[197,3,197,6],[202,3,204,4],[151,3,152,9],[113,5,113,9],[134,3,134,9],[168,5,168,9],[140,3,140,9],[141,3,141,9],[112,5,112,9],[120,8,120,9],[118,3,119,9],[120,3,120,7],[116,3,116,9],[115,3,115,9],[203,9,204,9],[198,3,198,6],[199,3,199,6],[148,3,148,9],[163,3,163,9],[114,3,114,9],[146,3,146,9],[477,10,478,10],[482,3,482,9],[484,3,485,9],[484,10,485,10],[477,11,478,11],[479,3,480,4],[479,5,479,9],[480,5,480,9],[481,3,481,9],[488,3,488,9],[489,3,489,9],[484,11,485,11],[486,3,487,4],[486,5,486,9],[487,5,487,9],[102,3,102,9],[190,10,191,10],[155,3,155,9],[187,3,187,9],[276,10,277,10],[276,3,277,9],[300,3,301,9],[118,11,119,11],[132,11,133,11],[165,11,166,11],[151,11,152,11],[258,7,258,8],[293,3,293,4],[251,3,251,4],[262,3,262,6],[263,3,263,6],[271,3,271,6],[272,3,272,6],[101,3,101,9],[161,3,161,9],[205,7,205,11],[261,3,261,4],[157,11,158,11],[184,11,185,11],[231,10,232,10],[224,3,224,8],[203,11,204,11],[202,7,202,8],[203,10,204,10],[213,3,213,4],[195,11,196,11],[190,11,191,11],[205,5,205,6],[206,3,206,6],[207,3,207,6],[195,10,196,10],[162,3,162,9],[169,3,170,4],[169,5,169,9],[170,5,170,9],[195,7,196,7],[186,3,186,9],[74,3,75,10],[92,3,92,9],[91,3,91,9],[88,3,89,9],[109,11,110,11],[59,11,60,11],[105,3,105,9],[97,3,97,9],[95,3,95,9],[93,3,94,3],[109,3,110,9],[88,10,89,10],[99,11,100,11],[88,11,89,11],[90,3,90,9],[94,4,94,9],[74,11,75,11],[93,4,93,9],[96,3,96,9],[67,11,68,11],[63,3,63,9],[61,3,61,9],[99,3,100,9],[99,10,100,10],[17,3,18,9],[62,3,62,9],[77,3,77,10],[78,3,78,10],[56,3,56,9],[30,10,31,10],[53,10,54,10],[33,3,33,9],[27,3,27,9],[39,3,40,9],[55,3,55,9],[67,3,68,10],[69,3,69,10],[70,3,70,10],[59,3,60,9],[34,3,34,9],[41,3,41,9],[28,3,28,9],[32,3,32,9],[30,3,31,9],[43,3,43,9],[44,3,44,9],[59,10,60,10],[72,3,72,10],[71,3,71,10],[21,5,21,9],[42,3,42,9],[35,3,35,9],[57,3,57,9],[19,3,21,4],[19,5,19,9],[10,11,11,11],[10,10,11,10],[23,5,23,9],[22,5,22,9],[10,3,11,9],[12,3,12,9],[13,3,13,9],[14,3,14,9],[53,11,54,11],[39,10,40,10],[30,11,31,11],[15,3,15,9],[39,11,40,11],[20,5,20,9],[36,3,36,9],[17,11,18,11],[22,3,23,4],[26,3,26,9],[17,10,18,10],[37,3,37,8],[53,3,54,9],[45,3,45,9],[47,3,47,4],[157,10,158,10],[125,3,125,4],[188,3,188,9],[132,3,133,9],[137,3,137,9],[144,3,144,9],[135,3,135,9],[147,3,147,9],[136,3,136,9],[139,3,139,9],[145,3,145,9],[142,3,142,9],[149,3,149,9],[138,3,138,9],[103,3,103,9],[118,10,119,10],[160,3,160,9],[109,10,110,10],[132,10,133,10],[178,10,179,10],[202,9,202,10],[195,9,196,9],[143,3,143,9],[151,10,152,10],[111,3,111,9],[178,3,179,9],[153,3,153,9],[154,3,154,9],[192,3,192,9],[202,5,204,6],[194,9,194,10],[180,3,180,9],[167,3,168,4],[165,3,166,9],[268,3,268,6],[259,7,260,7],[228,3,228,8],[230,9,230,10],[230,3,232,6],[230,7,230,8],[231,8,232,8],[231,9,232,9],[231,7,232,7],[259,9,260,9],[261,5,261,6],[258,9,258,10],[258,3,260,4],[240,9,241,9],[240,10,241,10],[233,3,233,6],[234,3,234,6],[235,3,235,6],[236,3,236,6],[237,3,237,6],[259,10,260,10],[239,3,241,6],[239,7,239,8],[239,9,239,10],[279,3,279,9],[280,3,280,9],[282,3,283,9],[282,10,283,10],[320,3,320,9],[311,3,313,4],[312,5,312,9],[307,5,307,9],[308,3,310,4],[313,5,313,9],[302,3,304,4],[304,5,304,9],[458,3,458,9],[459,3,459,9],[415,10,416,10],[406,3,406,9],[407,3,407,9],[379,3,379,4],[373,3,373,9],[368,3,369,9],[370,3,370,9],[391,3,391,9],[392,3,392,9],[386,10,387,10],[372,3,372,9],[388,3,388,9],[386,3,387,9],[389,3,389,9],[375,3,375,9],[408,3,408,9],[409,3,409,9],[417,3,417,9],[422,3,422,9],[415,3,416,9],[437,3,437,8],[439,3,439,8],[456,3,456,9],[457,3,457,9],[535,11,536,11],[538,3,538,10],[535,3,536,10],[532,3,532,10],[505,3,505,10],[504,3,504,10],[533,3,533,10],[528,11,529,11],[507,11,508,11],[521,11,522,11],[531,3,531,10],[513,3,513,4],[500,11,501,11],[502,3,502,10],[507,3,508,10],[510,3,510,10],[509,3,509,10],[528,3,529,10],[523,3,523,10],[511,3,511,10],[530,3,530,10],[526,3,526,10],[500,3,501,10],[524,3,524,10],[525,3,525,10],[503,3,503,10],[285,5,285,9],[286,3,286,9],[300,10,301,10],[390,3,390,9],[360,3,360,8],[365,3,365,8],[362,9,363,9],[322,10,323,10],[319,5,319,9],[302,5,302,9],[318,5,318,9],[303,5,303,9],[316,5,316,9],[362,3,363,8],[352,3,353,9],[356,10,357,10],[411,3,411,9],[423,3,423,9],[404,3,404,9],[427,3,427,4],[356,9,357,9],[362,11,363,11],[356,3,357,8],[354,3,354,9],[358,3,358,8],[359,3,359,8],[426,3,426,9],[396,3,397,9],[396,10,397,10],[396,11,397,11],[398,3,398,9],[402,3,403,9],[402,10,403,10],[402,11,403,11],[368,11,369,11],[386,11,387,11],[356,11,357,11],[421,3,421,9],[405,3,405,9],[418,3,418,9],[424,3,424,9],[420,3,420,9],[419,3,419,9],[410,3,410,9],[346,3,346,9],[324,3,324,8],[348,3,349,9],[344,3,345,9],[344,11,345,11],[308,5,308,9],[314,5,314,9],[305,5,305,9],[310,5,310,9],[305,3,307,4],[317,3,319,4],[317,5,317,9],[315,5,315,9],[322,11,323,11],[314,3,316,4],[337,3,337,4],[311,5,311,9],[309,5,309,9],[322,3,323,9],[344,10,345,10],[104,3,104,9],[415,11,416,11],[412,3,412,9],[413,3,413,9],[425,3,425,9],[76,3,76,10],[282,11,283,11],[284,3,285,4],[284,5,284,9],[276,11,277,11],[348,11,349,11],[306,5,306,9],[348,10,349,10],[366,3,366,8],[362,10,363,10],[368,10,369,10],[364,3,364,8],[371,3,371,9],[374,3,374,9],[352,11,353,11],[247,3,247,6],[300,11,301,11],[350,3,350,9],[352,10,353,10]]}
[null,null,"INVULSPECIFICATIES SPECIFIEKE INFORMATIE C"]
[]
[]
[]
[]
["Pagina 1",null,null,{"$f":"CONCATENATE(\"JAARSTAAT ZVW \", jaar_id)","v":"JAARSTAAT ZVW 2019"}]
[null,null,null,"SPECIFIEKE INFORMATIE C (BELEIDSINFORMATIE)"]
[null,null,null,{"$f":"IF(naw_uzovi_zorgverzekeraar<>\"0000\",CONCATENATE(UPPER(naw_naam_zorgverzekeraar),\", \",UPPER(naw_plaats_zorgverzekeraar)),\"\")","v":""},null,null,null,null,null,null,null,{"$f":"CONCATENATE(\"UZOVI: \",naw_uzovi_zorgverzekeraar)","v":"UZOVI: 0000"}]
[null,null,null,"SPECIFICATIES VAN KOSTEN EN PRODUCTIE"]
[null,null,null,"RUBRIEK 01 HUISARTSENZORG en MDZ"]
[null,null,null,"  CODE 503 - BIJZONDERE BETALINGEN",null,null,null,null,null,null,"Ontvangen en geaccepteerde declaraties mbt 2019","Ontvangen en geaccepteerde declaraties mbt 2018 "]
[null,null,null,null,null,null,null,null,null,null,"Ontvangen en geaccepteerde declaraties mbt jaar T","Ontvangen en geaccepteerde declaraties mbt jaar T-1"]
[null,null,null," Module achterstandsfonds"]
[null,null,null," Module modernisering en innovatie "]
[null,null,null," Overige kosten"]
[null,null,null," TOTAAL code 503",null,null,null,null,null,null,{"$f":"SUM(K13:K15)","v":0},{"$f":"SUM(L13:L15)","v":0}]
[]
[null,null,null,"  CODE 506 - CONSULTTARIEVEN",null,null,null,null,null,null,"Ontvangen en geaccepteerde declaraties mbt 2019","Ontvangen en geaccepteerde declaraties mbt 2018 "]
[null,null,null,null,null,null,null,null,null,null,"Ontvangen en geaccepteerde declaraties mbt jaar T","Ontvangen en geaccepteerde declaraties mbt jaar T-1"]
[null,null,null," Kosten consulten huisartsen",null," korter dan 5 minuten"]
[null,null,null,null,null," van 5 tot  20 minuten"]
[null,null,null,null,null," 20 minuten en langer"]
[null,null,null," Kosten visites huisartsen",null," ≤ 20 minuten"]
[null,null,null,null,null," > 20 minuten"]
[null,null,null," Kosten telefonisch consulten huisartsen"]
[null,null,null," Kosten e-mailconsulten huisartsen"]
[null,null,null," Kosten consulttarieven POH GGZ"]
[null,null,null," Kosten huisartsenzorg ELV en Intensieve zorg"]
[null,null,null," TOTAAL code 506",null,null,null,null,null,null,{"$f":"SUM(K20:K28)","v":0},{"$f":"SUM(L20:L28)","v":0}]
[]
[null,null,null,"  CODE 507 - OVERIGE TARIEVEN",null,null,null,null,null,null,"Ontvangen en geaccepteerde declaraties mbt 2019","Ontvangen en geaccepteerde declaraties mbt 2018 "]
[null,null,null,null,null,null,null,null,null,null,"Ontvangen en geaccepteerde declaraties mbt jaar T","Ontvangen en geaccepteerde declaraties mbt jaar T-1"]
[null,null,null," Module POH GGZ"]
[null,null,null," S1 verrichtingen"]
[null,null,null," Vaccinaties"]
[null,null,null," Passantentarieven"]
[null,null,null," Verloskundige zorg door huisartsen"]
[null,null,null," TOTAAL code 507",null,null,null,null,null,null,{"$f":"SUM(K33:K37)","v":0},{"$f":"SUM(L33:L36)","v":0}]
[]
[null,null,null,"  CODE 510 - MULTIDISCIPLINAIRE ZORG",null,null,null,null,null,null,"Ontvangen en geaccepteerde declaraties mbt 2019","Ontvangen en geaccepteerde declaraties mbt 2018 "]
[null,null,null,null,null,null,null,null,null,null,"Ontvangen en geaccepteerde declaraties mbt jaar T","Ontvangen en geaccepteerde declaraties mbt jaar T-1"]
[null,null,null," Multidisciplinaire zorgverlening Diabetes Mellitus type 2 en multidisciplinaire zorgverlening \n Cardiovasculair risicomanagement (vergoedingscomponent te verzekeren prestatie ZVW) "]
[null,null,null," Multidisciplinaire zorgverlening COPD (vergoedingscomponent te verzekeren prestatie ZVW) "]
[null,null,null," Organisatie en infrastructuur"]
[null,null,null," Programma stoppen met roken"]
[null,null,null," TOTAAL code 510",null,null,null,null,null,null,{"$f":"SUM(K42:K45)","v":0},{"$f":"SUM(L42:L45)","v":0}]
[]
[null,null,null,{"$f":"NOW()","v":"2020-03-11T09:59:25.330"},null,null,null,null,null,null,null,{"$f":"CONCATENATE(\"Specifieke informatie C, \",LOWER(A6))","v":"Specifieke informatie C, pagina 1"}]
[]
["Pagina 2",null,null,{"$f":"CONCATENATE(\"JAARSTAAT ZVW \", jaar_id)","v":"JAARSTAAT ZVW 2019"}]
[null,null,null,"SPECIFIEKE INFORMATIE C (BELEIDSINFORMATIE)"]
[null,null,null,{"$f":"IF(naw_uzovi_zorgverzekeraar<>\"0000\",CONCATENATE(UPPER(naw_naam_zorgverzekeraar),\", \",UPPER(naw_plaats_zorgverzekeraar)),\"\")","v":""},null,null,null,null,null,null,null,{"$f":"CONCATENATE(\"UZOVI: \",naw_uzovi_zorgverzekeraar)","v":"UZOVI: 0000"}]
[null,null,null,"RUBRIEK 01 HUISARTSENZORG en MDZ"]
[null,null,null,"  CODE 515 - RESULTAATBELONING EN ZORGVERNIEUWING HUISARTSEN ",null,null,null,null,null,null,"Ontvangen en geaccepteerde declaraties mbt 2019","Ontvangen en geaccepteerde declaraties mbt 2018 "]
[null,null,null,null,null,null,null,null,null,null,"Ontvangen en geaccepteerde declaraties mbt jaar T","Ontvangen en geaccepteerde declaraties mbt jaar T-1"]
[null,null,null," Kosten resultaatbeloning huisartsen"]
[null,null,null," Kosten zorgvernieuwing huisartsen"]
[null,null,null," TOTAAL code 515",null,null,null,null,null,null,{"$f":"SUM(K56:K57)","v":0},{"$f":"SUM(L56:L57)","v":0}]
[]
[null,null,null,"  CODE 516 - RESULTAATBELONING EN ZORGVERNIEUWING MDZ ",null,null,null,null,null,null,"Ontvangen en geaccepteerde declaraties mbt 2019","Ontvangen en geaccepteerde declaraties mbt 2018 "]
[null,null,null,null,null,null,null,null,null,null,"Ontvangen en geaccepteerde declaraties mbt jaar T","Ontvangen en geaccepteerde declaraties mbt jaar T-1"]
[null,null,null," Kosten resultaatbeloning MDZ"]
[null,null,null," Kosten zorgvernieuwing MDZ"]
[null,null,null," TOTAAL code 516",null,null,null,null,null,null,{"$f":"SUM(K62:K63)","v":0},{"$f":"SUM(L62:L63)","v":0}]
[]
[null,null,null,"SPECIFICATIES VAN KOSTEN EN PRODUCTIE"]
[null,null,null,"RUBRIEK 02 FARMACEUTISCHE ZORG "]
[null,null,null," CODE 520 - FARMACEUTISCHE ZORG",null,null,null,null,null,null,null,"Ontvangen en geaccepteerde declaraties mbt 2019"]
[null,null,null,null,null,null,null,null,null,null,null,"Ontvangen en geaccepteerde declaraties mbt jaar T-1"]
[null,null,null," Kosten geneesmiddel "]
[null,null,null," Kosten i.v.m terhandstelling"]
[null,null,null," Kosten overige zorgprestaties"]
[null,null,null," TOTAAL code 520",null,null,null,null,null,null,null,{"$f":"SUM(L70:L72)","v":0}]
[]
[null,null,null,"  CODE 520 - FARMACEUTISCHE ZORG",null,null,null,null,null,null,null,"Aantal prestaties mbt 2019"]
[]
[null,null,null," Aantallen prestaties geneesmiddel"]
[null,null,null," Aantallen overige zorgprestaties"]
[null,null,null," TOTAAL prestaties",null,null,null,null,null,null,null,{"$f":"SUM(L77:L78)","v":0}]
[]
[]
[null,null,null,null,null,null,null,null,null,null,null,{"$f":"CONCATENATE(\"Specifieke informatie C, \",LOWER(A50))","v":"Specifieke informatie C, pagina 2"}]
[]
["Pagina 3",null,null,{"$f":"CONCATENATE(\"JAARSTAAT ZVW \", jaar_id)","v":"JAARSTAAT ZVW 2019"}]
[null,null,null,"SPECIFIEKE INFORMATIE C (BELEIDSINFORMATIE)"]
[null,null,null,{"$f":"IF(naw_uzovi_zorgverzekeraar<>\"0000\",CONCATENATE(UPPER(naw_naam_zorgverzekeraar),\", \",UPPER(naw_plaats_zorgverzekeraar)),\"\")","v":""},null,null,null,null,null,null,null,{"$f":"CONCATENATE(\"UZOVI: \",naw_uzovi_zorgverzekeraar)","v":"UZOVI: 0000"}]
[null,null,null,"SPECIFICATIES VAN KOSTEN EN PRODUCTIE"]
[null,null,null,"RUBRIEK 03 VERPLEGING EN VERZORGING "]
[null,null,null,"  CODE 530 - VERPLEGING EN VERZORGING",null,null,null,null,null,null,"Ontvangen en geaccepteerde declaraties mbt 2019","Ontvangen en geaccepteerde declaraties mbt 2018 "]
[null,null,null,null,null,null,null,null,null,null,"Ontvangen en geaccepteerde declaraties mbt jaar T","Ontvangen en geaccepteerde declaraties mbt jaar T-1"]
[null,null,null," Kosten van prestaties verpleging"]
[null,null,null," Kosten van prestaties verzorging"]
[null,null,null," Kosten PGB's"]
[null,null,null," Overige kosten"," Prestaties AIV, Beloning op maat, Experiment bekostiging VenV \n (prestaties op verzekerdenniveau)"]
[null,null,null,null," Experiment regelarme instelling, Regionale \n beschikbaarheidsfunctie, Ketenzorg dementie \n (prestaties niet op verzekerdenniveau)"]
[null,null,null," Kosten verpleegkundige dagopvang en verblijf bij Intensieve kindzorg"]
[null,null,null," Kosten verpleging en verzorging voor kinderen tot 18 jaar"]
[null,null,null," TOTAAL code 530",null,null,null,null,null,null,{"$f":"SUM(K91:K97)","v":0},{"$f":"SUM(L91:L97)","v":0}]
[]
[null,null,null,"  CODE 530 - VERPLEGING EN VERZORGING",null,null,null,null,null,null,"Aantal mbt 2019","Aantal mbt 2018"]
[]
[null,null,null," Aantal prestaties verpleging"]
[null,null,null," Aantal prestaties verzorging"]
[null,null,null," Verpleegkundige dagopvang en verblijf bij Intensieve kindzorg"]
[null,null,null," Verpleging en verzorging voor kinderen tot 18 jaar"]
[null,null,null," TOTAAL code 530",null,null,null,null,null,null,{"$f":"SUM(K102:K105)","v":0},{"$f":"SUM(L102:L105)","v":0}]
[]
[null,null,null,"SPECIFICATIES VAN KOSTEN EN PRODUCTIE"]
[null,null,null,"RUBRIEK 04 MONDZORG"]
[null,null,null,"  CODE 560.1 - MONDZORG VOLWASSEN VERZEKERDEN",null,null,null,null,null,null,"Ontvangen en geaccepteerde declaraties mbt 2019","Ontvangen en geaccepteerde declaraties mbt 2018 "]
[null,null,null,null,null,null,null,null,null,null,"Ontvangen en geaccepteerde declaraties mbt jaar T","Ontvangen en geaccepteerde declaraties mbt jaar T-1"]
[null,null,null," X Maken en beoordelen foto's (Röntgendiagnostiek)"]
[null,null,null," Bijzondere tandheelkundige zorg \n (art. 2.7, lid 1, sub a)",null," Implantaten "]
[null,null,null,null,null," Overig"]
[null,null,null," Bijzondere tandheelkundige zorg (art. 2.7, lid 1, sub b en c)"]
[null,null,null," Bijzondere tandheelkundige zorg (art. 2.7, lid 3), Orthodontie"]
[null,null,null," TOTAAL code 560.1",null,null,null,null,null,null,{"$f":"SUM(K112:K116)","v":0},{"$f":"SUM(L112:L116)","v":0}]
[]
[null,null,null,"  CODE 560.1 - MONDZORG VOLWASSEN VERZEKERDEN",null,null,null,null,null,null,"Aantal mbt 2019","Aantal mbt 2018"]
[]
[null,null,null," Bijzondere tandheelkundige zorg (art. 2.7, lid 1, sub a)",null,null,null,null," Implantaten (J20 + J80)"]
[]
[]
[]
[]
[null,null,null,{"$f":"NOW()","v":"2020-03-11T09:59:25.330"},null,null,null,null,null,null,null,{"$f":"CONCATENATE(\"Specifieke informatie C, \",LOWER(A84))","v":"Specifieke informatie C, pagina 3"}]
[]
["Pagina 4",null,null,{"$f":"CONCATENATE(\"JAARSTAAT ZVW \", jaar_id)","v":"JAARSTAAT ZVW 2019"}]
[null,null,null,"SPECIFIEKE INFORMATIE C (BELEIDSINFORMATIE)"]
[null,null,null,{"$f":"IF(naw_uzovi_zorgverzekeraar<>\"0000\",CONCATENATE(UPPER(naw_naam_zorgverzekeraar),\", \",UPPER(naw_plaats_zorgverzekeraar)),\"\")","v":""},null,null,null,null,null,null,null,{"$f":"CONCATENATE(\"UZOVI: \",naw_uzovi_zorgverzekeraar)","v":"UZOVI: 0000"}]
[null,null,null,"SPECIFICATIES VAN KOSTEN EN PRODUCTIE"]
[null,null,null,"RUBRIEK 04 MONDZORG - vervolg"]
[null,null,null,"  CODE 560.2 - MONDZORG JEUGDIGE VERZEKERDEN",null,null,null,null,null,null,"Ontvangen en geaccepteerde declaraties mbt 2019","Ontvangen en geaccepteerde declaraties mbt 2018 "]
[null,null,null,null,null,null,null,null,null,null,"Ontvangen en geaccepteerde declaraties mbt jaar T","Ontvangen en geaccepteerde declaraties mbt jaar T-1"]
[null,null,null," C        Consultatie en diagnostiek"]
[null,null,null," X        Maken en beoordelen foto's"]
[null,null,null," M        Preventieve mondzorg"]
[null,null,null," A+B    Verdoving"]
[null,null,null," V        Vullingen"]
[null,null,null," E        Wortelkanaalbehandelingen"]
[null,null,null," R        Kronen en bruggen"]
[null,null,null," G        Kaakgewrichtbehandelingen"]
[null,null,null," H        Chirurgische ingrepen"]
[null,null,null," P        Uitneembare prothetische voorzieningen"]
[null,null,null," T        Tandvleesbehandelingen"]
[null,null,null," J         Implantaten"]
[null,null,null," Z        Abonnementstarieven"]
[null,null,null," Bijzondere tandheelkundige zorg (art. 2.7, lid 1, sub a, b en c)"]
[null,null,null," Bijzondere tandheelkundige zorg (art. 2.7, lid 3), Orthodontie"]
[null,null,null," TOTAAL code 560.2",null,null,null,null,null,null,{"$f":"SUM(K135:K149)","v":0},{"$f":"SUM(L135:L149)","v":0}]
[]
[null,null,null,"  CODE 560.2 - MONDZORG JEUGDIGE VERZEKERDEN",null,null,null,null,null,null,"Aantal mbt 2019","Aantal mbt 2018"]
[]
[null,null,null," C     Consultatie en diagnostiek (C11, periodieke controle)"]
[null,null,null," M     Preventieve mondzorg (M01, Preventieve voorlichting en/of instructie)"]
[null,null,null," M     Preventieve mondzorg (M02, Consult voor evaluatie van preventie)"]
[]
[null,null,null,"  CODE 561 - GEBITSPROTHESEN",null,null,null,null,null,null,"Ontvangen en geaccepteerde declaraties mbt 2019","Ontvangen en geaccepteerde declaraties mbt 2018 "]
[null,null,null,null,null,null,null,null,null,null,"Ontvangen en geaccepteerde declaraties mbt jaar T","Ontvangen en geaccepteerde declaraties mbt jaar T-1"]
[null,null,null," Volledige conventionele gebitsprothesen voor onder- en/of bovenkaak"]
[null,null,null," Rebasings en reparaties van de conventionele gebitsprothesen "]
[null,null,null," Volledige implantaat gedragen gebitsprothesen voor onder- en/of bovenkaak"]
[null,null,null," Rebasings en reparaties implantaat gedragen gebitsprothesen"]
[null,null,null," TOTAAL code 561",null,null,null,null,null,null,{"$f":"SUM(K160:K163)","v":0},{"$f":"SUM(L160:L163)","v":0}]
[]
[null,null,null,"  CODE 561 - GEBITSPROTHESEN",null,null,null,null,null,null,"Aantal mbt 2019","Aantal mbt 2018"]
[]
[null,null,null," Volledige conventionele \n gebitsprothesen \n ",null," onder en boven"]
[null,null,null,null,null," onder of boven (tellen per kaak) "]
[null,null,null," Volledige implantaat gedragen \n gebitsprothesen \n ",null," onder en boven"]
[null,null,null,null,null," onder of boven (tellen per kaak) "]
[null,null,null,{"$f":"NOW()","v":"2020-03-11T09:59:25.330"},null,null,null,null,null,null,null,{"$f":"CONCATENATE(\"Specifieke informatie C, \",LOWER(A128))","v":"Specifieke informatie C, pagina 4"}]
[]
["Pagina 5",null,null,{"$f":"CONCATENATE(\"JAARSTAAT ZVW \", jaar_id)","v":"JAARSTAAT ZVW 2019"}]
[null,null,null,"SPECIFIEKE INFORMATIE C (BELEIDSINFORMATIE)"]
[null,null,null,{"$f":"IF(naw_uzovi_zorgverzekeraar<>\"0000\",CONCATENATE(UPPER(naw_naam_zorgverzekeraar),\", \",UPPER(naw_plaats_zorgverzekeraar)),\"\")","v":""},null,null,null,null,null,null,null,{"$f":"CONCATENATE(\"UZOVI: \",naw_uzovi_zorgverzekeraar)","v":"UZOVI: 0000"}]
[null,null,null,"SPECIFICATIES VAN KOSTEN EN PRODUCTIE"]
[null,null,null,"RUBRIEK 05 VERLOSKUNDIGE ZORG"]
[null,null,null," SPECIFICATIE AANTALLEN VERLOSSINGEN",null,null,null,null,null,null,"Aantal mbt 2019","Aantal mbt 2018"]
[]
[null,null,null," Volledige verlossingen door verloskundigen (code 580)"]
[]
[null,null,null,"SPECIFICATIES VAN KOSTEN EN PRODUCTIE"]
[null,null,null,"RUBRIEK 06 MEDISCH SPECIALISTISCHE ZORG "]
[null,null,null,"  CODE 545 - KOSTEN SPECIALISTEN MONDZIEKTEN EN KAAKCHIRURGIE",null,null,null,null,null,null,"Ontvangen en geaccepteerde declaraties mbt 2019","Ontvangen en geaccepteerde declaraties mbt 2018 "]
[null,null,null,null,null,null,null,null,null,null,"Ontvangen en geaccepteerde declaraties mbt jaar T","Ontvangen en geaccepteerde declaraties mbt jaar T-1"]
[null,null,null," Implantaten"]
[null,null,null," Overige prestaties"]
[null,null,null," TOTAAL code 545",null,null,null,null,null,null,{"$f":"SUM(K187:K188)","v":0},{"$f":"SUM(L187:L188)","v":0}]
[]
[null,null,null,"  CODE 545 - KOSTEN SPECIALISTEN MONDZIEKTEN EN KAAKCHIRURGIE",null,null,null,null,null,null,"Aantal mbt 2019","Aantal mbt 2018"]
[]
[null,null,null," Aantal implantaten (code 238060)"]
[]
[null,null,null," CODE 610 - OVERIGE KOSTEN \n ZIEKENHUISZORG EN CURATIEVE ZORG",null,null,null,"Lasten 2019",null,"Lasten 2018",null,"Lasten 2017 \nen ouder"]
[null,null,null,null,null,null,null,"Lasten 2019 inclusief balanspost","Ontvangen en geaccepteerde declaraties mbt 2019","Lasten 2018 inclusief balanspost","Ontvangen en geaccepteerde declaraties mbt 2018","Ontvangen en geaccepteerde declaraties mbt 2017 en ouder"]
[null,null,null,null,null,null,null,null,"Ontvangen en geaccepteerde declaraties mbt jaar T-1",null,null,"Ontvangen en geaccepteerde declaraties mbt jaar T-1"]
[null,null,null," Kosten van eerstelijnsdiagnostiek aangevraagd \n door eerstelijns zorgaanbieders, geleverd door \n huisartsenlaboratoria",null,null,null,null,null,null,null,null,null,null,{"$f":"IF(OR((H198-I198)/IF(H198=0,1,H198)<-10%,(J198-K198)/IF(J198=0,1,J198)<-10%,(L198-M198)/IF(L198=0,1,L198)<-10%),\"De balans is < -10%, als dit plausibel is dan vragen wij u dit nader toe te lichten bij de opmerkingen, zo niet dan dient u uw raming aan te scherpen.\",\"\")","v":""}]
[null,null,null," Trombosediensten",null,null,null,null,null,null,null,null,null,null,{"$f":"IF(OR((H199-I199)/IF(H199=0,1,H199)<-10%,(J199-K199)/IF(J199=0,1,J199)<-10%,(L199-M199)/IF(L199=0,1,L199)<-10%),\"De balans is < -10%, als dit plausibel is dan vragen wij u dit nader toe te lichten bij de opmerkingen, zo niet dan dient u uw raming aan te scherpen.\",\"\")","v":""}]
[null,null,null," SKION en NTS",null,null,null,null,null,null,null,null,null,null,""]
[null,null,null," TOTAAL code 610",null,null,null,{"$f":"SUM(H198:H200)","v":0},{"$f":"SUM(I198:I200)","v":0},0,0,0]
[]
[null,null,null," CODE 611 - NAAR INSTELLINGEN",null," ",null,"Lasten 2019",null,"Lasten 2018",null,"Lasten 2017 \nen ouder"]
[null,null,null,null,null,null,null,"Lasten 2019 inclusief balanspost","Ontvangen en geaccepteerde declaraties mbt 2019","Lasten 2018 inclusief balanspost","Ontvangen en geaccepteerde declaraties mbt 2018","Ontvangen en geaccepteerde declaraties mbt 2017 en ouder"]
[null,null,null,null,null,null,null,null,"Ontvangen en geaccepteerde declaraties mbt jaar T-1",null,null,"Ontvangen en geaccepteerde declaraties mbt jaar T-1"]
[null,null,null," Overige zorgproducten",null," "]
[null,null,null," Academische ziekenhuizen",null,null,null,null,null,null,null,null,null,null,{"$f":"IF(OR((H207-I207)/IF(H207=0,1,H207)<-10%,(J207-K207)/IF(J207=0,1,J207)<-10%,(L207-M207)/IF(L207=0,1,L207)<-10%),\"De balans is < -10%, als dit plausibel is dan vragen wij u dit nader toe te lichten bij de opmerkingen, zo niet dan dient u uw raming aan te scherpen.\",\"\")","v":""}]
[null,null,null," Algemene ziekenhuizen",null,null,null,null,null,null,null,null,null,null,""]
[null,null,null," Zelfstandige behandelcentra",null,null,null,null,null,null,null,null,null,null,""]
[null,null,null," Overige zorgaanbieders ",null,null,null,null,null,null,null,null,null,null,""]
[null,null,null," TOTAAL code 611",null,null,null,{"$f":"SUM(H207:H210)","v":0},{"$f":"SUM(I207:I210)","v":0},{"$f":"SUM(J207:J210)","v":0},{"$f":"SUM(K207:K210)","v":0},{"$f":"SUM(L207:L210)","v":0}]
[]
[]
[null,null,null,{"$f":"NOW()","v":"2020-03-11T09:59:25.330"},null,null,null,null,null,null,null,{"$f":"CONCATENATE(\"Specifieke informatie C, \",LOWER(A174))","v":"Specifieke informatie C, pagina 5"}]
[]
["Pagina 6",null,null,{"$f":"CONCATENATE(\"JAARSTAAT ZVW \", jaar_id)","v":"JAARSTAAT ZVW 2019"}]
[null,null,null,"SPECIFIEKE INFORMATIE C (BELEIDSINFORMATIE)"]
[null,null,null,{"$f":"IF(naw_uzovi_zorgverzekeraar<>\"0000\",CONCATENATE(UPPER(naw_naam_zorgverzekeraar),\", \",UPPER(naw_plaats_zorgverzekeraar)),\"\")","v":""},null,null,null,null,null,null,null,{"$f":"CONCATENATE(\"UZOVI: \",naw_uzovi_zorgverzekeraar)","v":"UZOVI: 0000"}]
[]
[null,null,null,"RUBRIEK 06 MEDISCH SPECIALISTISCHE ZORG - vervolg"]
[null,null,null,"  CODE 611 - OVERIGE ZORGPRODUCTEN",null,null,null,null,null,"Ontvangen en geaccepteerde declaraties mbt 2019","Ontvangen en geaccepteerde declaraties mbt 2018"]
[null,null,null,null,null,null,null,null,null,null,"Ontvangen en geaccepteerde declaraties mbt jaar T"]
[null,null,null," Poliklinische bevalling zonder medische indicatie"]
[null,null,null," Poliklinische bevalling op medische indicatie"]
[null,null,null," Verplichte poliklinische bevalling zonder medische indicatie"]
[null,null,null," Gezonde moeder"]
[null,null,null," Gezonde zuigeling"]
[null,null,null," Kosten MSVT"]
[null,null,null," Kosten stollingsfactoren"]
[]
[null,null,null,"CODE 612.1 - KOSTEN ADD-ONS                                      DURE GENEESMIDDELEN",null,null,null,"Lasten 2019",null,"Lasten 2018",null,"Lasten 2017 \nen ouder"]
[null,null,null,null,null,null,null,"Lasten 2019 inclusief balanspost","Ontvangen en geaccepteerde declaraties mbt 2019","Lasten 2018 inclusief balanspost","Ontvangen en geaccepteerde declaraties mbt 2018","Ontvangen en geaccepteerde declaraties mbt 2017 en ouder"]
[null,null,null,null,null,null,null,null,"Ontvangen en geaccepteerde declaraties mbt jaar T-1",null,null,"Ontvangen en geaccepteerde declaraties mbt jaar T-1"]
[null,null,null," Academische ziekenhuizen",null,null,null,null,null,null,null,null,null,null,{"$f":"IF(OR((H234-I234)/IF(H234=0,1,H234)<-10%,(J234-K234)/IF(J234=0,1,J234)<-10%,(L234-M234)/IF(L234=0,1,L234)<-10%),\"De balans is < -10%, als dit plausibel is dan vragen wij u dit nader toe te lichten bij de opmerkingen, zo niet dan dient u uw raming aan te scherpen.\",\"\")","v":""}]
[null,null,null," Algemene ziekenhuizen",null,null,null,null,null,null,null,null,null,null,""]
[null,null,null," Zelfstandige behandelcentra",null,null,null,null,null,null,null,null,null,null,""]
[null,null,null," Overige zorgaanbieders ",null,null,null,null,null,null,null,null,null,null,""]
[null,null,null," TOTAAL code 612.1",null,null,null,{"$f":"SUM(H234:H237)","v":0},{"$f":"SUM(I234:I237)","v":0},{"$f":"SUM(J234:J237)","v":0},{"$f":"SUM(K234:K237)","v":0},{"$f":"SUM(L234:L237)","v":0}]
[]
[null,null,null,"CODE 612.2 - KOSTEN ADD-ONS  IC",null,null,null,"Lasten 2019",null,"Lasten 2018",null,"Lasten 2017 \nen ouder"]
[null,null,null,null,null,null,null,"Lasten 2019 inclusief balanspost","Ontvangen en geaccepteerde declaraties mbt 2019","Lasten 2018 inclusief balanspost","Ontvangen en geaccepteerde declaraties mbt 2018","Ontvangen en geaccepteerde declaraties mbt 2017 en ouder"]
[null,null,null,null,null,null,null,null,"Ontvangen en geaccepteerde declaraties mbt jaar T-1",null,null,"Ontvangen en geaccepteerde declaraties mbt jaar T-1"]
[null,null,null," Academische ziekenhuizen",null,null,null,null,null,null,null,null,null,null,{"$f":"IF(OR((H243-I243)/IF(H243=0,1,H243)<-10%,(J243-K243)/IF(J243=0,1,J243)<-10%,(L243-M243)/IF(L243=0,1,L243)<-10%),\"De balans is < -10%, als dit plausibel is dan vragen wij u dit nader toe te lichten bij de opmerkingen, zo niet dan dient u uw raming aan te scherpen.\",\"\")","v":""}]
[null,null,null," Algemene ziekenhuizen",null,null,null,null,null,null,null,null,null,null,""]
[null,null,null," Zelfstandige behandelcentra",null,null,null,null,null,null,null,null,null,null,""]
[null,null,null," Overige zorgaanbieders ",null,null,null,null,null,null,null,null,null,null,""]
[null,null,null," TOTAAL code 612.2",null,null,null,{"$f":"SUM(H243:H246)","v":0},{"$f":"SUM(I243:I246)","v":0},{"$f":"SUM(J243:J246)","v":0},{"$f":"SUM(K243:K246)","v":0},{"$f":"SUM(L243:L246)","v":0}]
[null,null,null," TOTAAL code 612",null,null,null,{"$f":"SUM(H243:H246)+SUM(H234:H237)","v":0},0,{"$f":"SUM(J243:J246)+SUM(J234:J237)","v":0},{"$f":"SUM(K243:K246)+SUM(K234:K237)","v":0},0]
[]
[]
[]
[null,null,null,{"$f":"NOW()","v":"2020-03-11T09:59:25.330"},null,null,null,null,null,null,null,{"$f":"CONCATENATE(\"Specifieke informatie C, \",LOWER(A216))","v":"Specifieke informatie C, pagina 6"}]
[]
["Pagina 7",null,null,{"$f":"CONCATENATE(\"JAARSTAAT ZVW \", jaar_id)","v":"JAARSTAAT ZVW 2019"}]
[null,null,null,"SPECIFIEKE INFORMATIE C (BELEIDSINFORMATIE)"]
[null,null,null,{"$f":"IF(naw_uzovi_zorgverzekeraar<>\"0000\",CONCATENATE(UPPER(naw_naam_zorgverzekeraar),\", \",UPPER(naw_plaats_zorgverzekeraar)),\"\")","v":""},null,null,null,null,null,null,null,{"$f":"CONCATENATE(\"UZOVI: \",naw_uzovi_zorgverzekeraar)","v":"UZOVI: 0000"}]
[]
[null,null,null,"RUBRIEK 06 MEDISCH SPECIALISTISCHE ZORG - vervolg"]
[null,null,null,"DBC-zorgproducten NAAR INSTELLING",null,"Code",null,"Lasten 2019",null,"Lasten 2018",null,"Lasten 2017 \nen ouder"]
[null,null,null,null,null,null,null,"Lasten 2019 inclusief balanspost","Ontvangen en geaccepteerde declaraties mbt 2019","Lasten 2018 inclusief balanspost","Ontvangen en geaccepteerde declaraties mbt 2018","Ontvangen en geaccepteerde declaraties mbt 2016 en ouder"]
[null,null,null,null,null,null,null,null,"Ontvangen en geaccepteerde declaraties mbt jaar T-1",null,null,"Ontvangen en geaccepteerde declaraties mbt jaar T-1"]
[null,null,null," Integrale kosten DBC-zorgproduct \n gereguleerde segment",null,"613.1"]
[null,null,null," Academische ziekenhuizen",null,null,null,null,null,null,null,null,null,null,{"$f":"IF(OR((H263-I263)/IF(H263=0,1,H263)<-10%,(J263-K263)/IF(J263=0,1,J263)<-10%,(L263-M263)/IF(L263=0,1,L263)<-10%),\"De balans is < -10%, als dit plausibel is dan vragen wij u dit nader toe te lichten bij de opmerkingen, zo niet dan dient u uw raming aan te scherpen.\",\"\")","v":""}]
[null,null,null," Algemene ziekenhuizen",null,null,null,null,null,null,null,null,null,null,""]
[null,null,null," Zelfstandige behandelcentra",null,null,null,null,null,null,null,null,null,null,""]
[null,null,null," Overige zorgaanbieders ",null,null,null,null,null,null,null,null,null,null,""]
[null,null,null," TOTAAL code 613.1",null,null,null,{"$f":"SUM(H263:H266)","v":0},{"$f":"SUM(I263:I266)","v":0},{"$f":"SUM(J263:J266)","v":0},{"$f":"SUM(K263:K266)","v":0},{"$f":"SUM(L263:L266)","v":0}]
[null,null,null," Integrale kosten DBC-zorgproduct \n vrije segment",null,"615.1"]
[null,null,null," Academische ziekenhuizen",null,null,null,null,null,null,null,null,null,null,{"$f":"IF(OR((H269-I269)/IF(H269=0,1,H269)<-10%,(J269-K269)/IF(J269=0,1,J269)<-10%,(L269-M269)/IF(L269=0,1,L269)<-10%),\"De balans is < -10%, als dit plausibel is dan vragen wij u dit nader toe te lichten bij de opmerkingen, zo niet dan dient u uw raming aan te scherpen.\",\"\")","v":""}]
[null,null,null," Algemene ziekenhuizen",null,null,null,null,null,null,null,null,null,null,""]
[null,null,null," Zelfstandige behandelcentra",null,null,null,null,null,null,null,null,null,null,""]
[null,null,null," Overige zorgaanbieders ",null,null,null,null,null,null,null,null,null,null,""]
[null,null,null," TOTAAL code 615.1",null,null,null,{"$f":"SUM(H269:H272)","v":0},{"$f":"SUM(I269:I272)","v":0},{"$f":"SUM(J269:J272)","v":0},0,{"$f":"SUM(L269:L272)","v":0}]
[]
[null,null,null,"SPECIFICATIES VAN KOSTEN EN PRODUCTIE"]
[null,null,null,"RUBRIEK 09 ZIEKENVERVOER"]
[null,null,null,"  CODE 650 - VERVOER PER AMBULANCE/HELIKOPTER",null,null,null,null,null,null,"Ontvangen en geaccepteerde declaraties mbt 2019","Ontvangen en geaccepteerde declaraties mbt 2018"]
[]
[null,null,null," Ambulanceritten"]
[null,null,null," Helikoptervluchten"]
[null,null,null," TOTAAL code 650",null,null,null,null,null,null,{"$f":"SUM(K279:K280)","v":0},{"$f":"SUM(L279:L280)","v":0}]
[]
[null,null,null,"  CODE 650 - VERVOER PER AMBULANCE/HELIKOPTER - vervolg",null,null,null,null,null,null,"Aantal mbt 2019","Aantal mbt 2018"]
[null,null,null,null,null,null,null,null,null,null,"Ontvangen en geaccepteerde declaraties mbt jaar T","Ontvangen en geaccepteerde declaraties mbt jaar T"]
[null,null,null," Ambulanceritten",null," Spoed (code I010)"]
[null,null,null,null,null," Besteld (code I002)"]
[null,null,null," Helikoptervluchten"]
[]
[]
[]
[]
[]
[]
[null,null,null,{"$f":"NOW()","v":"2020-03-11T09:59:25.330"},null,null,null,null,null,null,null,{"$f":"CONCATENATE(\"Specifieke informatie C, \",LOWER(A254))","v":"Specifieke informatie C, pagina 7"}]
[]
["Pagina 8",null,null,{"$f":"CONCATENATE(\"JAARSTAAT ZVW \", jaar_id)","v":"JAARSTAAT ZVW 2019"}]
[null,null,null,"SPECIFIEKE INFORMATIE C (BELEIDSINFORMATIE)"]
[null,null,null,{"$f":"IF(naw_uzovi_zorgverzekeraar<>\"0000\",CONCATENATE(UPPER(naw_naam_zorgverzekeraar),\", \",UPPER(naw_plaats_zorgverzekeraar)),\"\")","v":""},null,null,null,null,null,null,null,{"$f":"CONCATENATE(\"UZOVI: \",naw_uzovi_zorgverzekeraar)","v":"UZOVI: 0000"}]
[]
[null,null,null,"RUBRIEK 09 ZIEKENVERVOER"]
[null,null,null,"  CODE 651 - VERVOER PER OPENBAAR VERVOER, TAXI EN EIGEN AUTO",null,null,null,null,null,null,"Ontvangen en geaccepteerde declaraties mbt 2019","Ontvangen en geaccepteerde declaraties mbt 2018"]
[]
[null,null,null," Nierdialysepatiënten",null," Openbaar vervoer"]
[null,null,null,null,null," Taxi"]
[null,null,null,null,null," Eigen auto"]
[null,null,null," Chemokuur- en radiotherapie \n patiënten + immuuntherapie",null," Openbaar vervoer"]
[null,null,null,null,null," Taxi"]
[null,null,null,null,null," Eigen auto"]
[null,null,null," Rolstoelgebruikers",null," Openbaar vervoer"]
[null,null,null,null,null," Taxi"]
[null,null,null,null,null," Eigen auto"]
[null,null,null," Visueel gehandicapten",null," Openbaar vervoer"]
[null,null,null,null,null," Taxi"]
[null,null,null,null,null," Eigen auto"]
[null,null,null," Overige patiënten met toestemming\n o.g.v. hardheidsclausule",null," Openbaar vervoer"]
[null,null,null,null,null," Taxi"]
[null,null,null,null,null," Eigen auto"]
[null,null,null," Intensieve kindzorg",null," Openbaar vervoer"]
[null,null,null,null,null," Taxi"]
[null,null,null,null,null," Eigen auto"]
[null,null,null," TOTAAL code 651",null,null,null,null,null,null,{"$f":"SUM(K303:K320)","v":0},{"$f":"SUM(L303:L320)","v":0}]
[]
[null,null,null,"  CODE 651 - VERVOER PER OPENBAAR VERVOER, TAXI EN EIGEN AUTO - vervolg",null,null,null,null,null,null,"Aantal mbt 2019","Aantal mbt 2018"]
[null,null,null,null,null,null,null,null,null,null,"Ontvangen en geaccepteerde declaraties mbt jaar T","Ontvangen en geaccepteerde declaraties mbt jaar T"]
[null,null,null," Totaal verzekerden met kosten hoger dan de wettelijke eigen bijdrage"]
[]
[]
[]
[]
[]
[]
[]
[]
[]
[]
[]
[]
[null,null,null,{"$f":"NOW()","v":"2020-03-11T09:59:25.330"},null,null,null,null,null,null,null,{"$f":"CONCATENATE(\"Specifieke informatie C, \",LOWER(A296))","v":"Specifieke informatie C, pagina 8"}]
[]
["Pagina 9",null,null,{"$f":"CONCATENATE(\"JAARSTAAT ZVW \", jaar_id)","v":"JAARSTAAT ZVW 2019"}]
[null,null,null,"SPECIFIEKE INFORMATIE C (BELEIDSINFORMATIE)"]
[null,null,null,{"$f":"IF(naw_uzovi_zorgverzekeraar<>\"0000\",CONCATENATE(UPPER(naw_naam_zorgverzekeraar),\", \",UPPER(naw_plaats_zorgverzekeraar)),\"\")","v":""},null,null,null,null,null,null,null,{"$f":"CONCATENATE(\"UZOVI: \",naw_uzovi_zorgverzekeraar)","v":"UZOVI: 0000"}]
[null,null,null,"SPECIFICATIES VAN KOSTEN EN PRODUCTIE"]
[null,null,null,"RUBRIEK 10 GENEESKUNDIGE GEESTELIJKE GEZONDHEIDSZORG"]
[null,null,null,"  CODE 661 - SPECIALISTISCHE GGZ MET VERBLIJF",null,null,null,null,null,null,"Aantal mbt 2019","Aantal mbt 2018"]
[null,null,null,null,null,null,null,null,null,null,"Ontvangen en geaccepteerde declaraties mbt jaar T","Ontvangen en geaccepteerde declaraties mbt jaar T"]
[null,null,null," Aantal DBC's"]
[]
[null,null,null,"  CODE 661.1 - LANGDURIGE GGZ",null,null,null,null,null,null,"Aantal mbt 2019","Aantal mbt 2018"]
[null,null,null,null,null,null,null,null,null,null,"Ontvangen en geaccepteerde declaraties mbt jaar T","Ontvangen en geaccepteerde declaraties mbt jaar T"]
[null,null,null," Aantal gedeclareerde en geaccepteerde ZZP's "]
[]
[null,null,null,"  CODE 662 - SPECIALISTISCHE GGZ ZONDER VERBLIJF",null,null,null,null,null,null,"Aantal mbt 2019","Aantal mbt 2018"]
[null,null,null,null,null,null,null,null,null,null,"Ontvangen en geaccepteerde declaraties mbt jaar T","Ontvangen en geaccepteerde declaraties mbt jaar T"]
[null,null,null," Aantal DBC's"]
[]
[null,null,null,"  CODE 662 - KOSTEN SPECIALISTISCHE GGZ ZONDER \n                    VERBLIJF",null,null,null,null,null,"Ontvangen en geaccepteerde declaraties mbt 2019","Ontvangen en geaccepteerde declaraties mbt 2018","Ontvangen en geaccepteerde declaraties mbt 2017 en ouder"]
[]
[null,null,null," Instellingen "]
[null,null,null," Zelfstandig gevestigden "]
[null,null,null," TOTAAL code 662",null,null,null,null,null,{"$f":"SUM(J359:J360)","v":0},{"$f":"SUM(K359:K360)","v":0},{"$f":"SUM(L359:L360)","v":0}]
[]
[null,null,null,"  CODE 665 - GENERALISTISCHE BASIS GGZ",null,null,null,null,null,"Ontvangen en geaccepteerde declaraties mbt 2019","Ontvangen en geaccepteerde declaraties mbt 2018","Ontvangen en geaccepteerde declaraties mbt 2017 en ouder"]
[]
[null,null,null," Instellingen "]
[null,null,null," Zelfstandig gevestigden"]
[null,null,null," TOTAAL code 665",null,null,null,null,null,{"$f":"SUM(J365:J366)","v":0},{"$f":"SUM(K365:K366)","v":0},{"$f":"SUM(L365:L366)","v":0}]
[]
[null,null,null,"  CODE 665 - GENERALISTISCHE BASIS GGZ",null,null,null,null,null,null,"Ontvangen en geaccepteerde declaraties mbt 2019","Ontvangen en geaccepteerde declaraties mbt 2018"]
[]
[null,null,null," Basis GGZ - Kort"]
[null,null,null," Basis GGZ - Middel"]
[null,null,null," Basis GGZ - Intensief "]
[null,null,null," Basis GGZ - Chronisch"]
[null,null,null," Onvolledig behandeltraject"]
[null,null,null," TOTAAL code 665",null,null,null,null,null,null,{"$f":"SUM(K371:K375)","v":0},{"$f":"SUM(L371:L375)","v":0}]
[]
[]
[]
[null,null,null,{"$f":"NOW()","v":"2020-03-11T09:59:25.330"},null,null,null,null,null,null,null,{"$f":"CONCATENATE(\"Specifieke informatie C, \",LOWER(A340))","v":"Specifieke informatie C, pagina 9"}]
[]
["Pagina 10",null,null,{"$f":"CONCATENATE(\"JAARSTAAT ZVW \", jaar_id)","v":"JAARSTAAT ZVW 2019"}]
[null,null,null,"SPECIFIEKE INFORMATIE C (BELEIDSINFORMATIE)"]
[null,null,null,{"$f":"IF(naw_uzovi_zorgverzekeraar<>\"0000\",CONCATENATE(UPPER(naw_naam_zorgverzekeraar),\", \",UPPER(naw_plaats_zorgverzekeraar)),\"\")","v":""},null,null,null,null,null,null,null,{"$f":"CONCATENATE(\"UZOVI: \",naw_uzovi_zorgverzekeraar)","v":"UZOVI: 0000"}]
[null,null,null,"SPECIFICATIES VAN KOSTEN EN PRODUCTIE"]
[null,null,null,"RUBRIEK 10 GENEESKUNDIGE GEESTELIJKE GEZONDHEIDSZORG"]
[null,null,null,"  CODE 665 - GENERALISTISCHE BASIS GGZ",null,null,null,null,null,null,"Aantal mbt 2019","Aantal mbt 2018"]
[null,null,null,null,null,null,null,null,null,null,"Ontvangen en geaccepteerde declaraties mbt jaar T","Ontvangen en geaccepteerde declaraties mbt jaar T"]
[null,null,null," Basis GGZ - Kort (Aantal declaraties)"]
[null,null,null," Basis GGZ - Middel (Aantal declaraties)"]
[null,null,null," Basis GGZ - Intensief (Aantal declaraties)"]
[null,null,null," Basis GGZ - Chronisch (Aantal declaraties)"]
[null,null,null," Onvolledig behandeltraject (Aantal declaraties)"]
[]
[null,null,null,"SPECIFICATIES VAN KOSTEN EN PRODUCTIE"]
[null,null,null,"RUBRIEK 11 GERIATISCHE REVALIDATIE EN EERSTELIJNSVERBLIJF"]
[null,null,null," GERIATISCHE REVALIDATIEZORG EN EERSTELIJNSVERBLIJF ",null,null,null,null,null,null,"Aantal mbt 2019","Aantal mbt 2018"]
[null,null,null,null,null,null,null,null,null,null,"Ontvangen en geaccepteerde declaraties mbt jaar T","Ontvangen en geaccepteerde declaraties mbt jaar T"]
[null,null,null," Totaal aantal DBC's geriatische revalidatiezorg (code 670)"]
[]
[null,null,null,"SPECIFICATIES VAN KOSTEN EN PRODUCTIE"]
[null,null,null,"RUBRIEK 12 KRAAMZORG"]
[null,null,null,"  CODE 680 - KRAAMZORG - TOTAAL AANTAL VERZEKERDEN",null,null,null,null,null,null,"Aantal mbt 2019","Aantal mbt 2018"]
[null,null,null,null,null,null,null,null,null,null,"Ontvangen en geaccepteerde declaraties mbt jaar T","Ontvangen en geaccepteerde declaraties mbt jaar T"]
[null,null,null," 1. 00 t/m 23 uur"]
[null,null,null," 2. 24 t/m 31 uur"]
[null,null,null," 3. 32 t/m 39 uur"]
[null,null,null," 4. 40 t/m 47 uur"]
[null,null,null," 5. 48 t/m 55 uur"]
[null,null,null," 6. 56 t/m 63 uur"]
[null,null,null," 7. 64 t/m 71 uur"]
[null,null,null," 8. 72 t/m 80 uur"]
[null,null,null," 9. 81 uur of meer"]
[null,null,null," TOTAAL",null,null,null,null,null,null,{"$f":"SUM(K405:K413)","v":0},{"$f":"SUM(L405:L413)","v":0}]
[]
[null,null,null,"  CODE 680 - KRAAMZORG - TOTAAL AANTAL UREN",null,null,null,null,null,null,"Aantal mbt 2019","Aantal mbt 2018"]
[null,null,null,null,null,null,null,null,null,null,"Ontvangen en geaccepteerde declaraties mbt jaar T","Ontvangen en geaccepteerde declaraties mbt jaar T"]
[null,null,null," 1. 00 t/m 23 uur"]
[null,null,null," 2. 24 t/m 31 uur"]
[null,null,null," 3. 32 t/m 39 uur"]
[null,null,null," 4. 40 t/m 47 uur"]
[null,null,null," 5. 48 t/m 55 uur"]
[null,null,null," 6. 56 t/m 63 uur"]
[null,null,null," 7. 64 t/m 71 uur"]
[null,null,null," 8. 72 t/m 80 uur"]
[null,null,null," 9. 81 uur of meer"]
[null,null,null," TOTAAL",null,null,null,null,null,null,{"$f":"SUM(K418:K426)","v":0},{"$f":"SUM(L418:L426)","v":0}]
[null,null,null,{"$f":"NOW()","v":"2020-03-11T09:59:25.330"},null,null,null,null,null,null,null,{"$f":"CONCATENATE(\"Specifieke informatie C, \",LOWER(A382))","v":"Specifieke informatie C, pagina 10"}]
[]
["Pagina 11",null,null,{"$f":"CONCATENATE(\"JAARSTAAT ZVW \", jaar_id)","v":"JAARSTAAT ZVW 2019"}]
[null,null,null,"SPECIFIEKE INFORMATIE C (BELEIDSINFORMATIE)"]
[null,null,null,{"$f":"IF(naw_uzovi_zorgverzekeraar<>\"0000\",CONCATENATE(UPPER(naw_naam_zorgverzekeraar),\", \",UPPER(naw_plaats_zorgverzekeraar)),\"\")","v":""},null,null,null,null,null,null,null,{"$f":"CONCATENATE(\"UZOVI: \",naw_uzovi_zorgverzekeraar)","v":"UZOVI: 0000"}]
[null,null,null,"SPECIFICATIES VAN KOSTEN EN PRODUCTIE"]
[null,null,null,"RUBRIEK 13 DIVERSE OVERIGE KOSTEN"]
[null,null,null," CODE 700 - OVERIGE KOSTEN",null,null,null,null,null,"Ontvangen en geaccepteerde declaraties mbt 2019","Ontvangen en geaccepteerde declaraties mbt 2018","Ontvangen en geaccepteerde declaraties mbt 2017 en ouder"]
[]
[null,null,null," Kosten i.v.m. beleidsregel innovatie t.b.v. nieuwe zorgprestaties "]
[null,null,null," Programma Stoppen met Roken "]
[null,null,null," Kosten Integrale geboortezorg "]
[null,null,null," Kosten Eerstelijnsverblijf "]
[null,null,null," Kosten Gecombineerde Leefstijl Interventie "]
[null,null,null," TOTAAL code 700",null,null,null,null,null,{"$f":"SUM(J437:J441)","v":0},0,{"$f":"SUM(L437:L441)","v":0}]
[]
[null,null,null," CODE 701 - OVERIGE GENEESKUNDIGE ZORG",null,null,null,null,null,null,"Ontvangen en geaccepteerde declaraties mbt 2019","Ontvangen en geaccepteerde declaraties mbt 2018"]
[]
[null,null,null," Geneeskundige individuele zorg bij tuberculose en infectieziekten door GGD'en"]
[null,null,null," Huidtherapie"]
[null,null,null," Orthoptie"]
[null,null,null," Optometrie"]
[null,null,null," Kosten voetzorg bij Diabetes Mellitus type 2"]
[null,null,null," Koemelkallergietest (niet horend bij Multidisciplinaire Zorg) "]
[null,null,null," Regiefunctie complexe wondzorg"]
[null,null,null," TOTAAL code 701",null,null,null,null,null,null,{"$f":"SUM(K446:K452)","v":0},{"$f":"SUM(L446:L452)","v":0}]
[]
[null,null,null," CODE 702 - ZINTUIGLIJK GEHANDICAPTEN",null,null,null,null,null,null,"Ontvangen en geaccepteerde declaraties mbt 2019","Ontvangen en geaccepteerde declaraties mbt 2018"]
[]
[null,null,null," Kosten van zorg ivm visuele beperking "]
[null,null,null," Kosten van zorg ivm auditieve beperking "]
[null,null,null," Kosten van zorg ivm taalontwikkelingsstoornis"]
[null,null,null," TOTAAL code 702",null,null,null,null,null,null,{"$f":"SUM(K457:K459)","v":0},{"$f":"SUM(L457:L459)","v":0}]
[]
[]
[]
[]
[]
[]
[]
[]
[]
[]
[null,null,null,{"$f":"NOW()","v":"2020-03-11T09:59:25.330"},null,null,null,null,null,null,null,{"$f":"CONCATENATE(\"Specifieke informatie C, \",LOWER(A430))","v":"Specifieke informatie C, pagina 11"}]
[]
["Pagina 12",null,null,{"$f":"CONCATENATE(\"JAARSTAAT ZVW \", jaar_id)","v":"JAARSTAAT ZVW 2019"}]
[null,null,null,"SPECIFIEKE INFORMATIE C (BELEIDSINFORMATIE)"]
[null,null,null,{"$f":"IF(naw_uzovi_zorgverzekeraar<>\"0000\",CONCATENATE(UPPER(naw_naam_zorgverzekeraar),\", \",UPPER(naw_plaats_zorgverzekeraar)),\"\")","v":""},null,null,null,null,null,null,null,{"$f":"CONCATENATE(\"UZOVI: \",naw_uzovi_zorgverzekeraar)","v":"UZOVI: 0000"}]
[null,null,null,"SPECIFICATIES VAN KOSTEN EN PRODUCTIE"]
[null,null,null,"RUBRIEK 15 GRENSOVERSCHRIJDENDE ZORG"]
[null,null,null,"  CODE 720 - KOSTEN GRENSOVERSCHRIJDENDE ZORG VIA VERZEKERAAR",null,null,null,null,null,null,"Ontvangen en geaccepteerde declaraties mbt 2019","Ontvangen en geaccepteerde declaraties mbt 2018"]
[null,null,null,null,null,null,null,null,null,null,"Ontvangen en geaccepteerde declaraties mbt jaar T","Ontvangen en geaccepteerde declaraties mbt jaar T"]
[null,null,null," Kosten gemaakt in het buitenland \n van Zvw verzekerden die wonen in \n Nederland",null," Op basis van een contract "]
[null,null,null,null,null," Niet op basis van een contract "]
[null,null,null," Kosten gemaakt in het buitenland van Zvw verzekerden die wonen in het buitenland"]
[null,null,null," TOTAAL code 720",null,null,null,null,null,null,{"$f":"SUM(K480:K482)","v":0},{"$f":"SUM(L480:L482)","v":0}]
[]
[null,null,null,"  CODE 720 - GRENSOVERSCHRIJDENDE ZORG VIA VERZEKERRAAR",null,null,null,null,null,null,"Aantal verzekerden mbt 2019","Aantal verzekerden mbt 2018"]
[null,null,null,null,null,null,null,null,null,null,"Ontvangen en geaccepteerde declaraties mbt jaar T","Ontvangen en geaccepteerde declaraties mbt jaar T"]
[null,null,null," Kosten gemaakt in het buitenland \n van Zvw verzekerden die wonen in \n Nederland",null," Op basis van een contract"]
[null,null,null,null,null," Niet op basis van een contract"]
[null,null,null," Kosten gemaakt in het buitenland van Zvw verzekerden die wonen in het buitenland"]
[null,null,null," TOTAAL code 720",null,null,null,null,null,null,{"$f":"SUM(K487:K489)","v":0},{"$f":"SUM(L487:L489)","v":0}]
[]
[null,null,null,"INFORMATIE T.B.V. AFREKENINGEN MET HET BUITENLAND"]
[null,null,null,"KOSTEN PER RUBRIEK NAAR LEEFTIJD"]
[null,null,null," RUBRIEK 01 - HUISARTSENZORG en MDZ",null,null,null,null,null,null,null,"Lasten 2019 inclusief balanspost"]
[]
[null,null,null," Verzekerden tot en met 64 jaar"]
[null,null,null," Verzekerden van 65 jaar en ouder"]
[null,null,null," Totaal niet gespecificeerd",null,null,null,null,null,null,null,{"$f":"Kostenverzamelstaat!I24-SUM('Specifieke informatie C'!L496:L497)","v":0}]
[null,null,null," TOTAAL rubriek 01",null,null,null,null,null,null,null,{"$f":"SUM(L496:L498)","v":0}]
[]
[null,null,null," RUBRIEK 02 - FARMACEUTISCHE ZORG",null,null,null,null,null,null,null,"Lasten 2019 inclusief balanspost"]
[]
[null,null,null," Verzekerden tot en met 64 jaar"]
[null,null,null," Verzekerden van 65 jaar en ouder"]
[null,null,null," Totaal niet gespecificeerd",null,null,null,null,null,null,null,{"$f":"Kostenverzamelstaat!I26-SUM('Specifieke informatie C'!L503:L504)","v":0}]
[null,null,null," TOTAAL rubriek 02",null,null,null,null,null,null,null,{"$f":"SUM(L503:L505)","v":0}]
[]
[null,null,null," RUBRIEK 03 - VERPLEGING EN VERZORGING",null,null,null,null,null,null,null,"Lasten 2019 inclusief balanspost"]
[]
[null,null,null," Verzekerden tot en met 64 jaar"]
[null,null,null," Verzekerden van 65 jaar en ouder"]
[null,null,null," Totaal niet gespecificeerd",null,null,null,null,null,null,null,{"$f":"Kostenverzamelstaat!I28-SUM('Specifieke informatie C'!L510:L511)","v":0}]
[null,null,null," TOTAAL rubriek 03",null,null,null,null,null,null,null,{"$f":"SUM(L510:L512)","v":0}]
[null,null,null,{"$f":"NOW()","v":"2020-03-11T09:59:25.330"},null,null,null,null,null,null,null,{"$f":"CONCATENATE(\"Specifieke informatie C, \",LOWER(A473))","v":"Specifieke informatie C, pagina 12"}]
[]
["Pagina 13",null,null,{"$f":"CONCATENATE(\"JAARSTAAT ZVW \", jaar_id)","v":"JAARSTAAT ZVW 2019"}]
[null,null,null,"SPECIFIEKE INFORMATIE C (BELEIDSINFORMATIE)"]
[null,null,null,{"$f":"IF(naw_uzovi_zorgverzekeraar<>\"0000\",CONCATENATE(UPPER(naw_naam_zorgverzekeraar),\", \",UPPER(naw_plaats_zorgverzekeraar)),\"\")","v":""},null,null,null,null,null,null,null,{"$f":"CONCATENATE(\"UZOVI: \",naw_uzovi_zorgverzekeraar)","v":"UZOVI: 0000"}]
[]
[null,null,null,"INFORMATIE T.B.V. AFREKENINGEN MET HET BUITENLAND"]
[null,null,null,"KOSTEN PER RUBRIEK NAAR LEEFTIJD"]
[null,null,null," RUBRIEK 04 - MONDZORG",null,null,null,null,null,null,null,"Lasten 2019 inclusief balanspost"]
[]
[null,null,null," Verzekerden tot en met 64 jaar"]
[null,null,null," Verzekerden van 65 jaar en ouder"]
[null,null,null," Totaal niet gespecificeerd",null,null,null,null,null,null,null,{"$f":"Kostenverzamelstaat!I33-SUM('Specifieke informatie C'!L524:L525)","v":0}]
[null,null,null," TOTAAL rubriek 04",null,null,null,null,null,null,null,{"$f":"SUM(L524:L526)","v":0}]
[]
[null,null,null," RUBRIEK 05 - VERLOSKUNDIGE ZORG",null,null,null,null,null,null,null,"Lasten 2019 inclusief balanspost"]
[]
[null,null,null," Verzekerden tot en met 64 jaar"]
[null,null,null," Verzekerden van 65 jaar en ouder"]
[null,null,null," Totaal niet gespecificeerd",null,null,null,null,null,null,null,{"$f":"Kostenverzamelstaat!I37-SUM('Specifieke informatie C'!L531:L532)","v":0}]
[null,null,null," TOTAAL rubriek 05",null,null,null,null,null,null,null,{"$f":"SUM(L531:L532:L533)","v":0}]
[]
[null,null,null," RUBRIEK 06 - MEDISCH SPECIALISTISCHE ZORG ",null,null,null,null,null,null,null,"Lasten 2019 inclusief balanspost"]
[]
[null,null,null," Verzekerden tot en met 64 jaar"]
[null,null,null," Verzekerden van 65 jaar en ouder"]
[null,null,null," Totaal niet gespecificeerd",null,null,null,null,null,null,null,{"$f":"Kostenverzamelstaat!I61-SUM('Specifieke informatie C'!L538:L539)","v":0}]
[null,null,null," TOTAAL rubriek 06",null,null,null,null,null,null,null,{"$f":"SUM(L538:L540)","v":0}]
[]
[null,null,null," RUBRIEK 07 - PARAMEDISCHE ZORG",null,null,null,null,null,null,null,"Lasten 2019 inclusief balanspost"]
[]
[null,null,null," Verzekerden tot en met 64 jaar"]
[null,null,null," Verzekerden van 65 jaar en ouder"]
[null,null,null," Totaal niet gespecificeerd",null,null,null,null,null,null,null,{"$f":"Kostenverzamelstaat!I68-SUM('Specifieke informatie C'!L545:L546)","v":0}]
[null,null,null," TOTAAL rubriek 07",null,null,null,null,null,null,null,{"$f":"SUM(L545:L547)","v":0}]
[]
[null,null,null," RUBRIEK 08 - HULPMIDDELEN ZORG",null,null,null,null,null,null,null,"Lasten 2019 inclusief balanspost"]
[]
[null,null,null," Verzekerden tot en met 64 jaar"]
[null,null,null," Verzekerden van 65 jaar en ouder"]
[null,null,null," Totaal niet gespecificeerd",null,null,null,null,null,null,null,{"$f":"Kostenverzamelstaat!I70-SUM('Specifieke informatie C'!L552:L553)","v":0}]
[null,null,null," TOTAAL rubriek 08",null,null,null,null,null,null,null,{"$f":"SUM(L552:L554)","v":0}]
[]
[]
[]
[]
[]
[]
[null,null,null,{"$f":"NOW()","v":"2020-03-11T09:59:25.330"},null,null,null,null,null,null,null,{"$f":"CONCATENATE(\"Specifieke informatie C, \",LOWER(A516))","v":"Specifieke informatie C, pagina 13"}]
[]
["Pagina 14",null,null,{"$f":"CONCATENATE(\"JAARSTAAT ZVW \", jaar_id)","v":"JAARSTAAT ZVW 2019"}]
[null,null,null,"SPECIFIEKE INFORMATIE C (BELEIDSINFORMATIE)"]
[null,null,null,{"$f":"IF(naw_uzovi_zorgverzekeraar<>\"0000\",CONCATENATE(UPPER(naw_naam_zorgverzekeraar),\", \",UPPER(naw_plaats_zorgverzekeraar)),\"\")","v":""},null,null,null,null,null,null,null,{"$f":"CONCATENATE(\"UZOVI: \",naw_uzovi_zorgverzekeraar)","v":"UZOVI: 0000"}]
[null,null,null,"INFORMATIE T.B.V. AFREKENINGEN MET HET BUITENLAND"]
[null,null,null,"KOSTEN PER RUBRIEK NAAR LEEFTIJD"]
[null,null,null," RUBRIEK 09 - ZIEKENVERVOER",null,null,null,null,null,null,null,"Lasten 2019 inclusief balanspost"]
[]
[null,null,null," Verzekerden tot en met 64 jaar"]
[null,null,null," Verzekerden van 65 jaar en ouder"]
[null,null,null," Totaal niet gespecificeerd",null,null,null,null,null,null,null,{"$f":"Kostenverzamelstaat!I75-SUM('Specifieke informatie C'!L571:L572)","v":0}]
[null,null,null," TOTAAL rubriek 09",null,null,null,null,null,null,null,{"$f":"SUM(L571:L573)","v":0}]
[]
[null,null,null," RUBRIEK 10 - GENEESKUNDIGE GGZ",null,null,null,null,null,null,null,"Lasten 2019 inclusief balanspost"]
[]
[null,null,null," Verzekerden tot en met 64 jaar"]
[null,null,null," Verzekerden van 65 jaar en ouder"]
[null,null,null," Totaal niet gespecificeerd",null,null,null,null,null,null,null,{"$f":"Kostenverzamelstaat!I94-SUM('Specifieke informatie C'!L578:L579)","v":0}]
[null,null,null," TOTAAL rubriek 10",null,null,null,null,null,null,null,{"$f":"SUM(L578:L580)","v":0}]
[]
[null,null,null," RUBRIEK 12 - KRAAMZORG",null,null,null,null,null,null,null,"Lasten 2019 inclusief balanspost"]
[]
[null,null,null," Verzekerden tot en met 64 jaar"]
[null,null,null," Verzekerden van 65 jaar en ouder"]
[null,null,null," Totaal niet gespecificeerd",null,null,null,null,null,null,null,{"$f":"Kostenverzamelstaat!I100-SUM('Specifieke informatie C'!L585:L586)","v":0}]
[null,null,null," TOTAAL rubriek 12",null,null,null,null,null,null,null,{"$f":"SUM(L585:L586,L587)","v":0}]
[]
[]
[]
[]
[]
[]
[]
[]
[]
[]
[]
[]
[]
[]
[]
[]
[]
[]
[null,null,null,{"$f":"NOW()","v":"2020-03-11T09:59:25.330"},null,null,null,null,null,null,null,{"$f":"CONCATENATE(\"Specifieke informatie C, \",LOWER(A564))","v":"Specifieke informatie C, pagina 14"}]

{"sheet":"Contractinformatie","index":7,"n_rows":91,"n_cols":12,"rows_kept":91,"cut":false,"hidden":false,"merged":[[60,3,60,8],[61,3,61,8],[62,3,62,8],[42,3,42,8],[17,3,17,8],[18,3,18,8],[19,3,19,8],[20,3,20,8],[23,9,24,9],[10,11,11,11],[16,3,16,11],[12,3,12,11],[10,10,11,10],[10,9,11,9],[14,3,14,8],[15,3,15,8],[54,11,55,11],[23,10,24,10],[54,10,55,10],[31,11,32,11],[23,11,24,11],[31,10,32,10],[79,3,79,8],[23,3,24,8],[31,9,32,9],[31,3,32,8],[35,3,35,8],[36,3,36,8],[47,3,47,4],[54,3,55,8],[54,9,55,9],[37,3,37,8],[38,3,38,8],[41,3,41,8],[56,3,56,8],[57,3,57,8],[58,3,58,8],[59,3,59,8],[80,3,80,8],[39,3,39,8],[90,3,90,4],[81,3,81,11],[68,11,69,11],[68,10,69,10],[73,5,73,9],[73,3,73,4],[75,10,76,10],[75,11,76,11],[77,3,77,11],[75,9,76,9],[68,9,69,9],[68,3,69,8],[75,3,76,8],[78,3,78,8]]}
[null,null,"INVULSPECIFICATIES SPECIFIEKE INFORMATIE C"]
[]
[]
[]
[]
["Pagina 1",null,null,{"$f":"CONCATENATE(\"JAARSTAAT ZVW \", jaar_id)","v":"JAARSTAAT ZVW 2019"}]
[null,null,null,"SPECIFIEKE INFORMATIE C (CONTRACTINFORMATIE)"]
[null,null,null,{"$f":"IF(naw_uzovi_zorgverzekeraar<>\"0000\",CONCATENATE(UPPER(naw_naam_zorgverzekeraar),\", \",UPPER(naw_plaats_zorgverzekeraar)),\"\")","v":""},null,null,null,null,null,null,null,{"$f":"CONCATENATE(\"UZOVI: \",naw_uzovi_zorgverzekeraar)","v":"UZOVI: 0000"}]
[]
[null,null,null,"CONTRACTINFORMATIE HUISARTSENZORG EN MULTIDISCIPLINAIRE ZORG, rubriek 01"]
[null,null,null,null,null,null,null,null,null,"Lasten inclusief balanspost 2019","Lasten inclusief balanspost 2018","Lasten inclusief balanspost 2017"]
[null,null,null,null,null,null,null,null,null,"Ontvangen en geaccepteerde declaraties mbt jaar T","Ontvangen en geaccepteerde declaraties mbt jaar T","Ontvangen en geaccepteerde declaraties mbt jaar T"]
[null,null,null," Huisartsenzorg, codes 503, 504, 505, 506,507, 515"]
[null,null,null," Gecontracteerde zorg"]
[null,null,null," Niet gecontracteerde zorg"]
[null,null,null," Subtotaal huisartsenzorg",null,null,null,null,null,{"$f":"SUM(J14:J15)","v":0},0,{"$f":"SUM(L14:L15)","v":0}]
[null,null,null," Multidisciplinaire zorg, codes 510 en 516"]
[null,null,null," Gecontracteerde zorg"]
[null,null,null," Niet gecontracteerde zorg"]
[null,null,null," Subtotaal multidisciplinaire zorg",null,null,null,null,null,{"$f":"SUM(J18:J19)","v":0},{"$f":"SUM(K18:K19)","v":0},{"$f":"SUM(L18:L19)","v":0}]
[null,null,null," TOTAAL RUBRIEK 01",null,null,null,null,null,{"$f":"SUM(J16,J20)","v":0},{"$f":"SUM(K16,K20)","v":0},{"$f":"SUM(L16,L20)","v":0}]
[]
[null,null,null,"CONTRACTINFORMATIE VERPLEGING EN VERZORGING, rubriek 03"]
[null,null,null,null,null,null,null,null,null,"Lasten inclusief balanspost 2019","Lasten inclusief balanspost 2018","Lasten inclusief balanspost 2017"]
[null,null,null,null,null,null,null,null,null,"Ontvangen en geaccepteerde declaraties mbt jaar T","Ontvangen en geaccepteerde declaraties mbt jaar T","Ontvangen en geaccepteerde declaraties mbt jaar T"]
[null,null,null," Gecontracteerde zorg"]
[null,null,null," Niet gecontracteerde zorg"]
[null,null,null," PGB"]
[null,null,null," TOTAAL RUBRIEK 03",null,null,null,null,null,{"$f":"SUM(J26:J28)","v":0},{"$f":"SUM(K26:K28)","v":0},0]
[]
[null,null,null,"CONTRACTINFORMATIE MEDISCH SPECIALISTISCHE ZORG, rubriek 06"]
[null,null,null,null,null,null,null,null,null,"Lasten inclusief balanspost 2019","Lasten inclusief balanspost 2018","Lasten inclusief balanspost 2017"]
[null,null,null,null,null,null,null,null,null,"Ontvangen en geaccepteerde declaraties mbt jaar T","Ontvangen en geaccepteerde declaraties mbt jaar T","Ontvangen en geaccepteerde declaraties mbt jaar T"]
[null,null,null," Gecontracteerde zorg: aanneemsom"]
[null,null,null," Gecontracteerde zorg: plafond"]
[null,null,null," Gecontracteerde zorg: nacalculatie bij aanneemsommen en plafondcontracten"]
[null,null,null," Gecontracteerde zorg: open einde contract"]
[null,null,null," Subtotaal gecontracteerde zorg",null,null,null,null,null,{"$f":"SUM(J34:J37)","v":0},{"$f":"SUM(K34:K37)","v":0},{"$f":"SUM(L34:L37)","v":0}]
[null,null,null," Niet gecontracteerde zorg"]
[null,null,null," TOTAAL RUBRIEK 06",null,null,null,null,null,{"$f":"SUM(J38:J39)","v":0},{"$f":"SUM(K38:K39)","v":0},{"$f":"SUM(L38:L39)","v":0}]
[]
[null,null,null,null,null,null,null,null,null,"2019",2018,2017]
[null,null,null," Totaal afgesproken maximum omzet plafondcontracten"]
[]
[]
[]
[]
[null,null,null,{"$f":"NOW()","v":"2020-03-11T09:59:25.330"},null,null,null,null,null,null,null,{"$f":"CONCATENATE(\"Contractinformatie, \",LOWER(A6))","v":"Contractinformatie, pagina 1"}]
[]
["Pagina 2",null,null,{"$f":"CONCATENATE(\"JAARSTAAT ZVW \", jaar_id)","v":"JAARSTAAT ZVW 2019"}]
[null,null,null,"SPECIFIEKE INFORMATIE C (CONTRACTINFORMATIE)"]
[null,null,null,{"$f":"IF(naw_uzovi_zorgverzekeraar<>\"0000\",CONCATENATE(UPPER(naw_naam_zorgverzekeraar),\", \",UPPER(naw_plaats_zorgverzekeraar)),\"\")","v":""},null,null,null,null,null,null,null,{"$f":"CONCATENATE(\"UZOVI: \",naw_uzovi_zorgverzekeraar)","v":"UZOVI: 0000"}]
[]
[null,null,null,"CONTRACTINFORMATIE GGZ, rubriek 10"]
[null,null,null,null,null,null,null,null,null,"Lasten inclusief balanspost 2019","Lasten inclusief balanspost 2018","Lasten inclusief balanspost 2017"]
[null,null,null,null,null,null,null,null,null,"Ontvangen en geaccepteerde declaraties mbt jaar T","Ontvangen en geaccepteerde declaraties mbt jaar T","Ontvangen en geaccepteerde declaraties mbt jaar T"]
[null,null,null," Gecontracteerde zorg: aanneemsom"]
[null,null,null," Gecontracteerde zorg: plafond"]
[null,null,null," Gecontracteerde zorg: nacalculatie bij aanneemsommen en plafondcontracten"]
[null,null,null," Gecontracteerde zorg: open einde contract"]
[null,null,null," Subtotaal gecontracteerde zorg",null,null,null,null,null,{"$f":"SUM(J57:J60)","v":0},{"$f":"SUM(K57:K60)","v":0},{"$f":"SUM(L57:L60)","v":0}]
[null,null,null," Niet gecontracteerde zorg"]
[null,null,null," TOTAAL RUBRIEK 10",null,null,null,null,null,{"$f":"SUM(J61:J62)","v":0},{"$f":"SUM(K61:K62)","v":0},{"$f":"SUM(L61:L62)","v":0}]
[]
[null,null,null,null,null,null,null,null,null,2019,2018,2017]
[null,null,null," Totaal afgesproken maximum omzet plafondcontracten"]
[]
[null,null,null,"CONTRACTINFORMATIE ZINTUIGLIJK GEHANDICAPTEN, code 702"]
[null,null,null,null,null,null,null,null,null,"Lasten inclusief balanspost 2019","Lasten inclusief balanspost 2018","Lasten inclusief balanspost 2017"]
[null,null,null,null,null,null,null,null,null,"Ontvangen en geaccepteerde declaraties mbt jaar T","Ontvangen en geaccepteerde declaraties mbt jaar T","Ontvangen en geaccepteerde declaraties mbt jaar T"]
[null,null,null," Gecontracteerde zorg"]
[null,null,null," Niet gecontracteerde zorg"]
[null,null,null," TOTAAL CODE 702",null,null,null,null,null,{"$f":"SUM(J71:J72)","v":0},{"$f":"SUM(K71:K72)","v":0},{"$f":"SUM(L71:L72)","v":0}]
[]
[null,null,null,"CONTRACTINFORMATIE GERIATRISCHE REVALIDATIE EN EESTELIJNSVERBLIJF, rubriek 11"]
[null,null,null,null,null,null,null,null,null,"Lasten inclusief balanspost 2019","Lasten inclusief balanspost 2018","Lasten inclusief balanspost 2017"]
[null,null,null,null,null,null,null,null,null,"Ontvangen en geaccepteerde declaraties mbt jaar T","Ontvangen en geaccepteerde declaraties mbt jaar T","Ontvangen en geaccepteerde declaraties mbt jaar T"]
[null,null,null," Geriatrische Revalidatie, code 670"]
[null,null,null," Gecontracteerde zorg"]
[null,null,null," Niet gecontracteerde zorg"]
[null,null,null," Subtotaal Geriatrische Revalidatie ",null,null,null,null,null,{"$f":"SUM(J79:J80)","v":0},{"$f":"SUM(K79:K80)","v":0},{"$f":"SUM(L79:L80)","v":0}]
[null,null,null," Eerstelijnsverblijf, code 671"]
[null,null,null," Gecontracteerde zorg"]
[null,null,null," Niet gecontracteerde zorg"]
[null,null,null," Subtotaal Eerstelijnsverblijf ",null,null,null,null,null,{"$f":"SUM(J83:J84)","v":0},{"$f":"SUM(K83:K84)","v":0},{"$f":"SUM(L83:L84)","v":0}]
[null,null,null," TOTAAL RUBRIEK 11",null,null,null,null,null,{"$f":"SUM(J81,J85)","v":0},{"$f":"SUM(K81,K85)","v":0},{"$f":"SUM(L81,L85)","v":0}]
[]
[]
[]
[]
[null,null,null,{"$f":"NOW()","v":"2020-03-11T09:59:25.330"},null,null,null,null,null,null,null,{"$f":"CONCATENATE(\"Contractinformatie, \",LOWER(A50))","v":"Contractinformatie, pagina 2"}]

{"sheet":"Controleoverzicht","index":8,"n_rows":231,"n_cols":12,"rows_kept":231,"cut":false,"hidden":false,"merged":[[68,3,68,9],[75,3,75,9],[168,3,168,8],[166,3,166,7],[159,3,159,8],[156,3,156,7],[220,3,220,8],[197,3,197,8],[198,3,198,8],[214,3,214,8],[215,3,215,8],[204,3,204,8],[205,3,205,8],[199,3,199,8],[112,3,112,8],[109,3,109,8],[108,3,108,8],[73,3,73,9],[158,3,158,8],[115,3,115,8],[78,3,78,9],[84,3,84,8],[105,3,105,8],[93,3,93,8],[26,3,26,8],[94,3,94,8],[179,3,179,8],[129,3,129,8],[196,3,196,8],[217,3,217,8],[212,3,213,8],[219,3,219,8],[193,3,193,8],[194,3,194,8],[95,3,95,8],[96,3,96,8],[175,3,175,8],[174,3,174,8],[176,3,176,8],[116,3,116,8],[195,3,195,8],[192,3,192,8],[169,3,169,8],[163,3,163,8],[167,3,167,8],[164,3,164,8],[165,3,165,8],[127,3,127,8],[202,11,203,11],[218,3,218,8],[209,3,209,8],[202,9,203,9],[202,10,203,10],[212,10,213,10],[212,11,213,11],[216,3,216,8],[206,3,206,8],[202,3,203,8],[212,9,213,9],[207,3,207,8],[208,3,208,8],[210,3,210,8],[107,3,107,8],[89,3,90,8],[92,3,92,8],[110,3,110,8],[113,3,113,8],[91,3,91,8],[77,3,77,9],[119,3,119,8],[157,3,157,7],[117,3,117,8],[118,3,118,8],[106,3,106,8],[114,3,114,8],[111,3,111,8],[29,10,30,10],[35,3,35,9],[31,3,31,9],[33,3,33,9],[32,3,32,9],[27,3,27,8],[39,3,39,9],[37,3,37,9],[46,3,46,9],[43,3,43,9],[40,3,40,9],[45,3,45,9],[36,3,36,9],[42,3,42,9],[29,3,30,9],[41,3,41,9],[34,3,34,9],[38,3,38,9],[9,11,10,11],[9,9,10,9],[13,9,14,9],[9,3,10,8],[9,10,10,10],[17,10,18,10],[17,9,18,9],[19,3,19,8],[13,3,14,8],[17,11,18,11],[13,11,14,11],[25,3,25,8],[11,3,11,8],[15,3,15,8],[17,3,18,8],[13,10,14,10],[23,11,24,11],[23,10,24,10],[23,9,24,9],[21,3,21,8],[23,3,24,8],[20,3,20,8],[29,11,30,11],[55,11,56,11],[120,3,120,8],[123,3,123,8],[122,3,122,7],[124,3,124,8],[121,3,121,8],[146,9,147,9],[148,3,148,8],[126,3,126,8],[128,3,128,8],[125,3,125,8],[103,11,104,11],[103,9,104,9],[103,10,104,10],[103,3,104,8],[55,10,56,10],[89,11,90,11],[55,3,56,9],[79,3,79,9],[83,3,83,8],[74,3,74,9],[72,3,72,9],[57,3,57,9],[89,10,90,10],[81,3,81,9],[86,3,86,9],[85,3,85,8],[48,3,48,9],[89,9,90,9],[64,3,64,9],[58,3,58,9],[44,3,44,9],[67,3,67,9],[62,3,62,9],[82,3,82,8],[63,3,63,9],[80,3,80,9],[47,3,47,9],[61,3,61,9],[69,3,69,9],[60,3,60,9],[59,3,59,9],[76,3,76,9],[65,3,65,9],[66,3,66,9],[71,3,71,9],[70,3,70,9],[154,11,155,11],[154,3,155,8],[149,3,149,8],[154,10,155,10],[154,9,155,9],[151,3,151,8],[146,11,147,11],[146,10,147,10],[190,11,191,11],[190,3,191,8],[170,3,170,8],[171,3,171,8],[190,9,191,9],[190,10,191,10],[177,3,177,8],[173,3,173,8],[172,3,172,7],[178,3,178,8],[152,3,152,8],[150,3,150,8],[162,3,162,8],[160,3,160,8],[161,3,161,8],[146,3,147,8]]}
[null,null,"SPECIFICATIES CONTROLEOVERZICHT"]
[]
[]
[]
[]
["Pagina 1",null,null,{"$f":"CONCATENATE(\"JAARSTAAT ZVW \", jaar_id)","v":"JAARSTAAT ZVW 2019"}]
[null,null,null,"CONTROLEOVERZICHT"]
[null,null,null,{"$f":"IF(naw_uzovi_zorgverzekeraar<>\"0000\",CONCATENATE(UPPER(naw_naam_zorgverzekeraar),\", \",UPPER(naw_plaats_zorgverzekeraar)),\"\")","v":""},null,null,null,null,null,null,null,{"$f":"CONCATENATE(\"UZOVI: \",naw_uzovi_zorgverzekeraar)","v":"UZOVI: 0000"}]
[null,null,null,"SPECIFIEKE INFORMATIE A"]
[null,null,null," SPECIFICATIES KOSTEN NAAR DEELBIJDRAGE",null,null,null,null,null,"Lasten 2019 inclusief balanspost","Kosten naar deelbijdrage","Verschil"]
[]
[null,null,null," Totaal kosten naar deelbijdrage (totaal lasten t/m rubriek 16) - \n inclusief balanspost",null,null,null,null,null,{"$f":"Kostenverzamelstaat!I112","v":0},{"$f":"'Specifieke informatie A'!K18","v":0},{"$f":"IF(J12<>K12,J12-K12,\"\")","v":""}]
[]
[null,null,null," SPECIFICATIES KOSTEN NAAR DEELBIJDRAGE",null,null,null,null,null,"Ontvangen en \ngeaccepteerde \ndeclaraties mbt \n2017 en ouder","Kosten naar deelbijdrage","Verschil"]
[]
[null,null,null," Totaal kosten naar deelbijdrage (totaal lasten t/m rubriek 16)",null,null,null,null,null,{"$f":"Kostenverzamelstaat!M112","v":0},{"$f":"'Specifieke informatie A'!L18","v":0},{"$f":"IF(J16<>K16,J16-K16,\"\")","v":""}]
[]
[null,null,null," KOSTEN PER CODENUMMER - LASTEN 2019 INCLUSIEF BALANSPOST",null,null,null,null,null,"Volgens\nkostenver- \nzamelstaat","Volgens\ndetail- \nspecificatie ","Verschil"]
[]
[null,null,null," 720 Grensoverschrijdende zorg -Kosten via verzekeraar",null,null,null,null,null,{"$f":"Kostenverzamelstaat!I107","v":0},{"$f":"'Specifieke informatie A'!K57","v":0},{"$f":"IF(J20<>K20,J20-K20,\"\")","v":""}]
[null,null,null," 721 Grensoverschrijdende zorg - Kosten via verbindingsorgaan",null,null,null,null,null,{"$f":"Kostenverzamelstaat!I108","v":0},{"$f":"'Specifieke informatie A'!K64","v":0},{"$f":"IF(J21<>K21,J21-K21,\"\")","v":""}]
[null,null,null," 730 Kwaliteitsgelden",null,null,null,null,null,{"$f":"Kostenverzamelstaat!I111","v":0},{"$f":"'Specifieke informatie A'!K76","v":0},{"$f":"IF(J22<>K22,J22-K22,\"\")","v":""}]
[]
[null,null,null," KOSTEN PER CODENUMMER - ONTVANGEN EN GEACCEPTEERDE \n                                            DECLARATIES MBT 2017 EN OUDER",null,null,null,null,null,"Volgens\nkostenver- \nzamelstaat","Volgens\ndetail- \nspecificatie ","Verschil"]
[]
[null,null,null," 720 Grensoverschrijdende zorg -Kosten via verzekeraar",null,null,null,null,null,{"$f":"Kostenverzamelstaat!M107","v":0},{"$f":"'Specifieke informatie A'!L57","v":0},{"$f":"IF(J26<>K26,J26-K26,\"\")","v":""}]
[null,null,null," 721 Grensoverschrijdende zorg - Kosten via verbindingsorgaan",null,null,null,null,null,{"$f":"Kostenverzamelstaat!M108","v":0},{"$f":"'Specifieke informatie A'!L64","v":0},{"$f":"IF(J27<>K27,J27-K27,\"\")","v":""}]
[null,null,null," 730 Kwaliteitsgelden ",null,null,null,null,null,{"$f":"Kostenverzamelstaat!M111","v":0},{"$f":"'Specifieke informatie A'!L76","v":0},{"$f":"IF(J28<>K28,J28-K28,\"\")","v":""}]
[]
[null,null,null," KOSTENVERZAMELSTAAT",null,null,null,null,null,null,"Kosten balanspost mbt 2019","Kosten balanspost mbt 2018"]
[]
[null,null,null," 503 Bijzondere betalingen",null,null,null,null,null,null,{"$f":"Kostenverzamelstaat!I16-Kostenverzamelstaat!J16","v":0},{"$f":"Kostenverzamelstaat!K16-Kostenverzamelstaat!L16","v":0}]
[null,null,null," 504 Avond-, nacht- en weekenddiensten",null,null,null,null,null,null,{"$f":"Kostenverzamelstaat!I17-Kostenverzamelstaat!J17","v":0},{"$f":"Kostenverzamelstaat!K17-Kostenverzamelstaat!L17","v":0}]
[null,null,null," 505 Inschrijftarieven",null,null,null,null,null,null,{"$f":"Kostenverzamelstaat!I18-Kostenverzamelstaat!J18","v":0},{"$f":"Kostenverzamelstaat!K18-Kostenverzamelstaat!L18","v":0}]
[null,null,null," 506 Consulttarieven",null,null,null,null,null,null,{"$f":"Kostenverzamelstaat!I19-Kostenverzamelstaat!J19","v":0},{"$f":"Kostenverzamelstaat!K19-Kostenverzamelstaat!L19","v":0}]
[null,null,null," 507 Overige tarieven",null,null,null,null,null,null,{"$f":"Kostenverzamelstaat!I20-Kostenverzamelstaat!J20","v":0},{"$f":"Kostenverzamelstaat!K20-Kostenverzamelstaat!L20","v":0}]
[null,null,null," 510 Multidisciplinaire zorg ",null,null,null,null,null,null,{"$f":"Kostenverzamelstaat!I21-Kostenverzamelstaat!J21","v":0},{"$f":"Kostenverzamelstaat!K21-Kostenverzamelstaat!L21","v":0}]
[null,null,null," 515 Resultaatbeloning en zorgvernieuwing huisartsen",null,null,null,null,null,null,{"$f":"Kostenverzamelstaat!I22-Kostenverzamelstaat!J22","v":0},{"$f":"Kostenverzamelstaat!K22-Kostenverzamelstaat!L22","v":0}]
[null,null,null," 516 Resultaatbeloning en zorgvernieuwing MDZ",null,null,null,null,null,null,{"$f":"Kostenverzamelstaat!I23-Kostenverzamelstaat!J23","v":0},{"$f":"Kostenverzamelstaat!K23-Kostenverzamelstaat!L23","v":0}]
[null,null,null," 520 Farmaceutische hulp",null,null,null,null,null,null,{"$f":"Kostenverzamelstaat!I26-Kostenverzamelstaat!J26","v":0},{"$f":"Kostenverzamelstaat!K26-Kostenverzamelstaat!L26","v":0}]
[null,null,null," 530 Kosten van verpleging en verzorging",null,null,null,null,null,null,{"$f":"Kostenverzamelstaat!I28-Kostenverzamelstaat!J28","v":0},{"$f":"Kostenverzamelstaat!K28-Kostenverzamelstaat!L28","v":0}]
[null,null,null," 545 Kosten specialisten mondziekten en kaakchirurgie",null,null,null,null,null,null,{"$f":"Kostenverzamelstaat!I52-Kostenverzamelstaat!J52","v":0},{"$f":"Kostenverzamelstaat!K52-Kostenverzamelstaat!L52","v":0}]
[null,null,null," 560.1 Kosten mondzorg volwassen verzekerden",null,null,null,null,null,null,{"$f":"Kostenverzamelstaat!I30-Kostenverzamelstaat!J30","v":0},{"$f":"Kostenverzamelstaat!K30-Kostenverzamelstaat!L30","v":0}]
[null,null,null," 560.2 Kosten mondzorg jeugdige verzekerden",null,null,null,null,null,null,{"$f":"Kostenverzamelstaat!I31-Kostenverzamelstaat!J31","v":0},{"$f":"Kostenverzamelstaat!K31-Kostenverzamelstaat!L31","v":0}]
[null,null,null," 561 Kosten gebitsprothesen",null,null,null,null,null,null,{"$f":"Kostenverzamelstaat!I32-Kostenverzamelstaat!J32","v":0},{"$f":"Kostenverzamelstaat!K32-Kostenverzamelstaat!L32","v":0}]
[null,null,null," 580 Kosten verloskundige hulp door verloskundigen",null,null,null,null,null,null,{"$f":"Kostenverzamelstaat!I35-Kostenverzamelstaat!J35","v":0},{"$f":"Kostenverzamelstaat!K35-Kostenverzamelstaat!L35","v":0}]
[null,null,null," 581 Kosten verloskundige hulp door huisartsen",null,null,null,null,null,null,null,{"$f":"Kostenverzamelstaat!K36-Kostenverzamelstaat!L36","v":0}]
[null,null,null," 610 Overige kosten ziekenhuiszorg en curatieve zorg",null,null,null,null,null,null,{"$f":"Kostenverzamelstaat!I53-Kostenverzamelstaat!J53","v":0},{"$f":"Kostenverzamelstaat!K53-Kostenverzamelstaat!L53","v":0}]
[null,null,null," 611 Overige zorgproducten",null,null,null,null,null,null,{"$f":"Kostenverzamelstaat!I54-Kostenverzamelstaat!J54","v":0},{"$f":"Kostenverzamelstaat!K54-Kostenverzamelstaat!L54","v":0}]
[null,null,null,{"$f":"NOW()","v":"2020-03-11T09:59:25.330"},null,null,null,null,null,null,null,{"$f":"CONCATENATE(\"Controleoverzicht \",LOWER(A6))","v":"Controleoverzicht pagina 1"}]
[]
["Pagina 2",null,null,{"$f":"CONCATENATE(\"JAARSTAAT ZVW \", jaar_id)","v":"JAARSTAAT ZVW 2019"}]
[null,null,null,"CONTROLEOVERZICHT"]
[null,null,null,{"$f":"IF(naw_uzovi_zorgverzekeraar<>\"0000\",CONCATENATE(UPPER(naw_naam_zorgverzekeraar),\", \",UPPER(naw_plaats_zorgverzekeraar)),\"\")","v":""},null,null,null,null,null,null,null,{"$f":"CONCATENATE(\"UZOVI: \",naw_uzovi_zorgverzekeraar)","v":"UZOVI: 0000"}]
[null,null,null,"SPECIFIEKE INFORMATIE A - vervolg"]
[null,null,null," KOSTENVERZAMELSTAAT",null,null,null,null,null,null,"Kosten balanspost mbt 2019","Kosten balanspost mbt 2018"]
[]
[null,null,null," 612 Kosten add-ons",null,null,null,null,null,null,{"$f":"(Kostenverzamelstaat!I56+Kostenverzamelstaat!I57)-(Kostenverzamelstaat!J56+Kostenverzamelstaat!J57)","v":0},{"$f":"Kostenverzamelstaat!K55-Kostenverzamelstaat!L55","v":0}]
[null,null,null," 613.1 Integrale kosten DBC-zorgproduct gereguleerde segment",null,null,null,null,null,null,{"$f":"Kostenverzamelstaat!I58-Kostenverzamelstaat!J58","v":0},{"$f":"Kostenverzamelstaat!K58-Kostenverzamelstaat!L58","v":0}]
[null,null,null," 615.1 Integrale kosten DBC-zorgproduct vrije segment",null,null,null,null,null,null,{"$f":"Kostenverzamelstaat!I59-Kostenverzamelstaat!J59","v":0},{"$f":"Kostenverzamelstaat!K59-Kostenverzamelstaat!L59","v":0}]
[null,null,null," 619 Kosten en honoraria extramuraal werkende specialisten",null,null,null,null,null,null,{"$f":"Kostenverzamelstaat!I60-Kostenverzamelstaat!J60","v":0},{"$f":"Kostenverzamelstaat!K60-Kostenverzamelstaat!L60","v":0}]
[null,null,null," 620 Kosten fysiotherapie",null,null,null,null,null,null,{"$f":"Kostenverzamelstaat!I63-Kostenverzamelstaat!J63","v":0},{"$f":"Kostenverzamelstaat!K63-Kostenverzamelstaat!L63","v":0}]
[null,null,null," 621 Kosten oefentherapie Mensendieck/Cesar",null,null,null,null,null,null,{"$f":"Kostenverzamelstaat!I64-Kostenverzamelstaat!J64","v":0},{"$f":"Kostenverzamelstaat!K64-Kostenverzamelstaat!L64","v":0}]
[null,null,null," 623 Kosten logopedie",null,null,null,null,null,null,{"$f":"Kostenverzamelstaat!I65-Kostenverzamelstaat!J65","v":0},{"$f":"Kostenverzamelstaat!K65-Kostenverzamelstaat!L65","v":0}]
[null,null,null," 624 Kosten ergotherapie",null,null,null,null,null,null,{"$f":"Kostenverzamelstaat!I66-Kostenverzamelstaat!J66","v":0},{"$f":"Kostenverzamelstaat!K66-Kostenverzamelstaat!L66","v":0}]
[null,null,null," 625 Kosten dieetadvisering",null,null,null,null,null,null,{"$f":"Kostenverzamelstaat!I67-Kostenverzamelstaat!J67","v":0},{"$f":"Kostenverzamelstaat!K67-Kostenverzamelstaat!L67","v":0}]
[null,null,null," 640 Hulpmiddelen",null,null,null,null,null,null,{"$f":"Kostenverzamelstaat!I70-Kostenverzamelstaat!J70","v":0},{"$f":"Kostenverzamelstaat!K70-Kostenverzamelstaat!L70","v":0}]
[null,null,null," 650 Kosten vervoer per ambulance/helikopter",null,null,null,null,null,null,{"$f":"Kostenverzamelstaat!I72-Kostenverzamelstaat!J72","v":0},{"$f":"Kostenverzamelstaat!K72-Kostenverzamelstaat!L72","v":0}]
[null,null,null," 650.1 Opbrengstenverrekeningen regionale ambulancevoorzieningen ",null,null,null,null,null,null,{"$f":"Kostenverzamelstaat!I73-Kostenverzamelstaat!J73","v":0},{"$f":"Kostenverzamelstaat!K73-Kostenverzamelstaat!L73","v":0}]
[null,null,null," 651 Kosten vervoer per openbaar vervoer, taxi en eigen auto",null,null,null,null,null,null,{"$f":"Kostenverzamelstaat!I74-Kostenverzamelstaat!J74","v":0},{"$f":"Kostenverzamelstaat!K74-Kostenverzamelstaat!L74","v":0}]
[null,null,null," 661 Kosten specialistische GGZ met verblijf",null,null,null,null,null,null,{"$f":"Kostenverzamelstaat!I90-Kostenverzamelstaat!J90","v":0},{"$f":"Kostenverzamelstaat!K90-Kostenverzamelstaat!L90","v":0}]
[null,null,null," 661.1 Kosten LGGZ (langdurige GGZ, jaar 2 en 3)",null,null,null,null,null,null,{"$f":"Kostenverzamelstaat!I91-Kostenverzamelstaat!J91","v":0},{"$f":"Kostenverzamelstaat!K91-Kostenverzamelstaat!L91","v":0}]
[null,null,null," 662 Kosten specialistische GGZ zonder verblijf",null,null,null,null,null,null,{"$f":"Kostenverzamelstaat!I92-Kostenverzamelstaat!J92","v":0},{"$f":"Kostenverzamelstaat!K92-Kostenverzamelstaat!L92","v":0}]
[null,null,null," 665 Generalistische basis GGZ",null,null,null,null,null,null,{"$f":"Kostenverzamelstaat!I93-Kostenverzamelstaat!J93","v":0},{"$f":"Kostenverzamelstaat!K93-Kostenverzamelstaat!L93","v":0}]
[null,null,null," 670 Geriatische revalidatiezorg",null,null,null,null,null,null,{"$f":"Kostenverzamelstaat!I96-Kostenverzamelstaat!J96","v":0},{"$f":"Kostenverzamelstaat!K96-Kostenverzamelstaat!L96","v":0}]
[null,null,null," 671 Eerstelijnsverblijf ",null,null,null,null,null,null,{"$f":"Kostenverzamelstaat!I97-Kostenverzamelstaat!J97","v":0},{"$f":"Kostenverzamelstaat!K97-Kostenverzamelstaat!L97","v":0}]
[null,null,null," 680 Kraamzorg",null,null,null,null,null,null,{"$f":"Kostenverzamelstaat!I100-Kostenverzamelstaat!J100","v":0},{"$f":"Kostenverzamelstaat!K100-Kostenverzamelstaat!L100","v":0}]
[null,null,null," 700 Overige kosten",null,null,null,null,null,null,{"$f":"Kostenverzamelstaat!I102-Kostenverzamelstaat!J102","v":0},{"$f":"Kostenverzamelstaat!K102-Kostenverzamelstaat!L102","v":0}]
[null,null,null," 701 Overige geneeskundige zorg ",null,null,null,null,null,null,{"$f":"Kostenverzamelstaat!I103-Kostenverzamelstaat!J103","v":0},{"$f":"Kostenverzamelstaat!K103-Kostenverzamelstaat!L103","v":0}]
[null,null,null," 702 Kosten van zorg zintuiglijk gehandicapten",null,null,null,null,null,null,{"$f":"Kostenverzamelstaat!I104-Kostenverzamelstaat!J104","v":0},{"$f":"Kostenverzamelstaat!K104-Kostenverzamelstaat!L104","v":0}]
[null,null,null," 720 Grensoverschrijdende zorg, kosten gemaakt in het buitenland, via verzekeraar ",null,null,null,null,null,null,{"$f":"Kostenverzamelstaat!I107-Kostenverzamelstaat!J107","v":0},{"$f":"Kostenverzamelstaat!K107-Kostenverzamelstaat!L107","v":0}]
[null,null,null," 721 Grensoverschrijdende zorg, kosten gemaakt in het buitenland, via verbingsorgaan",null,null,null,null,null,null,{"$f":"Kostenverzamelstaat!I108-Kostenverzamelstaat!J108","v":0},{"$f":"Kostenverzamelstaat!K108-Kostenverzamelstaat!L108","v":0}]
[null,null,null," 730 Kwaliteitsgelden",null,null,null,null,null,null,{"$f":"Kostenverzamelstaat!I111-Kostenverzamelstaat!J111","v":0},{"$f":"Kostenverzamelstaat!K111-Kostenverzamelstaat!L111","v":0}]
[null,null,null," 890.1 Opbrengsten verhaal",null,null,null,null,null,null,{"$f":"Kostenverzamelstaat!I116-Kostenverzamelstaat!J116","v":0},{"$f":"Kostenverzamelstaat!K116-Kostenverzamelstaat!L116","v":0}]
[null,null,null," 910 Schade t.l.v. het vrijwillig eigen risico",null,null,null,null,null,null,{"$f":"Kostenverzamelstaat!I117-Kostenverzamelstaat!J117","v":0},{"$f":"Kostenverzamelstaat!K117-Kostenverzamelstaat!L117","v":0}]
[null,null,null," 915 Schade t.l.v. het verplicht eigen risico",null,null,null,null,null,null,{"$f":"Kostenverzamelstaat!I118-Kostenverzamelstaat!J118","v":0},{"$f":"Kostenverzamelstaat!K118-Kostenverzamelstaat!L118","v":0}]
[null,null,null," 940 Netto premieopbrengsten",null,null,null,null,null,null,{"$f":"Kostenverzamelstaat!I119-Kostenverzamelstaat!J119","v":0},{"$f":"Kostenverzamelstaat!K119-Kostenverzamelstaat!L119","v":0}]
[]
[null,null,null,"VERGELIJKING SPECIFIEKE INFORMATIE A EN C"]
[null,null,null," LASTEN 2019 INCLUSIEF BALANSPOST",null,null,null,null,null,"Kosten- verzamelstaat","Spec. inform. C\ndetailinformatie","Verschil"]
[]
[null,null,null," 610 Overige kosten ziekenhuiszorg en curatieve zorg",null,null,null,null,null,{"$f":"Kostenverzamelstaat!I53","v":0},{"$f":"'Specifieke informatie C'!H201","v":0},{"$f":"IF(J92<>K92,J92-K92,\"\")","v":""}]
[null,null,null," 611 Overige zorgproducten (Instellingen)",null,null,null,null,null,{"$f":"Kostenverzamelstaat!I54","v":0},{"$f":"'Specifieke informatie C'!H211","v":0},""]
[null,null,null," 612.1 Kosten add ons Dure geneesmiddelen",null,null,null,null,null,{"$f":"Kostenverzamelstaat!I56","v":0},{"$f":"'Specifieke informatie C'!H238","v":0},""]
[null,null,null," 612.2 Kosten add-ons - IC",null,null,null,null,null,{"$f":"Kostenverzamelstaat!I57","v":0},{"$f":"'Specifieke informatie C'!H247","v":0},""]
[null,null,null," 613.1 Integrale kosten DBC-zorgproduct gereguleerde segment",null,null,null,null,null,{"$f":"Kostenverzamelstaat!I58","v":0},{"$f":"'Specifieke informatie C'!H267","v":0},""]
[null,null,null," 615.1 Integrale kosten DBC-zorgproduct vrije segment",null,null,null,null,null,{"$f":"Kostenverzamelstaat!I59","v":0},{"$f":"'Specifieke informatie C'!H273","v":0},""]
[null,null,null,{"$f":"NOW()","v":"2020-03-11T09:59:25.330"},null,null,null,null,null,null,null,{"$f":"CONCATENATE(\"Controleoverzicht \",LOWER(A52))","v":"Controleoverzicht pagina 2"}]
[]
["Pagina 3",null,null,{"$f":"CONCATENATE(\"JAARSTAAT ZVW \", jaar_id)","v":"JAARSTAAT ZVW 2019"}]
[null,null,null,"CONTROLEOVERZICHT"]
[null,null,null,{"$f":"IF(naw_uzovi_zorgverzekeraar<>\"0000\",CONCATENATE(UPPER(naw_naam_zorgverzekeraar),\", \",UPPER(naw_plaats_zorgverzekeraar)),\"\")","v":""},null,null,null,null,null,null,null,{"$f":"CONCATENATE(\"UZOVI: \",naw_uzovi_zorgverzekeraar)","v":"UZOVI: 0000"}]
[null,null,null,"VERGELIJKING SPECIFIEKE INFORMATIE A EN C"]
[null,null,null," ONTVANGEN EN GEACCEPTEERDE DECLARATIES mbt 2019",null,null,null,null,null,"Kosten- verzamelstaat","Spec. inform. C\ndetailinformatie","Verschil"]
[]
[null,null,null," 503 Bijzondere betalingen",null,null,null,null,null,{"$f":"Kostenverzamelstaat!J16","v":0},{"$f":"'Specifieke informatie C'!K16","v":0},{"$f":"IF(J106<>K106,J106-K106,\"\")","v":""}]
[null,null,null," 506 Consulttarieven",null,null,null,null,null,{"$f":"Kostenverzamelstaat!J19","v":0},{"$f":"'Specifieke informatie C'!K29","v":0},""]
[null,null,null," 507 Overige tarieven",null,null,null,null,null,{"$f":"Kostenverzamelstaat!J20","v":0},{"$f":"'Specifieke informatie C'!K38","v":0},""]
[null,null,null," 510 Multidisciplinaire zorg ",null,null,null,null,null,{"$f":"Kostenverzamelstaat!J21","v":0},{"$f":"'Specifieke informatie C'!K46","v":0},""]
[null,null,null," 515 Resultaatbeloning en zorgvernieuwing huisartsen",null,null,null,null,null,{"$f":"Kostenverzamelstaat!J22","v":0},{"$f":"'Specifieke informatie C'!K58","v":0},""]
[null,null,null," 516 Resultaatbeloning en zorgvernieuwing MDZ",null,null,null,null,null,{"$f":"Kostenverzamelstaat!J23","v":0},{"$f":"'Specifieke informatie C'!K64","v":0},""]
[null,null,null," 530 Kosten van verpleging en verzorging",null,null,null,null,null,{"$f":"Kostenverzamelstaat!J28","v":0},{"$f":"'Specifieke informatie C'!K98","v":0},""]
[null,null,null," 545 Kosten en honoraria specialisten mondziekten en kaakchirurgie",null,null,null,null,null,{"$f":"Kostenverzamelstaat!J52","v":0},{"$f":"'Specifieke informatie C'!K189","v":0},""]
[null,null,null," 560.1 Mondzorg volwassen verzekerden",null,null,null,null,null,{"$f":"Kostenverzamelstaat!J30","v":0},{"$f":"'Specifieke informatie C'!K117","v":0},""]
[null,null,null," 560.2 Mondzorg jeugdige verzekerden - specificatie tariefgroepen",null,null,null,null,null,{"$f":"Kostenverzamelstaat!J31","v":0},{"$f":"'Specifieke informatie C'!K150","v":0},""]
[null,null,null," 561 Gebitsprothesen",null,null,null,null,null,{"$f":"Kostenverzamelstaat!J32","v":0},{"$f":"'Specifieke informatie C'!K164","v":0},""]
[null,null,null," 610 Overige kosten ziekenhuiszorg en curatieve zorg",null,null,null,null,null,{"$f":"Kostenverzamelstaat!J53","v":0},{"$f":"'Specifieke informatie C'!I201","v":0},""]
[null,null,null," 611 Overige zorgproducten (Instellingen)",null,null,null,null,null,{"$f":"Kostenverzamelstaat!J54","v":0},{"$f":"'Specifieke informatie C'!I211","v":0},""]
[null,null,null," 612.1 Kosten add-ons - Dure geneesmiddelen ",null,null,null,null,null,{"$f":"Kostenverzamelstaat!J56","v":0},{"$f":"'Specifieke informatie C'!I238","v":0},""]
[null,null,null," 612.2 Kosten add-ons - IC",null,null,null,null,null,{"$f":"Kostenverzamelstaat!J57","v":0},{"$f":"'Specifieke informatie C'!I247","v":0},""]
[null,null,null," 613.1 Integrale kosten DBC-zorgproduct gereguleerde segment",null,null,null,null,null,{"$f":"Kostenverzamelstaat!J58","v":0},{"$f":"'Specifieke informatie C'!I267","v":0},""]
[null,null,null," 615.1 Integrale kosten DBC-zorgproduct vrije segment",null,null,null,null,null,{"$f":"Kostenverzamelstaat!J59","v":0},{"$f":"'Specifieke informatie C'!I273","v":0},""]
[null,null,null," 650 Vervoer per ambulance/helikopter",null,null,null,null,null,{"$f":"Kostenverzamelstaat!J72","v":0},{"$f":"'Specifieke informatie C'!K281","v":0},""]
[null,null,null," 651 Vervoer per openbaar vervoer, taxi en eigen auto",null,null,null,null,null,{"$f":"Kostenverzamelstaat!J74","v":0},{"$f":"'Specifieke informatie C'!K321","v":0},""]
[null,null,null," 662 Kosten speciaalistische GGZ zonder verblijf",null,null,null,null,null,{"$f":"Kostenverzamelstaat!J92","v":0},{"$f":"'Specifieke informatie C'!J361","v":0},""]
[null,null,null," 665 Generalistische basis GGZ",null,null,null,null,null,{"$f":"Kostenverzamelstaat!J93","v":0},{"$f":"'Specifieke informatie C'!J367","v":0},""]
[null,null,null," 700 Overige kosten",null,null,null,null,null,{"$f":"Kostenverzamelstaat!J102","v":0},{"$f":"'Specifieke informatie C'!J442","v":0},""]
[null,null,null," 701 Overige geneeskundige zorg",null,null,null,null,null,{"$f":"Kostenverzamelstaat!J103","v":0},{"$f":"'Specifieke informatie C'!K453","v":0},""]
[null,null,null," 702 Kosten van zorg zintuiglijk gehandicapten",null,null,null,null,null,{"$f":"Kostenverzamelstaat!J104","v":0},{"$f":"'Specifieke informatie C'!K460","v":0},""]
[null,null,null," 720 Kosten grensoverschrijdende zorg, via verzekeraar",null,null,null,null,null,{"$f":"Kostenverzamelstaat!J107","v":0},{"$f":"'Specifieke informatie C'!K483","v":0},""]
[]
[]
[]
[]
[]
[]
[]
[]
[]
[]
[null,null,null,{"$f":"NOW()","v":"2020-03-11T09:59:25.330"},null,null,null,null,null,null,null,{"$f":"CONCATENATE(\"Controleoverzicht \",LOWER(A100))","v":"Controleoverzicht pagina 3"}]
[]
["Pagina 4",null,null,{"$f":"CONCATENATE(\"JAARSTAAT ZVW \", jaar_id)","v":"JAARSTAAT ZVW 2019"}]
[null,null,null,"CONTROLEOVERZICHT"]
[null,null,null,{"$f":"IF(naw_uzovi_zorgverzekeraar<>\"0000\",CONCATENATE(UPPER(naw_naam_zorgverzekeraar),\", \",UPPER(naw_plaats_zorgverzekeraar)),\"\")","v":""},null,null,null,null,null,null,null,{"$f":"CONCATENATE(\"UZOVI: \",naw_uzovi_zorgverzekeraar)","v":"UZOVI: 0000"}]
[null,null,null,"VERGELIJKING SPECIFIEKE INFORMATIE A EN C"]
[null,null,null," LASTEN 2018 INCLUSIEF BALANSPOST",null,null,null,null,null,"Kosten- verzamelstaat","Spec. inform. C\ndetailinformatie","Verschil "]
[]
[null,null,null," 610 Overige kosten ziekenhuiszorg en curatieve zorg",null,null,null,null,null,{"$f":"Kostenverzamelstaat!K53","v":0},{"$f":"'Specifieke informatie C'!J201","v":0},{"$f":"IF(J149<>K149,J149-K149,\"\")","v":""}]
[null,null,null," 611 Overige zorgproducten (Instellingen)",null,null,null,null,null,{"$f":"Kostenverzamelstaat!K54","v":0},{"$f":"'Specifieke informatie C'!J211","v":0},{"$f":"IF(J150<>K150,J150-K150,\"\")","v":""}]
[null,null,null," 612 Kosten add ons",null,null,null,null,null,{"$f":"Kostenverzamelstaat!K55","v":0},{"$f":"'Specifieke informatie C'!J248","v":0},{"$f":"IF(J151<>K151,J151-K151,\"\")","v":""}]
[null,null,null," 613.1 Integrale kosten DBC-zorgproduct gereguleerde segment ",null,null,null,null,null,{"$f":"Kostenverzamelstaat!K58","v":0},{"$f":"'Specifieke informatie C'!J267","v":0},{"$f":"IF(J152<>K152,J152-K152,\"\")","v":""}]
[null,null,null," 615.1 Integrale kosten DBC-zorgproduct vrije segment ",null,null,null,null,null,{"$f":"Kostenverzamelstaat!K59","v":0},{"$f":"'Specifieke informatie C'!J273","v":0},{"$f":"IF(J153<>K153,J153-K153,\"\")","v":""}]
[]
[null,null,null," ONTVANGEN EN GEACCEPTEERDE DECLARATIES mbt 2018",null,null,null,null,null,"Kosten- verzamelstaat","Spec. inform. C\ndetailinformatie","Verschil"]
[]
[null,null,null," 503 Bijzondere betalingen",null,null,null,null,null,{"$f":"Kostenverzamelstaat!L16","v":0},{"$f":"'Specifieke informatie C'!L16","v":0},{"$f":"IF(J157<>K157,J157-K157,\"\")","v":""}]
[null,null,null," 506 Consulttarieven",null,null,null,null,null,{"$f":"Kostenverzamelstaat!L19","v":0},{"$f":"'Specifieke informatie C'!L29","v":0},""]
[null,null,null," 507 Overige tarieven",null,null,null,null,null,{"$f":"Kostenverzamelstaat!L20","v":0},{"$f":"'Specifieke informatie C'!L38","v":0},""]
[null,null,null," 510 Multidisciplinaire zorg ",null,null,null,null,null,{"$f":"Kostenverzamelstaat!L21","v":0},{"$f":"'Specifieke informatie C'!L46","v":0},""]
[null,null,null," 515 Resultaatbeloning en zorgvernieuwing huisartsen",null,null,null,null,null,{"$f":"Kostenverzamelstaat!L22","v":0},{"$f":"'Specifieke informatie C'!L58","v":0},""]
[null,null,null," 516 Resultaatbeloning en zorgvernieuwing MDZ",null,null,null,null,null,{"$f":"Kostenverzamelstaat!L23","v":0},{"$f":"'Specifieke informatie C'!L64","v":0},""]
[null,null,null," 530 Kosten van verpleging en verzorging",null,null,null,null,null,{"$f":"Kostenverzamelstaat!L28","v":0},{"$f":"'Specifieke informatie C'!L98","v":0},""]
[null,null,null," 545 Kosten en honoraria specialisten mondziekten en kaakchirurgie",null,null,null,null,null,{"$f":"Kostenverzamelstaat!L52","v":0},{"$f":"'Specifieke informatie C'!L189","v":0},""]
[null,null,null," 560.1 Mondzorg volwassen verzekerden",null,null,null,null,null,{"$f":"Kostenverzamelstaat!L30","v":0},{"$f":"'Specifieke informatie C'!L117","v":0},""]
[null,null,null," 560.2 Mondzorg jeugdige verzekerden - specificatie tariefgroepen",null,null,null,null,null,{"$f":"Kostenverzamelstaat!L31","v":0},{"$f":"'Specifieke informatie C'!L150","v":0},""]
[null,null,null," 561 Gebitsprothesen",null,null,null,null,null,{"$f":"Kostenverzamelstaat!L32","v":0},{"$f":"'Specifieke informatie C'!L164","v":0},""]
[null,null,null," 610 Overige kosten ziekenhuiszorg en curatieve zorg ",null,null,null,null,null,{"$f":"Kostenverzamelstaat!L53","v":0},{"$f":"'Specifieke informatie C'!K201","v":0},""]
[null,null,null," 611 Overige zorgproducten (Instellingen)",null,null,null,null,null,{"$f":"Kostenverzamelstaat!L54","v":0},{"$f":"'Specifieke informatie C'!K211","v":0},""]
[null,null,null," 612 Kosten add-ons",null,null,null,null,null,{"$f":"Kostenverzamelstaat!L55","v":0},{"$f":"'Specifieke informatie C'!K248","v":0},""]
[null,null,null," 613.1 Integrale kosten DBC-zorgproduct gereguleerde segment",null,null,null,null,null,{"$f":"Kostenverzamelstaat!L58","v":0},{"$f":"'Specifieke informatie C'!K267","v":0},""]
[null,null,null," 615.1 Integrale kosten DBC-zorgproduct vrije segment",null,null,null,null,null,{"$f":"Kostenverzamelstaat!L59","v":0},{"$f":"'Specifieke informatie C'!K273","v":0},""]
[null,null,null," 650 Vervoer per ambulance/helikopter",null,null,null,null,null,{"$f":"Kostenverzamelstaat!L72","v":0},{"$f":"'Specifieke informatie C'!L281","v":0},""]
[null,null,null," 651 Vervoer per openbaar vervoer, taxi en eigen auto",null,null,null,null,null,{"$f":"Kostenverzamelstaat!L74","v":0},{"$f":"'Specifieke informatie C'!L321","v":0},""]
[null,null,null," 662 GGZ zonder verblijf",null,null,null,null,null,{"$f":"Kostenverzamelstaat!L92","v":0},{"$f":"'Specifieke informatie C'!K361","v":0},""]
[null,null,null," 665 Generalistische basis GGZ",null,null,null,null,null,{"$f":"Kostenverzamelstaat!L93","v":0},{"$f":"'Specifieke informatie C'!K367","v":0},""]
[null,null,null," 700 Overige kosten",null,null,null,null,null,{"$f":"Kostenverzamelstaat!L102","v":0},{"$f":"'Specifieke informatie C'!K442","v":0},""]
[null,null,null," 701 Overige geneeskundige zorg",null,null,null,null,null,{"$f":"Kostenverzamelstaat!L103","v":0},{"$f":"'Specifieke informatie C'!L453","v":0},""]
[null,null,null," 702 Kosten van zorg zintuiglijk gehandicapten",null,null,null,null,null,{"$f":"Kostenverzamelstaat!L104","v":0},{"$f":"'Specifieke informatie C'!L460","v":0},""]
[null,null,null," 720 Kosten grensoverschrijdende zorg, via verzekeraar",null,null,null,null,null,{"$f":"Kostenverzamelstaat!L107","v":0},{"$f":"'Specifieke informatie C'!L483","v":0},{"$f":"IF(J180<>K180,J180-K180,\"\")","v":""}]
[]
[]
[]
[null,null,null,{"$f":"NOW()","v":"2020-03-11T09:59:25.330"},null,null,null,null,null,null,null,{"$f":"CONCATENATE(\"Controleoverzicht \",LOWER(A143))","v":"Controleoverzicht pagina 4"}]
[]
["Pagina 5",null,null,{"$f":"CONCATENATE(\"JAARSTAAT ZVW \", jaar_id)","v":"JAARSTAAT ZVW 2019"}]
[null,null,null,"CONTROLEOVERZICHT"]
[null,null,null,{"$f":"IF(naw_uzovi_zorgverzekeraar<>\"0000\",CONCATENATE(UPPER(naw_naam_zorgverzekeraar),\", \",UPPER(naw_plaats_zorgverzekeraar)),\"\")","v":""},null,null,null,null,null,null,null,{"$f":"CONCATENATE(\"UZOVI: \",naw_uzovi_zorgverzekeraar)","v":"UZOVI: 0000"}]
[]
[null,null,null,"VERGELIJKING SPECIFIEKE INFORMATIE A EN C"]
[null,null,null," ONTVANGEN EN GEACCEPTEERDE DECLARATIES mbt 2017 en ouder",null,null,null,null,null,"Kosten- verzamelstaat","Spec. inform. C\ndetailinformatie","Verschil "]
[]
[null,null,null," 610 Overige kosten ziekenhuiszorg en curatieve zorg ",null,null,null,null,null,{"$f":"Kostenverzamelstaat!M53","v":0},{"$f":"'Specifieke informatie C'!L201","v":0},{"$f":"IF(J193<>K193,J193-K193,\"\")","v":""}]
[null,null,null," 611 Overige zorgproducten (Instellingen)",null,null,null,null,null,{"$f":"Kostenverzamelstaat!M54","v":0},{"$f":"'Specifieke informatie C'!L211","v":0},""]
[null,null,null," 612 Kosten add-ons",null,null,null,null,null,{"$f":"Kostenverzamelstaat!M55","v":0},{"$f":"'Specifieke informatie C'!L248","v":0},""]
[null,null,null," 613.1 Integrale kosten DBC-zorgproduct gereguleerde segment",null,null,null,null,null,{"$f":"Kostenverzamelstaat!M58","v":0},{"$f":"'Specifieke informatie C'!L267","v":0},""]
[null,null,null," 615.1 Integrale kosten DBC-zorgproduct vrije segment",null,null,null,null,null,{"$f":"Kostenverzamelstaat!M59","v":0},{"$f":"'Specifieke informatie C'!L273","v":0},""]
[null,null,null," 662 GGZ zonder verblijf",null,null,null,null,null,{"$f":"Kostenverzamelstaat!M92","v":0},{"$f":"'Specifieke informatie C'!L361","v":0},""]
[null,null,null," 665 Generalistische basis GGZ",null,null,null,null,null,{"$f":"Kostenverzamelstaat!M93","v":0},{"$f":"'Specifieke informatie C'!L367","v":0},""]
[null,null,null," 700 Overige kosten",null,null,null,null,null,{"$f":"Kostenverzamelstaat!M102","v":0},{"$f":"'Specifieke informatie C'!L442","v":0},""]
[]
[null,null,null,"VERGELIJKING SPECIFIEKE INFORMATIE A EN CONTRACTINFORMATIE"]
[null,null,null," LASTEN 2018 INCLUSIEF BALANSPOST",null,null,null,null,null,"Kosten- verzamelstaat","Spec. inform. C\ncontract inform.","Verschil "]
[]
[null,null,null," Totaal code 503, 504, 505, 506, 507, 515 ",null,null,null,null,null,{"$f":"SUM(Kostenverzamelstaat!K16,Kostenverzamelstaat!K17,Kostenverzamelstaat!K18,Kostenverzamelstaat!K19,Kostenverzamelstaat!K20,Kostenverzamelstaat!K22)","v":0},{"$f":"Contractinformatie!K16","v":0},{"$f":"IF(J205<>K205,J205-K205,\"\")","v":""}]
[null,null,null," Totaal code 510, 516 ",null,null,null,null,null,{"$f":"SUM(Kostenverzamelstaat!K21,Kostenverzamelstaat!K23)","v":0},{"$f":"Contractinformatie!K20","v":0},""]
[null,null,null," Totaal Rubriek 01",null,null,null,null,null,{"$f":"Kostenverzamelstaat!K24","v":0},{"$f":"Contractinformatie!K21","v":0},""]
[null,null,null," Totaal Rubriek 03",null,null,null,null,null,{"$f":"Kostenverzamelstaat!K28","v":0},{"$f":"Contractinformatie!K29","v":0},""]
[null,null,null," Totaal Rubriek 06",null,null,null,null,null,{"$f":"Kostenverzamelstaat!K61","v":0},{"$f":"Contractinformatie!K40","v":0},""]
[null,null,null," Totaal Rubriek 10",null,null,null,null,null,{"$f":"Kostenverzamelstaat!K94","v":0},{"$f":"Contractinformatie!K63","v":0},{"$f":"IF(J210<>K210,J210-K210,\"\")","v":""}]
[null,null,null," Totaal Code 702",null,null,null,null,null,{"$f":"Kostenverzamelstaat!K104","v":0},{"$f":"Contractinformatie!K73","v":0},{"$f":"IF(J211<>K211,J211-K211,\"\")","v":""}]
[]
[null,null,null," LASTEN 2019 INCLUSIEF BALANSPOST",null,null,null,null,null,"Kosten- verzamelstaat","Spec. inform. C\ncontract inform.","Verschil "]
[]
[null,null,null," Totaal code 503, 504, 505, 506, 507, 515 ",null,null,null,null,null,{"$f":"SUM(Kostenverzamelstaat!I16,Kostenverzamelstaat!I17,Kostenverzamelstaat!I18,Kostenverzamelstaat!I19,Kostenverzamelstaat!I20,Kostenverzamelstaat!I22)","v":0},{"$f":"Contractinformatie!J16","v":0},{"$f":"IF(J215<>K215,J215-K215,\"\")","v":""}]
[null,null,null," Totaal code 510, 516 ",null,null,null,null,null,{"$f":"Kostenverzamelstaat!I21+Kostenverzamelstaat!I23","v":0},{"$f":"Contractinformatie!J20","v":0},""]
[null,null,null," Totaal Rubriek 01 ",null,null,null,null,null,{"$f":"Kostenverzamelstaat!I24","v":0},{"$f":"Contractinformatie!J21","v":0},""]
[null,null,null," Totaal Rubriek 03",null,null,null,null,null,{"$f":"Kostenverzamelstaat!I28","v":0},{"$f":"Contractinformatie!J29","v":0},""]
[null,null,null," Totaal Rubriek 06",null,null,null,null,null,{"$f":"Kostenverzamelstaat!I61","v":0},{"$f":"Contractinformatie!J40","v":0},""]
[null,null,null," Totaal Rubriek 10",null,null,null,null,null,{"$f":"Kostenverzamelstaat!I94","v":0},{"$f":"Contractinformatie!J63","v":0},""]
[null,null,null," Totaal Code 702",null,null,null,null,null,{"$f":"Kostenverzamelstaat!I104","v":0},{"$f":"Contractinformatie!J73","v":0},{"$f":"IF(J221<>K221,J221-K221,\"\")","v":""}]
[]
[]
[]
[]
[]
[]
[]
[]
[]
[null,null,null,{"$f":"NOW()","v":"2020-03-11T09:59:25.330"},null,null,null,null,null,null,null,{"$f":"CONCATENATE(\"Controleoverzicht \",LOWER(A186))","v":"Controleoverzicht pagina 5"}]

{"sheet":"Blad1","index":9,"n_rows":965,"n_cols":12,"rows_kept":965,"cut":false,"hidden":true,"merged":[]}
[]
[]
[]
[]
[]
[]
[]
[]
[]
[]
[]
[null,null,null,null,"vcd_spec_idvar","vcd_waarde_flt","vcd_waarde_txt","vcd_toelichting_txt","vcd_spec1_idvar","vcd_spec2_idvar","vcd_spec3_idvar","vcd_attrib_idvar"]
[null,null,null,null,"xstaat_kdrwet_id_","*=0","ZVWY","Excel numeriek om te zetten sleutel kdrwet via waarden","xstaat","kdrwet","id",""]
[null,null,null,null,"xstaat_kdrwet_idjmd_","*=0","20191231","Excel numeriek om te zetten sleutel kdrwet periode","xstaat","kdrwet","idjmd",""]
[null,null,null,null,"xstaat_uzovi_filename_","*=0",{"$f":"CELL(\"bestandsnaam\")","v":"G:\\verwerk\\vsd_prod\\formats\\jaarstaat\\ZVW\\2019\\[Beveiligd format Jaarstaat ZVW 2019 (versie C).xlsm]NAW_gegevens"},"Excel numeriek filenaam bevat ook sleutels","xstaat","uzovi","filename",""]
[null,null,null,null,"xstaat_uzovi_id_","*=0",{"$f":"_xlfn.NUMBERVALUE(NAW_gegevens!$B$6)","v":0},"Excel numeriek om te zetten sleutel uzovi","xstaat","uzovi","id",""]
[null,null,null,null,"xstaat_uzovi_idvrs_","*=0","01","Excel numeriek om te zetten sleutel uzovi versie levering","xstaat","uzovi","idvrs",""]
[null,null,null,null,"zvkx_a__TY0V01","*=Kostenverzamelstaat!$J$112"]
[null,null,null,null,"zvkx_a__TY1V01","*=Kostenverzamelstaat!$L$112"]
[null,null,null,null,"zvkx_a__TY2V01","*=Kostenverzamelstaat!$M$112"]
[null,null,null,null,"zvkx_c__TY0V01","*=Kostenverzamelstaat!$I$112"]
[null,null,null,null,"zvkx_c__TY1V01","*=Kostenverzamelstaat!$K$112"]
[null,null,null,null,"zvkx01_a__TY0V01","*=Kostenverzamelstaat!$J$24"]
[null,null,null,null,"zvkx01_a__TY1V01","*=Kostenverzamelstaat!$L$24"]
[null,null,null,null,"zvkx01_a__TY2V01","*=Kostenverzamelstaat!$M$24"]
[null,null,null,null,"zvkx01_a503__TY0V01","*=Kostenverzamelstaat!$J$16","","Huisartsen- bijz betalingen- geaccepteerd","zvkx01","a503","","TY0V01"]
[null,null,null,null,"zvkx01_a503__TY1V01","*=Kostenverzamelstaat!$L$16","","Huisartsen- bijz betalingen- geaccepteerd","zvkx01","a503","","TY1V01"]
[null,null,null,null,"zvkx01_a503__TY2V01","*=Kostenverzamelstaat!$M$16","","Huisartsen- bijz betalingen- geaccepteerd","zvkx01","a503","","TY2V01"]
[null,null,null,null,"zvkx01_a504__TY0V01","*=Kostenverzamelstaat!$J$17","","Huisartsen- bijz diensttijden- geaccepteerd","zvkx01","a504","","TY0V01"]
[null,null,null,null,"zvkx01_a504__TY1V01","*=Kostenverzamelstaat!$L$17","","Huisartsen- bijz diensttijden- geaccepteerd","zvkx01","a504","","TY1V01"]
[null,null,null,null,"zvkx01_a504__TY2V01","*=Kostenverzamelstaat!$M$17","","Huisartsen- bijz diensttijden- geaccepteerd","zvkx01","a504","","TY2V01"]
[null,null,null,null,"zvkx01_a505__TY0V01","*=Kostenverzamelstaat!$J$18","","Huisartsen- Inschrijvingen- geaccepteerd","zvkx01","a505","","TY0V01"]
[null,null,null,null,"zvkx01_a505__TY1V01","*=Kostenverzamelstaat!$L$18","","Huisartsen- Inschrijvingen- geaccepteerd","zvkx01","a505","","TY1V01"]
[null,null,null,null,"zvkx01_a505__TY2V01","*=Kostenverzamelstaat!$M$18","","Huisartsen- Inschrijvingen- geaccepteerd","zvkx01","a505","","TY2V01"]
[null,null,null,null,"zvkx01_a506__TY0V01","*=Kostenverzamelstaat!$J$19","","Huisartsen- Consult- geaccepteerd","zvkx01","a506","","TY0V01"]
[null,null,null,null,"zvkx01_a506__TY1V01","*=Kostenverzamelstaat!$L$19","","Huisartsen- Consult- geaccepteerd","zvkx01","a506","","TY1V01"]
[null,null,null,null,"zvkx01_a506__TY2V01","*=Kostenverzamelstaat!$M$19","","Huisartsen- Consult- geaccepteerd","zvkx01","a506","","TY2V01"]
[null,null,null,null,"zvkx01_a507__TY0V01","*=Kostenverzamelstaat!$J$20","","Huisartsen- Overige- geaccepteerd","zvkx01","a507","","TY0V01"]
[null,null,null,null,"zvkx01_a507__TY1V01","*=Kostenverzamelstaat!$L$20","","Huisartsen- Overige- geaccepteerd","zvkx01","a507","","TY1V01"]
[null,null,null,null,"zvkx01_a507__TY2V01","*=Kostenverzamelstaat!$M$20","","Huisartsen- Overige- geaccepteerd","zvkx01","a507","","TY2V01"]
[null,null,null,null,"zvkx01_a510__TY0V01","*=Kostenverzamelstaat!$J$21","","Huisartsen- MDZ- geaccepteerd","zvkx01","a510","","TY0V01"]
[null,null,null,null,"zvkx01_a510__TY1V01","*=Kostenverzamelstaat!$L$21","","Huisartsen- MDZ- geaccepteerd","zvkx01","a510","","TY1V01"]
[null,null,null,null,"zvkx01_a510__TY2V01","*=Kostenverzamelstaat!$M$21","","Huisartsen- MDZ- geaccepteerd","zvkx01","a510","","TY2V01"]
[null,null,null,null,"zvkx01_a515__TY0V01","*=Kostenverzamelstaat!$J$22","","Huisartsen- Resultaatbel. huisartsen- geaccepteerd","zvkx01","a515","","TY0V01"]
[null,null,null,null,"zvkx01_a515__TY1V01","*=Kostenverzamelstaat!$L$22","","Huisartsen- Resultaatbel. huisartsen- geaccepteerd","zvkx01","a515","","TY1V01"]
[null,null,null,null,"zvkx01_a515__TY2V01","*=Kostenverzamelstaat!$M$22","","Huisartsen- Resultaatbel. huisartsen- geaccepteerd","zvkx01","a515","","TY2V01"]
[null,null,null,null,"zvkx01_a516__TY0V01","*=Kostenverzamelstaat!$J$23","","Huisartsen- Resultaatbel. MDZ- geaccepteerd","zvkx01","a516","","TY0V01"]
[null,null,null,null,"zvkx01_a516__TY1V01","*=Kostenverzamelstaat!$L$23","","Huisartsen- Resultaatbel. MDZ- geaccepteerd","zvkx01","a516","","TY1V01"]
[null,null,null,null,"zvkx01_a516__TY2V01","*=Kostenverzamelstaat!$M$23","","Huisartsen- Resultaatbel. MDZ- geaccepteerd","zvkx01","a516","","TY2V01"]
[null,null,null,null,"zvkx01_c503__TY0V01","*=Kostenverzamelstaat!$I$16","","Huisartsen- bijz betalingen- incl balans","zvkx01","c503","","TY0V01"]
[null,null,null,null,"zvkx01_c503__TY1V01","*=Kostenverzamelstaat!$K$16","","Huisartsen- bijz betalingen- incl balans","zvkx01","c503","","TY1V01"]
[null,null,null,null,"zvkx01_c504__TY0V01","*=Kostenverzamelstaat!$I$17","","Huisartsen- bijz diensttijden- incl balans","zvkx01","c504","","TY0V01"]
[null,null,null,null,"zvkx01_c504__TY1V01","*=Kostenverzamelstaat!$K$17","","Huisartsen- bijz diensttijden- incl balans","zvkx01","c504","","TY1V01"]
[null,null,null,null,"zvkx01_c505__TY0V01","*=Kostenverzamelstaat!$I$18","","Huisartsen- Inschrijvingen- incl balans","zvkx01","c505","","TY0V01"]
[null,null,null,null,"zvkx01_c505__TY1V01","*=Kostenverzamelstaat!$K$18","","Huisartsen- Inschrijvingen- incl balans","zvkx01","c505","","TY1V01"]
[null,null,null,null,"zvkx01_c506__TY0V01","*=Kostenverzamelstaat!$I$19","","Huisartsen- Consult- incl balans","zvkx01","c506","","TY0V01"]
[null,null,null,null,"zvkx01_c506__TY1V01","*=Kostenverzamelstaat!$K$19","","Huisartsen- Consult- incl balans","zvkx01","c506","","TY1V01"]
[null,null,null,null,"zvkx01_c507__TY0V01","*=Kostenverzamelstaat!$I$20","","Huisartsen- Overige- incl balans","zvkx01","c507","","TY0V01"]
[null,null,null,null,"zvkx01_c507__TY1V01","*=Kostenverzamelstaat!$K$20","","Huisartsen- Overige- incl balans","zvkx01","c507","","TY1V01"]
[null,null,null,null,"zvkx01_c510__TY0V01","*=Kostenverzamelstaat!$I$21","","Huisartsen- MDZ- incl balans","zvkx01","c510","","TY0V01"]
[null,null,null,null,"zvkx01_c510__TY1V01","*=Kostenverzamelstaat!$K$21","","Huisartsen- MDZ- incl balans","zvkx01","c510","","TY1V01"]
[null,null,null,null,"zvkx01_c515__TY0V01","*=Kostenverzamelstaat!$I$22","","Huisartsen- Resultaatbel. huisartsen- incl balans","zvkx01","c515","","TY0V01"]
[null,null,null,null,"zvkx01_c515__TY1V01","*=Kostenverzamelstaat!$K$22","","Huisartsen- Resultaatbel. huisartsen- incl balans","zvkx01","c515","","TY1V01"]
[null,null,null,null,"zvkx01_c516__TY0V01","*=Kostenverzamelstaat!$I$23","","Huisartsen- Resultaatbel. MDZ- incl balans","zvkx01","c516","","TY0V01"]
[null,null,null,null,"zvkx01_c516__TY1V01","*=Kostenverzamelstaat!$K$23","","Huisartsen- Resultaatbel. MDZ- incl balans","zvkx01","c516","","TY1V01"]
[null,null,null,null,"zvkx02_a520__TY0V01","*=Kostenverzamelstaat!$J$26","","Farmaceutische hulp- geaccepteerd","zvkx02","a520","","TY0V01"]
[null,null,null,null,"zvkx02_a520__TY1V01","*=Kostenverzamelstaat!$L$26","","Farmaceutische hulp- geaccepteerd","zvkx02","a520","","TY1V01"]
[null,null,null,null,"zvkx02_a520__TY2V01","*=Kostenverzamelstaat!$M$26","","Farmaceutische hulp- geaccepteerd","zvkx02","a520","","TY2V01"]
[null,null,null,null,"zvkx02_c520__TY0V01","*=Kostenverzamelstaat!$I$26","","Farmaceutische hulp- incl balans","zvkx02","c520","","TY0V01"]
[null,null,null,null,"zvkx02_c520__TY1V01","*=Kostenverzamelstaat!$K$26","","Farmaceutische hulp- incl balans","zvkx02","c520","","TY1V01"]
[null,null,null,null,"zvkx03_a530__TY0V01","*=Kostenverzamelstaat!$J$28","","Verpleging en verzorging- geaccepteerd","zvkx03","a530","","TY0V01"]
[null,null,null,null,"zvkx03_a530__TY1V01","*=Kostenverzamelstaat!$L$28","","Verpleging en verzorging- geaccepteerd","zvkx03","a530","","TY1V01"]
[null,null,null,null,"zvkx03_a530__TY2V01","*=Kostenverzamelstaat!$M$28","","Verpleging en verzorging- geaccepteerd","zvkx03","a530","","TY2V01"]
[null,null,null,null,"zvkx03_c530__TY0V01","*=Kostenverzamelstaat!$I$28","","Verpleging en verzorging- incl balans","zvkx03","c530","","TY0V01"]
[null,null,null,null,"zvkx03_c530__TY1V01","*=Kostenverzamelstaat!$K$28","","Verpleging en verzorging- incl balans","zvkx03","c530","","TY1V01"]
[null,null,null,null,"zvkx04_a5601__TY0V01","*=Kostenverzamelstaat!$J$30","","Mondzorg- volwassen verzekerden- geaccepteerd","zvkx04","a5601","","TY0V01"]
[null,null,null,null,"zvkx04_a5601__TY1V01","*=Kostenverzamelstaat!$L$30","","Mondzorg- volwassen verzekerden- geaccepteerd","zvkx04","a5601","","TY1V01"]
[null,null,null,null,"zvkx04_a5601__TY2V01","*=Kostenverzamelstaat!$M$30","","Mondzorg- volwassen verzekerden- geaccepteerd","zvkx04","a5601","","TY2V01"]
[null,null,null,null,"zvkx04_a5602__TY0V01","*=Kostenverzamelstaat!$J$31","","Mondzorg- jeugdige verzekerden- geaccepteerd","zvkx04","a5602","","TY0V01"]
[null,null,null,null,"zvkx04_a5602__TY1V01","*=Kostenverzamelstaat!$L$31","","Mondzorg- jeugdige verzekerden- geaccepteerd","zvkx04","a5602","","TY1V01"]
[null,null,null,null,"zvkx04_a5602__TY2V01","*=Kostenverzamelstaat!$M$31","","Mondzorg- jeugdige verzekerden- geaccepteerd","zvkx04","a5602","","TY2V01"]
[null,null,null,null,"zvkx04_a561__TY0V01","*=Kostenverzamelstaat!$J$32","","Mondzorg- gebitsprothesen- geaccepteerd","zvkx04","a561","","TY0V01"]
[null,null,null,null,"zvkx04_a561__TY1V01","*=Kostenverzamelstaat!$L$32","","Mondzorg- gebitsprothesen- geaccepteerd","zvkx04","a561","","TY1V01"]
[null,null,null,null,"zvkx04_a561__TY2V01","*=Kostenverzamelstaat!$M$32","","Mondzorg- gebitsprothesen- geaccepteerd","zvkx04","a561","","TY2V01"]
[null,null,null,null,"zvkx04_c5601__TY0V01","*=Kostenverzamelstaat!$I$30","","Mondzorg- volwassen verzekerden- incl balans","zvkx04","c5601","","TY0V01"]
[null,null,null,null,"zvkx04_c5601__TY1V01","*=Kostenverzamelstaat!$K$30","","Mondzorg- volwassen verzekerden- incl balans","zvkx04","c5601","","TY1V01"]
[null,null,null,null,"zvkx04_c5602__TY0V01","*=Kostenverzamelstaat!$I$31","","Mondzorg- jeugdige verzekerden- incl balans","zvkx04","c5602","","TY0V01"]
[null,null,null,null,"zvkx04_c5602__TY1V01","*=Kostenverzamelstaat!$K$31","","Mondzorg- jeugdige verzekerden- incl balans","zvkx04","c5602","","TY1V01"]
[null,null,null,null,"zvkx04_c561__TY0V01","*=Kostenverzamelstaat!$I$32","","Mondzorg- gebitsprothesen- incl balans","zvkx04","c561","","TY0V01"]
[null,null,null,null,"zvkx04_c561__TY1V01","*=Kostenverzamelstaat!$K$32","","Mondzorg- gebitsprothesen- incl balans","zvkx04","c561","","TY1V01"]
[null,null,null,null,"zvkx05_a580__TY0V01","*=Kostenverzamelstaat!$J$35","","Verloskundige hulp- door verloskundigen- geaccepteerd","zvkx05","a580","","TY0V01"]
[null,null,null,null,"zvkx05_a580__TY1V01","*=Kostenverzamelstaat!$L$35","","Verloskundige hulp- door verloskundigen- geaccepteerd","zvkx05","a580","","TY1V01"]
[null,null,null,null,"zvkx05_a580__TY2V01","*=Kostenverzamelstaat!$M$35","","Verloskundige hulp- door verloskundigen- geaccepteerd","zvkx05","a580","","TY2V01"]
[null,null,null,null,"zvkx05_a581__TY1V01","*=Kostenverzamelstaat!$L$36","","Verloskundige hulp- door huisartsen- geaccepteerd","zvkx05","a581","","TY1V01"]
[null,null,null,null,"zvkx05_a581__TY2V01","*=Kostenverzamelstaat!$M$36","","Verloskundige hulp- door huisartsen- geaccepteerd","zvkx05","a581","","TY2V01"]
[null,null,null,null,"zvkx05_c580__TY0V01","*=Kostenverzamelstaat!$I$35","","Verloskundige hulp- door verloskundigen- incl balans","zvkx05","c580","","TY0V01"]
[null,null,null,null,"zvkx05_c580__TY1V01","*=Kostenverzamelstaat!$K$35","","Verloskundige hulp- door verloskundigen- incl balans","zvkx05","c580","","TY1V01"]
[null,null,null,null,"zvkx05_c581__TY1V01","*=Kostenverzamelstaat!$K$36","","Verloskundige hulp- door huisartsen- incl balans","zvkx05","c581","","TY1V01"]
[null,null,null,null,"zvkx06_a545__TY0V01","*=Kostenverzamelstaat!$J$52","","Medisch specialistische hulp- mondziekten en kaakchirurgie- geaccepteerd","zvkx06","a545","","TY0V01"]
[null,null,null,null,"zvkx06_a545__TY1V01","*=Kostenverzamelstaat!$L$52","","Medisch specialistische hulp- mondziekten en kaakchirurgie- geaccepteerd","zvkx06","a545","","TY1V01"]
[null,null,null,null,"zvkx06_a545__TY2V01","*=Kostenverzamelstaat!$M$52","","Medisch specialistische hulp- mondziekten en kaakchirurgie- geaccepteerd","zvkx06","a545","","TY2V01"]
[null,null,null,null,"zvkx06_a610__TY0V01","*=Kostenverzamelstaat!$J$53","","Medisch specialistische hulp- Overige ziekenhuiszorg,curatief- geaccepteerd","zvkx06","a610","","TY0V01"]
[null,null,null,null,"zvkx06_a610__TY1V01","*=Kostenverzamelstaat!$L$53","","Medisch specialistische hulp- Overige ziekenhuiszorg,curatief- geaccepteerd","zvkx06","a610","","TY1V01"]
[null,null,null,null,"zvkx06_a610__TY2V01","*=Kostenverzamelstaat!$M$53","","Medisch specialistische hulp- Overige ziekenhuiszorg,curatief- geaccepteerd","zvkx06","a610","","TY2V01"]
[null,null,null,null,"zvkx06_a611__TY0V01","*=Kostenverzamelstaat!$J$54","","Medisch specialistische hulp- Overige zorg- geaccepteerd","zvkx06","a611","","TY0V01"]
[null,null,null,null,"zvkx06_a611__TY1V01","*=Kostenverzamelstaat!$L$54","","Medisch specialistische hulp- Overige zorg- geaccepteerd","zvkx06","a611","","TY1V01"]
[null,null,null,null,"zvkx06_a611__TY2V01","*=Kostenverzamelstaat!$M$54","","Medisch specialistische hulp- Overige zorg- geaccepteerd","zvkx06","a611","","TY2V01"]
[null,null,null,null,"zvkx06_a612__TY1V01","*=Kostenverzamelstaat!$L$55","","Medisch specialistische hulp- add-on's- geaccepteerd","zvkx06","a612","","TY1V01"]
[null,null,null,null,"zvkx06_a612__TY2V01","*=Kostenverzamelstaat!$M$55","","Medisch specialistische hulp- add-on's- geaccepteerd","zvkx06","a612","","TY2V01"]
[null,null,null,null,"zvkx06_a6121__TY0V01","*=Kostenverzamelstaat!$J$56","","Medisch specialistische hulp- add-on's Dure geneesmiddelen- geaccepteerd","zvkx06","a6121","","TY0V01"]
[null,null,null,null,"zvkx06_a6122__TY0V01","*=Kostenverzamelstaat!$J$57","","Medisch specialistische hulp- IC- geaccepteerd","zvkx06","a6122","","TY0V01"]
[null,null,null,null,"zvkx06_a6131__TY0V01","*=Kostenverzamelstaat!$J$58","","Medisch specialistische hulp- Integraal DBC-zorgproduct gereguleerd- geaccepteerd","zvkx06","a6131","","TY0V01"]
[null,null,null,null,"zvkx06_a6151__TY0V01","*=Kostenverzamelstaat!$J$59","","Medisch specialistische hulp- Integraal DBC-zorgproduct vrije segment- geaccepteerd","zvkx06","a6151","","TY0V01"]
[null,null,null,null,"zvkx06_a619__TY0V01","*=Kostenverzamelstaat!$J$60","","Medisch specialistische hulp- honoraria extramuraal- geaccepteerd","zvkx06","a619","","TY0V01"]
[null,null,null,null,"zvkx06_a619__TY1V01","*=Kostenverzamelstaat!$L$60","","Medisch specialistische hulp- honoraria extramuraal- geaccepteerd","zvkx06","a619","","TY1V01"]
[null,null,null,null,"zvkx06_a619__TY2V01","*=Kostenverzamelstaat!$M$60","","Medisch specialistische hulp- honoraria extramuraal- geaccepteerd","zvkx06","a619","","TY2V01"]
[null,null,null,null,"zvkx06_c545__TY0V01","*=Kostenverzamelstaat!$I$52","","Medisch specialistische hulp- mondziekten en kaakchirurgie- incl balans","zvkx06","c545","","TY0V01"]
[null,null,null,null,"zvkx06_c545__TY1V01","*=Kostenverzamelstaat!$K$52","","Medisch specialistische hulp- mondziekten en kaakchirurgie- incl balans","zvkx06","c545","","TY1V01"]
[null,null,null,null,"zvkx06_c610__TY0V01","*=Kostenverzamelstaat!$I$53","","Medisch specialistische hulp- Overige ziekenhuiszorg,curatief- incl balans","zvkx06","c610","","TY0V01"]
[null,null,null,null,"zvkx06_c610__TY1V01","*=Kostenverzamelstaat!$K$53","","Medisch specialistische hulp- Overige ziekenhuiszorg,curatief- incl balans","zvkx06","c610","","TY1V01"]
[null,null,null,null,"zvkx06_c611__TY0V01","*=Kostenverzamelstaat!$I$54","","Medisch specialistische hulp- Overige zorg- incl balans","zvkx06","c611","","TY0V01"]
[null,null,null,null,"zvkx06_c611__TY1V01","*=Kostenverzamelstaat!$K$54","","Medisch specialistische hulp- Overige zorg- incl balans","zvkx06","c611","","TY1V01"]
[null,null,null,null,"zvkx06_c612__TY1V01","*=Kostenverzamelstaat!$K$55","","Medisch specialistische hulp- add-on's- incl balans","zvkx06","c612","","TY1V01"]
[null,null,null,null,"zvkx06_a6121__TY0V01","*=Kostenverzamelstaat!$I$56","","Medisch specialistische hulp- add-on's Dure geneesmiddelen- incl balans","zvkx06","b6121","","TY0V01"]
[null,null,null,null,"zvkx06_a6122__TY0V01","*=Kostenverzamelstaat!$I$57","","Medisch specialistische hulp- IC- incl balans","zvkx06","b6122","","TY0V01"]
[null,null,null,null,"zvkx06_c6131__TY0V01","*=Kostenverzamelstaat!$I$58","","Medisch specialistische hulp- Integraal DBC-zorgproduct gereguleerd- incl balans","zvkx06","c6131","","TY0V01"]
[null,null,null,null,"zvkx06_c6151__TY0V01","*=Kostenverzamelstaat!$I$59","","Medisch specialistische hulp- Integraal DBC-zorgproduct vrije segment- incl balans","zvkx06","c6151","","TY0V01"]
[null,null,null,null,"zvkx06_c619__TY0V01","*=Kostenverzamelstaat!$I$60","","Medisch specialistische hulp- honoraria extramuraal- incl balans","zvkx06","c619","","TY0V01"]
[null,null,null,null,"zvkx06_c619__TY1V01","*=Kostenverzamelstaat!$K$60","","Medisch specialistische hulp- honoraria extramuraal- incl balans","zvkx06","c619","","TY1V01"]
[null,null,null,null,"zvkx07_a620__TY0V01","*=Kostenverzamelstaat!$J$63","","Paramedische hulp- fysiotherapie- geaccepteerd","zvkx07","a620","","TY0V01"]
[null,null,null,null,"zvkx07_a620__TY1V01","*=Kostenverzamelstaat!$L$63","","Paramedische hulp- fysiotherapie- geaccepteerd","zvkx07","a620","","TY1V01"]
[null,null,null,null,"zvkx07_a620__TY2V01","*=Kostenverzamelstaat!$M$63","","Paramedische hulp- fysiotherapie- geaccepteerd","zvkx07","a620","","TY2V01"]
[null,null,null,null,"zvkx07_a621__TY0V01","*=Kostenverzamelstaat!$J$64","","Paramedische hulp- Mensendieck/Cesar- geaccepteerd","zvkx07","a621","","TY0V01"]
[null,null,null,null,"zvkx07_a621__TY1V01","*=Kostenverzamelstaat!$L$64","","Paramedische hulp- Mensendieck/Cesar- geaccepteerd","zvkx07","a621","","TY1V01"]
[null,null,null,null,"zvkx07_a621__TY2V01","*=Kostenverzamelstaat!$M$64","","Paramedische hulp- Mensendieck/Cesar- geaccepteerd","zvkx07","a621","","TY2V01"]
[null,null,null,null,"zvkx07_a623__TY0V01","*=Kostenverzamelstaat!$J$65","","Paramedische hulp- logopedie- geaccepteerd","zvkx07","a623","","TY0V01"]
[null,null,null,null,"zvkx07_a623__TY1V01","*=Kostenverzamelstaat!$L$65","","Paramedische hulp- logopedie- geaccepteerd","zvkx07","a623","","TY1V01"]
[null,null,null,null,"zvkx07_a623__TY2V01","*=Kostenverzamelstaat!$M$65","","Paramedische hulp- logopedie- geaccepteerd","zvkx07","a623","","TY2V01"]
[null,null,null,null,"zvkx07_a624__TY0V01","*=Kostenverzamelstaat!$J$66","","Paramedische hulp- ergotherapie- geaccepteerd","zvkx07","a624","","TY0V01"]
[null,null,null,null,"zvkx07_a624__TY1V01","*=Kostenverzamelstaat!$L$66","","Paramedische hulp- ergotherapie- geaccepteerd","zvkx07","a624","","TY1V01"]
[null,null,null,null,"zvkx07_a624__TY2V01","*=Kostenverzamelstaat!$M$66","","Paramedische hulp- ergotherapie- geaccepteerd","zvkx07","a624","","TY2V01"]
[null,null,null,null,"zvkx07_a625__TY0V01","*=Kostenverzamelstaat!$J$67","","Paramedische hulp- dieetadvisering- geaccepteerd","zvkx07","a625","","TY0V01"]
[null,null,null,null,"zvkx07_a625__TY1V01","*=Kostenverzamelstaat!$L$67","","Paramedische hulp- dieetadvisering- geaccepteerd","zvkx07","a625","","TY1V01"]
[null,null,null,null,"zvkx07_a625__TY2V01","*=Kostenverzamelstaat!$M$67","","Paramedische hulp- dieetadvisering- geaccepteerd","zvkx07","a625","","TY2V01"]
[null,null,null,null,"zvkx07_c620__TY0V01","*=Kostenverzamelstaat!$I$63","","Paramedische hulp- fysiotherapie- incl balans","zvkx07","c620","","TY0V01"]
[null,null,null,null,"zvkx07_c620__TY1V01","*=Kostenverzamelstaat!$K$63","","Paramedische hulp- fysiotherapie- incl balans","zvkx07","c620","","TY1V01"]
[null,null,null,null,"zvkx07_c621__TY0V01","*=Kostenverzamelstaat!$I$64","","Paramedische hulp- Mensendieck/Cesar- incl balans","zvkx07","c621","","TY0V01"]
[null,null,null,null,"zvkx07_c621__TY1V01","*=Kostenverzamelstaat!$K$64","","Paramedische hulp- Mensendieck/Cesar- incl balans","zvkx07","c621","","TY1V01"]
[null,null,null,null,"zvkx07_c623__TY0V01","*=Kostenverzamelstaat!$I$65","","Paramedische hulp- logopedie- incl balans","zvkx07","c623","","TY0V01"]
[null,null,null,null,"zvkx07_c623__TY1V01","*=Kostenverzamelstaat!$K$65","","Paramedische hulp- logopedie- incl balans","zvkx07","c623","","TY1V01"]
[null,null,null,null,"zvkx07_c624__TY0V01","*=Kostenverzamelstaat!$I$66","","Paramedische hulp- ergotherapie- incl balans","zvkx07","c624","","TY0V01"]
[null,null,null,null,"zvkx07_c624__TY1V01","*=Kostenverzamelstaat!$K$66","","Paramedische hulp- ergotherapie- incl balans","zvkx07","c624","","TY1V01"]
[null,null,null,null,"zvkx07_c625__TY0V01","*=Kostenverzamelstaat!$I$67","","Paramedische hulp- dieetadvisering- incl balans","zvkx07","c625","","TY0V01"]
[null,null,null,null,"zvkx07_c625__TY1V01","*=Kostenverzamelstaat!$K$67","","Paramedische hulp- dieetadvisering- incl balans","zvkx07","c625","","TY1V01"]
[null,null,null,null,"zvkx08_a640__TY0V01","*=Kostenverzamelstaat!$J$70","","Hulpmiddelen-- geaccepteerd","zvkx08","a640","","TY0V01"]
[null,null,null,null,"zvkx08_a640__TY1V01","*=Kostenverzamelstaat!$L$70","","Hulpmiddelen-- geaccepteerd","zvkx08","a640","","TY1V01"]
[null,null,null,null,"zvkx08_a640__TY2V01","*=Kostenverzamelstaat!$M$70","","Hulpmiddelen-- geaccepteerd","zvkx08","a640","","TY2V01"]
[null,null,null,null,"zvkx08_c640__TY0V01","*=Kostenverzamelstaat!$I$70","","Hulpmiddelen-- incl balans","zvkx08","c640","","TY0V01"]
[null,null,null,null,"zvkx08_c640__TY1V01","*=Kostenverzamelstaat!$K$70","","Hulpmiddelen-- incl balans","zvkx08","c640","","TY1V01"]
[null,null,null,null,"zvkx09_a650__TY0V01","*=Kostenverzamelstaat!$J$72","","Ziekenvervoer- ambulance/helicopter- geaccepteerd","zvkx09","a650","","TY0V01"]
[null,null,null,null,"zvkx09_a650__TY1V01","*=Kostenverzamelstaat!$L$72","","Ziekenvervoer- ambulance/helicopter- geaccepteerd","zvkx09","a650","","TY1V01"]
[null,null,null,null,"zvkx09_a650__TY2V01","*=Kostenverzamelstaat!$M$72","","Ziekenvervoer- ambulance/helicopter- geaccepteerd","zvkx09","a650","","TY2V01"]
[null,null,null,null,"zvkx09_a6501__TY0V01","*=Kostenverzamelstaat!$J$73","","Ziekenvervoer- regionale ambulance- geaccepteerd","zvkx09","a6501","","TY0V01"]
[null,null,null,null,"zvkx09_a6501__TY1V01","*=Kostenverzamelstaat!$L$73","","Ziekenvervoer- regionale ambulance- geaccepteerd","zvkx09","a6501","","TY1V01"]
[null,null,null,null,"zvkx09_a6501__TY2V01","*=Kostenverzamelstaat!$M$73","","Ziekenvervoer- regionale ambulance- geaccepteerd","zvkx09","a6501","","TY2V01"]
[null,null,null,null,"zvkx09_a651__TY0V01","*=Kostenverzamelstaat!$J$74","","Ziekenvervoer- ov, taxi en eigen auto- geaccepteerd","zvkx09","a651","","TY0V01"]
[null,null,null,null,"zvkx09_a651__TY1V01","*=Kostenverzamelstaat!$L$74","","Ziekenvervoer- ov, taxi en eigen auto- geaccepteerd","zvkx09","a651","","TY1V01"]
[null,null,null,null,"zvkx09_a651__TY2V01","*=Kostenverzamelstaat!$M$74","","Ziekenvervoer- ov, taxi en eigen auto- geaccepteerd","zvkx09","a651","","TY2V01"]
[null,null,null,null,"zvkx09_c650__TY0V01","*=Kostenverzamelstaat!$I$72","","Ziekenvervoer- ambulance/helicopter- incl balans","zvkx09","c650","","TY0V01"]
[null,null,null,null,"zvkx09_c650__TY1V01","*=Kostenverzamelstaat!$K$72","","Ziekenvervoer- ambulance/helicopter- incl balans","zvkx09","c650","","TY1V01"]
[null,null,null,null,"zvkx09_c6501__TY0V01","*=Kostenverzamelstaat!$I$73","","Ziekenvervoer- regionale ambulance- incl balans","zvkx09","c6501","","TY0V01"]
[null,null,null,null,"zvkx09_c6501__TY1V01","*=Kostenverzamelstaat!$K$73","","Ziekenvervoer- regionale ambulance- incl balans","zvkx09","c6501","","TY1V01"]
[null,null,null,null,"zvkx09_c651__TY0V01","*=Kostenverzamelstaat!$I$74","","Ziekenvervoer- ov, taxi en eigen auto- incl balans","zvkx09","c651","","TY0V01"]
[null,null,null,null,"zvkx09_c651__TY1V01","*=Kostenverzamelstaat!$K$74","","Ziekenvervoer- ov, taxi en eigen auto- incl balans","zvkx09","c651","","TY1V01"]
[null,null,null,null,"zvkx10_a661__TY0V01","*=Kostenverzamelstaat!$J$90","","Geneeskundige GGZ- GGZ met verblijf- geaccepteerd","zvkx10","a661","","TY0V01"]
[null,null,null,null,"zvkx10_a661__TY1V01","*=Kostenverzamelstaat!$L$90","","Geneeskundige GGZ- GGZ met verblijf- geaccepteerd","zvkx10","a661","","TY1V01"]
[null,null,null,null,"zvkx10_a661__TY2V01","*=Kostenverzamelstaat!$M$90","","Geneeskundige GGZ- GGZ met verblijf- geaccepteerd","zvkx10","a661","","TY2V01"]
[null,null,null,null,"zvkx10_a6611__TY0V01","*=Kostenverzamelstaat!$J$91","","Geneeskundige GGZ- GGZ jaar 2 en 3- geaccepteerd","zvkx10","a6611","","TY0V01"]
[null,null,null,null,"zvkx10_a6611__TY1V01","*=Kostenverzamelstaat!$L$91","","Geneeskundige GGZ- GGZ jaar 2 en 3- geaccepteerd","zvkx10","a6611","","TY1V01"]
[null,null,null,null,"zvkx10_a6611__TY2V01","*=Kostenverzamelstaat!$M$91","","Geneeskundige GGZ- GGZ jaar 2 en 3- geaccepteerd","zvkx10","a6611","","TY2V01"]
[null,null,null,null,"zvkx10_a662__TY0V01","*=Kostenverzamelstaat!$J$92","","Geneeskundige GGZ- GGZ zonder verblijf- geaccepteerd","zvkx10","a662","","TY0V01"]
[null,null,null,null,"zvkx10_a662__TY1V01","*=Kostenverzamelstaat!$L$92","","Geneeskundige GGZ- GGZ zonder verblijf- geaccepteerd","zvkx10","a662","","TY1V01"]
[null,null,null,null,"zvkx10_a662__TY2V01","*=Kostenverzamelstaat!$M$92","","Geneeskundige GGZ- GGZ zonder verblijf- geaccepteerd","zvkx10","a662","","TY2V01"]
[null,null,null,null,"zvkx10_a665__TY0V01","*=Kostenverzamelstaat!$J$93","","Geneeskundige GGZ- basis GGZ- geaccepteerd","zvkx10","a665","","TY0V01"]
[null,null,null,null,"zvkx10_a665__TY1V01","*=Kostenverzamelstaat!$L$93","","Geneeskundige GGZ- basis GGZ- geaccepteerd","zvkx10","a665","","TY1V01"]
[null,null,null,null,"zvkx10_a665__TY2V01","*=Kostenverzamelstaat!$M$93","","Geneeskundige GGZ- basis GGZ- geaccepteerd","zvkx10","a665","","TY2V01"]
[null,null,null,null,"zvkx10_c661__TY0V01","*=Kostenverzamelstaat!$I$90","","Geneeskundige GGZ- GGZ met verblijf- incl balans","zvkx10","c661","","TY0V01"]
[null,null,null,null,"zvkx10_c661__TY1V01","*=Kostenverzamelstaat!$K$90","","Geneeskundige GGZ- GGZ met verblijf- incl balans","zvkx10","c661","","TY1V01"]
[null,null,null,null,"zvkx10_c6611__TY0V01","*=Kostenverzamelstaat!$I$91","","Geneeskundige GGZ- GGZ jaar 2 en 3- incl balans","zvkx10","c6611","","TY0V01"]
[null,null,null,null,"zvkx10_c6611__TY1V01","*=Kostenverzamelstaat!$K$91","","Geneeskundige GGZ- GGZ jaar 2 en 3- incl balans","zvkx10","c6611","","TY1V01"]
[null,null,null,null,"zvkx10_c662__TY0V01","*=Kostenverzamelstaat!$I$92","","Geneeskundige GGZ- GGZ zonder verblijf- incl balans","zvkx10","c662","","TY0V01"]
[null,null,null,null,"zvkx10_c662__TY1V01","*=Kostenverzamelstaat!$K$92","","Geneeskundige GGZ- GGZ zonder verblijf- incl balans","zvkx10","c662","","TY1V01"]
[null,null,null,null,"zvkx10_c665__TY0V01","*=Kostenverzamelstaat!$I$93","","Geneeskundige GGZ- basis GGZ- incl balans","zvkx10","c665","","TY0V01"]
[null,null,null,null,"zvkx10_c665__TY1V01","*=Kostenverzamelstaat!$K$93","","Geneeskundige GGZ- basis GGZ- incl balans","zvkx10","c665","","TY1V01"]
[null,null,null,null,"zvkx11_a670__TY0V01","*=Kostenverzamelstaat!$J$96","","Geriatische revalidatiezorg-- geaccepteerd","zvkx11","a670","","TY0V01"]
[null,null,null,null,"zvkx11_a670__TY1V01","*=Kostenverzamelstaat!$L$96","","Geriatische revalidatiezorg-- geaccepteerd","zvkx11","a670","","TY1V01"]
[null,null,null,null,"zvkx11_a670__TY2V01","*=Kostenverzamelstaat!$M$96","","Geriatische revalidatiezorg-- geaccepteerd","zvkx11","a670","","TY2V01"]
[null,null,null,null,"zvkx11_a671__TY0V01","*=Kostenverzamelstaat!$J$97","","Geriatische revalidatiezorg- Eerstelijnsverblijf- geaccepteerd","zvkx11","a671","","TY0V01"]
[null,null,null,null,"zvkx11_a671__TY1V01","*=Kostenverzamelstaat!$L$97","","Geriatische revalidatiezorg- Eerstelijnsverblijf- geaccepteerd","zvkx11","a671","","TY0V01"]
[null,null,null,null,"zvkx11_c670__TY0V01","*=Kostenverzamelstaat!$I$96","","Geriatische revalidatiezorg-- incl balans","zvkx11","c670","","TY0V01"]
[null,null,null,null,"zvkx11_c670__TY1V01","*=Kostenverzamelstaat!$K$96","","Geriatische revalidatiezorg-- incl balans","zvkx11","c670","","TY1V01"]
[null,null,null,null,"zvkx11_c671__TY0V01","*=Kostenverzamelstaat!$I$97","","Geriatische revalidatiezorg- Eerstelijnsverblijf- incl balans","zvkx11","c671","","TY0V01"]
[null,null,null,null,"zvkx11_c671__TY1V01","*=Kostenverzamelstaat!$K$97","","Geriatische revalidatiezorg- Eerstelijnsverblijf- incl balans","zvkx11","c671","","TY0V01"]
[null,null,null,null,"zvkx12_a680__TY0V01","*=Kostenverzamelstaat!$J$100","","Kraamzorg-- geaccepteerd","zvkx12","a680","","TY0V01"]
[null,null,null,null,"zvkx12_a680__TY1V01","*=Kostenverzamelstaat!$L$100","","Kraamzorg-- geaccepteerd","zvkx12","a680","","TY1V01"]
[null,null,null,null,"zvkx12_a680__TY2V01","*=Kostenverzamelstaat!$M$100","","Kraamzorg-- geaccepteerd","zvkx12","a680","","TY2V01"]
[null,null,null,null,"zvkx12_c680__TY0V01","*=Kostenverzamelstaat!$I$100","","Kraamzorg-- incl balans","zvkx12","c680","","TY0V01"]
[null,null,null,null,"zvkx12_c680__TY1V01","*=Kostenverzamelstaat!$K$100","","Kraamzorg-- incl balans","zvkx12","c680","","TY1V01"]
[null,null,null,null,"zvkx13_a700__TY0V01","*=Kostenverzamelstaat!$J$102","","Overige kosten-- geaccepteerd","zvkx13","a700","","TY0V01"]
[null,null,null,null,"zvkx13_a700__TY1V01","*=Kostenverzamelstaat!$L$102","","Overige kosten-- geaccepteerd","zvkx13","a700","","TY1V01"]
[null,null,null,null,"zvkx13_a700__TY2V01","*=Kostenverzamelstaat!$M$102","","Overige kosten-- geaccepteerd","zvkx13","a700","","TY2V01"]
[null,null,null,null,"zvkx13_a701__TY0V01","*=Kostenverzamelstaat!$J$103","","Overige kosten- geneeskundige zorg- geaccepteerd","zvkx13","a701","","TY0V01"]
[null,null,null,null,"zvkx13_a701__TY1V01","*=Kostenverzamelstaat!$L$103","","Overige kosten- geneeskundige zorg- geaccepteerd","zvkx13","a701","","TY1V01"]
[null,null,null,null,"zvkx13_a701__TY2V01","*=Kostenverzamelstaat!$M$103","","Overige kosten- geneeskundige zorg- geaccepteerd","zvkx13","a701","","TY2V01"]
[null,null,null,null,"zvkx13_a702__TY0V01","*=Kostenverzamelstaat!$J$104","","Overige kosten- zintuiglijk gehandicapten- geaccepteerd","zvkx13","a702","","TY0V01"]
[null,null,null,null,"zvkx13_a702__TY1V01","*=Kostenverzamelstaat!$L$104","","Overige kosten- zintuiglijk gehandicapten- geaccepteerd","zvkx13","a702","","TY1V01"]
[null,null,null,null,"zvkx13_a702__TY2V01","*=Kostenverzamelstaat!$M$104","","Overige kosten- zintuiglijk gehandicapten- geaccepteerd","zvkx13","a702","","TY2V01"]
[null,null,null,null,"zvkx13_c700__TY0V01","*=Kostenverzamelstaat!$I$102","","Overige kosten-- incl balans","zvkx13","c700","","TY0V01"]
[null,null,null,null,"zvkx13_c700__TY1V01","*=Kostenverzamelstaat!$K$102","","Overige kosten-- incl balans","zvkx13","c700","","TY1V01"]
[null,null,null,null,"zvkx13_c701__TY0V01","*=Kostenverzamelstaat!$I$103","","Overige kosten- geneeskundige zorg- incl balans","zvkx13","c701","","TY0V01"]
[null,null,null,null,"zvkx13_c701__TY1V01","*=Kostenverzamelstaat!$K$103","","Overige kosten- geneeskundige zorg- incl balans","zvkx13","c701","","TY1V01"]
[null,null,null,null,"zvkx13_c702__TY0V01","*=Kostenverzamelstaat!$I$104","","Overige kosten- zintuiglijk gehandicapten- incl balans","zvkx13","c702","","TY0V01"]
[null,null,null,null,"zvkx13_c702__TY1V01","*=Kostenverzamelstaat!$K$104","","Overige kosten- zintuiglijk gehandicapten- incl balans","zvkx13","c702","","TY1V01"]
[null,null,null,null,"zvkx15_a720__TY0V01","*=Kostenverzamelstaat!$J$107","","Grensoverschrijdende zorg- Kosten via verzekeraar- geaccepteerd","zvkx15","a720","","TY0V01"]
[null,null,null,null,"zvkx15_a720__TY1V01","*=Kostenverzamelstaat!$L$107","","Grensoverschrijdende zorg- Kosten via verzekeraar- geaccepteerd","zvkx15","a720","","TY1V01"]
[null,null,null,null,"zvkx15_a720__TY2V01","*=Kostenverzamelstaat!$M$107","","Grensoverschrijdende zorg- Kosten via verzekeraar- geaccepteerd","zvkx15","a720","","TY2V01"]
[null,null,null,null,"zvkx15_c720__TY0V01","*=Kostenverzamelstaat!$I$107","","Grensoverschrijdende zorg- Kosten via verzekeraar-- incl balans","zvkx15","c720","","TY0V01"]
[null,null,null,null,"zvkx15_c720__TY1V01","*=Kostenverzamelstaat!$K$107","","Grensoverschrijdende zorg- Kosten via verzekeraar-- incl balans","zvkx15","c720","","TY1V01"]
[null,null,null,null,"zvkx15_a721__TY0V01","*=Kostenverzamelstaat!$J$108","","Grensoverschrijdende zorg- Kosten via verbindingsorgaan- geaccepteerd","zvkx15","a720","","TY0V01"]
[null,null,null,null,"zvkx15_a721__TY1V01","*=Kostenverzamelstaat!$L$108","","Grensoverschrijdende zorg- Kosten via verbindingsorgaan- geaccepteerd","zvkx15","a720","","TY1V01"]
[null,null,null,null,"zvkx15_a721__TY2V01","*=Kostenverzamelstaat!$M$108","","Grensoverschrijdende zorg- Kosten via verbindingsorgaan- geaccepteerd","zvkx15","a720","","TY2V01"]
[null,null,null,null,"zvkx15_c721__TY0V01","*=Kostenverzamelstaat!$I$108","","Grensoverschrijdende zorg-Kosten via verbindingsorgaan- incl balans","zvkx15","c720","","TY0V01"]
[null,null,null,null,"zvkx15_c721__TY1V01","*=Kostenverzamelstaat!$K$108","","Grensoverschrijdende zorg-Kosten via verbindingsorgaan- incl balans","zvkx15","c720","","TY1V01"]
[null,null,null,null,"zvkx16_a730__TY0V01","*=Kostenverzamelstaat!$J$111","","Kwaliteitsgelden-- geaccepteerd","zvkx16","a730","","TY0V01"]
[null,null,null,null,"zvkx16_a730__TY1V01","*=Kostenverzamelstaat!$L$111","","Kwaliteitsgelden-- geaccepteerd","zvkx16","a730","","TY1V01"]
[null,null,null,null,"zvkx16_a730__TY2V01","*=Kostenverzamelstaat!$M$111","","Kwaliteitsgelden-- geaccepteerd","zvkx16","a730","","TY2V01"]
[null,null,null,null,"zvkx16_c730__TY0V01","*=Kostenverzamelstaat!$I$111","","Kwaliteitsgelden-- incl balans","zvkx16","c730","","TY0V01"]
[null,null,null,null,"zvkx16_c730__TY1V01","*=Kostenverzamelstaat!$K$111","","Kwaliteitsgelden-- incl balans","zvkx16","c730","","TY1V01"]
[null,null,null,null,"zvkxdnb_a8901__TY0V01","*=Kostenverzamelstaat!$J$116","","Verschilposten DNB- Opbrengsten verhaal- geaccepteerd","zvkxdnb","c8901","","TY0V01"]
[null,null,null,null,"zvkxdnb_a8901__TY1V01","*=Kostenverzamelstaat!$L$116","","Verschilposten DNB- Opbrengsten verhaal- geaccepteerd","zvkxdnb","c8901","","TY0V01"]
[null,null,null,null,"zvkxdnb_a8901__TY2V01","*=Kostenverzamelstaat!$M$116","","Verschilposten DNB- Opbrengsten verhaal- geaccepteerd","zvkxdnb","c8901","","TY0V01"]
[null,null,null,null,"zvkxdnb_a910__TY0V01","*=Kostenverzamelstaat!$J$117","","Verschilposten DNB- Schade tlv het vrijwillig eigen risico- geaccepteerd","zvkxdnb","a910","","TY0V01"]
[null,null,null,null,"zvkxdnb_a910__TY1V01","*=Kostenverzamelstaat!$L$117","","Verschilposten DNB- Schade tlv het vrijwillig eigen risico- geaccepteerd","zvkxdnb","a910","","TY1V01"]
[null,null,null,null,"zvkxdnb_a910__TY2V01","*=Kostenverzamelstaat!$M$117","","Verschilposten DNB- Schade tlv het vrijwillig eigen risico- geaccepteerd","zvkxdnb","a910","","TY2V01"]
[null,null,null,null,"zvkxdnb_a915__TY0V01","*=Kostenverzamelstaat!$J$118","","Verschilposten DNB- Schade tlv het verplicht eigen risico- geaccepteerd","zvkxdnb","a915","","TY0V01"]
[null,null,null,null,"zvkxdnb_a915__TY1V01","*=Kostenverzamelstaat!$L$118","","Verschilposten DNB- Schade tlv het verplicht eigen risico- geaccepteerd","zvkxdnb","a915","","TY1V01"]
[null,null,null,null,"zvkxdnb_a915__TY2V01","*=Kostenverzamelstaat!$M$118","","Verschilposten DNB- Schade tlv het verplicht eigen risico- geaccepteerd","zvkxdnb","a915","","TY2V01"]
[null,null,null,null,"zvkxdnb_a940__TY0V01","*=Kostenverzamelstaat!$J$119","","Verschilposten DNB- Netto Premieopbrengsten- geaccepteerd","zvkxdnb","a940","","TY0V01"]
[null,null,null,null,"zvkxdnb_a940__TY1V01","*=Kostenverzamelstaat!$L$119","","Verschilposten DNB- Netto Premieopbrengsten- geaccepteerd","zvkxdnb","a940","","TY1V01"]
[null,null,null,null,"zvkxdnb_a940__TY2V01","*=Kostenverzamelstaat!$M$119","","Verschilposten DNB- Netto Premieopbrengsten- geaccepteerd","zvkxdnb","a940","","TY2V01"]
[null,null,null,null,"zvkxdnb_c8901__TY0V01","*=Kostenverzamelstaat!$I$116","","Verschilposten DNB- Opbrengsten verhaal- incl balans","zvkxdnb","c8901","","TY0V01"]
[null,null,null,null,"zvkxdnb_c8901__TY1V01","*=Kostenverzamelstaat!$K$116","","Verschilposten DNB- Opbrengsten verhaal- incl balans","zvkxdnb","c8901","","TY0V01"]
[null,null,null,null,"zvkxdnb_c910__TY0V01","*=Kostenverzamelstaat!$I$117","","Verschilposten DNB- Schade tlv het vrijwillig eigen risico- incl balans","zvkxdnb","c910","","TY0V01"]
[null,null,null,null,"zvkxdnb_c910__TY1V01","*=Kostenverzamelstaat!$K$117","","Verschilposten DNB- Schade tlv het vrijwillig eigen risico- incl balans","zvkxdnb","c910","","TY1V01"]
[null,null,null,null,"zvkxdnb_c915__TY0V01","*=Kostenverzamelstaat!$I$118","","Verschilposten DNB- Schade tlv het verplicht eigen risico- incl balans","zvkxdnb","c915","","TY0V01"]
[null,null,null,null,"zvkxdnb_c915__TY1V01","*=Kostenverzamelstaat!$K$118","","Verschilposten DNB- Schade tlv het verplicht eigen risico- incl balans","zvkxdnb","c915","","TY1V01"]
[null,null,null,null,"zvkxdnb_c940__TY0V01","*=Kostenverzamelstaat!$I$119","","Verschilposten DNB- Netto Premieopbrengsten- incl balans","zvkxdnb","c940","","TY0V01"]
[null,null,null,null,"zvkxdnb_c940__TY1V01","*=Kostenverzamelstaat!$K$119","","Verschilposten DNB- Netto Premieopbrengsten- incl balans","zvkxdnb","c940","","TY1V01"]
[null,null,null,null,"zvox01_c97101_o01mdz_TY0V01","*=Contractinformatie!$J$18","","Huisartsenzorg en Multidisciplinaire zorg, (code 510 en 516)- Gecontracteerd 510,516- incl balans","zvox01","c97101","o01mdz","TY0V01"]
[null,null,null,null,"zvox01_c97101_o01mdz_TY1V01","*=Contractinformatie!$K$18","","Huisartsenzorg en Multidisciplinaire zorg, (code 510 en 516)- Gecontracteerd 510,516- incl balans","zvox01","c97101","o01mdz","TY1V01"]
[null,null,null,null,"zvox01_c97101_o01mdz_TY2V01","*=Contractinformatie!$L$18","","Huisartsenzorg en Multidisciplinaire zorg, (code 510 en 516)- Gecontracteerd 510,516- incl balans","zvox01","c97101","o01mdz","TY1V01"]
[null,null,null,null,"zvox01_c97101_o01trf_TY0V01","*=Contractinformatie!$J$14","","Huisartsenzorg en Multidisciplinaire zorg, (code 503,504,505,506,507,515)- Gecontracteerd 503,504,505,506,507,515- incl balans","zvox01","c97101","o01trf","TY0V01"]
[null,null,null,null,"zvox01_c97101_o01trf_TY1V01","*=Contractinformatie!$K$14","","Huisartsenzorg en Multidisciplinaire zorg, (code 503,504,505,506,507,515)- Gecontracteerd 503,504,505,506,507,515- incl balans","zvox01","c97101","o01trf","TY1V01"]
[null,null,null,null,"zvox01_c97101_o01trf_TY2V01","*=Contractinformatie!$L$14","","Huisartsenzorg en Multidisciplinaire zorg, (code 503,504,505,506,507,515)- Gecontracteerd 503,504,505,506,507,515- incl balans","zvox01","c97101","o01trf","TY0V01"]
[null,null,null,null,"zvox01_c97101_o52mdz_TY0V01","*=Contractinformatie!$J$19","","Huisartsenzorg en Multidisciplinaire zorg, (code 510 en 516)- Niet gecontracteerd  510,516- incl balans","zvox01","c97101","o52mdz","TY0V01"]
[null,null,null,null,"zvox01_c97101_o52mdz_TY1V01","*=Contractinformatie!$K$19","","Huisartsenzorg en Multidisciplinaire zorg, (code 510 en 516)- Niet gecontracteerd  510,516- incl balans","zvox01","c97101","o52mdz","TY1V01"]
[null,null,null,null,"zvox01_c97101_o52mdz_TY2V01","*=Contractinformatie!$L$19","","Huisartsenzorg en Multidisciplinaire zorg, (code 510 en 516)- Niet gecontracteerd  510,516- incl balans","zvox01","c97101","o52mdz","TY0V01"]
[null,null,null,null,"zvox01_c97101_o52trf_TY0V01","*=Contractinformatie!$J$15","","Huisartsenzorg en Multidisciplinaire zorg, (code 503,504,505,506,507,515)- Niet gecontracteerd 503,504,505,506,507,515- incl balans","zvox01","c97101","o52trf","TY0V01"]
[null,null,null,null,"zvox01_c97101_o52trf_TY1V01","*=Contractinformatie!$K$15","","Huisartsenzorg en Multidisciplinaire zorg, (code 503,504,505,506,507,515)- Niet gecontracteerd 503,504,505,506,507,515- incl balans","zvox01","c97101","o52trf","TY1V01"]
[null,null,null,null,"zvox01_c97101_o52trf_TY2V01","*=Contractinformatie!$L$15","","Huisartsenzorg en Multidisciplinaire zorg, (code 503,504,505,506,507,515)- Niet gecontracteerd 503,504,505,506,507,515- incl balans","zvox01","c97101","o52trf","TY0V01"]
[null,null,null,null,"zvox03_c97103_o01_TY0V01","*=Contractinformatie!$J$26","","Contractinformatie Verpleging en Verzorging- Gecontracteerd- incl balans","zvox03","c97103","o01","TY0V01"]
[null,null,null,null,"zvox03_c97103_o01_TY1V01","*=Contractinformatie!$K$26","","Contractinformatie Verpleging en Verzorging- Gecontracteerd- incl balans","zvox03","c97103","o01","TY1V01"]
[null,null,null,null,"zvox03_c97103_o01_TY2V01","*=Contractinformatie!$L$26","","Contractinformatie Verpleging en Verzorging- Gecontracteerd- incl balans","zvox03","c97103","o01","TY0V01"]
[null,null,null,null,"zvox03_c97103_o52_TY0V01","*=Contractinformatie!$J$27","","Contractinformatie Verpleging en Verzorging- Niet gecontracteerd- incl balans","zvox03","c97103","o52","TY0V01"]
[null,null,null,null,"zvox03_c97103_o52_TY1V01","*=Contractinformatie!$K$27","","Contractinformatie Verpleging en Verzorging- Niet gecontracteerd- incl balans","zvox03","c97103","o52","TY1V01"]
[null,null,null,null,"zvox03_c97103_o52_TY2V01","*=Contractinformatie!$L$27","","Contractinformatie Verpleging en Verzorging- Niet gecontracteerd- incl balans","zvox03","c97103","o52","TY0V01"]
[null,null,null,null,"zvox03_c97103_o08_TY0V01","*=Contractinformatie!$J$28",null,"Contractinformatie Verpleging en Verzorging- PGB- incl balans"]
[null,null,null,null,"zvox03_c97103_o08_TY1V01","*=Contractinformatie!$K$28",null,"Contractinformatie Verpleging en Verzorging- PGB- incl balans"]
[null,null,null,null,"zvox03_c97103_o08_TY2V01","*=Contractinformatie!$L$28",null,"Contractinformatie Verpleging en Verzorging- PGB- incl balans"]
[null,null,null,null,"zvox06_c97106_o02_TY0V01","*=Contractinformatie!$J$34","","Medisch Specialistische Zorg- aanneemsom- incl balans","zvox06","c97106","o02","TY0V01"]
[null,null,null,null,"zvox06_c97106_o02_TY1V01","*=Contractinformatie!$K$34","","Medisch Specialistische Zorg- aanneemsom- incl balans","zvox06","c97106","o02","TY1V01"]
[null,null,null,null,"zvox06_c97106_o02_TY2V01","*=Contractinformatie!$L$34","","Medisch Specialistische Zorg- aanneemsom- incl balans","zvox06","c97106","o02","TY0V01"]
[null,null,null,null,"zvox06_c97106_o03_TY0V01","*=Contractinformatie!$J$35","","Medisch Specialistische Zorg- plafond- incl balans","zvox06","c97106","o03","TY0V01"]
[null,null,null,null,"zvox06_c97106_o03_TY1V01","*=Contractinformatie!$K$35","","Medisch Specialistische Zorg- plafond- incl balans","zvox06","c97106","o03","TY1V01"]
[null,null,null,null,"zvox06_c97106_o03_TY2V01","*=Contractinformatie!$L$35","","Medisch Specialistische Zorg- plafond- incl balans","zvox06","c97106","o03","TY0V01"]
[null,null,null,null,"zvox06_c97106_o04_TY0V01","*=Contractinformatie!$J$36","","Medisch Specialistische Zorg- nacalculatie- incl balans","zvox06","c97106","o04","TY0V01"]
[null,null,null,null,"zvox06_c97106_o04_TY1V01","*=Contractinformatie!$K$36","","Medisch Specialistische Zorg- nacalculatie- incl balans","zvox06","c97106","o04","TY1V01"]
[null,null,null,null,"zvox06_c97106_o04_TY2V01","*=Contractinformatie!$L$36","","Medisch Specialistische Zorg- nacalculatie- incl balans","zvox06","c97106","o04","TY0V01"]
[null,null,null,null,"zvox06_c97106_o05_TY0V01","*=Contractinformatie!$J$37","","Medisch Specialistische Zorg- open einde contract- incl balans","zvox06","c97106","o05","TY0V01"]
[null,null,null,null,"zvox06_c97106_o05_TY1V01","*=Contractinformatie!$K$37","","Medisch Specialistische Zorg- open einde contract- incl balans","zvox06","c97106","o05","TY1V01"]
[null,null,null,null,"zvox06_c97106_o05_TY2V01","*=Contractinformatie!$L$37","","Medisch Specialistische Zorg- open einde contract- incl balans","zvox06","c97106","o05","TY0V01"]
[null,null,null,null,"zvox06_c97106_o52_TY0V01","*=Contractinformatie!$J$39","","Medisch Specialistische Zorg- Niet gecontracteerd- incl balans","zvox06","c97106","o52","TY0V01"]
[null,null,null,null,"zvox06_c97106_o52_TY1V01","*=Contractinformatie!$K$39","","Medisch Specialistische Zorg- Niet gecontracteerd- incl balans","zvox06","c97106","o52","TY1V01"]
[null,null,null,null,"zvox06_c97106_o52_TY2V01","*=Contractinformatie!$L$39","","Medisch Specialistische Zorg- Niet gecontracteerd- incl balans","zvox06","c97106","o52","TY0V01"]
[null,null,null,null,"zvox06_c97106_o91_TY0V01","*=Contractinformatie!$J$43",null,"Medisch Specialistische Zorg- Totaal afgesproken maximum omzet plafondcontracten- incl balans"]
[null,null,null,null,"zvox06_c97106_o91_TY1V01","*=Contractinformatie!$K$43",null,"Medisch Specialistische Zorg- Totaal afgesproken maximum omzet plafondcontracten- incl balans"]
[null,null,null,null,"zvox06_c97106_o91_TY2V01","*=Contractinformatie!$L$43",null,"Medisch Specialistische Zorg- Totaal afgesproken maximum omzet plafondcontracten- incl balans"]
[null,null,null,null,"zvox10_c97110_o02_TY0V01","*=Contractinformatie!$J$57","","Geneeskundige GGZ- aanneemsom- incl balans","zvox10","c97110","o02","TY0V01"]
[null,null,null,null,"zvox10_c97110_o02_TY1V01","*=Contractinformatie!$K$57","","Geneeskundige GGZ- aanneemsom- incl balans","zvox10","c97110","o02","TY1V01"]
[null,null,null,null,"zvox10_c97110_o02_TY2V01","*=Contractinformatie!$L$57","","Geneeskundige GGZ- aanneemsom- incl balans","zvox10","c97110","o02","TY0V01"]
[null,null,null,null,"zvox10_c97110_o03_TY0V01","*=Contractinformatie!$J$58","","Geneeskundige GGZ- plafond- incl balans","zvox10","c97110","o03","TY0V01"]
[null,null,null,null,"zvox10_c97110_o03_TY1V01","*=Contractinformatie!$K$58","","Geneeskundige GGZ- plafond- incl balans","zvox10","c97110","o03","TY1V01"]
[null,null,null,null,"zvox10_c97110_o03_TY2V01","*=Contractinformatie!$L$58","","Geneeskundige GGZ- plafond- incl balans","zvox10","c97110","o03","TY0V01"]
[null,null,null,null,"zvox10_c97110_o04_TY0V01","*=Contractinformatie!$J$59","","Geneeskundige GGZ- nacalculatie- incl balans","zvox10","c97110","o04","TY0V01"]
[null,null,null,null,"zvox10_c97110_o04_TY1V01","*=Contractinformatie!$K$59","","Geneeskundige GGZ- nacalculatie- incl balans","zvox10","c97110","o04","TY1V01"]
[null,null,null,null,"zvox10_c97110_o04_TY2V01","*=Contractinformatie!$L$59","","Geneeskundige GGZ- nacalculatie- incl balans","zvox10","c97110","o04","TY0V01"]
[null,null,null,null,"zvox10_c97110_o05_TY0V01","*=Contractinformatie!$J$60","","Geneeskundige GGZ- open einde contract- incl balans","zvox10","c97110","o05","TY0V01"]
[null,null,null,null,"zvox10_c97110_o05_TY1V01","*=Contractinformatie!$K$60","","Geneeskundige GGZ- open einde contract- incl balans","zvox10","c97110","o05","TY1V01"]
[null,null,null,null,"zvox10_c97110_o05_TY2V01","*=Contractinformatie!$L$60","","Geneeskundige GGZ- open einde contract- incl balans","zvox10","c97110","o05","TY0V01"]
[null,null,null,null,"zvox10_c97110_o52_TY0V01","*=Contractinformatie!$J$62","","Geneeskundige GGZ- Niet gecontracteerd- incl balans","zvox10","c97110","o52","TY0V01"]
[null,null,null,null,"zvox10_c97110_o52_TY1V01","*=Contractinformatie!$K$62","","Geneeskundige GGZ- Niet gecontracteerd- incl balans","zvox10","c97110","o52","TY1V01"]
[null,null,null,null,"zvox10_c97110_o52_TY2V01","*=Contractinformatie!$L$62","","Geneeskundige GGZ- Niet gecontracteerd- incl balans","zvox10","c97110","o52","TY0V01"]
[null,null,null,null,"zvox10_c97110_o91_TY0V01","*=Contractinformatie!$J$66",null,"Geneeskundige GGZ- Totaal afgesproken maximum omzet plafondcontracten- incl balans"]
[null,null,null,null,"zvox10_c97110_o91_TY1V01","*=Contractinformatie!$K$66",null,"Geneeskundige GGZ- Totaal afgesproken maximum omzet plafondcontracten- incl balans"]
[null,null,null,null,"zvox10_c97110_o91_TY2V01","*=Contractinformatie!$L$66",null,"Geneeskundige GGZ- Totaal afgesproken maximum omzet plafondcontracten- incl balans"]
[null,null,null,null,"zvox11_c97111_o01rvl_TY0V01","*=Contractinformatie!$J$79","","Geriatrische Revalidatiezorg 670 en Eerstelijnsverblijf 671, (code 670)- Gecontracteerd  670- incl balans","zvox11","c97111","o01rvl","TY0V01"]
[null,null,null,null,"zvox11_c97111_o01rvl_TY1V01","*=Contractinformatie!$K$79","","Geriatrische Revalidatiezorg 670 en Eerstelijnsverblijf 671, (code 670)- Gecontracteerd  670- incl balans","zvox11","c97111","o01rvl","TY0V01"]
[null,null,null,null,"zvox11_c97111_o01rvl_TY2V01","*=Contractinformatie!$L$79","","Geriatrische Revalidatiezorg 670 en Eerstelijnsverblijf 671, (code 670)- Gecontracteerd  670- incl balans","zvox11","c97111","o01rvl","TY0V01"]
[null,null,null,null,"zvox11_c97111_o52rvl_TY0V01","*=Contractinformatie!$J$80","","Geriatrische Revalidatiezorg 670 en Eerstelijnsverblijf 671, (code 670)- Niet gecontracteerd 670- incl balans","zvox11","c97111","o52rvl","TY0V01"]
[null,null,null,null,"zvox11_c97111_o52rvl_TY1V01","*=Contractinformatie!$K$80","","Geriatrische Revalidatiezorg 670 en Eerstelijnsverblijf 671, (code 670)- Niet gecontracteerd 670- incl balans","zvox11","c97111","o52rvl","TY0V01"]
[null,null,null,null,"zvox11_c97111_o52rvl_TY2V01","*=Contractinformatie!$L$80","","Geriatrische Revalidatiezorg 670 en Eerstelijnsverblijf 671, (code 670)- Niet gecontracteerd 670- incl balans","zvox11","c97111","o52rvl","TY0V01"]
[null,null,null,null,"zvox11_c97111_o01ln1_TY0V01","*=Contractinformatie!$J$83","","Geriatrische Revalidatiezorg 670 en Eerstelijnsverblijf 671, (code 671)- Gecontracteerd 671- incl balans","zvox11","c97111","o01ln1","TY0V01"]
[null,null,null,null,"zvox11_c97111_o01ln1_TY1V01","*=Contractinformatie!$K$83","","Geriatrische Revalidatiezorg 670 en Eerstelijnsverblijf 671, (code 671)- Gecontracteerd 671- incl balans","zvox11","c97111","o01ln1","TY0V01"]
[null,null,null,null,"zvox11_c97111_o01ln1_TY2V01","*=Contractinformatie!$L$83","","Geriatrische Revalidatiezorg 670 en Eerstelijnsverblijf 671, (code 671)- Gecontracteerd 671- incl balans","zvox11","c97111","o01ln1","TY0V01"]
[null,null,null,null,"zvox11_c97111_o52ln1_TY0V01","*=Contractinformatie!$J$84","","Geriatrische Revalidatiezorg 670 en Eerstelijnsverblijf 671, (code 671)- Niet gecontracteerd 671- incl balans","zvox11","c97111","o52ln1","TY0V01"]
[null,null,null,null,"zvox11_c97111_o52ln1_TY1V01","*=Contractinformatie!$K$84","","Geriatrische Revalidatiezorg 670 en Eerstelijnsverblijf 671, (code 671)- Niet gecontracteerd 671- incl balans","zvox11","c97111","o52ln1","TY0V01"]
[null,null,null,null,"zvox11_c97111_o52ln1_TY2V01","*=Contractinformatie!$L$84","","Geriatrische Revalidatiezorg 670 en Eerstelijnsverblijf 671, (code 671)- Niet gecontracteerd 671- incl balans","zvox11","c97111","o52ln1","TY0V01"]
[null,null,null,null,"zvox13_c97113_bo01_TY0V01","*=Contractinformatie!$J$71","","Zintuiglijk gehandicapten- Gecontracteerd- incl balans","zvox13","c97113","bo01","TY0V01"]
[null,null,null,null,"zvox13_c97113_bo01_TY1V01","*=Contractinformatie!$K$71","","Zintuiglijk gehandicapten- Gecontracteerd- incl balans","zvox13","c97113","bo01","TY1V01"]
[null,null,null,null,"zvox13_c97113_bo01_TY2V01","*=Contractinformatie!$L$71","","Zintuiglijk gehandicapten- Gecontracteerd- incl balans","zvox13","c97113","bo01","TY0V01"]
[null,null,null,null,"zvox13_c97113_bo52_TY0V01","*=Contractinformatie!$J$72","","Zintuiglijk gehandicapten- Niet gecontracteerd- incl balans","zvox13","c97113","bo52","TY0V01"]
[null,null,null,null,"zvox13_c97113_bo52_TY1V01","*=Contractinformatie!$K$72","","Zintuiglijk gehandicapten- Niet gecontracteerd- incl balans","zvox13","c97113","bo52","TY1V01"]
[null,null,null,null,"zvox13_c97113_bo52_TY2V01","*=Contractinformatie!$L$72","","Zintuiglijk gehandicapten- Niet gecontracteerd- incl balans","zvox13","c97113","bo52","TY0V01"]
[null,null,null,null,"zvrx06_a610_sknt_TY2V01","*='Specifieke informatie A'!$L$23","","C610 Overige kosten ziekenhuiszorg en curatieve zorg- SKION en NTS- geaccepteerd","zvrx06","a610","sknt","TY2V01"]
[null,null,null,null,"zvrx06_a612_e08_TY2V01","*='Specifieke informatie A'!$L$27","","C612 Kosten ADD-ON'S- dure intramurale geneesmiddelen- geaccepteerd","zvrx06","a612","e08","TY2V01"]
[null,null,null,null,"zvrx06_c6121_e08_TY0V01","*='Specifieke informatie A'!$K$31","","C612.1 Kosten ADD-ON'S- dure intramurale geneesmiddelen- incl balans","zvrx06","a612","e08","TY2V01"]
[null,null,null,null,"zvrx06_c610_sknt_TY0V01","*='Specifieke informatie A'!$K$23","","C610 Overige kosten ziekenhuiszorg en curatieve zorg- SKION en NTS- incl balans","zvrx06","c610","sknt","TY0V01"]
[null,null,null,null,"zvrx09_a240_r4290_TY1V01","*='Specifieke informatie A'!$L$101","","4290 Veiligheidsregio Zuid-Holland Zuid / Zwijndrecht- geaccepteerd","zvrx09","a240","r4290","TY1V01"]
[null,null,null,null,"zvrx09_a240_r4380_TY1V01","*='Specifieke informatie A'!$L$102","","4380 Regionale Ambulancevoorziening Flevoland / Lelystad- geaccepteerd","zvrx09","a240","r4380","TY1V01"]
[null,null,null,null,"zvrx09_a240_r4440_TY1V01","*='Specifieke informatie A'!$L$103","","4440 Stichting Regionale Ambulancevoorziening UMCG / Tynaarlo- geaccepteerd","zvrx09","a240","r4440","TY1V01"]
[null,null,null,null,"zvrx09_a240_r4590_TY1V01","*='Specifieke informatie A'!$L$104","","4590 Regionale Ambulancevoorziening IJsselland / Zwolle- geaccepteerd","zvrx09","a240","r4590","TY1V01"]
[null,null,null,null,"zvrx09_a240_r4650_TY1V01","*='Specifieke informatie A'!$L$105","","4650 Ambulance Oost / Hengelo (OV)- geaccepteerd","zvrx09","a240","r4650","TY1V01"]
[null,null,null,null,"zvrx09_a240_r4660_TY1V01","*='Specifieke informatie A'!$L$106","","4660 Regionale Ambulancevoorziening Brabant Noord / Den Bosch- geaccepteerd","zvrx09","a240","r4660","TY1V01"]
[null,null,null,null,"zvrx09_a240_r4690_TY1V01","*='Specifieke informatie A'!$L$107","","4690 Regionale Ambulancevoorziening Gelderland-Zuid / Nijmegen- geaccepteerd","zvrx09","a240","r4690","TY1V01"]
[null,null,null,null,"zvrx09_a240_r4700_TY1V01","*='Specifieke informatie A'!$L$108","","4700 Regionale Ambulancevoorziening Gelderland-Midden / Arnhem- geaccepteerd","zvrx09","a240","r4700","TY1V01"]
[null,null,null,null,"zvrx09_a240_r4730_TY1V01","*='Specifieke informatie A'!$L$109","","4730 Ambulance Amsterdam B.V. (regio Amsterdam Amstelland) / Amsterdam- geaccepteerd","zvrx09","a240","r4730","TY1V01"]
[null,null,null,null,"zvrx09_a240_r5000_TY1V01","*='Specifieke informatie A'!$L$110","","5000 Regionale Ambulancevoorziening Utrecht (RAVU)- geaccepteerd","zvrx09","a240","r5000","TY1V01"]
[null,null,null,null,"zvrx09_a240_r5100_TY1V01","*='Specifieke informatie A'!$L$111","","5100 Regionale Ambulancevoorziening Limburg-Noord / Venlo- geaccepteerd","zvrx09","a240","r5100","TY1V01"]
[null,null,null,null,"zvrx09_a240_r5200_TY1V01","*='Specifieke informatie A'!$L$112","","5200 Regionale Ambulancevoorziening Zuid-Limburg / Geleen- geaccepteerd","zvrx09","a240","r5200","TY1V01"]
[null,null,null,null,"zvrx09_a240_r5310_TY1V01","*='Specifieke informatie A'!$L$113","","5310 Veiligheidsregio Brabant-Zuidoost / Eindhoven- geaccepteerd","zvrx09","a240","r5310","TY1V01"]
[null,null,null,null,"zvrx09_a240_r5410_TY1V01","*='Specifieke informatie A'!$L$114","","5410 Regionale Ambulancevoorziening Midden-West Brabant / Den Bosch- geaccepteerd","zvrx09","a240","r5410","TY1V01"]
[null,null,null,null,"zvrx09_a240_r6320_TY1V01","*='Specifieke informatie A'!$L$115","","6320 Regionale Ambulancevoorziening groningen / Groningen- geaccepteerd","zvrx09","a240","r6320","TY1V01"]
[null,null,null,null,"zvrx09_a240_r6710_TY1V01","*='Specifieke informatie A'!$L$116","","6710 Regionale Ambulancevoorziening Hollands Midden / Leiden- geaccepteerd","zvrx09","a240","r6710","TY1V01"]
[null,null,null,null,"zvrx09_a240_r6900_TY1V01","*='Specifieke informatie A'!$L$117","","6900 Regionale Ambulancevoorziening Gooi en Vechtstreek / Bussum- geaccepteerd","zvrx09","a240","r6900","TY1V01"]
[null,null,null,null,"zvrx09_a240_r7004_TY1V01","*='Specifieke informatie A'!$L$118","","7004 Coöperatie AmbulanceZorg Rotterdam Rijnmond U.A. / Barendrecht- geaccepteerd","zvrx09","a240","r7004","TY1V01"]
[null,null,null,null,"zvrx09_a240_r7005_TY1V01","*='Specifieke informatie A'!$L$119","","7005 Witte Kruis Ambulance Services B.V. (regio Zeeland) / Alkmaar- geaccepteerd","zvrx09","a240","r7005","TY1V01"]
[null,null,null,null,"zvrx09_a240_r7006_TY1V01","*='Specifieke informatie A'!$L$120","","7006 Coöperatie Regionale Ambulancevoorziening Fryslan U.A. / Tynaarlo- geaccepteerd","zvrx09","a240","r7006","TY1V01"]
[null,null,null,null,"zvrx09_a240_r7007_TY1V01","*='Specifieke informatie A'!$L$121","","7007 Regionale Ambulancevoorziening Haaglanden / Den Haag- geaccepteerd","zvrx09","a240","r7007","TY1V01"]
[null,null,null,null,"zvrx09_a240_r7008_TY1V01","*='Specifieke informatie A'!$L$122","","7008 Witte Kruis Ambulance Services B.V. (regio Noordoost Gelderland) / Alkmaar- geaccepteerd","zvrx09","a240","r7008","TY1V01"]
[null,null,null,null,"zvrx09_a240_r7009_TY1V01","*='Specifieke informatie A'!$L$123","","7009 Vereniging Ambulancezorg U.A. (regio Noord-Holland Noord)- geaccepteerd","zvrx09","a240","r7009","TY1V01"]
[null,null,null,null,"zvrx09_a240_r7010_TY1V01","*='Specifieke informatie A'!$L$124","","7010 Ambulance Amsterdam B.V. (regio Zaanstreek-Waterland) / Amsterdam- geaccepteerd","zvrx09","a240","r7010","TY1V01"]
[null,null,null,null,"zvrx09_a240_r7011_TY1V01","*='Specifieke informatie A'!$L$125","","7011 Coöperatie Regionale Ambulancevoorziening Kennemerland / Haarlem- geaccepteerd","zvrx09","a240","r7011","TY1V01"]
[null,null,null,null,"zvrx15_c720v_m69_TY0V01","*='Specifieke informatie A'!$K$57","","C720 Buitenland, Via Verzekeraar- variabele zorgkosten- incl balans","zvrx15","c720v","m69","TY0V01"]
[null,null,null,null,"zvrx15_a720v_m69_TY2V01","*='Specifieke informatie A'!$L$57","","C720 Buitenland, Via Verzekeraar- variabele zorgkosten- geaccepteerd","zvrx15","a720v","m69","TY2V01"]
[null,null,null,null,"zvrx15_c720v_m51_TY2V01","*='Specifieke informatie A'!$K$61","","C720 Buitenland, Via Verzekeraar- geestelijke gezondheidszorgg- incl balans","zvrx15","a720v","m51","TY2V01"]
[null,null,null,null,"zvrx15_a720v_m61_TY2V01","*='Specifieke informatie A'!$L$58","","C720 Buitenland, Via Verzekeraar- verpleging en verzorging- geaccepteerd","zvrx15","a720v","m61","TY2V01"]
[null,null,null,null,"zvrx15_a720v_m51_TY2V01","*='Specifieke informatie A'!$L$59","","C720 Buitenland, Via Verzekeraar- geestelijke gezondheidszorgg- geaccepteerd","zvrx15","a720v","m51","TY2V01"]
[null,null,null,null,"zvrx15_a720v_m52_TY2V01","*='Specifieke informatie A'!$L$60","","C720 Buitenland, Via Verzekeraar- langdurige geestelijke gezonheidszorg- geaccepteerd","zvrx15","a720v","m52","TY2V01"]
[null,null,null,null,"zvrx15_a720o_i01_TY2V01","*='Specifieke informatie A'!$L$66","","C721 buitenland, opgave ZIN- verordening of verdrag, via internationaal verbindingsorgaan- geaccepteerd","zvrx15","a720o","i01","TY2V01"]
[null,null,null,null,"zvrx15_a720o_i02_TY2V01","*='Specifieke informatie A'!$L$67","","C721 buitenland, opgave ZIN- Zvw verzekerden die wonen in het buitenland- geaccepteerd","zvrx15","a720o","i02","TY2V01"]
[null,null,null,null,"zvrx15_a720o_i11_TY2V01","*='Specifieke informatie A'!$L$68","","C721 buitenland, opgave ZIN- Zvw verzekerden die wonen in Nederland- geaccepteerd","zvrx15","a720o","i11","TY2V01"]
[null,null,null,null,"zvrx15_c720o_i01_TY0V01","*='Specifieke informatie A'!$K$66","","C721 buitenland, opgave ZIN- verordening of verdrag, via internationaal verbindingsorgaan- incl balans","zvrx15","c720o","i01","TY0V01"]
[null,null,null,null,"zvrx15_c720o_i02_TY0V01","*='Specifieke informatie A'!$K$67","","C721 buitenland, opgave ZIN- Zvw verzekerden die wonen in het buitenland- incl balans","zvrx15","c720o","i02","TY0V01"]
[null,null,null,null,"zvrx15_c720o_i11_TY0V01","*='Specifieke informatie A'!$K$68","","C721 buitenland, opgave ZIN- Zvw verzekerden die wonen in Nederland- incl balans","zvrx15","c720o","i11","TY0V01"]
[null,null,null,null,"zvrx16_a730_q01_TY2V01","*='Specifieke informatie A'!$L$77","","C730 Kwaliteitsgelden- KSK Medisch Specialisten- geaccepteerd","zvrx16","a730","q01","TY2V01"]
[null,null,null,null,"zvrx16_a730_q02_TY2V01","*='Specifieke informatie A'!$L$75","","C730 Kwaliteitsgelden- KSK GGZ- geaccepteerd","zvrx16","a730","q02","TY2V01"]
[null,null,null,null,"zvrx16_a730_q11_TY2V01","*='Specifieke informatie A'!$L$76","","C730 Kwaliteitsgelden- Kosten regionale ondersteuning en eerstelijnszorg- geaccepteerd","zvrx16","a730","q11","TY2V01"]
[null,null,null,null,"zvrx16_a730_q12_TY2V01","*='Specifieke informatie A'!$L$79","","C730 Kwaliteitsgelden- Projectgelden kwaliteitsbeleid eerstelijnszorg- geaccepteerd","zvrx16","a730","q12","TY2V01"]
[null,null,null,null,"zvrx16_a730_q41_TY2V01","*='Specifieke informatie A'!$L$78","","C730 Kwaliteitsgelden- KSK Patiënten Consumenten- geaccepteerd","zvrx16","a730","q41","TY2V01"]
[null,null,null,null,"zvrx16_c730_q01_TY0V01","*='Specifieke informatie A'!$K$77","","C730 Kwaliteitsgelden- KSK Medisch Specialisten- incl balans","zvrx16","c730","q01","TY0V01"]
[null,null,null,null,"zvrx16_c730_q02_TY0V01","*='Specifieke informatie A'!$K$75","","C730 Kwaliteitsgelden- KSK GGZ- incl balans","zvrx16","c730","q02","TY0V01"]
[null,null,null,null,"zvrx16_c730_q03_TY0V01","*='Specifieke informatie A'!$K$80","","C730 Kwaliteitsgelden- KSK wijkverpleging- incl balans","zvrx16","c730","q03","TY0V01"]
[null,null,null,null,"zvrx16_c730_q11_TY0V01","*='Specifieke informatie A'!$K$76","","C730 Kwaliteitsgelden- Kosten regionale ondersteuning en eerstelijnszorg- incl balans","zvrx16","c730","q11","TY0V01"]
[null,null,null,null,"zvrx16_c730_q12_TY0V01","*='Specifieke informatie A'!$K$79","","C730 Kwaliteitsgelden- Projectgelden kwaliteitsbeleid eerstelijnszorg- incl balans","zvrx16","c730","q12","TY0V01"]
[null,null,null,null,"zvrx16_c730_q41_TY0V01","*='Specifieke informatie A'!$K$78","","C730 Kwaliteitsgelden- KSK Patiënten Consumenten- incl balans","zvrx16","c730","q41","TY0V01"]
[null,null,null,null,"zvrx19_s999_inbw_TY0V01","*='Specifieke informatie A'!$L$131","","C999 rekenpremies gedetineerden","zvrx19","s999","inbw","TY0V01"]
[null,null,null,null,"zvrxwnb_n981_premnd_TY0V01","*='Specifieke informatie A'!$G$146",null,"Wanbetalersbijdrage- premiemaanden- aantal"]
[null,null,null,null,"zvrxwnb_n981_premnd_TY1V01","*='Specifieke informatie A'!$H$146",null,"Wanbetalersbijdrage- premiemaanden- aantal"]
[null,null,null,null,"zvrxwnb_n981_premnd_TY2V01","*='Specifieke informatie A'!$J$146",null,"Wanbetalersbijdrage- premiemaanden- aantal"]
[null,null,null,null,"zvrxwnb_e981_premnd_TY0V01","*='Specifieke informatie A'!$G$149",null,"Wanbetalersbijdrage- premiemaanden- premie"]
[null,null,null,null,"zvrxwnb_e981_premnd_TY1V01","*='Specifieke informatie A'!$H$149",null,"Wanbetalersbijdrage- premiemaanden- premie"]
[null,null,null,null,"zvrxwnb_e981_premnd_TY2V01","*='Specifieke informatie A'!$J$149",null,"Wanbetalersbijdrage- premiemaanden- premie"]
[null,null,null,null,"zvrxwnb_e981_premvrs_TY0V01","*='Specifieke informatie A'!$L$152",null,"Wanbetalersbijdrage- Ontvangen voorschot jaar T"]
[null,null,null,null,"zvrxwnb_e981_premcak_TY0V01","*='Specifieke informatie A'!$L$154",null,"Wanbetalersbijdrage- nog te ontvangen te verreken met CAK"]
[null,null,null,null,"zvrxsg_a978_dl101_TY2V01","*='Specifieke informatie A'!$L$14","","Kosten naar deelbijdrage- Variabele zorgkosten- geaccepteerd","zvrxsg","a978","dl101","TY2V01"]
[null,null,null,null,"zvrxsg_a978_dl102_TY2V01","*='Specifieke informatie A'!$L$15","","Kosten naar deelbijdrage- Vaste zorgkosten- geaccepteerd","zvrxsg","a978","dl102","TY2V01"]
[null,null,null,null,"zvrxsg_a978_dl152_TY2V01","*='Specifieke informatie A'!$L$16","","Kosten naar deelbijdrage- Geneeskundige GGZ- geaccepteerd","zvrxsg","a978","dl152","TY2V01"]
[null,null,null,null,"zvrxsg_a978_dl153_TY2V01","*='Specifieke informatie A'!$L$17","","Kosten naar deelbijdrage- langdurige geestelijke gezondheidszorg (LGGZ- geaccepteerd","zvrxsg","a978","dl153","TY2V01"]
[null,null,null,null,"zvrxsg_c978_dl101_TY0V01","*='Specifieke informatie A'!$K$14","","Kosten naar deelbijdrage- Variabele zorgkosten- incl balans","zvrxsg","c978","dl101","TY0V01"]
[null,null,null,null,"zvrxsg_c978_dl102_TY0V01","*='Specifieke informatie A'!$K$15","","Kosten naar deelbijdrage- Vaste zorgkosten- incl balans","zvrxsg","c978","dl102","TY0V01"]
[null,null,null,null,"zvrxsg_c978_dl152_TY0V01","*='Specifieke informatie A'!$K$16","","Kosten naar deelbijdrage- Geneeskundige GGZ- incl balans","zvrxsg","c978","dl152","TY0V01"]
[null,null,null,null,"zvsx01k_a503_ma_TY0V01","*='Specifieke informatie C'!$K$13","","C503 Huisartsen zorg- achterstandsfonds- geaccepteerd","zvsx01k","a503","ma","TY0V01"]
[null,null,null,null,"zvsx01k_a503_ma_TY1V01","*='Specifieke informatie C'!$L$13","","C503 Huisartsen zorg- achterstandsfonds- geaccepteerd","zvsx01k","a503","ma","TY1V01"]
[null,null,null,null,"zvsx01k_a503_mi_TY0V01","*='Specifieke informatie C'!$K$14","","C503 Huisartsen zorg- modernisering en innovatie- geaccepteerd","zvsx01k","a503","mi","TY0V01"]
[null,null,null,null,"zvsx01k_a503_mi_TY1V01","*='Specifieke informatie C'!$L$14","","C503 Huisartsen zorg- modernisering en innovatie- geaccepteerd","zvsx01k","a503","mi","TY1V01"]
[null,null,null,null,"zvsx01k_a503_o_TY0V01","*='Specifieke informatie C'!$K$15","","C503 Huisartsen zorg- Overige kosten- geaccepteerd","zvsx01k","a503","o","TY0V01"]
[null,null,null,null,"zvsx01k_a503_o_TY1V01","*='Specifieke informatie C'!$L$15","","C503 Huisartsen zorg- Overige kosten- geaccepteerd","zvsx01k","a503","o","TY1V01"]
[null,null,null,null,"zvsx01k_a506_ck05_TY0V01","*='Specifieke informatie C'!$K$20","","C506 Huisartsen consult- consulten - korter dan 5 m- geaccepteerd","zvsx01k","a506","ck05","TY0V01"]
[null,null,null,null,"zvsx01k_a506_ck05_TY1V01","*='Specifieke informatie C'!$L$20","","C506 Huisartsen consult- consulten - korter dan 5 m- geaccepteerd","zvsx01k","a506","ck05","TY0V01"]
[null,null,null,null,"zvsx01k_a506_c520_TY0V01","*='Specifieke informatie C'!$K$21","","C506 Huisartsen consult- consulten - van 5 tot 20 m- geaccepteerd","zvsx01k","a506","c520","TY0V01"]
[null,null,null,null,"zvsx01k_a506_c520_TY1V01","*='Specifieke informatie C'!$L$21","","C506 Huisartsen consult- consulten - van 5 tot 20 m- geaccepteerd","zvsx01k","a506","c520","TY0V01"]
[null,null,null,null,"zvsx01k_a506_cl20_TY0V01","*='Specifieke informatie C'!$K$22","","C506 Huisartsen consult- consulten - 20 m en langer- geaccepteerd","zvsx01k","a506","cl20","TY0V01"]
[null,null,null,null,"zvsx01k_a506_cl20_TY1V01","*='Specifieke informatie C'!$L$22","","C506 Huisartsen consult- consulten - 20 m en langer- geaccepteerd","zvsx01k","a506","cl20","TY0V01"]
[null,null,null,null,"zvsx01k_a506_ei_TY0V01","*='Specifieke informatie C'!$K$28","","C506 Huisartsen consult- ELV en Intensieve- geaccepteerd","zvsx01k","a506","ei","TY0V01"]
[null,null,null,null,"zvsx01k_a506_ei_TY1V01","*='Specifieke informatie C'!$L$28","","C506 Huisartsen consult- ELV en Intensieve- geaccepteerd","zvsx01k","a506","ei","TY1V01"]
[null,null,null,null,"zvsx01k_a506_pggz_TY0V01","*='Specifieke informatie C'!$K$27","","C506 Huisartsen consult- POH GGZ- geaccepteerd","zvsx01k","a506","pggz","TY0V01"]
[null,null,null,null,"zvsx01k_a506_pggz_TY1V01","*='Specifieke informatie C'!$L$27","","C506 Huisartsen consult- POH GGZ- geaccepteerd","zvsx01k","a506","pggz","TY1V01"]
[null,null,null,null,"zvsx01k_a506_vk20_TY0V01","*='Specifieke informatie C'!$K$23","","C506 Huisartsen consult- visite minder of gelijk aan 20 m- geaccepteerd","zvsx01k","a506","vk20","TY0V01"]
[null,null,null,null,"zvsx01k_a506_vk20_TY1V01","*='Specifieke informatie C'!$L$23","","C506 Huisartsen consult- visite minder of gelijk aan 20 m- geaccepteerd","zvsx01k","a506","vk20","TY1V01"]
[null,null,null,null,"zvsx01k_a506_vl20_TY0V01","*='Specifieke informatie C'!$K$24","","C506 Huisartsen consult- visite langer dan 20 m- geaccepteerd","zvsx01k","a506","vl20","TY0V01"]
[null,null,null,null,"zvsx01k_a506_vl20_TY1V01","*='Specifieke informatie C'!$L$24","","C506 Huisartsen consult- visite langer dan 20 m- geaccepteerd","zvsx01k","a506","vl20","TY1V01"]
[null,null,null,null,"zvsx01k_a506_tlf_TY1V01","*='Specifieke informatie C'!$L$25","","C506 Huisartsen consult- Overige kosten- geaccepteerd","zvsx01k","a506","tlf","TY1V01"]
[null,null,null,null,"zvsx01k_a506_eml_TY1V01","*='Specifieke informatie C'!$L$26","","C506 Huisartsen consult- e-mailconsult- geaccepteerd","zvsx01k","a506","eml","TY1V01"]
[null,null,null,null,"zvsx01k_a507_pggz_TY0V01","*='Specifieke informatie C'!$K$33","","C507 Huisartsen overig- Module POH GGZ- geaccepteerd","zvsx01k","a507","pggz","TY0V01"]
[null,null,null,null,"zvsx01k_a507_pggz_TY1V01","*='Specifieke informatie C'!$L$33","","C507 Huisartsen overig- Module POH GGZ- geaccepteerd","zvsx01k","a507","pggz","TY1V01"]
[null,null,null,null,"zvsx01k_a507_psnt_TY0V01","*='Specifieke informatie C'!$K$36","","C507 Huisartsen overig- Passantentarieven- geaccepteerd","zvsx01k","a507","psnt","TY0V01"]
[null,null,null,null,"zvsx01k_a507_psnt_TY1V01","*='Specifieke informatie C'!$L$36","","C507 Huisartsen overig- Passantentarieven- geaccepteerd","zvsx01k","a507","psnt","TY1V01"]
[null,null,null,null,"zvsx01k_a507_s1vr_TY0V01","*='Specifieke informatie C'!$K$34","","C507 Huisartsen overig- S1 Verrichtingen- geaccepteerd","zvsx01k","a507","s1vr","TY0V01"]
[null,null,null,null,"zvsx01k_a507_s1vr_TY1V01","*='Specifieke informatie C'!$L$34","","C507 Huisartsen overig- S1 Verrichtingen- geaccepteerd","zvsx01k","a507","s1vr","TY1V01"]
[null,null,null,null,"zvsx01k_a507_vacc_TY0V01","*='Specifieke informatie C'!$K$35","","C507 Huisartsen overig- Vaccinaties- geaccepteerd","zvsx01k","a507","vacc","TY0V01"]
[null,null,null,null,"zvsx01k_a507_vacc_TY1V01","*='Specifieke informatie C'!$L$35","","C507 Huisartsen overig- Vaccinaties- geaccepteerd","zvsx01k","a507","vacc","TY1V01"]
[null,null,null,null,"zvsx01k_a507_vrlk_TY0V01","*='Specifieke informatie C'!$K$37","","C507 Huisartsen overig- verloskundige zorg- geaccepteerd","zvsx01k","a507","vrlk","TY0V01"]
[null,null,null,null,"zvsx01k_a510_astm_TY0V01","*='Specifieke informatie C'!$K$43","","C510 MDZ- COPD (vergoedingscomponent) en astma- geaccepteerd","zvsx01k","a510","astm","TY0V01"]
[null,null,null,null,"zvsx01k_a510_astm_TY1V01","*='Specifieke informatie C'!$L$43","","C510 MDZ- COPD (vergoedingscomponent) en astma- geaccepteerd","zvsx01k","a510","astm","TY1V01"]
[null,null,null,null,"zvsx01k_a510_dbca_TY0V01","*='Specifieke informatie C'!$K$42","","C510 MDZ- Diabetes type 2 en Cardiovasculair- geaccepteerd","zvsx01k","a510","dbca","TY0V01"]
[null,null,null,null,"zvsx01k_a510_dbca_TY1V01","*='Specifieke informatie C'!$L$42","","C510 MDZ- Diabetes type 2 en Cardiovasculair- geaccepteerd","zvsx01k","a510","dbca","TY1V01"]
[null,null,null,null,"zvsx01k_a510_infr_TY0V01","*='Specifieke informatie C'!$K$44","","C510 MDZ- Ondersteuning en infrastructuur- geaccepteerd","zvsx01k","a510","infr","TY0V01"]
[null,null,null,null,"zvsx01k_a510_infr_TY1V01","*='Specifieke informatie C'!$L$44","","C510 MDZ- Ondersteuning en infrastructuur- geaccepteerd","zvsx01k","a510","infr","TY0V01"]
[null,null,null,null,"zvsx01k_a510_srk_TY1V01","*='Specifieke informatie C'!$K$45","","C510 MDZ- stoppen met roken- geaccepteerd","zvsx01k","a510","srk","TY0V01"]
[null,null,null,null,"zvsx01k_a510_srk_TY0V01","*='Specifieke informatie C'!$L$45","","C510 MDZ- stoppen met roken- geaccepteerd","zvsx01k","a510","srk","TY0V01"]
[null,null,null,null,"zvsx01k_a515_rslt_TY0V01","*='Specifieke informatie C'!$K$56","","C515 Resultaatbeloning en zorgvernieuwing huisartsen- resultaatbeloning- geaccepteerd","zvsx01k","a515","rslt","TY0V01"]
[null,null,null,null,"zvsx01k_a515_rslt_TY1V01","*='Specifieke informatie C'!$L$56","","C515 Resultaatbeloning en zorgvernieuwing huisartsen- resultaatbeloning- geaccepteerd","zvsx01k","a515","rslt","TY1V01"]
[null,null,null,null,"zvsx01k_a515_vrnw_TY0V01","*='Specifieke informatie C'!$K$57","","C515 Resultaatbeloning en zorgvernieuwing huisartsen- zorgvernieuwing- geaccepteerd","zvsx01k","a515","vrnw","TY0V01"]
[null,null,null,null,"zvsx01k_a515_vrnw_TY1V01","*='Specifieke informatie C'!$L$57","","C515 Resultaatbeloning en zorgvernieuwing huisartsen- zorgvernieuwing- geaccepteerd","zvsx01k","a515","vrnw","TY1V01"]
[null,null,null,null,"zvsx01k_a516_rslt_TY0V01","*='Specifieke informatie C'!$K$62","","C516 Resultaatbeloning en zorgvernieuwing MDZ- resultaatbeloning- geaccepteerd","zvsx01k","a516","rslt","TY0V01"]
[null,null,null,null,"zvsx01k_a516_rslt_TY1V01","*='Specifieke informatie C'!$L$62","","C516 Resultaatbeloning en zorgvernieuwing MDZ- resultaatbeloning- geaccepteerd","zvsx01k","a516","rslt","TY1V01"]
[null,null,null,null,"zvsx01k_a516_vrnw_TY0V01","*='Specifieke informatie C'!$K$63","","C516 Resultaatbeloning en zorgvernieuwing MDZ- zorgvernieuwing- geaccepteerd","zvsx01k","a516","vrnw","TY0V01"]
[null,null,null,null,"zvsx01k_a516_vrnw_TY1V01","*='Specifieke informatie C'!$L$63","","C516 Resultaatbeloning en zorgvernieuwing MDZ- zorgvernieuwing- geaccepteerd","zvsx01k","a516","vrnw","TY1V01"]
[null,null,null,null,"zvsx02k_a520_genmidd_TY0V01","*='Specifieke informatie C'!$L$70","","C520 Farmaceutische hulp- Kosten geneesmiddelen- geaccepteerd","zvsx02k","a520",null,"TY0V01"]
[null,null,null,null,"zvsx02k_a520_trhndst_TY0V01","*='Specifieke informatie C'!$L$71","","C520 Farmaceutische hulp- Kosten i.v.m terhandstelling- geaccepteerd","zvsx02k","a520",null,"TY0V01"]
[null,null,null,null,"zvsx02k_a520_ovrigzp_TY0V01","*='Specifieke informatie C'!$L$72","","C520 Farmaceutische hulp- Kosten overige zorgprestaties- geaccepteerd","zvsx02k","a520",null,"TY0V01"]
[null,null,null,null,"zvsx02i_n520_genmidd_TY0V01","*='Specifieke informatie C'!$L$77","","C520 Farmaceutische hulp- Prestaties geneesmiddel-  (n) geteld","zvsx02i","n520",null,"TY0V01"]
[null,null,null,null,"zvsx02i_n520_ovrigzp_TY0V01","*='Specifieke informatie C'!$L$78","","C520 Farmaceutische hulp-  Overige zorgprestaties- (n) geteld","zvsx02i","n520",null,"TY0V01"]
[null,null,null,null,"zvsx03i_n530_jplg_TY0V01","*='Specifieke informatie C'!$K$103","","C530 Verpleging en verzorging- verpleging- (n) geteld","zvsx03i","n530","jplg","TY0V01"]
[null,null,null,null,"zvsx03i_n530_jplg_TY1V01","*='Specifieke informatie C'!$L$103","","C530 Verpleging en verzorging- verpleging- (n) geteld","zvsx03i","n530","jplg","TY1V01"]
[null,null,null,null,"zvsx03i_n530_vplg_TY0V01","*='Specifieke informatie C'!$K$100","","C530 Verpleging en verzorging- verpleging- (n) geteld","zvsx03i","n530","vplg","TY0V01"]
[null,null,null,null,"zvsx03i_n530_vplg_TY1V01","*='Specifieke informatie C'!$L$100","","C530 Verpleging en verzorging- verpleging- (n) geteld","zvsx03i","n530","vplg","TY1V01"]
[null,null,null,null,"zvsx03i_n530_vzrg_TY0V01","*='Specifieke informatie C'!$K$101","","C530 Verpleging en verzorging- verzorging- (n) geteld","zvsx03i","n530","vzrg","TY0V01"]
[null,null,null,null,"zvsx03i_n530_vzrg_TY1V01","*='Specifieke informatie C'!$L$101","","C530 Verpleging en verzorging- verzorging- (n) geteld","zvsx03i","n530","vzrg","TY1V01"]
[null,null,null,null,"zvsx03i_n530_jidg_TY0V01","*='Specifieke informatie C'!$K$102",null,"C530 Verpleging en verzorging- verpleegkundige dagopvang en verblijf bij Intensieve kindzorg- (n) geteld","zvsx03i","n530","jidg","TY0V01"]
[null,null,null,null,"zvsx03i_n530_jidg_TY1V01","*='Specifieke informatie C'!$L$102",null,"C530 Verpleging en verzorging- verpleegkundige dagopvang en verblijf bij Intensieve kindzorg- (n) geteld","zvsx03i","n530","jidg","TY1V01"]
[null,null,null,null,"zvsx03k_a530_jidg_TY0V01","*='Specifieke informatie C'!$K$94","","C530 Verpleging en verzorging- verpleging- geaccepteerd","zvsx03k","a530","jidg","TY0V01"]
[null,null,null,null,"zvsx03k_a530_jidg_TY1V01","*='Specifieke informatie C'!$L$94","","C530 Verpleging en verzorging- verpleging- geaccepteerd","zvsx03k","a530","jidg","TY1V01"]
[null,null,null,null,"zvsx03k_a530_odmnt_TY0V01","*='Specifieke informatie C'!$K$93","","C530 Verpleging en verzorging- Overig: Wijkgericht, Experimenten: regelarm,beschikbaarheidsfunctie,kentenzorg- geaccepteerd","zvsx03k","a530","odmnt","TY0V01"]
[null,null,null,null,"zvsx03k_a530_odmnt_TY1V01","*='Specifieke informatie C'!$L$93","","C530 Verpleging en verzorging- Overig: Wijkgericht, Experimenten: regelarm,beschikbaarheidsfunctie,kentenzorg- geaccepteerd","zvsx03k","a530","odmnt","TY1V01"]
[null,null,null,null,"zvsx03k_a530_opmte_TY0V01","*='Specifieke informatie C'!$K$92","","C530 Verpleging en verzorging- Overig: Prestaties AIV, Beloning op maat, Experiment VenV- geaccepteerd","zvsx03k","a530","opmte","TY0V01"]
[null,null,null,null,"zvsx03k_a530_opmte_TY1V01","*='Specifieke informatie C'!$L$92","","C530 Verpleging en verzorging- Overig: Prestaties AIV, Beloning op maat, Experiment VenV- geaccepteerd","zvsx03k","a530","opmte","TY1V01"]
[null,null,null,null,"zvsx03k_a530_pgb_TY0V01","*='Specifieke informatie C'!$K$91","","C530 Verpleging en verzorging- PGB- geaccepteerd","zvsx03k","a530","pgb","TY0V01"]
[null,null,null,null,"zvsx03k_a530_pgb_TY1V01","*='Specifieke informatie C'!$L$91","","C530 Verpleging en verzorging- PGB- geaccepteerd","zvsx03k","a530","pgb","TY1V01"]
[null,null,null,null,"zvsx03k_a530_vplg_TY0V01","*='Specifieke informatie C'!$K$89","","C530 Verpleging en verzorging- verpleging- geaccepteerd","zvsx03k","a530","vplg","TY0V01"]
[null,null,null,null,"zvsx03k_a530_vplg_TY1V01","*='Specifieke informatie C'!$L$89","","C530 Verpleging en verzorging- verpleging- geaccepteerd","zvsx03k","a530","vplg","TY1V01"]
[null,null,null,null,"zvsx03k_a530_vzrg_TY0V01","*='Specifieke informatie C'!$K$90","","C530 Verpleging en verzorging- verzorging- geaccepteerd","zvsx03k","a530","vzrg","TY0V01"]
[null,null,null,null,"zvsx03k_a530_vzrg_TY1V01","*='Specifieke informatie C'!$L$90","","C530 Verpleging en verzorging- verzorging- geaccepteerd","zvsx03k","a530","vzrg","TY1V01"]
[null,null,null,null,"zvsx03k_a530_jplg_TY0V01","*='Specifieke informatie C'!$K$95","","C530 Verpleging en verzorging- verpleging en verzorging voor kinderen tot 18 jaar- geaccepteerd","zvsx03k","a530","jplg","TY0V01"]
[null,null,null,null,"zvsx03k_a530_jplg_TY1V01","*='Specifieke informatie C'!$L$95","","C530 Verpleging en verzorging- verpleging en verzorging voor kinderen tot 18 jaar- geaccepteerd","zvsx03k","a530","jplg","TY1V01"]
[null,null,null,null,"zvsx04i_n5601_u02_TY0V01","*='Specifieke informatie C'!$K$119","","C560.1 Mondzorg volwassen verzekerden- Implantaten- (n) geteld","zvsx04i","n5601","u02","TY0V01"]
[null,null,null,null,"zvsx04i_n5601_u02_TY1V01","*='Specifieke informatie C'!$L$119","","C560.1 Mondzorg volwassen verzekerden- Implantaten- (n) geteld","zvsx04i","n5601","u02","TY1V01"]
[null,null,null,null,"zvsx04i_n5602_c11_TY0V01","*='Specifieke informatie C'!$K$152","","C560.2 Mondzorg voor jeugdige verzekerden- Periodieke controle- (n) geteld","zvsx04i","n5602","c11","TY0V01"]
[null,null,null,null,"zvsx04i_n5602_c11_TY1V01","*='Specifieke informatie C'!$L$152","","C560.2 Mondzorg voor jeugdige verzekerden- Periodieke controle- (n) geteld","zvsx04i","n5602","c11","TY1V01"]
[null,null,null,null,"zvsx04i_n5602_m01_TY0V01","*='Specifieke informatie C'!$K$153","","C560.2 Mondzorg voor jeugdige verzekerden- voorlichting en/of instructie- (n) geteld","zvsx04i","n5602","m01","TY0V01"]
[null,null,null,null,"zvsx04i_n5602_m01_TY1V01","*='Specifieke informatie C'!$L$153","","C560.2 Mondzorg voor jeugdige verzekerden- voorlichting en/of instructie- (n) geteld","zvsx04i","n5602","m01","TY1V01"]
[null,null,null,null,"zvsx04i_n5602_m02_TY0V01","*='Specifieke informatie C'!$K$154","","C560.2 Mondzorg voor jeugdige verzekerden- evaluatie van preventie- (n) geteld","zvsx04i","n5602","m02","TY0V01"]
[null,null,null,null,"zvsx04i_n5602_m02_TY1V01","*='Specifieke informatie C'!$L$154","","C560.2 Mondzorg voor jeugdige verzekerden- evaluatie van preventie- (n) geteld","zvsx04i","n5602","m02","TY1V01"]
[null,null,null,null,"zvsx04i_n561_u22_TY0V01","*='Specifieke informatie C'!$K$167","","C561 Gebitsprothesen, details- Volledige gebitsprothesen voor onder- of bovenkaak- (n) geteld","zvsx04i","n561","u22","TY0V01"]
[null,null,null,null,"zvsx04i_n561_u22_TY1V01","*='Specifieke informatie C'!$L$167","","C561 Gebitsprothesen, details- Volledige gebitsprothesen voor onder- of bovenkaak- (n) geteld","zvsx04i","n561","u22","TY1V01"]
[null,null,null,null,"zvsx04i_n561_u23_TY0V01","*='Specifieke informatie C'!$K$166","","C561 Gebitsprothesen, details- Volledige gebitsprothesen voor onder- en bovenkaak- (n) geteld","zvsx04i","n561","u23","TY0V01"]
[null,null,null,null,"zvsx04i_n561_u23_TY1V01","*='Specifieke informatie C'!$L$166","","C561 Gebitsprothesen, details- Volledige gebitsprothesen voor onder- en bovenkaak- (n) geteld","zvsx04i","n561","u23","TY1V01"]
[null,null,null,null,"zvsx04i_n561_u31_TY0V01","*='Specifieke informatie C'!$K$169","","C561 Gebitsprothesen, details- implantaat gedragen gebitsprothesen onder- of bovenkaak- (n) geteld","zvsx04i","n561","u31","TY0V01"]
[null,null,null,null,"zvsx04i_n561_u31_TY1V01","*='Specifieke informatie C'!$L$169","","C561 Gebitsprothesen, details- implantaat gedragen gebitsprothesen onder- of bovenkaak- (n) geteld","zvsx04i","n561","u31","TY1V01"]
[null,null,null,null,"zvsx04i_n561_u32_TY0V01","*='Specifieke informatie C'!$K$168","","C561 Gebitsprothesen, details- Volledige implantaat gedragen gebitsprothesen onder- en bovenkaak- (n) geteld","zvsx04i","n561","u32","TY0V01"]
[null,null,null,null,"zvsx04i_n561_u32_TY1V01","*='Specifieke informatie C'!$L$168","","C561 Gebitsprothesen, details- Volledige implantaat gedragen gebitsprothesen onder- en bovenkaak- (n) geteld","zvsx04i","n561","u32","TY1V01"]
[null,null,null,null,"zvsx04k_a5601_o01_TY0V01","*='Specifieke informatie C'!$K$114","","C560.1 Mondzorg volwassen verzekerden- Orthodontie- geaccepteerd","zvsx04k","a5601","o01","TY0V01"]
[null,null,null,null,"zvsx04k_a5601_o01_TY1V01","*='Specifieke informatie C'!$L$114","","C560.1 Mondzorg volwassen verzekerden- Orthodontie- geaccepteerd","zvsx04k","a5601","o01","TY1V01"]
[null,null,null,null,"zvsx04k_a5601_o12_TY0V01","*='Specifieke informatie C'!$K$113","","C560.1 Mondzorg volwassen verzekerden- sub b en c)- geaccepteerd","zvsx04k","a5601","o12","TY0V01"]
[null,null,null,null,"zvsx04k_a5601_o12_TY1V01","*='Specifieke informatie C'!$L$113","","C560.1 Mondzorg volwassen verzekerden- sub b en c)- geaccepteerd","zvsx04k","a5601","o12","TY1V01"]
[null,null,null,null,"zvsx04k_a5601_o13_TY0V01","*='Specifieke informatie C'!$K$112","","C560.1 Mondzorg volwassen verzekerden- sub a) - Overig- geaccepteerd","zvsx04k","a5601","o13","TY0V01"]
[null,null,null,null,"zvsx04k_a5601_o13_TY1V01","*='Specifieke informatie C'!$L$112","","C560.1 Mondzorg volwassen verzekerden- sub a) - Overig- geaccepteerd","zvsx04k","a5601","o13","TY1V01"]
[null,null,null,null,"zvsx04k_a5601_u02_TY0V01","*='Specifieke informatie C'!$K$111","","C560.1 Mondzorg volwassen verzekerden- Implantaten- geaccepteerd","zvsx04k","a5601","u02","TY0V01"]
[null,null,null,null,"zvsx04k_a5601_u02_TY1V01","*='Specifieke informatie C'!$L$111","","C560.1 Mondzorg volwassen verzekerden- Implantaten- geaccepteerd","zvsx04k","a5601","u02","TY1V01"]
[null,null,null,null,"zvsx04k_a5601_x01_TY0V01","*='Specifieke informatie C'!$K$110","","C560.1 Mondzorg volwassen verzekerden- X Röntgendiagnostiek- geaccepteerd","zvsx04k","a5601","x01","TY0V01"]
[null,null,null,null,"zvsx04k_a5601_x01_TY1V01","*='Specifieke informatie C'!$L$110","","C560.1 Mondzorg volwassen verzekerden- X Röntgendiagnostiek- geaccepteerd","zvsx04k","a5601","x01","TY1V01"]
[null,null,null,null,"zvsx04k_a5602_c01_TY0V01","*='Specifieke informatie C'!$K$133","","C560.2 Mondzorg voor jeugdige verzekerden- Consultatie en diagnostiek- geaccepteerd","zvsx04k","a5602","c01","TY0V01"]
[null,null,null,null,"zvsx04k_a5602_c01_TY1V01","*='Specifieke informatie C'!$L$133","","C560.2 Mondzorg voor jeugdige verzekerden- Consultatie en diagnostiek- geaccepteerd","zvsx04k","a5602","c01","TY1V01"]
[null,null,null,null,"zvsx04k_a5602_e01_TY0V01","*='Specifieke informatie C'!$K$143","","C560.2 Mondzorg voor jeugdige verzekerden- Tandvleesbehandelingen- geaccepteerd","zvsx04k","a5602","e01","TY0V01"]
[null,null,null,null,"zvsx04k_a5602_e01_TY1V01","*='Specifieke informatie C'!$L$143","","C560.2 Mondzorg voor jeugdige verzekerden- Tandvleesbehandelingen- geaccepteerd","zvsx04k","a5602","e01","TY1V01"]
[null,null,null,null,"zvsx04k_a5602_e02_TY0V01","*='Specifieke informatie C'!$K$138","","C560.2 Mondzorg voor jeugdige verzekerden- Wortelkanaalbehandelingen- geaccepteerd","zvsx04k","a5602","e02","TY0V01"]
[null,null,null,null,"zvsx04k_a5602_e02_TY1V01","*='Specifieke informatie C'!$L$138","","C560.2 Mondzorg voor jeugdige verzekerden- Wortelkanaalbehandelingen- geaccepteerd","zvsx04k","a5602","e02","TY1V01"]
[null,null,null,null,"zvsx04k_a5602_e03_TY0V01","*='Specifieke informatie C'!$K$140","","C560.2 Mondzorg voor jeugdige verzekerden- Kaakgewrichtsbehandelingen- geaccepteerd","zvsx04k","a5602","e03","TY0V01"]
[null,null,null,null,"zvsx04k_a5602_e03_TY1V01","*='Specifieke informatie C'!$L$140","","C560.2 Mondzorg voor jeugdige verzekerden- Kaakgewrichtsbehandelingen- geaccepteerd","zvsx04k","a5602","e03","TY1V01"]
[null,null,null,null,"zvsx04k_a5602_m11_TY0V01","*='Specifieke informatie C'!$K$135","","C560.2 Mondzorg voor jeugdige verzekerden- Preventieve mondzorg- geaccepteerd","zvsx04k","a5602","m11","TY0V01"]
[null,null,null,null,"zvsx04k_a5602_m11_TY1V01","*='Specifieke informatie C'!$L$135","","C560.2 Mondzorg voor jeugdige verzekerden- Preventieve mondzorg- geaccepteerd","zvsx04k","a5602","m11","TY1V01"]
[null,null,null,null,"zvsx04k_a5602_o01_TY0V01","*='Specifieke informatie C'!$K$147","","C560.2 Mondzorg voor jeugdige verzekerden- Orthodontie- geaccepteerd","zvsx04k","a5602","o01","TY0V01"]
[null,null,null,null,"zvsx04k_a5602_o01_TY1V01","*='Specifieke informatie C'!$L$147","","C560.2 Mondzorg voor jeugdige verzekerden- Orthodontie- geaccepteerd","zvsx04k","a5602","o01","TY1V01"]
[null,null,null,null,"zvsx04k_a5602_o02_TY0V01","*='Specifieke informatie C'!$K$141","","C560.2 Mondzorg voor jeugdige verzekerden- Chirurgische ingrepen- geaccepteerd","zvsx04k","a5602","o02","TY0V01"]
[null,null,null,null,"zvsx04k_a5602_o02_TY1V01","*='Specifieke informatie C'!$L$141","","C560.2 Mondzorg voor jeugdige verzekerden- Chirurgische ingrepen- geaccepteerd","zvsx04k","a5602","o02","TY1V01"]
[null,null,null,null,"zvsx04k_a5602_o10_TY0V01","*='Specifieke informatie C'!$K$146","","C560.2 Mondzorg voor jeugdige verzekerden- sub a,b en c)- geaccepteerd","zvsx04k","a5602","o10","TY0V01"]
[null,null,null,null,"zvsx04k_a5602_o10_TY1V01","*='Specifieke informatie C'!$L$146","","C560.2 Mondzorg voor jeugdige verzekerden- sub a,b en c)- geaccepteerd","zvsx04k","a5602","o10","TY1V01"]
[null,null,null,null,"zvsx04k_a5602_p01_TY0V01","*='Specifieke informatie C'!$K$145","","C560.2 Mondzorg voor jeugdige verzekerden- Abbonementstarieven- geaccepteerd","zvsx04k","a5602","p01","TY0V01"]
[null,null,null,null,"zvsx04k_a5602_p01_TY1V01","*='Specifieke informatie C'!$L$145","","C560.2 Mondzorg voor jeugdige verzekerden- Abbonementstarieven- geaccepteerd","zvsx04k","a5602","p01","TY1V01"]
[null,null,null,null,"zvsx04k_a5602_r01_TY0V01","*='Specifieke informatie C'!$K$137","","C560.2 Mondzorg voor jeugdige verzekerden- Vullingen- geaccepteerd","zvsx04k","a5602","r01","TY0V01"]
[null,null,null,null,"zvsx04k_a5602_r01_TY1V01","*='Specifieke informatie C'!$L$137","","C560.2 Mondzorg voor jeugdige verzekerden- Vullingen- geaccepteerd","zvsx04k","a5602","r01","TY1V01"]
[null,null,null,null,"zvsx04k_a5602_r02_TY0V01","*='Specifieke informatie C'!$K$139","","C560.2 Mondzorg voor jeugdige verzekerden- Kronen en bruggen- geaccepteerd","zvsx04k","a5602","r02","TY0V01"]
[null,null,null,null,"zvsx04k_a5602_r02_TY1V01","*='Specifieke informatie C'!$L$139","","C560.2 Mondzorg voor jeugdige verzekerden- Kronen en bruggen- geaccepteerd","zvsx04k","a5602","r02","TY1V01"]
[null,null,null,null,"zvsx04k_a5602_u01_TY0V01","*='Specifieke informatie C'!$K$142","","C560.2 Mondzorg voor jeugdige verzekerden- Uitneembare prothetische- geaccepteerd","zvsx04k","a5602","u01","TY0V01"]
[null,null,null,null,"zvsx04k_a5602_u01_TY1V01","*='Specifieke informatie C'!$L$142","","C560.2 Mondzorg voor jeugdige verzekerden- Uitneembare prothetische- geaccepteerd","zvsx04k","a5602","u01","TY1V01"]
[null,null,null,null,"zvsx04k_a5602_u02_TY0V01","*='Specifieke informatie C'!$K$144","","C560.2 Mondzorg voor jeugdige verzekerden- Implantaten- geaccepteerd","zvsx04k","a5602","u02","TY0V01"]
[null,null,null,null,"zvsx04k_a5602_u02_TY1V01","*='Specifieke informatie C'!$L$144","","C560.2 Mondzorg voor jeugdige verzekerden- Implantaten- geaccepteerd","zvsx04k","a5602","u02","TY1V01"]
[null,null,null,null,"zvsx04k_a5602_v01_TY0V01","*='Specifieke informatie C'!$K$136","","C560.2 Mondzorg voor jeugdige verzekerden- Verdoving- geaccepteerd","zvsx04k","a5602","v01","TY0V01"]
[null,null,null,null,"zvsx04k_a5602_v01_TY1V01","*='Specifieke informatie C'!$L$136","","C560.2 Mondzorg voor jeugdige verzekerden- Verdoving- geaccepteerd","zvsx04k","a5602","v01","TY1V01"]
[null,null,null,null,"zvsx04k_a5602_x01_TY0V01","*='Specifieke informatie C'!$K$134","","C560.2 Mondzorg voor jeugdige verzekerden- X Röntgendiagnostiek- geaccepteerd","zvsx04k","a5602","x01","TY0V01"]
[null,null,null,null,"zvsx04k_a5602_x01_TY1V01","*='Specifieke informatie C'!$L$134","","C560.2 Mondzorg voor jeugdige verzekerden- X Röntgendiagnostiek- geaccepteerd","zvsx04k","a5602","x01","TY1V01"]
[null,null,null,null,"zvsx04k_a561_u21_TY0V01","*='Specifieke informatie C'!$K$158","","C561 Gebitsprothesen, details- Volledige prothesen voor onder- en/of bovenkaak- geaccepteerd","zvsx04k","a561","u21","TY0V01"]
[null,null,null,null,"zvsx04k_a561_u21_TY1V01","*='Specifieke informatie C'!$L$158","","C561 Gebitsprothesen, details- Volledige prothesen voor onder- en/of bovenkaak- geaccepteerd","zvsx04k","a561","u21","TY1V01"]
[null,null,null,null,"zvsx04k_a561_u31_TY0V01","*='Specifieke informatie C'!$K$160","","C561 Gebitsprothesen, details- implantaat gedragen gebitsprothesen onder- of bovenkaak- geaccepteerd","zvsx04k","a561","u31","TY0V01"]
[null,null,null,null,"zvsx04k_a561_u31_TY1V01","*='Specifieke informatie C'!$L$160","","C561 Gebitsprothesen, details- implantaat gedragen gebitsprothesen onder- of bovenkaak- geaccepteerd","zvsx04k","a561","u31","TY1V01"]
[null,null,null,null,"zvsx04k_a561_u42_TY0V01","*='Specifieke informatie C'!$K$159","","C561 Gebitsprothesen, details- ebasings en reparaties van de conventionele gebitsprothesen- geaccepteerd","zvsx04k","a561","u42","TY0V01"]
[null,null,null,null,"zvsx04k_a561_u42_TY1V01","*='Specifieke informatie C'!$L$159","","C561 Gebitsprothesen, details- ebasings en reparaties van de conventionele gebitsprothesen- geaccepteerd","zvsx04k","a561","u42","TY1V01"]
[null,null,null,null,"zvsx04k_a561_u43_TY0V01","*='Specifieke informatie C'!$K$161","","C561 Gebitsprothesen, details- ebasings en reparaties implantaat gedragen gebitsprothesen- geaccepteerd","zvsx04k","a561","u43","TY0V01"]
[null,null,null,null,"zvsx04k_a561_u43_TY1V01","*='Specifieke informatie C'!$L$161","","C561 Gebitsprothesen, details- ebasings en reparaties implantaat gedragen gebitsprothesen- geaccepteerd","zvsx04k","a561","u43","TY1V01"]
[null,null,null,null,"zvsx05i_n580_geb_TY0V01","*='Specifieke informatie C'!$K$179","","C580 Verloskundige hulp door verloskundigen- (n) geteld","zvsx05i","n580","geb","TY0V01"]
[null,null,null,null,"zvsx05i_n580_geb_TY1V01","*='Specifieke informatie C'!$L$179","","C580 Verloskundige hulp door verloskundigen- (n) geteld","zvsx05i","n580","geb","TY1V01"]
[null,null,null,null,"zvsx06i_n545_m21_TY0V01","*='Specifieke informatie C'!$K$191","","C545 Kosten en honoraria specialisten, mondziekten kaakchirurgen- Implantaten- (n) geteld","zvsx06i","n545","m21","TY0V01"]
[null,null,null,null,"zvsx06i_n545_m21_TY1V01","*='Specifieke informatie C'!$L$191","","C545 Kosten en honoraria specialisten, mondziekten kaakchirurgen- Implantaten- (n) geteld","zvsx06i","n545","m21","TY1V01"]
[null,null,null,null,"zvsx06k_a545_m13_TY0V01","*='Specifieke informatie C'!$K$186","","C545 Kosten en honoraria specialisten, mondziekten kaakchirurgen- Overige activiteiten- geaccepteerd","zvsx06k","a545","m13","TY0V01"]
[null,null,null,null,"zvsx06k_a545_m13_TY1V01","*='Specifieke informatie C'!$L$186","","C545 Kosten en honoraria specialisten, mondziekten kaakchirurgen- Overige activiteiten- geaccepteerd","zvsx06k","a545","m13","TY1V01"]
[null,null,null,null,"zvsx06k_a545_m21_TY0V01","*='Specifieke informatie C'!$K$185","","C545 Kosten en honoraria specialisten, mondziekten kaakchirurgen- Implantaten- geaccepteerd","zvsx06k","a545","m21","TY0V01"]
[null,null,null,null,"zvsx06k_a545_m21_TY1V01","*='Specifieke informatie C'!$L$185","","C545 Kosten en honoraria specialisten, mondziekten kaakchirurgen- Implantaten- geaccepteerd","zvsx06k","a545","m21","TY1V01"]
[null,null,null,null,"zvsx06k_a610_d1l_TY0V01","*='Specifieke informatie C'!$I$196","","C610 Overige kosten ziekenhuiszorg en curatieve zorg- eerstelijnsdiagnostiek eerstelijnszorgaanbieders - huisartslab- geaccepteerd","zvsx06k","a610","d1l","TY0V01"]
[null,null,null,null,"zvsx06k_a610_d1l_TY1V01","*='Specifieke informatie C'!$K$196","","C610 Overige kosten ziekenhuiszorg en curatieve zorg- eerstelijnsdiagnostiek eerstelijnszorgaanbieders - huisartslab- geaccepteerd","zvsx06k","a610","d1l","TY1V01"]
[null,null,null,null,"zvsx06k_a610_d1l_TY2V01","*='Specifieke informatie C'!$L$196","","C610 Overige kosten ziekenhuiszorg en curatieve zorg- eerstelijnsdiagnostiek eerstelijnszorgaanbieders - huisartslab- geaccepteerd","zvsx06k","a610","d1l","TY2V01"]
[null,null,null,null,"zvsx06k_a610_sknt_TY0V01","*='Specifieke informatie C'!$I$198","","C610 Overige kosten ziekenhuiszorg en curatieve zorg- SKION en NTS- geaccepteerd","zvsx06k","a610","sknt","TY0V01"]
[null,null,null,null,"zvsx06k_a610_sknt_TY1V01","*='Specifieke informatie C'!$K$198","","C610 Overige kosten ziekenhuiszorg en curatieve zorg- SKION en NTS- geaccepteerd","zvsx06k","a610","sknt","TY1V01"]
[null,null,null,null,"zvsx06k_a610_sknt_TY2V01","*='Specifieke informatie C'!$L$198","","C610 Overige kosten ziekenhuiszorg en curatieve zorg- SKION en NTS- geaccepteerd","zvsx06k","a610","sknt","TY2V01"]
[null,null,null,null,"zvsx06k_a610_trmb_TY0V01","*='Specifieke informatie C'!$I$197","","C610 Overige kosten ziekenhuiszorg en curatieve zorg- Trombosediensten- geaccepteerd","zvsx06k","a610","trmb","TY0V01"]
[null,null,null,null,"zvsx06k_a610_trmb_TY1V01","*='Specifieke informatie C'!$K$197","","C610 Overige kosten ziekenhuiszorg en curatieve zorg- Trombosediensten- geaccepteerd","zvsx06k","a610","trmb","TY1V01"]
[null,null,null,null,"zvsx06k_a610_trmb_TY2V01","*='Specifieke informatie C'!$L$197","","C610 Overige kosten ziekenhuiszorg en curatieve zorg- Trombosediensten- geaccepteerd","zvsx06k","a610","trmb","TY2V01"]
[null,null,null,null,"zvsx06k_a611_az_TY0V01","*='Specifieke informatie C'!$I$205","","C611 Naar Instelling- Academische ziekenhuizen- geaccepteerd","zvsx06k","a611","az","TY0V01"]
[null,null,null,null,"zvsx06k_a611_az_TY1V01","*='Specifieke informatie C'!$K$205","","C611 Naar Instelling- Academische ziekenhuizen- geaccepteerd","zvsx06k","a611","az","TY1V01"]
[null,null,null,null,"zvsx06k_a611_az_TY2V01","*='Specifieke informatie C'!$L$205","","C611 Naar Instelling- Academische ziekenhuizen- geaccepteerd","zvsx06k","a611","az","TY2V01"]
[null,null,null,null,"zvsx06k_a611_g61_TY0V01","*='Specifieke informatie C'!$J$227","","C611 Overige zorgproducten- Kosten stollingsfactoren- geaccepteerd","zvsx06k","a611","g61","TY0V01"]
[null,null,null,null,"zvsx06k_a611_g61_TY1V01","*='Specifieke informatie C'!$K$227","","C611 Overige zorgproducten- Kosten stollingsfactoren- geaccepteerd","zvsx06k","a611","g61","TY1V01"]
[null,null,null,null,"zvsx06k_a611_n01_TY0V01","*='Specifieke informatie C'!$J$221","","C611 Overige zorgproducten- Poliklinische bevalling zonder medische indicatie- geaccepteerd","zvsx06k","a611","n01","TY0V01"]
[null,null,null,null,"zvsx06k_a611_n01_TY1V01","*='Specifieke informatie C'!$K$221","","C611 Overige zorgproducten- Poliklinische bevalling zonder medische indicatie- geaccepteerd","zvsx06k","a611","n01","TY1V01"]
[null,null,null,null,"zvsx06k_a611_n02_TY0V01","*='Specifieke informatie C'!$J$223","","C611 Overige zorgproducten- Verplichte poliklinische bevalling zonder medische indicatie- geaccepteerd","zvsx06k","a611","n02","TY0V01"]
[null,null,null,null,"zvsx06k_a611_n02_TY1V01","*='Specifieke informatie C'!$K$223","","C611 Overige zorgproducten- Verplichte poliklinische bevalling zonder medische indicatie- geaccepteerd","zvsx06k","a611","n02","TY1V01"]
[null,null,null,null,"zvsx06k_a611_n03_TY0V01","*='Specifieke informatie C'!$J$222","","C611 Overige zorgproducten- Poliklinische bevalling op medische indicatie- geaccepteerd","zvsx06k","a611","n03","TY0V01"]
[null,null,null,null,"zvsx06k_a611_n03_TY1V01","*='Specifieke informatie C'!$K$222","","C611 Overige zorgproducten- Poliklinische bevalling op medische indicatie- geaccepteerd","zvsx06k","a611","n03","TY1V01"]
[null,null,null,null,"zvsx06k_a611_n31_TY0V01","*='Specifieke informatie C'!$J$225","","C611 Overige zorgproducten- Gezonde zuigeling- geaccepteerd","zvsx06k","a611","n31","TY0V01"]
[null,null,null,null,"zvsx06k_a611_n31_TY1V01","*='Specifieke informatie C'!$K$225","","C611 Overige zorgproducten- Gezonde zuigeling- geaccepteerd","zvsx06k","a611","n31","TY1V01"]
[null,null,null,null,"zvsx06k_a611_n32_TY0V01","*='Specifieke informatie C'!$J$224","","C611 Overige zorgproducten- Gezonde moeder- geaccepteerd","zvsx06k","a611","n32","TY0V01"]
[null,null,null,null,"zvsx06k_a611_n32_TY1V01","*='Specifieke informatie C'!$K$224","","C611 Overige zorgproducten- Gezonde moeder- geaccepteerd","zvsx06k","a611","n32","TY1V01"]
[null,null,null,null,"zvsx06k_a611_n51_TY0V01","*='Specifieke informatie C'!$J$226","","C611 Overige zorgproducten- MSVT- geaccepteerd","zvsx06k","a611","n51","TY0V01"]
[null,null,null,null,"zvsx06k_a611_n51_TY1V01","*='Specifieke informatie C'!$K$226","","C611 Overige zorgproducten- MSVT- geaccepteerd","zvsx06k","a611","n51","TY1V01"]
[null,null,null,null,"zvsx06k_a611_ov_TY0V01","*='Specifieke informatie C'!$I$208","","C611 Naar Instelling- Overige zorgaanbieders- geaccepteerd","zvsx06k","a611","ov","TY0V01"]
[null,null,null,null,"zvsx06k_a611_ov_TY1V01","*='Specifieke informatie C'!$K$208","","C611 Naar Instelling- Overige zorgaanbieders- geaccepteerd","zvsx06k","a611","ov","TY1V01"]
[null,null,null,null,"zvsx06k_a611_ov_TY2V01","*='Specifieke informatie C'!$L$208","","C611 Naar Instelling- Overige zorgaanbieders- geaccepteerd","zvsx06k","a611","ov","TY2V01"]
[null,null,null,null,"zvsx06k_a611_sz_TY0V01","*='Specifieke informatie C'!$I$206","","C611 Naar Instelling- Algemene ziekenhuizen- geaccepteerd","zvsx06k","a611","sz","TY0V01"]
[null,null,null,null,"zvsx06k_a611_sz_TY1V01","*='Specifieke informatie C'!$K$206","","C611 Naar Instelling- Algemene ziekenhuizen- geaccepteerd","zvsx06k","a611","sz","TY1V01"]
[null,null,null,null,"zvsx06k_a611_sz_TY2V01","*='Specifieke informatie C'!$L$206","","C611 Naar Instelling- Algemene ziekenhuizen- geaccepteerd","zvsx06k","a611","sz","TY2V01"]
[null,null,null,null,"zvsx06k_a611_zb_TY0V01","*='Specifieke informatie C'!$I$207","","C611 Naar Instelling- Zelfstandige behandelcentra- geaccepteerd","zvsx06k","a611","zb","TY0V01"]
[null,null,null,null,"zvsx06k_a611_zb_TY1V01","*='Specifieke informatie C'!$K$207","","C611 Naar Instelling- Zelfstandige behandelcentra- geaccepteerd","zvsx06k","a611","zb","TY1V01"]
[null,null,null,null,"zvsx06k_a611_zb_TY2V01","*='Specifieke informatie C'!$L$207","","C611 Naar Instelling- Zelfstandige behandelcentra- geaccepteerd","zvsx06k","a611","zb","TY2V01"]
[null,null,null,null,"zvsx06k_a6121_az_TY0V01","*='Specifieke informatie C'!$I$232","","C612.1 Kosten add-ons dure geneesmiddelen naar instelling- Academische ziekenhuizen- geaccepteerd","zvsx06k","a6121","az","TY0V01"]
[null,null,null,null,"zvsx06k_a6121_az_TY1V01","*='Specifieke informatie C'!$K$232","","C612.1 Kosten add-ons dure geneesmiddelen naar instelling- Academische ziekenhuizen- geaccepteerd","zvsx06k","a6121","az","TY1V01"]
[null,null,null,null,"zvsx06k_a6121_az_TY2V01","*='Specifieke informatie C'!$L$232","","C612.1 Kosten add-ons dure geneesmiddelen naar instelling- Academische ziekenhuizen- geaccepteerd","zvsx06k","a6121","az","TY2V01"]
[null,null,null,null,"zvsx06k_a6121_ov_TY0V01","*='Specifieke informatie C'!$I$235","","C612.1 Kosten add-ons dure geneesmiddelen naar instelling- Overige zorgaanbieders- geaccepteerd","zvsx06k","a6121","ov","TY0V01"]
[null,null,null,null,"zvsx06k_a6121_ov_TY1V01","*='Specifieke informatie C'!$K$235","","C612.1 Kosten add-ons dure geneesmiddelen naar instelling- Overige zorgaanbieders- geaccepteerd","zvsx06k","a6121","ov","TY1V01"]
[null,null,null,null,"zvsx06k_a6121_ov_TY2V01","*='Specifieke informatie C'!$L$235","","C612.1 Kosten add-ons dure geneesmiddelen naar instelling- Overige zorgaanbieders- geaccepteerd","zvsx06k","a6121","ov","TY2V01"]
[null,null,null,null,"zvsx06k_a6121_sz_TY0V01","*='Specifieke informatie C'!$I$233","","C612.1 Kosten add-ons dure geneesmiddelen naar instelling- Algemene ziekenhuizen- geaccepteerd","zvsx06k","a6121","sz","TY0V01"]
[null,null,null,null,"zvsx06k_a6121_sz_TY1V01","*='Specifieke informatie C'!$K$233","","C612.1 Kosten add-ons dure geneesmiddelen naar instelling- Algemene ziekenhuizen- geaccepteerd","zvsx06k","a6121","sz","TY1V01"]
[null,null,null,null,"zvsx06k_a6121_sz_TY2V01","*='Specifieke informatie C'!$L$233","","C612.1 Kosten add-ons dure geneesmiddelen naar instelling- Algemene ziekenhuizen- geaccepteerd","zvsx06k","a6121","sz","TY2V01"]
[null,null,null,null,"zvsx06k_a6121_zb_TY0V01","*='Specifieke informatie C'!$I$234","","C612.1 Kosten add-ons dure geneesmiddelen naar instelling- Zelfstandige behandelcentra- geaccepteerd","zvsx06k","a6121","zb","TY0V01"]
[null,null,null,null,"zvsx06k_a6121_zb_TY1V01","*='Specifieke informatie C'!$K$234","","C612.1 Kosten add-ons dure geneesmiddelen naar instelling- Zelfstandige behandelcentra- geaccepteerd","zvsx06k","a6121","zb","TY1V01"]
[null,null,null,null,"zvsx06k_a6121_zb_TY2V01","*='Specifieke informatie C'!$L$234","","C612.1 Kosten add-ons dure geneesmiddelen naar instelling- Zelfstandige behandelcentra- geaccepteerd","zvsx06k","a6121","zb","TY2V01"]
[null,null,null,null,"zvsx06k_a6122_az_TY0V01","*='Specifieke informatie C'!$I$241","","C612.2 Kosten add-ons IC naar instelling- Academische ziekenhuizen- geaccepteerd","zvsx06k","a6122","az","TY0V01"]
[null,null,null,null,"zvsx06k_a6122_az_TY1V01","*='Specifieke informatie C'!$K$241","","C612.2 Kosten add-ons IC naar instelling- Academische ziekenhuizen- geaccepteerd","zvsx06k","a6122","az","TY1V01"]
[null,null,null,null,"zvsx06k_a6122_az_TY2V01","*='Specifieke informatie C'!$L$241","","C612.2 Kosten add-ons IC naar instelling- Academische ziekenhuizen- geaccepteerd","zvsx06k","a6122","az","TY2V01"]
[null,null,null,null,"zvsx06k_a6122_ov_TY0V01","*='Specifieke informatie C'!$I$244","","C612.2 Kosten add-ons IC naar instelling- Overige zorgaanbieders- geaccepteerd","zvsx06k","a6122","ov","TY0V01"]
[null,null,null,null,"zvsx06k_a6122_ov_TY1V01","*='Specifieke informatie C'!$K$244","","C612.2 Kosten add-ons IC naar instelling- Overige zorgaanbieders- geaccepteerd","zvsx06k","a6122","ov","TY1V01"]
[null,null,null,null,"zvsx06k_a6122_ov_TY2V01","*='Specifieke informatie C'!$L$244","","C612.2 Kosten add-ons IC naar instelling- Overige zorgaanbieders- geaccepteerd","zvsx06k","a6122","ov","TY2V01"]
[null,null,null,null,"zvsx06k_a6122_sz_TY0V01","*='Specifieke informatie C'!$I$242","","C612.2 Kosten add-ons IC naar instelling- Algemene ziekenhuizen- geaccepteerd","zvsx06k","a6122","sz","TY0V01"]
[null,null,null,null,"zvsx06k_a6122_sz_TY1V01","*='Specifieke informatie C'!$K$242","","C612.2 Kosten add-ons IC naar instelling- Algemene ziekenhuizen- geaccepteerd","zvsx06k","a6122","sz","TY1V01"]
[null,null,null,null,"zvsx06k_a6122_sz_TY2V01","*='Specifieke informatie C'!$L$242","","C612.2 Kosten add-ons IC naar instelling- Algemene ziekenhuizen- geaccepteerd","zvsx06k","a6122","sz","TY2V01"]
[null,null,null,null,"zvsx06k_a6122_zb_TY0V01","*='Specifieke informatie C'!$I$243","","C612.2 Kosten add-ons IC naar instelling- Zelfstandige behandelcentra- geaccepteerd","zvsx06k","a6122","zb","TY0V01"]
[null,null,null,null,"zvsx06k_a6122_zb_TY1V01","*='Specifieke informatie C'!$K$243","","C612.2 Kosten add-ons IC naar instelling- Zelfstandige behandelcentra- geaccepteerd","zvsx06k","a6122","zb","TY1V01"]
[null,null,null,null,"zvsx06k_a6122_zb_TY2V01","*='Specifieke informatie C'!$L$243","","C612.2 Kosten add-ons IC naar instelling- Zelfstandige behandelcentra- geaccepteerd","zvsx06k","a6122","zb","TY2V01"]
[null,null,null,null,"zvsx06k_a6131_az_TY0V01","*='Specifieke informatie C'!$I$261","","C613.1 Integrale kosten DBC-zorgproducten gereguleerde segment- Academische ziekenhuizen- geaccepteerd","zvsx06k","a6131","az","TY0V01"]
[null,null,null,null,"zvsx06k_a6131_az_TY1V01","*='Specifieke informatie C'!$K$261","","C613.1 Integrale kosten DBC-zorgproducten gereguleerde segment- Academische ziekenhuizen- geaccepteerd","zvsx06k","a6131","az","TY1V01"]
[null,null,null,null,"zvsx06k_a6131_az_TY2V01","*='Specifieke informatie C'!$L$261","","C613.1 Integrale kosten DBC-zorgproducten gereguleerde segment- Academische ziekenhuizen- geaccepteerd","zvsx06k","a6131","az","TY2V01"]
[null,null,null,null,"zvsx06k_a6131_ov_TY0V01","*='Specifieke informatie C'!$I$264","","C613.1 Integrale kosten DBC-zorgproducten gereguleerde segment- Overige zorgaanbieders- geaccepteerd","zvsx06k","a6131","ov","TY0V01"]
[null,null,null,null,"zvsx06k_a6131_ov_TY1V01","*='Specifieke informatie C'!$K$264","","C613.1 Integrale kosten DBC-zorgproducten gereguleerde segment- Overige zorgaanbieders- geaccepteerd","zvsx06k","a6131","ov","TY1V01"]
[null,null,null,null,"zvsx06k_a6131_ov_TY2V01","*='Specifieke informatie C'!$L$264","","C613.1 Integrale kosten DBC-zorgproducten gereguleerde segment- Overige zorgaanbieders- geaccepteerd","zvsx06k","a6131","ov","TY2V01"]
[null,null,null,null,"zvsx06k_a6131_sz_TY0V01","*='Specifieke informatie C'!$I$262","","C613.1 Integrale kosten DBC-zorgproducten gereguleerde segment- Algemene ziekenhuizen- geaccepteerd","zvsx06k","a6131","sz","TY0V01"]
[null,null,null,null,"zvsx06k_a6131_sz_TY1V01","*='Specifieke informatie C'!$K$262","","C613.1 Integrale kosten DBC-zorgproducten gereguleerde segment- Algemene ziekenhuizen- geaccepteerd","zvsx06k","a6131","sz","TY1V01"]
[null,null,null,null,"zvsx06k_a6131_sz_TY2V01","*='Specifieke informatie C'!$L$262","","C613.1 Integrale kosten DBC-zorgproducten gereguleerde segment- Algemene ziekenhuizen- geaccepteerd","zvsx06k","a6131","sz","TY2V01"]
[null,null,null,null,"zvsx06k_a6131_zb_TY0V01","*='Specifieke informatie C'!$I$263","","C613.1 Integrale kosten DBC-zorgproducten gereguleerde segment- Zelfstandige behandelcentra- geaccepteerd","zvsx06k","a6131","zb","TY0V01"]
[null,null,null,null,"zvsx06k_a6131_zb_TY1V01","*='Specifieke informatie C'!$K$263","","C613.1 Integrale kosten DBC-zorgproducten gereguleerde segment- Zelfstandige behandelcentra- geaccepteerd","zvsx06k","a6131","zb","TY1V01"]
[null,null,null,null,"zvsx06k_a6131_zb_TY2V01","*='Specifieke informatie C'!$L$263","","C613.1 Integrale kosten DBC-zorgproducten gereguleerde segment- Zelfstandige behandelcentra- geaccepteerd","zvsx06k","a6131","zb","TY2V01"]
[null,null,null,null,"zvsx06k_a6151_az_TY0V01","*='Specifieke informatie C'!$I$267","","C615.1 Integrale kosten DBC-zorgproduct vrije segment- Academische ziekenhuizen- geaccepteerd","zvsx06k","a6151","az","TY0V01"]
[null,null,null,null,"zvsx06k_a6151_az_TY1V01","*='Specifieke informatie C'!$K$267","","C615.1 Integrale kosten DBC-zorgproduct vrije segment- Academische ziekenhuizen- geaccepteerd","zvsx06k","a6151","az","TY1V01"]
[null,null,null,null,"zvsx06k_a6151_az_TY2V01","*='Specifieke informatie C'!$L$267","","C615.1 Integrale kosten DBC-zorgproduct vrije segment- Academische ziekenhuizen- geaccepteerd","zvsx06k","a6151","az","TY2V01"]
[null,null,null,null,"zvsx06k_a6151_ov_TY0V01","*='Specifieke informatie C'!$I$270","","C615.1 Integrale kosten DBC-zorgproduct vrije segment- Overige zorgaanbieders- geaccepteerd","zvsx06k","a6151","ov","TY0V01"]
[null,null,null,null,"zvsx06k_a6151_ov_TY1V01","*='Specifieke informatie C'!$K$270","","C615.1 Integrale kosten DBC-zorgproduct vrije segment- Overige zorgaanbieders- geaccepteerd","zvsx06k","a6151","ov","TY1V01"]
[null,null,null,null,"zvsx06k_a6151_ov_TY2V01","*='Specifieke informatie C'!$L$270","","C615.1 Integrale kosten DBC-zorgproduct vrije segment- Overige zorgaanbieders- geaccepteerd","zvsx06k","a6151","ov","TY2V01"]
[null,null,null,null,"zvsx06k_a6151_sz_TY0V01","*='Specifieke informatie C'!$I$268","","C615.1 Integrale kosten DBC-zorgproduct vrije segment- Algemene ziekenhuizen- geaccepteerd","zvsx06k","a6151","sz","TY0V01"]
[null,null,null,null,"zvsx06k_a6151_sz_TY1V01","*='Specifieke informatie C'!$K$268","","C615.1 Integrale kosten DBC-zorgproduct vrije segment- Algemene ziekenhuizen- geaccepteerd","zvsx06k","a6151","sz","TY1V01"]
[null,null,null,null,"zvsx06k_a6151_sz_TY2V01","*='Specifieke informatie C'!$L$268","","C615.1 Integrale kosten DBC-zorgproduct vrije segment- Algemene ziekenhuizen- geaccepteerd","zvsx06k","a6151","sz","TY2V01"]
[null,null,null,null,"zvsx06k_a6151_zb_TY0V01","*='Specifieke informatie C'!$I$269","","C615.1 Integrale kosten DBC-zorgproduct vrije segment- Zelfstandige behandelcentra- geaccepteerd","zvsx06k","a6151","zb","TY0V01"]
[null,null,null,null,"zvsx06k_a6151_zb_TY1V01","*='Specifieke informatie C'!$K$269","","C615.1 Integrale kosten DBC-zorgproduct vrije segment- Zelfstandige behandelcentra- geaccepteerd","zvsx06k","a6151","zb","TY1V01"]
[null,null,null,null,"zvsx06k_a6151_zb_TY2V01","*='Specifieke informatie C'!$L$269","","C615.1 Integrale kosten DBC-zorgproduct vrije segment- Zelfstandige behandelcentra- geaccepteerd","zvsx06k","a6151","zb","TY2V01"]
[null,null,null,null,"zvsx06k_c610_d1l_TY0V01","*='Specifieke informatie C'!$H$196","","C610 Overige kosten ziekenhuiszorg en curatieve zorg- eerstelijnsdiagnostiek eerstelijnszorgaanbieders - huisartslab- incl balans","zvsx06k","c610","d1l","TY0V01"]
[null,null,null,null,"zvsx06k_c610_d1l_TY1V01","*='Specifieke informatie C'!$J$196","","C610 Overige kosten ziekenhuiszorg en curatieve zorg- eerstelijnsdiagnostiek eerstelijnszorgaanbieders - huisartslab- incl balans","zvsx06k","c610","d1l","TY1V01"]
[null,null,null,null,"zvsx06k_c610_sknt_TY0V01","*='Specifieke informatie C'!$H$198","","C610 Overige kosten ziekenhuiszorg en curatieve zorg- SKION en NTS- incl balans","zvsx06k","c610","sknt","TY0V01"]
[null,null,null,null,"zvsx06k_c610_sknt_TY1V01","*='Specifieke informatie C'!$J$198","","C610 Overige kosten ziekenhuiszorg en curatieve zorg- SKION en NTS- incl balans","zvsx06k","c610","sknt","TY1V01"]
[null,null,null,null,"zvsx06k_c610_trmb_TY0V01","*='Specifieke informatie C'!$H$197","","C610 Overige kosten ziekenhuiszorg en curatieve zorg- Trombosediensten- incl balans","zvsx06k","c610","trmb","TY0V01"]
[null,null,null,null,"zvsx06k_c610_trmb_TY1V01","*='Specifieke informatie C'!$J$197","","C610 Overige kosten ziekenhuiszorg en curatieve zorg- Trombosediensten- incl balans","zvsx06k","c610","trmb","TY1V01"]
[null,null,null,null,"zvsx06k_c611_az_TY0V01","*='Specifieke informatie C'!$H$205","","C611 Naar Instelling- Academische ziekenhuizen- incl balans","zvsx06k","c611","az","TY0V01"]
[null,null,null,null,"zvsx06k_c611_az_TY1V01","*='Specifieke informatie C'!$J$205","","C611 Naar Instelling- Academische ziekenhuizen- incl balans","zvsx06k","c611","az","TY1V01"]
[null,null,null,null,"zvsx06k_c611_ov_TY0V01","*='Specifieke informatie C'!$H$208","","C611 Naar Instelling- Overige zorgaanbieders- incl balans","zvsx06k","c611","ov","TY0V01"]
[null,null,null,null,"zvsx06k_c611_ov_TY1V01","*='Specifieke informatie C'!$J$208","","C611 Naar Instelling- Overige zorgaanbieders- incl balans","zvsx06k","c611","ov","TY1V01"]
[null,null,null,null,"zvsx06k_c611_sz_TY0V01","*='Specifieke informatie C'!$H$206","","C611 Naar Instelling- Algemene ziekenhuizen- incl balans","zvsx06k","c611","sz","TY0V01"]
[null,null,null,null,"zvsx06k_c611_sz_TY1V01","*='Specifieke informatie C'!$J$206","","C611 Naar Instelling- Algemene ziekenhuizen- incl balans","zvsx06k","c611","sz","TY1V01"]
[null,null,null,null,"zvsx06k_c611_zb_TY0V01","*='Specifieke informatie C'!$H$207","","C611 Naar Instelling- Zelfstandige behandelcentra- incl balans","zvsx06k","c611","zb","TY0V01"]
[null,null,null,null,"zvsx06k_c611_zb_TY1V01","*='Specifieke informatie C'!$J$207","","C611 Naar Instelling- Zelfstandige behandelcentra- incl balans","zvsx06k","c611","zb","TY1V01"]
[null,null,null,null,"zvsx06k_c6121_az_TY0V01","*='Specifieke informatie C'!$H$232","","C612.1 Kosten add-ons dure geneesmiddelen naar instelling- Academische ziekenhuizen- incl balans","zvsx06k","c6121","az","TY0V01"]
[null,null,null,null,"zvsx06k_c6121_az_TY1V01","*='Specifieke informatie C'!$J$232","","C612.1 Kosten add-ons dure geneesmiddelen naar instelling- Academische ziekenhuizen- incl balans","zvsx06k","c6121","az","TY1V01"]
[null,null,null,null,"zvsx06k_c6121_ov_TY0V01","*='Specifieke informatie C'!$H$235","","C612.1 Kosten add-ons dure geneesmiddelen naar instelling- Overige zorgaanbieders- incl balans","zvsx06k","c6121","ov","TY0V01"]
[null,null,null,null,"zvsx06k_c6121_ov_TY1V01","*='Specifieke informatie C'!$J$235","","C612.1 Kosten add-ons dure geneesmiddelen naar instelling- Overige zorgaanbieders- incl balans","zvsx06k","c6121","ov","TY1V01"]
[null,null,null,null,"zvsx06k_c6121_sz_TY0V01","*='Specifieke informatie C'!$H$233","","C612.1 Kosten add-ons dure geneesmiddelen naar instelling- Algemene ziekenhuizen- incl balans","zvsx06k","c6121","sz","TY0V01"]
[null,null,null,null,"zvsx06k_c6121_sz_TY1V01","*='Specifieke informatie C'!$J$233","","C612.1 Kosten add-ons dure geneesmiddelen naar instelling- Algemene ziekenhuizen- incl balans","zvsx06k","c6121","sz","TY1V01"]
[null,null,null,null,"zvsx06k_c6121_zb_TY0V01","*='Specifieke informatie C'!$H$234","","C612.1 Kosten add-ons dure geneesmiddelen naar instelling- Zelfstandige behandelcentra- incl balans","zvsx06k","c6121","zb","TY0V01"]
[null,null,null,null,"zvsx06k_c6121_zb_TY1V01","*='Specifieke informatie C'!$J$234","","C612.1 Kosten add-ons dure geneesmiddelen naar instelling- Zelfstandige behandelcentra- incl balans","zvsx06k","c6121","zb","TY1V01"]
[null,null,null,null,"zvsx06k_c6122_az_TY0V01","*='Specifieke informatie C'!$H$241","","C612.2 Kosten add-ons IC naar instelling- Academische ziekenhuizen- incl balans","zvsx06k","c6122","az","TY0V01"]
[null,null,null,null,"zvsx06k_c6122_az_TY1V01","*='Specifieke informatie C'!$J$241","","C612.2 Kosten add-ons IC naar instelling- Academische ziekenhuizen- incl balans","zvsx06k","c6122","az","TY1V01"]
[null,null,null,null,"zvsx06k_c6122_ov_TY0V01","*='Specifieke informatie C'!$H$244","","C612.2 Kosten add-ons IC naar instelling- Overige zorgaanbieders- incl balans","zvsx06k","c6122","ov","TY0V01"]
[null,null,null,null,"zvsx06k_c6122_ov_TY1V01","*='Specifieke informatie C'!$J$244","","C612.2 Kosten add-ons IC naar instelling- Overige zorgaanbieders- incl balans","zvsx06k","c6122","ov","TY1V01"]
[null,null,null,null,"zvsx06k_c6122_sz_TY0V01","*='Specifieke informatie C'!$H$242","","C612.2 Kosten add-ons IC naar instelling- Algemene ziekenhuizen- incl balans","zvsx06k","c6122","sz","TY0V01"]
[null,null,null,null,"zvsx06k_c6122_sz_TY1V01","*='Specifieke informatie C'!$J$242","","C612.2 Kosten add-ons IC naar instelling- Algemene ziekenhuizen- incl balans","zvsx06k","c6122","sz","TY1V01"]
[null,null,null,null,"zvsx06k_c6122_zb_TY0V01","*='Specifieke informatie C'!$H$243","","C612.2 Kosten add-ons IC naar instelling- Zelfstandige behandelcentra- incl balans","zvsx06k","c6122","zb","TY0V01"]
[null,null,null,null,"zvsx06k_c6122_zb_TY1V01","*='Specifieke informatie C'!$J$243","","C612.2 Kosten add-ons IC naar instelling- Zelfstandige behandelcentra- incl balans","zvsx06k","c6122","zb","TY1V01"]
[null,null,null,null,"zvsx06k_c6131_az_TY0V01","*='Specifieke informatie C'!$H$261","","C613.1 Integrale kosten DBC-zorgproducten gereguleerde segment- Academische ziekenhuizen- incl balans","zvsx06k","c6131","az","TY0V01"]
[null,null,null,null,"zvsx06k_c6131_az_TY1V01","*='Specifieke informatie C'!$J$261","","C613.1 Integrale kosten DBC-zorgproducten gereguleerde segment- Academische ziekenhuizen- incl balans","zvsx06k","c6131","az","TY1V01"]
[null,null,null,null,"zvsx06k_c6131_ov_TY0V01","*='Specifieke informatie C'!$H$264","","C613.1 Integrale kosten DBC-zorgproducten gereguleerde segment- Overige zorgaanbieders- incl balans","zvsx06k","c6131","ov","TY0V01"]
[null,null,null,null,"zvsx06k_c6131_ov_TY1V01","*='Specifieke informatie C'!$J$264","","C613.1 Integrale kosten DBC-zorgproducten gereguleerde segment- Overige zorgaanbieders- incl balans","zvsx06k","c6131","ov","TY1V01"]
[null,null,null,null,"zvsx06k_c6131_sz_TY0V01","*='Specifieke informatie C'!$H$262","","C613.1 Integrale kosten DBC-zorgproducten gereguleerde segment- Algemene ziekenhuizen- incl balans","zvsx06k","c6131","sz","TY0V01"]
[null,null,null,null,"zvsx06k_c6131_sz_TY1V01","*='Specifieke informatie C'!$J$262","","C613.1 Integrale kosten DBC-zorgproducten gereguleerde segment- Algemene ziekenhuizen- incl balans","zvsx06k","c6131","sz","TY1V01"]
[null,null,null,null,"zvsx06k_c6131_zb_TY0V01","*='Specifieke informatie C'!$H$263","","C613.1 Integrale kosten DBC-zorgproducten gereguleerde segment- Zelfstandige behandelcentra- incl balans","zvsx06k","c6131","zb","TY0V01"]
[null,null,null,null,"zvsx06k_c6131_zb_TY1V01","*='Specifieke informatie C'!$J$263","","C613.1 Integrale kosten DBC-zorgproducten gereguleerde segment- Zelfstandige behandelcentra- incl balans","zvsx06k","c6131","zb","TY1V01"]
[null,null,null,null,"zvsx06k_c6151_az_TY0V01","*='Specifieke informatie C'!$H$267","","C615.1 Integrale kosten DBC-zorgproduct vrije segment- Academische ziekenhuizen- incl balans","zvsx06k","c6151","az","TY0V01"]
[null,null,null,null,"zvsx06k_c6151_az_TY1V01","*='Specifieke informatie C'!$J$267","","C615.1 Integrale kosten DBC-zorgproduct vrije segment- Academische ziekenhuizen- incl balans","zvsx06k","c6151","az","TY1V01"]
[null,null,null,null,"zvsx06k_c6151_ov_TY0V01","*='Specifieke informatie C'!$H$270","","C615.1 Integrale kosten DBC-zorgproduct vrije segment- Overige zorgaanbieders- incl balans","zvsx06k","c6151","ov","TY0V01"]
[null,null,null,null,"zvsx06k_c6151_ov_TY1V01","*='Specifieke informatie C'!$J$270","","C615.1 Integrale kosten DBC-zorgproduct vrije segment- Overige zorgaanbieders- incl balans","zvsx06k","c6151","ov","TY1V01"]
[null,null,null,null,"zvsx06k_c6151_sz_TY0V01","*='Specifieke informatie C'!$H$268","","C615.1 Integrale kosten DBC-zorgproduct vrije segment- Algemene ziekenhuizen- incl balans","zvsx06k","c6151","sz","TY0V01"]
[null,null,null,null,"zvsx06k_c6151_sz_TY1V01","*='Specifieke informatie C'!$J$268","","C615.1 Integrale kosten DBC-zorgproduct vrije segment- Algemene ziekenhuizen- incl balans","zvsx06k","c6151","sz","TY1V01"]
[null,null,null,null,"zvsx06k_c6151_zb_TY0V01","*='Specifieke informatie C'!$H$269","","C615.1 Integrale kosten DBC-zorgproduct vrije segment- Zelfstandige behandelcentra- incl balans","zvsx06k","c6151","zb","TY0V01"]
[null,null,null,null,"zvsx06k_c6151_zb_TY1V01","*='Specifieke informatie C'!$J$269","","C615.1 Integrale kosten DBC-zorgproduct vrije segment- Zelfstandige behandelcentra- incl balans","zvsx06k","c6151","zb","TY1V01"]
[null,null,null,null,"zvsx09i_n650_a2_TY0V01","*='Specifieke informatie C'!$K$283","","C650 Vervoer per ambulance/helikopter- Ambulance - spoed- (n) geteld","zvsx09i","n650","a2","TY0V01"]
[null,null,null,null,"zvsx09i_n650_a2_TY1V01","*='Specifieke informatie C'!$L$283","","C650 Vervoer per ambulance/helikopter- Ambulance - spoed- (n) geteld","zvsx09i","n650","a2","TY1V01"]
[null,null,null,null,"zvsx09i_n650_a3_TY0V01","*='Specifieke informatie C'!$K$284","","C650 Vervoer per ambulance/helikopter- Ambulance - besteld- (n) geteld","zvsx09i","n650","a3","TY0V01"]
[null,null,null,null,"zvsx09i_n650_a3_TY1V01","*='Specifieke informatie C'!$L$284","","C650 Vervoer per ambulance/helikopter- Ambulance - besteld- (n) geteld","zvsx09i","n650","a3","TY1V01"]
[null,null,null,null,"zvsx09i_n650_h1_TY0V01","*='Specifieke informatie C'!$K$285","","C650 Vervoer per ambulance/helikopter- Helikoptervluchten- (n) geteld","zvsx09i","n650","h1","TY0V01"]
[null,null,null,null,"zvsx09i_n650_h1_TY1V01","*='Specifieke informatie C'!$L$285","","C650 Vervoer per ambulance/helikopter- Helikoptervluchten- (n) geteld","zvsx09i","n650","h1","TY1V01"]
[null,null,null,null,"zvsx09i_n651_p81_TY0V01","*='Specifieke informatie C'!$K$323","","C651 Vervoer. Vervoermiddel en patiëntcategorie - kosten hoger dan eigen bijdrage- (n) geteld","zvsx09i","n651","p81","TY0V01"]
[null,null,null,null,"zvsx09i_n651_p81_TY1V01","*='Specifieke informatie C'!$L$323","","C651 Vervoer. Vervoermiddel en patiëntcategorie - kosten hoger dan eigen bijdrage- (n) geteld","zvsx09i","n651","p81","TY1V01"]
[null,null,null,null,"zvsx09k_a650_a1_TY0V01","*='Specifieke informatie C'!$K$277","","C650 Vervoer per ambulance/helikopter- Ambulance - spoed- geaccepteerd","zvsx09k","a650","a1","TY0V01"]
[null,null,null,null,"zvsx09k_a650_a1_TY1V01","*='Specifieke informatie C'!$L$277","","C650 Vervoer per ambulance/helikopter- Ambulance - spoed- geaccepteerd","zvsx09k","a650","a1","TY1V01"]
[null,null,null,null,"zvsx09k_a650_h1_TY0V01","*='Specifieke informatie C'!$K$278","","C650 Vervoer per ambulance/helikopter- Helikoptervluchten- geaccepteerd","zvsx09k","a650","h1","TY0V01"]
[null,null,null,null,"zvsx09k_a650_h1_TY1V01","*='Specifieke informatie C'!$L$278","","C650 Vervoer per ambulance/helikopter- Helikoptervluchten- geaccepteerd","zvsx09k","a650","h1","TY1V01"]
[null,null,null,null,"zvsx09k_a651_o01_TY0V01","*='Specifieke informatie C'!$K$301","","C651 Vervoer. Vervoermiddel en patiëntcategorie- Nierdialyse OV- geaccepteerd","zvsx09k","a651","o01","TY0V01"]
[null,null,null,null,"zvsx09k_a651_o01_TY1V01","*='Specifieke informatie C'!$L$301","","C651 Vervoer. Vervoermiddel en patiëntcategorie- Nierdialyse OV- geaccepteerd","zvsx09k","a651","o01","TY1V01"]
[null,null,null,null,"zvsx09k_a651_o02_TY0V01","*='Specifieke informatie C'!$K$304","","C651 Vervoer. Vervoermiddel en patiëntcategorie- chemo,radio OV- geaccepteerd","zvsx09k","a651","o02","TY0V01"]
[null,null,null,null,"zvsx09k_a651_o02_TY1V01","*='Specifieke informatie C'!$L$304","","C651 Vervoer. Vervoermiddel en patiëntcategorie- chemo,radio OV- geaccepteerd","zvsx09k","a651","o02","TY1V01"]
[null,null,null,null,"zvsx09k_a651_o03_TY0V01","*='Specifieke informatie C'!$K$307","","C651 Vervoer. Vervoermiddel en patiëntcategorie- rolstoelgebruikers OV- geaccepteerd","zvsx09k","a651","o03","TY0V01"]
[null,null,null,null,"zvsx09k_a651_o03_TY1V01","*='Specifieke informatie C'!$L$307","","C651 Vervoer. Vervoermiddel en patiëntcategorie- rolstoelgebruikers OV- geaccepteerd","zvsx09k","a651","o03","TY1V01"]
[null,null,null,null,"zvsx09k_a651_o04_TY0V01","*='Specifieke informatie C'!$K$310","","C651 Vervoer. Vervoermiddel en patiëntcategorie- Visueel beperkten OV- geaccepteerd","zvsx09k","a651","o04","TY0V01"]
[null,null,null,null,"zvsx09k_a651_o04_TY1V01","*='Specifieke informatie C'!$L$310","","C651 Vervoer. Vervoermiddel en patiëntcategorie- Visueel beperkten OV- geaccepteerd","zvsx09k","a651","o04","TY1V01"]
[null,null,null,null,"zvsx09k_a651_o05_TY0V01","*='Specifieke informatie C'!$K$313","","C651 Vervoer. Vervoermiddel en patiëntcategorie- Overige met toestemming OV- geaccepteerd","zvsx09k","a651","o05","TY0V01"]
[null,null,null,null,"zvsx09k_a651_o05_TY1V01","*='Specifieke informatie C'!$L$313","","C651 Vervoer. Vervoermiddel en patiëntcategorie- Overige met toestemming OV- geaccepteerd","zvsx09k","a651","o05","TY1V01"]
[null,null,null,null,"zvsx09k_a651_o06_TY0V01","*='Specifieke informatie C'!$K$316","","C651 Vervoer. Vervoermiddel en patiëntcategorie- Intensieve kindzorg OV- geaccepteerd","zvsx09k","a651","o06","TY0V01"]
[null,null,null,null,"zvsx09k_a651_o06_TY1V01","*='Specifieke informatie C'!$L$316","","C651 Vervoer. Vervoermiddel en patiëntcategorie- Intensieve kindzorg OV- geaccepteerd","zvsx09k","a651","o06","TY1V01"]
[null,null,null,null,"zvsx09k_a651_p01_TY0V01","*='Specifieke informatie C'!$K$303","","C651 Vervoer. Vervoermiddel en patiëntcategorie- Nierdialyse Eigen Auto- geaccepteerd","zvsx09k","a651","p01","TY0V01"]
[null,null,null,null,"zvsx09k_a651_p01_TY1V01","*='Specifieke informatie C'!$L$303","","C651 Vervoer. Vervoermiddel en patiëntcategorie- Nierdialyse Eigen Auto- geaccepteerd","zvsx09k","a651","p01","TY1V01"]
[null,null,null,null,"zvsx09k_a651_p02_TY0V01","*='Specifieke informatie C'!$K$306","","C651 Vervoer. Vervoermiddel en patiëntcategorie- chemo radio Eigen Auto- geaccepteerd","zvsx09k","a651","p02","TY0V01"]
[null,null,null,null,"zvsx09k_a651_p02_TY1V01","*='Specifieke informatie C'!$L$306","","C651 Vervoer. Vervoermiddel en patiëntcategorie- chemo radio Eigen Auto- geaccepteerd","zvsx09k","a651","p02","TY1V01"]
[null,null,null,null,"zvsx09k_a651_p03_TY0V01","*='Specifieke informatie C'!$K$309","","C651 Vervoer. Vervoermiddel en patiëntcategorie- rolstoelgebruikers Eigen Auto- geaccepteerd","zvsx09k","a651","p03","TY0V01"]
[null,null,null,null,"zvsx09k_a651_p03_TY1V01","*='Specifieke informatie C'!$L$309","","C651 Vervoer. Vervoermiddel en patiëntcategorie- rolstoelgebruikers Eigen Auto- geaccepteerd","zvsx09k","a651","p03","TY1V01"]
[null,null,null,null,"zvsx09k_a651_p04_TY0V01","*='Specifieke informatie C'!$K$312","","C651 Vervoer. Vervoermiddel en patiëntcategorie- Visueel beperkten Eigen Auto- geaccepteerd","zvsx09k","a651","p04","TY0V01"]
[null,null,null,null,"zvsx09k_a651_p04_TY1V01","*='Specifieke informatie C'!$L$312","","C651 Vervoer. Vervoermiddel en patiëntcategorie- Visueel beperkten Eigen Auto- geaccepteerd","zvsx09k","a651","p04","TY1V01"]
[null,null,null,null,"zvsx09k_a651_p05_TY0V01","*='Specifieke informatie C'!$K$315","","C651 Vervoer. Vervoermiddel en patiëntcategorie- Overige met toestemming Eigen Auto- geaccepteerd","zvsx09k","a651","p05","TY0V01"]
[null,null,null,null,"zvsx09k_a651_p05_TY1V01","*='Specifieke informatie C'!$L$315","","C651 Vervoer. Vervoermiddel en patiëntcategorie- Overige met toestemming Eigen Auto- geaccepteerd","zvsx09k","a651","p05","TY1V01"]
[null,null,null,null,"zvsx09k_a651_p06_TY0V01","*='Specifieke informatie C'!$K$318","","C651 Vervoer. Vervoermiddel en patiëntcategorie- Intensieve kindzorg Eigen Auto- geaccepteerd","zvsx09k","a651","p06","TY0V01"]
[null,null,null,null,"zvsx09k_a651_p06_TY1V01","*='Specifieke informatie C'!$L$318","","C651 Vervoer. Vervoermiddel en patiëntcategorie- Intensieve kindzorg Eigen Auto- geaccepteerd","zvsx09k","a651","p06","TY1V01"]
[null,null,null,null,"zvsx09k_a651_t01_TY0V01","*='Specifieke informatie C'!$K$302","","C651 Vervoer. Vervoermiddel en patiëntcategorie- Nierdialyse Taxi- geaccepteerd","zvsx09k","a651","t01","TY0V01"]
[null,null,null,null,"zvsx09k_a651_t01_TY1V01","*='Specifieke informatie C'!$L$302","","C651 Vervoer. Vervoermiddel en patiëntcategorie- Nierdialyse Taxi- geaccepteerd","zvsx09k","a651","t01","TY1V01"]
[null,null,null,null,"zvsx09k_a651_t02_TY0V01","*='Specifieke informatie C'!$K$305","","C651 Vervoer. Vervoermiddel en patiëntcategorie- chemo,radio Taxi- geaccepteerd","zvsx09k","a651","t02","TY0V01"]
[null,null,null,null,"zvsx09k_a651_t02_TY1V01","*='Specifieke informatie C'!$L$305","","C651 Vervoer. Vervoermiddel en patiëntcategorie- chemo,radio Taxi- geaccepteerd","zvsx09k","a651","t02","TY1V01"]
[null,null,null,null,"zvsx09k_a651_t03_TY0V01","*='Specifieke informatie C'!$K$308","","C651 Vervoer. Vervoermiddel en patiëntcategorie- rolstoelgebruikers Taxi- geaccepteerd","zvsx09k","a651","t03","TY0V01"]
[null,null,null,null,"zvsx09k_a651_t03_TY1V01","*='Specifieke informatie C'!$L$308","","C651 Vervoer. Vervoermiddel en patiëntcategorie- rolstoelgebruikers Taxi- geaccepteerd","zvsx09k","a651","t03","TY1V01"]
[null,null,null,null,"zvsx09k_a651_t04_TY0V01","*='Specifieke informatie C'!$K$311","","C651 Vervoer. Vervoermiddel en patiëntcategorie- Visueel beperkten Taxi- geaccepteerd","zvsx09k","a651","t04","TY0V01"]
[null,null,null,null,"zvsx09k_a651_t04_TY1V01","*='Specifieke informatie C'!$L$311","","C651 Vervoer. Vervoermiddel en patiëntcategorie- Visueel beperkten Taxi- geaccepteerd","zvsx09k","a651","t04","TY1V01"]
[null,null,null,null,"zvsx09k_a651_t05_TY0V01","*='Specifieke informatie C'!$K$314","","C651 Vervoer. Vervoermiddel en patiëntcategorie- Overige met toestemming Taxi- geaccepteerd","zvsx09k","a651","t05","TY0V01"]
[null,null,null,null,"zvsx09k_a651_t05_TY1V01","*='Specifieke informatie C'!$L$314","","C651 Vervoer. Vervoermiddel en patiëntcategorie- Overige met toestemming Taxi- geaccepteerd","zvsx09k","a651","t05","TY1V01"]
[null,null,null,null,"zvsx09k_a651_t06_TY0V01","*='Specifieke informatie C'!$K$317","","C651 Vervoer. Vervoermiddel en patiëntcategorie- Intensieve kindzorg Taxi- geaccepteerd","zvsx09k","a651","t06","TY0V01"]
[null,null,null,null,"zvsx09k_a651_t06_TY1V01","*='Specifieke informatie C'!$L$317","","C651 Vervoer. Vervoermiddel en patiëntcategorie- Intensieve kindzorg Taxi- geaccepteerd","zvsx09k","a651","t06","TY1V01"]
[null,null,null,null,"zvsx10i_n661_e01_TY0V01","*='Specifieke informatie C'!$K$345","","C661 GGZ- DBC's GGZ met verblijf- (n) geteld","zvsx10i","n661","e01","TY0V01"]
[null,null,null,null,"zvsx10i_n661_e01_TY1V01","*='Specifieke informatie C'!$L$345","","C661 GGZ- DBC's GGZ met verblijf- (n) geteld","zvsx10i","n661","e01","TY1V01"]
[null,null,null,null,"zvsx10i_n6611_d01_TY0V01","*='Specifieke informatie C'!$K$349","","C661.1 Langdurige GGZ- Gedeclareerde en geaccepteerde ZZP's- (n) geteld","zvsx10i","n6611","d01","TY0V01"]
[null,null,null,null,"zvsx10i_n6611_d01_TY1V01","*='Specifieke informatie C'!$L$349","","C661.1 Langdurige GGZ- Gedeclareerde en geaccepteerde ZZP's- (n) geteld","zvsx10i","n6611","d01","TY1V01"]
[null,null,null,null,"zvsx10i_n662_e41_TY0V01","*='Specifieke informatie C'!$K$353","","C662 - GGZ zonder verblijf- *- (n) geteld","zvsx10i","n662","e41","TY0V01"]
[null,null,null,null,"zvsx10i_n662_e41_TY1V01","*='Specifieke informatie C'!$L$353","","C662 - GGZ zonder verblijf- *- (n) geteld","zvsx10i","n662","e41","TY1V01"]
[null,null,null,null,"zvsx10i_n665_e51_TY0V01","*='Specifieke informatie C'!$K$387","","C665 Generalistische basis GGZ- Kort- (n) geteld","zvsx10i","n665","e51","TY0V01"]
[null,null,null,null,"zvsx10i_n665_e51_TY1V01","*='Specifieke informatie C'!$L$387","","C665 Generalistische basis GGZ- Kort- (n) geteld","zvsx10i","n665","e51","TY1V01"]
[null,null,null,null,"zvsx10i_n665_e52_TY0V01","*='Specifieke informatie C'!$K$388","","C665 Generalistische basis GGZ- Middel- (n) geteld","zvsx10i","n665","e52","TY0V01"]
[null,null,null,null,"zvsx10i_n665_e52_TY1V01","*='Specifieke informatie C'!$L$388","","C665 Generalistische basis GGZ- Middel- (n) geteld","zvsx10i","n665","e52","TY1V01"]
[null,null,null,null,"zvsx10i_n665_e53_TY0V01","*='Specifieke informatie C'!$K$389","","C665 Generalistische basis GGZ- Intensief- (n) geteld","zvsx10i","n665","e53","TY0V01"]
[null,null,null,null,"zvsx10i_n665_e53_TY1V01","*='Specifieke informatie C'!$L$389","","C665 Generalistische basis GGZ- Intensief- (n) geteld","zvsx10i","n665","e53","TY1V01"]
[null,null,null,null,"zvsx10i_n665_e54_TY0V01","*='Specifieke informatie C'!$K$390","","C665 Generalistische basis GGZ- Chronisch- (n) geteld","zvsx10i","n665","e54","TY0V01"]
[null,null,null,null,"zvsx10i_n665_e54_TY1V01","*='Specifieke informatie C'!$L$390","","C665 Generalistische basis GGZ- Chronisch- (n) geteld","zvsx10i","n665","e54","TY1V01"]
[null,null,null,null,"zvsx10i_n665_e55_TY0V01","*='Specifieke informatie C'!$K$391","","C665 Generalistische basis GGZ- Onvolledig behandeltraject- (n) geteld","zvsx10i","n665","e55","TY0V01"]
[null,null,null,null,"zvsx10i_n665_e55_TY1V01","*='Specifieke informatie C'!$L$391","","C665 Generalistische basis GGZ- Onvolledig behandeltraject- (n) geteld","zvsx10i","n665","e55","TY1V01"]
[null,null,null,null,"zvsx10k_a662_e42_TY0V01","*='Specifieke informatie C'!$J$357","","C662 - GGZ zonder verblijf- Instellingen- geaccepteerd","zvsx10k","a662","e42","TY0V01"]
[null,null,null,null,"zvsx10k_a662_e42_TY1V01","*='Specifieke informatie C'!$K$357","","C662 - GGZ zonder verblijf- Instellingen- geaccepteerd","zvsx10k","a662","e42","TY1V01"]
[null,null,null,null,"zvsx10k_a662_e42_TY2V01","*='Specifieke informatie C'!$L$357","","C662 - GGZ zonder verblijf- Instellingen- geaccepteerd","zvsx10k","a662","e42","TY2V01"]
[null,null,null,null,"zvsx10k_a662_e43_TY0V01","*='Specifieke informatie C'!$J$358","","C662 - GGZ zonder verblijf- Zelfstandig gevestigden- geaccepteerd","zvsx10k","a662","e43","TY0V01"]
[null,null,null,null,"zvsx10k_a662_e43_TY1V01","*='Specifieke informatie C'!$K$358","","C662 - GGZ zonder verblijf- Zelfstandig gevestigden- geaccepteerd","zvsx10k","a662","e43","TY1V01"]
[null,null,null,null,"zvsx10k_a662_e43_TY2V01","*='Specifieke informatie C'!$L$358","","C662 - GGZ zonder verblijf- Zelfstandig gevestigden- geaccepteerd","zvsx10k","a662","e43","TY2V01"]
[null,null,null,null,"zvsx10k_a665_e42_TY0V01","*='Specifieke informatie C'!$J$363","","C665 Generalistische basis GGZ- Instellingen- geaccepteerd","zvsx10k","a665","e42","TY0V01"]
[null,null,null,null,"zvsx10k_a665_e42_TY1V01","*='Specifieke informatie C'!$K$363","","C665 Generalistische basis GGZ- Instellingen- geaccepteerd","zvsx10k","a665","e42","TY1V01"]
[null,null,null,null,"zvsx10k_a665_e42_TY2V01","*='Specifieke informatie C'!$L$363","","C665 Generalistische basis GGZ- Instellingen- geaccepteerd","zvsx10k","a665","e42","TY2V01"]
[null,null,null,null,"zvsx10k_a665_e43_TY0V01","*='Specifieke informatie C'!$J$364","","C665 Generalistische basis GGZ- Zelfstandig gevestigden- geaccepteerd","zvsx10k","a665","e43","TY0V01"]
[null,null,null,null,"zvsx10k_a665_e43_TY1V01","*='Specifieke informatie C'!$K$364","","C665 Generalistische basis GGZ- Zelfstandig gevestigden- geaccepteerd","zvsx10k","a665","e43","TY1V01"]
[null,null,null,null,"zvsx10k_a665_e43_TY2V01","*='Specifieke informatie C'!$L$364","","C665 Generalistische basis GGZ- Zelfstandig gevestigden- geaccepteerd","zvsx10k","a665","e43","TY2V01"]
[null,null,null,null,"zvsx10k_a665_e51_TY0V01","*='Specifieke informatie C'!$K$369","","C665 Generalistische basis GGZ- Kort- geaccepteerd","zvsx10k","a665","e51","TY0V01"]
[null,null,null,null,"zvsx10k_a665_e51_TY1V01","*='Specifieke informatie C'!$L$369","","C665 Generalistische basis GGZ- Kort- geaccepteerd","zvsx10k","a665","e51","TY1V01"]
[null,null,null,null,"zvsx10k_a665_e52_TY0V01","*='Specifieke informatie C'!$K$370","","C665 Generalistische basis GGZ- Middel- geaccepteerd","zvsx10k","a665","e52","TY0V01"]
[null,null,null,null,"zvsx10k_a665_e52_TY1V01","*='Specifieke informatie C'!$L$370","","C665 Generalistische basis GGZ- Middel- geaccepteerd","zvsx10k","a665","e52","TY1V01"]
[null,null,null,null,"zvsx10k_a665_e53_TY0V01","*='Specifieke informatie C'!$K$371","","C665 Generalistische basis GGZ- Intensief- geaccepteerd","zvsx10k","a665","e53","TY0V01"]
[null,null,null,null,"zvsx10k_a665_e53_TY1V01","*='Specifieke informatie C'!$L$371","","C665 Generalistische basis GGZ- Intensief- geaccepteerd","zvsx10k","a665","e53","TY1V01"]
[null,null,null,null,"zvsx10k_a665_e54_TY0V01","*='Specifieke informatie C'!$K$372","","C665 Generalistische basis GGZ- Chronisch- geaccepteerd","zvsx10k","a665","e54","TY0V01"]
[null,null,null,null,"zvsx10k_a665_e54_TY1V01","*='Specifieke informatie C'!$L$372","","C665 Generalistische basis GGZ- Chronisch- geaccepteerd","zvsx10k","a665","e54","TY1V01"]
[null,null,null,null,"zvsx10k_a665_e55_TY0V01","*='Specifieke informatie C'!$K$373","","C665 Generalistische basis GGZ- Onvolledig behandeltraject- geaccepteerd","zvsx10k","a665","e55","TY0V01"]
[null,null,null,null,"zvsx10k_a665_e55_TY1V01","*='Specifieke informatie C'!$L$373","","C665 Generalistische basis GGZ- Onvolledig behandeltraject- geaccepteerd","zvsx10k","a665","e55","TY1V01"]
[null,null,null,null,"zvsx11i_n670_g71_TY0V01","*='Specifieke informatie C'!$K$397","","C670 Geriatische revalidatiezorg- Totaal aantal DBC's geriatische revalidatiezorg- (n) geteld","zvsx11i","n670","g71","TY0V01"]
[null,null,null,null,"zvsx11i_n670_g71_TY1V01","*='Specifieke informatie C'!$L$397","","C670 Geriatische revalidatiezorg- Totaal aantal DBC's geriatische revalidatiezorg- (n) geteld","zvsx11i","n670","g71","TY1V01"]
[null,null,null,null,"zvsx12i_n680_uc1_TY0V01","*='Specifieke informatie C'!$K$416","","C680 Kraamzorg - aantal uren1. 00 t/m 23 uur- (n) geteld","zvsx12i","n680","uc1","TY0V01"]
[null,null,null,null,"zvsx12i_n680_uc1_TY1V01","*='Specifieke informatie C'!$L$416","","C680 Kraamzorg - aantal uren1. 00 t/m 23 uur- (n) geteld","zvsx12i","n680","uc1","TY1V01"]
[null,null,null,null,"zvsx12i_n680_uc2_TY0V01","*='Specifieke informatie C'!$K$417","","C680 Kraamzorg - aantal uren2. 24 t/m 31 uur- (n) geteld","zvsx12i","n680","uc2","TY0V01"]
[null,null,null,null,"zvsx12i_n680_uc2_TY1V01","*='Specifieke informatie C'!$L$417","","C680 Kraamzorg - aantal uren2. 24 t/m 31 uur- (n) geteld","zvsx12i","n680","uc2","TY1V01"]
[null,null,null,null,"zvsx12i_n680_uc3_TY0V01","*='Specifieke informatie C'!$K$418","","C680 Kraamzorg - aantal uren3. 32 t/m 39 uur- (n) geteld","zvsx12i","n680","uc3","TY0V01"]
[null,null,null,null,"zvsx12i_n680_uc3_TY1V01","*='Specifieke informatie C'!$L$418","","C680 Kraamzorg - aantal uren3. 32 t/m 39 uur- (n) geteld","zvsx12i","n680","uc3","TY1V01"]
[null,null,null,null,"zvsx12i_n680_uc4_TY0V01","*='Specifieke informatie C'!$K$419","","C680 Kraamzorg - aantal uren4. 40 t/m 47 uur- (n) geteld","zvsx12i","n680","uc4","TY0V01"]
[null,null,null,null,"zvsx12i_n680_uc4_TY1V01","*='Specifieke informatie C'!$L$419","","C680 Kraamzorg - aantal uren4. 40 t/m 47 uur- (n) geteld","zvsx12i","n680","uc4","TY1V01"]
[null,null,null,null,"zvsx12i_n680_uc5_TY0V01","*='Specifieke informatie C'!$K$420","","C680 Kraamzorg - aantal uren5. 48 t/m 55 uur- (n) geteld","zvsx12i","n680","uc5","TY0V01"]
[null,null,null,null,"zvsx12i_n680_uc5_TY1V01","*='Specifieke informatie C'!$L$420","","C680 Kraamzorg - aantal uren5. 48 t/m 55 uur- (n) geteld","zvsx12i","n680","uc5","TY1V01"]
[null,null,null,null,"zvsx12i_n680_uc6_TY0V01","*='Specifieke informatie C'!$K$421","","C680 Kraamzorg - aantal uren6. 56 t/m 63 uur- (n) geteld","zvsx12i","n680","uc6","TY0V01"]
[null,null,null,null,"zvsx12i_n680_uc6_TY1V01","*='Specifieke informatie C'!$L$421","","C680 Kraamzorg - aantal uren6. 56 t/m 63 uur- (n) geteld","zvsx12i","n680","uc6","TY1V01"]
[null,null,null,null,"zvsx12i_n680_uc7_TY0V01","*='Specifieke informatie C'!$K$422","","C680 Kraamzorg - aantal uren7. 64 t/m 71 uur- (n) geteld","zvsx12i","n680","uc7","TY0V01"]
[null,null,null,null,"zvsx12i_n680_uc7_TY1V01","*='Specifieke informatie C'!$L$422","","C680 Kraamzorg - aantal uren7. 64 t/m 71 uur- (n) geteld","zvsx12i","n680","uc7","TY1V01"]
[null,null,null,null,"zvsx12i_n680_uc8_TY0V01","*='Specifieke informatie C'!$K$423","","C680 Kraamzorg - aantal uren8. 72 t/m 80 uur- (n) geteld","zvsx12i","n680","uc8","TY0V01"]
[null,null,null,null,"zvsx12i_n680_uc8_TY1V01","*='Specifieke informatie C'!$L$423","","C680 Kraamzorg - aantal uren8. 72 t/m 80 uur- (n) geteld","zvsx12i","n680","uc8","TY1V01"]
[null,null,null,null,"zvsx12i_n680_uc9_TY0V01","*='Specifieke informatie C'!$K$424","","C680 Kraamzorg - aantal uren9. 81 uur of meer- (n) geteld","zvsx12i","n680","uc9","TY0V01"]
[null,null,null,null,"zvsx12i_n680_uc9_TY1V01","*='Specifieke informatie C'!$L$424","","C680 Kraamzorg - aantal uren9. 81 uur of meer- (n) geteld","zvsx12i","n680","uc9","TY1V01"]
[null,null,null,null,"zvsx12i_n680_uv1_TY0V01","*='Specifieke informatie C'!$K$403","","C680 Kraamzorg - verzekerden1. 00 t/m 23 uur- (n) geteld","zvsx12i","n680","uv1","TY0V01"]
[null,null,null,null,"zvsx12i_n680_uv1_TY1V01","*='Specifieke informatie C'!$L$403","","C680 Kraamzorg - verzekerden1. 00 t/m 23 uur- (n) geteld","zvsx12i","n680","uv1","TY1V01"]
[null,null,null,null,"zvsx12i_n680_uv2_TY0V01","*='Specifieke informatie C'!$K$404","","C680 Kraamzorg - verzekerden2. 24 t/m 31 uur- (n) geteld","zvsx12i","n680","uv2","TY0V01"]
[null,null,null,null,"zvsx12i_n680_uv2_TY1V01","*='Specifieke informatie C'!$L$404","","C680 Kraamzorg - verzekerden2. 24 t/m 31 uur- (n) geteld","zvsx12i","n680","uv2","TY1V01"]
[null,null,null,null,"zvsx12i_n680_uv3_TY0V01","*='Specifieke informatie C'!$K$405","","C680 Kraamzorg - verzekerden3. 32 t/m 39 uur- (n) geteld","zvsx12i","n680","uv3","TY0V01"]
[null,null,null,null,"zvsx12i_n680_uv3_TY1V01","*='Specifieke informatie C'!$L$405","","C680 Kraamzorg - verzekerden3. 32 t/m 39 uur- (n) geteld","zvsx12i","n680","uv3","TY1V01"]
[null,null,null,null,"zvsx12i_n680_uv4_TY0V01","*='Specifieke informatie C'!$K$406","","C680 Kraamzorg - verzekerden4. 40 t/m 47 uur- (n) geteld","zvsx12i","n680","uv4","TY0V01"]
[null,null,null,null,"zvsx12i_n680_uv4_TY1V01","*='Specifieke informatie C'!$L$406","","C680 Kraamzorg - verzekerden4. 40 t/m 47 uur- (n) geteld","zvsx12i","n680","uv4","TY1V01"]
[null,null,null,null,"zvsx12i_n680_uv5_TY0V01","*='Specifieke informatie C'!$K$407","","C680 Kraamzorg - verzekerden5. 48 t/m 55 uur- (n) geteld","zvsx12i","n680","uv5","TY0V01"]
[null,null,null,null,"zvsx12i_n680_uv5_TY1V01","*='Specifieke informatie C'!$L$407","","C680 Kraamzorg - verzekerden5. 48 t/m 55 uur- (n) geteld","zvsx12i","n680","uv5","TY1V01"]
[null,null,null,null,"zvsx12i_n680_uv6_TY0V01","*='Specifieke informatie C'!$K$408","","C680 Kraamzorg - verzekerden6. 56 t/m 63 uur- (n) geteld","zvsx12i","n680","uv6","TY0V01"]
[null,null,null,null,"zvsx12i_n680_uv6_TY1V01","*='Specifieke informatie C'!$L$408","","C680 Kraamzorg - verzekerden6. 56 t/m 63 uur- (n) geteld","zvsx12i","n680","uv6","TY1V01"]
[null,null,null,null,"zvsx12i_n680_uv7_TY0V01","*='Specifieke informatie C'!$K$409","","C680 Kraamzorg - verzekerden7. 64 t/m 71 uur- (n) geteld","zvsx12i","n680","uv7","TY0V01"]
[null,null,null,null,"zvsx12i_n680_uv7_TY1V01","*='Specifieke informatie C'!$L$409","","C680 Kraamzorg - verzekerden7. 64 t/m 71 uur- (n) geteld","zvsx12i","n680","uv7","TY1V01"]
[null,null,null,null,"zvsx12i_n680_uv8_TY0V01","*='Specifieke informatie C'!$K$410","","C680 Kraamzorg - verzekerden8. 72 t/m 80 uur- (n) geteld","zvsx12i","n680","uv8","TY0V01"]
[null,null,null,null,"zvsx12i_n680_uv8_TY1V01","*='Specifieke informatie C'!$L$410","","C680 Kraamzorg - verzekerden8. 72 t/m 80 uur- (n) geteld","zvsx12i","n680","uv8","TY1V01"]
[null,null,null,null,"zvsx12i_n680_uv9_TY0V01","*='Specifieke informatie C'!$K$411","","C680 Kraamzorg - verzekerden9. 81 uur of meer- (n) geteld","zvsx12i","n680","uv9","TY0V01"]
[null,null,null,null,"zvsx12i_n680_uv9_TY1V01","*='Specifieke informatie C'!$L$411","","C680 Kraamzorg - verzekerden9. 81 uur of meer- (n) geteld","zvsx12i","n680","uv9","TY1V01"]
[null,null,null,null,"zvsx13k_a700_g72_TY2V01","*='Specifieke informatie C'!$L$436","","C700 Overige Kosten- Programma Stoppen met roken- geaccepteerd","zvsx13k","a700","g72","TY2V01"]
[null,null,null,null,"zvsx13k_a700_i12_TY0V01","*='Specifieke informatie C'!$J$435","","C700 Overige Kosten- innovatie nieuwe producten- geaccepteerd","zvsx13k","a700","i12","TY0V01"]
[null,null,null,null,"zvsx13k_a700_i12_TY1V01","*='Specifieke informatie C'!$K$435","","C700 Overige Kosten- innovatie nieuwe producten- geaccepteerd","zvsx13k","a700","i12","TY1V01"]
[null,null,null,null,"zvsx13k_a700_i12_TY2V01","*='Specifieke informatie C'!$L$435","","C700 Overige Kosten- innovatie nieuwe producten- geaccepteerd","zvsx13k","a700","i12","TY2V01"]
[null,null,null,null,"zvsx13k_a700_n07_TY0V01","*='Specifieke informatie C'!$J$437","","C700 Overige Kosten- Integrale geboortezorg- geaccepteerd","zvsx13k","a700","n07","TY0V01"]
[null,null,null,null,"zvsx13k_a700_n07_TY1V01","*='Specifieke informatie C'!$K$437","","C700 Overige Kosten- Integrale geboortezorg- geaccepteerd","zvsx13k","a700","n07","TY1V01"]
[null,null,null,null,"zvsx13k_a700_n07_TY2V01","*='Specifieke informatie C'!$L$437","","C700 Overige Kosten- Integrale geboortezorg- geaccepteerd","zvsx13k","a700","n07","TY1V01"]
[null,null,null,null,"zvsx13k_a700_o61_TY2V01","*='Specifieke informatie C'!$L$438","","C700 Overige Kosten- Eerstelijnsverblijf- geaccepteerd","zvsx13k","a700","o61","TY1V01"]
[null,null,null,null,"zvsx13k_a700_g73_TY0V01","*='Specifieke informatie C'!$J$439","","C700 Overige Kosten- Kosten gecombineerde Leefstijl Interventie- geaccepteerd","zvsx13k","a700","g73","TY0V01"]
[null,null,null,null,"zvsx13k_a701_g21_TY0V01","*='Specifieke informatie C'!$K$444","","C701 Overige geneeskundige zorg- Kort- geaccepteerd","zvsx13k","a701","g21","TY0V01"]
[null,null,null,null,"zvsx13k_a701_g21_TY1V01","*='Specifieke informatie C'!$L$444","","C701 Overige geneeskundige zorg- Kort- geaccepteerd","zvsx13k","a701","g21","TY1V01"]
[null,null,null,null,"zvsx13k_a701_g22_TY0V01","*='Specifieke informatie C'!$K$445","","C701 Overige geneeskundige zorg- Huidtherapie- geaccepteerd","zvsx13k","a701","g22","TY0V01"]
[null,null,null,null,"zvsx13k_a701_g22_TY1V01","*='Specifieke informatie C'!$L$445","","C701 Overige geneeskundige zorg- Huidtherapie- geaccepteerd","zvsx13k","a701","g22","TY1V01"]
[null,null,null,null,"zvsx13k_a701_g23_TY0V01","*='Specifieke informatie C'!$K$446","","C701 Overige geneeskundige zorg- Orthoptie- geaccepteerd","zvsx13k","a701","g23","TY0V01"]
[null,null,null,null,"zvsx13k_a701_g23_TY1V01","*='Specifieke informatie C'!$L$446","","C701 Overige geneeskundige zorg- Orthoptie- geaccepteerd","zvsx13k","a701","g23","TY1V01"]
[null,null,null,null,"zvsx13k_a701_g24_TY0V01","*='Specifieke informatie C'!$K$447","","C701 Overige geneeskundige zorg- Optometrie- geaccepteerd","zvsx13k","a701","g24","TY0V01"]
[null,null,null,null,"zvsx13k_a701_g24_TY1V01","*='Specifieke informatie C'!$L$447","","C701 Overige geneeskundige zorg- Optometrie- geaccepteerd","zvsx13k","a701","g24","TY1V01"]
[null,null,null,null,"zvsx13k_a701_g25_TY0V01","*='Specifieke informatie C'!$K$448","","C701 Overige geneeskundige zorg- voetzorg bij Diabetes Mellitus type 2- geaccepteerd","zvsx13k","a701","g25","TY0V01"]
[null,null,null,null,"zvsx13k_a701_g25_TY1V01","*='Specifieke informatie C'!$L$448","","C701 Overige geneeskundige zorg- voetzorg bij Diabetes Mellitus type 2- geaccepteerd","zvsx13k","a701","g25","TY1V01"]
[null,null,null,null,"zvsx13k_a701_g26_TY0V01","*='Specifieke informatie C'!$K$449","","C701 Overige geneeskundige zorg- Koemelkallergietest (niet horend bij Multidisciplinaire Zorg)- geaccepteerd","zvsx13k","a701","g26","TY0V01"]
[null,null,null,null,"zvsx13k_a701_g26_TY1V01","*='Specifieke informatie C'!$L$449","","C701 Overige geneeskundige zorg- Koemelkallergietest (niet horend bij Multidisciplinaire Zorg)- geaccepteerd","zvsx13k","a701","g26","TY1V01"]
[null,null,null,null,"zvsx13k_a701_g27_TY0V01","*='Specifieke informatie C'!$K$450","","C701 Overige geneeskundige zorg- Regiefunctie complexe wondzorgt- geaccepteerd","zvsx13k","a701","g27","TY0V01"]
[null,null,null,null,"zvsx13k_a701_g27_TY1V01","*='Specifieke informatie C'!$L$450","","C701 Overige geneeskundige zorg- Regiefunctie complexe wondzorgt- geaccepteerd","zvsx13k","a701","g27","TY1V01"]
[null,null,null,null,"zvsx13k_a702_g01_TY0V01","*='Specifieke informatie C'!$K$455","","C702 Zintuiglijk gehandicapten- visuele beperking- geaccepteerd","zvsx13k","a702","g01","TY0V01"]
[null,null,null,null,"zvsx13k_a702_g01_TY1V01","*='Specifieke informatie C'!$L$455","","C702 Zintuiglijk gehandicapten- visuele beperking- geaccepteerd","zvsx13k","a702","g01","TY1V01"]
[null,null,null,null,"zvsx13k_a702_g02_TY0V01","*='Specifieke informatie C'!$K$456","","C702 Zintuiglijk gehandicapten- auditieve beperking- geaccepteerd","zvsx13k","a702","g02","TY0V01"]
[null,null,null,null,"zvsx13k_a702_g02_TY1V01","*='Specifieke informatie C'!$L$456","","C702 Zintuiglijk gehandicapten- auditieve beperking- geaccepteerd","zvsx13k","a702","g02","TY1V01"]
[null,null,null,null,"zvsx13k_a702_g03_TY0V01","*='Specifieke informatie C'!$K$457","","C702 Zintuiglijk gehandicapten- taalontwikkelingsstoornis- geaccepteerd","zvsx13k","a702","g03","TY0V01"]
[null,null,null,null,"zvsx13k_a702_g03_TY1V01","*='Specifieke informatie C'!$L$457","","C702 Zintuiglijk gehandicapten- taalontwikkelingsstoornis- geaccepteerd","zvsx13k","a702","g03","TY1V01"]
[null,null,null,null,"zvsx15i_a720g_u02_TY0V01","*='Specifieke informatie C'!$K$480","","C720 Grensoverschrijdende zorg- Zvw verzekerden die wonen in het buitenland- geaccepteerd","zvsx15i","a720g","u02","TY0V01"]
[null,null,null,null,"zvsx15i_a720g_u02_TY1V01","*='Specifieke informatie C'!$L$480","","C720 Grensoverschrijdende zorg- Zvw verzekerden die wonen in het buitenland- geaccepteerd","zvsx15i","a720g","u02","TY1V01"]
[null,null,null,null,"zvsx15i_a720g_u12_TY0V01","*='Specifieke informatie C'!$K$478","","C720 Grensoverschrijdende zorg- wonen in Nederland (op basis van contract- geaccepteerd","zvsx15i","a720g","u12","TY0V01"]
[null,null,null,null,"zvsx15i_a720g_u12_TY1V01","*='Specifieke informatie C'!$L$478","","C720 Grensoverschrijdende zorg- wonen in Nederland (op basis van contract- geaccepteerd","zvsx15i","a720g","u12","TY1V01"]
[null,null,null,null,"zvsx15i_a720g_u13_TY0V01","*='Specifieke informatie C'!$K$479","","C720 Grensoverschrijdende zorg- wonen in Nederland (niet op basis van contract)- geaccepteerd","zvsx15i","a720g","u13","TY0V01"]
[null,null,null,null,"zvsx15i_a720g_u13_TY1V01","*='Specifieke informatie C'!$L$479","","C720 Grensoverschrijdende zorg- wonen in Nederland (niet op basis van contract)- geaccepteerd","zvsx15i","a720g","u13","TY1V01"]
[null,null,null,null,"zvsx15i_n720g_u02_TY0V01","*='Specifieke informatie C'!$K$487",null,"C720 Grensoverschrijdende zorg- Zvw verzekerden die wonen in het buitenland- geaccepteerd","zvsx15i","a720g","u02","TY0V01"]
[null,null,null,null,"zvsx15i_n720g_u02_TY1V01","*='Specifieke informatie C'!$L$487",null,"C720 Grensoverschrijdende zorg- Zvw verzekerden die wonen in het buitenland- geaccepteerd","zvsx15i","a720g","u02","TY1V01"]
[null,null,null,null,"zvsx15i_n720g_u12_TY0V01","*='Specifieke informatie C'!$K$485",null,"C720 Grensoverschrijdende zorg- wonen in Nederland (niet op basis van contract)- geaccepteerd","zvsx15i","a720g","u12","TY0V01"]
[null,null,null,null,"zvsx15i_n20g_u12_TY1V01","*='Specifieke informatie C'!$L$485",null,"C720 Grensoverschrijdende zorg- wonen in Nederland (niet op basis van contract)- geaccepteerd","zvsx15i","a720g","u12","TY1V01"]
[null,null,null,null,"zvsx15i_n720g_u13_TY0V01","*='Specifieke informatie C'!$K$486",null,"C720 Grensoverschrijdende zorg- wonen in Nederland (niet op basis van contract)- geaccepteerd","zvsx15i","a720g","u13","TY0V01"]
[null,null,null,null,"zvsx15i_n720g_u13_TY1V01","*='Specifieke informatie C'!$L$486",null,"C720 Grensoverschrijdende zorg- wonen in Nederland (niet op basis van contract)- geaccepteerd","zvsx15i","a720g","u13","TY1V01"]
[null,null,null,null,"zvsx15i_c720r01_lft_TY0V01","*='Specifieke informatie C'!$L$496","","C720 buitenland Huisartsenhulp- Totaal leeftijd niet gespecificeerd- incl balans","zvsx15i","c720r01","lft","TY0V01"]
[null,null,null,null,"zvsx15i_c720r01_lft14v_TY0V01","*='Specifieke informatie C'!$L$494","","C720 buitenland Huisartsenhulp- Verzekerden 64 jaar en jonger- incl balans","zvsx15i","c720r01","lft14v","TY0V01"]
[null,null,null,null,"zvsx15i_c720r01_lft14z_TY0V01","*='Specifieke informatie C'!$L$495","","C720 buitenland Huisartsenhulp- Verzekerden 65 jaar en ouder- incl balans","zvsx15i","c720r01","lft14z","TY0V01"]
[null,null,null,null,"zvsx15i_c720r02_lft_TY0V01","*='Specifieke informatie C'!$L$503","","C720 buitenland, opgave ZIN- Totaal leeftijd niet gespecificeerd- incl balans","zvsx15i","c720r02","lft","TY0V01"]
[null,null,null,null,"zvsx15i_c720r02_lft14v_TY0V01","*='Specifieke informatie C'!$L$501","","C720 buitenland, opgave ZIN- Verzekerden 64 jaar en jonger- incl balans","zvsx15i","c720r02","lft14v","TY0V01"]
[null,null,null,null,"zvsx15i_c720r02_lft14z_TY0V01","*='Specifieke informatie C'!$L$502","","C720 buitenland, opgave ZIN- Verzekerden 65 jaar en ouder- incl balans","zvsx15i","c720r02","lft14z","TY0V01"]
[null,null,null,null,"zvsx15i_c720r03_lft_TY0V01","*='Specifieke informatie C'!$L$510","","C720 buitenland, Verpleging en verzorging- Totaal leeftijd niet gespecificeerd- incl balans","zvsx15i","c720r03","lft","TY0V01"]
[null,null,null,null,"zvsx15i_c720r03_lft14v_TY0V01","*='Specifieke informatie C'!$L$508","","C720 buitenland, Verpleging en verzorging- Verzekerden 64 jaar en jonger- incl balans","zvsx15i","c720r03","lft14v","TY0V01"]
[null,null,null,null,"zvsx15i_c720r03_lft14z_TY0V01","*='Specifieke informatie C'!$L$509","","C720 buitenland, Verpleging en verzorging- Verzekerden 65 jaar en ouder- incl balans","zvsx15i","c720r03","lft14z","TY0V01"]
[null,null,null,null,"zvsx15i_c720r04_lft_TY0V01","*='Specifieke informatie C'!$L$524","","C720 buitenland, Mondzorg- Totaal leeftijd niet gespecificeerd- incl balans","zvsx15i","c720r04","lft","TY0V01"]
[null,null,null,null,"zvsx15i_c720r04_lft14v_TY0V01","*='Specifieke informatie C'!$L$522","","C720 buitenland, Mondzorg- Verzekerden 64 jaar en jonger- incl balans","zvsx15i","c720r04","lft14v","TY0V01"]
[null,null,null,null,"zvsx15i_c720r04_lft14z_TY0V01","*='Specifieke informatie C'!$L$523","","C720 buitenland, Mondzorg- Verzekerden 65 jaar en ouder- incl balans","zvsx15i","c720r04","lft14z","TY0V01"]
[null,null,null,null,"zvsx15i_c720r05_lft_TY0V01","*='Specifieke informatie C'!$L$529","","C720 buitenland, opgave ZIN- Totaal leeftijd niet gespecificeerd- incl balans","zvsx15i","c720r05","lft","TY0V01"]
[null,null,null,null,"zvsx15i_c720r05_lft14v_TY0V01","*='Specifieke informatie C'!$L$546","","C720 buitenland, opgave ZIN- Verzekerden 64 jaar en jonger- incl balans","zvsx15i","c720r05","lft14v","TY0V01"]
[null,null,null,null,"zvsx15i_c720r06_lft_TY0V01","*='Specifieke informatie C'!$L$538","","C720 buitenland, Medisch specialistische hulp door of vanwege het ziekenhuis- Totaal leeftijd niet gespecificeerd- incl balans","zvsx15i","c720r06","lft","TY0V01"]
[null,null,null,null,"zvsx15i_c720r06_lft14v_TY0V01","*='Specifieke informatie C'!$L$536","","C720 buitenland, Medisch specialistische hulp door of vanwege het ziekenhuis- Verzekerden 64 jaar en jonger- incl balans","zvsx15i","c720r06","lft14v","TY0V01"]
[null,null,null,null,"zvsx15i_c720r06_lft14z_TY0V01","*='Specifieke informatie C'!$L$537","","C720 buitenland, Medisch specialistische hulp door of vanwege het ziekenhuis- Verzekerden 65 jaar en ouder- incl balans","zvsx15i","c720r06","lft14z","TY0V01"]
[null,null,null,null,"zvsx15i_c720r07_lft_TY0V01","*='Specifieke informatie C'!$L$545","","C720 buitenland, Paramedische hulp- Totaal leeftijd niet gespecificeerd- incl balans","zvsx15i","c720r07","lft","TY0V01"]
[null,null,null,null,"zvsx15i_c720r07_lft14v_TY0V01","*='Specifieke informatie C'!$L$543","","C720 buitenland, Paramedische hulp- Verzekerden 64 jaar en jonger- incl balans","zvsx15i","c720r07","lft14v","TY0V01"]
[null,null,null,null,"zvsx15i_c720r07_lft14z_TY0V01","*='Specifieke informatie C'!$L$544","","C720 buitenland, Paramedische hulp- Verzekerden 65 jaar en ouder- incl balans","zvsx15i","c720r07","lft14z","TY0V01"]
[null,null,null,null,"zvsx15i_c720r08_lft_TY0V01","*='Specifieke informatie C'!$L$552","","C720 buitenland, Hulpmiddelen- Totaal leeftijd niet gespecificeerd- incl balans","zvsx15i","c720r08","lft","TY0V01"]
[null,null,null,null,"zvsx15i_c720r08_lft14v_TY0V01","*='Specifieke informatie C'!$L$550","","C720 buitenland, Hulpmiddelen- Verzekerden 64 jaar en jonger- incl balans","zvsx15i","c720r08","lft14v","TY0V01"]
[null,null,null,null,"zvsx15i_c720r08_lft14z_TY0V01","*='Specifieke informatie C'!$L$551","","C720 buitenland, Hulpmiddelen- Verzekerden 65 jaar en ouder- incl balans","zvsx15i","c720r08","lft14z","TY0V01"]
[null,null,null,null,"zvsx15i_c720r09_lft_TY0V01","*='Specifieke informatie C'!$L$571","","C720 buitenland, Ziekenvervoer- Totaal leeftijd niet gespecificeerd- incl balans","zvsx15i","c720r09","lft","TY0V01"]
[null,null,null,null,"zvsx15i_c720r09_lft14v_TY0V01","*='Specifieke informatie C'!$L$569","","C720 buitenland, Ziekenvervoer- Verzekerden 64 jaar en jonger- incl balans","zvsx15i","c720r09","lft14v","TY0V01"]
[null,null,null,null,"zvsx15i_c720r09_lft14z_TY0V01","*='Specifieke informatie C'!$L$570","","C720 buitenland, Ziekenvervoer- Verzekerden 65 jaar en ouder- incl balans","zvsx15i","c720r09","lft14z","TY0V01"]
[null,null,null,null,"zvsx15i_c720r10_lft_TY0V01","*='Specifieke informatie C'!$L$578","","C720 buitenland, Geneeskundige GGZ- Totaal leeftijd niet gespecificeerd- incl balans","zvsx15i","c720r10","lft","TY0V01"]
[null,null,null,null,"zvsx15i_c720r10_lft14v_TY0V01","*='Specifieke informatie C'!$L$576","","C720 buitenland, Geneeskundige GGZ- Verzekerden 64 jaar en jonger- incl balans","zvsx15i","c720r10","lft14v","TY0V01"]
[null,null,null,null,"zvsx15i_c720r10_lft14z_TY0V01","*='Specifieke informatie C'!$L$577","","C720 buitenland, Geneeskundige GGZ- Verzekerden 65 jaar en ouder- incl balans","zvsx15i","c720r10","lft14z","TY0V01"]
[null,null,null,null,"zvsx15i_c720r12_lft_TY0V01","*='Specifieke informatie C'!$L$585","","C720 buitenland, Kraamzorg- Totaal leeftijd niet gespecificeerd- incl balans","zvsx15i","c720r12","lft","TY0V01"]
[null,null,null,null,"zvsx15i_c720r12_lft14v_TY0V01","*='Specifieke informatie C'!$L$583","","C720 buitenland, Kraamzorg- Verzekerden 64 jaar en jonger- incl balans","zvsx15i","c720r12","lft14v","TY0V01"]
[null,null,null,null,"zvsx15i_n720g_u02_TY0V01","*='Specifieke informatie C'!$K$487","","C720 Grensoverschrijdende zorg- Zvw verzekerden die wonen in het buitenland- (n) geteld","zvsx15i","n720g","u02","TY0V01"]
[null,null,null,null,"zvsx15i_n720g_u02_TY1V01","*='Specifieke informatie C'!$L$487","","C720 Grensoverschrijdende zorg- Zvw verzekerden die wonen in het buitenland- (n) geteld","zvsx15i","n720g","u02","TY1V01"]
[null,null,null,null,"zvsx15i_n720g_u12_TY0V01","*='Specifieke informatie C'!$K$485","","C720 Grensoverschrijdende zorg- wonen in Nederland (op basis van contract- (n) geteld","zvsx15i","n720g","u12","TY0V01"]
[null,null,null,null,"zvsx15i_n720g_u12_TY1V01","*='Specifieke informatie C'!$L$485","","C720 Grensoverschrijdende zorg- wonen in Nederland (op basis van contract- (n) geteld","zvsx15i","n720g","u12","TY1V01"]
[null,null,null,null,"zvsx15i_n720g_u13_TY0V01","*='Specifieke informatie C'!$K$486","","C720 Grensoverschrijdende zorg- wonen in Nederland (niet op basis van contract)- (n) geteld","zvsx15i","n720g","u13","TY0V01"]
[null,null,null,null,"zvsx15i_n720g_u13_TY1V01","*='Specifieke informatie C'!$L$486","","C720 Grensoverschrijdende zorg- wonen in Nederland (niet op basis van contract)- (n) geteld","zvsx15i","n720g","u13","TY1V01"]
[null,null,null,null,"zvkx01_b503__TY0V01","*=Controleoverzicht!$K$32",null,"Huisartsen- bijz betalingen- balans","zvkx01","b503",null,"TY0V01"]
[null,null,null,null,"zvkx01_b503__TY1V01","*=Controleoverzicht!$L$32",null,"Huisartsen- bijz betalingen- balans","zvkx01","b503",null,"TY1V01"]
[null,null,null,null,"zvkx01_b504__TY0V01","*=Controleoverzicht!$K$33",null,"Huisartsen- bijz diensttijden- balans","zvkx01","b504",null,"TY0V01"]
[null,null,null,null,"zvkx01_b504__TY1V01","*=Controleoverzicht!$L$33",null,"Huisartsen- bijz diensttijden- balans","zvkx01","b504",null,"TY1V01"]
[null,null,null,null,"zvkx01_b505__TY0V01","*=Controleoverzicht!$K$34",null,"Huisartsen- Inschrijvingen- balans","zvkx01","b505",null,"TY0V01"]
[null,null,null,null,"zvkx01_b505__TY1V01","*=Controleoverzicht!$L$34",null,"Huisartsen- Inschrijvingen- balans","zvkx01","b505",null,"TY1V01"]
[null,null,null,null,"zvkx01_b506__TY0V01","*=Controleoverzicht!$K$35",null,"Huisartsen- Consult- balans","zvkx01","b506",null,"TY0V01"]
[null,null,null,null,"zvkx01_b506__TY1V01","*=Controleoverzicht!$L$35",null,"Huisartsen- Consult- balans","zvkx01","b506",null,"TY1V01"]
[null,null,null,null,"zvkx01_b507__TY0V01","*=Controleoverzicht!$K$36",null,"Huisartsen- Overige- balans","zvkx01","b507",null,"TY0V01"]
[null,null,null,null,"zvkx01_b507__TY1V01","*=Controleoverzicht!$L$36",null,"Huisartsen- Overige- balans","zvkx01","b507",null,"TY1V01"]
[null,null,null,null,"zvkx01_b510__TY0V01","*=Controleoverzicht!$K$37",null,"Huisartsen- MDZ- balans","zvkx01","b510",null,"TY0V01"]
[null,null,null,null,"zvkx01_b510__TY1V01","*=Controleoverzicht!$L$37",null,"Huisartsen- MDZ- balans","zvkx01","b510",null,"TY1V01"]
[null,null,null,null,"zvkx01_b515__TY0V01","*=Controleoverzicht!$K$38",null,"Huisartsen- Resultaatbel. huisartsen- balans","zvkx01","b515",null,"TY0V01"]
[null,null,null,null,"zvkx01_b515__TY1V01","*=Controleoverzicht!$L$38",null,"Huisartsen- Resultaatbel. huisartsen- balans","zvkx01","b515",null,"TY1V01"]
[null,null,null,null,"zvkx01_b516__TY0V01","*=Controleoverzicht!$K$39",null,"Huisartsen- Resultaatbel. MDZ- balans","zvkx01","b516",null,"TY0V01"]
[null,null,null,null,"zvkx01_b516__TY1V01","*=Controleoverzicht!$L$39",null,"Huisartsen- Resultaatbel. MDZ- balans","zvkx01","b516",null,"TY1V01"]
[null,null,null,null,"zvkx02_b520__TY0V01","*=Controleoverzicht!$K$40",null,"Farmaceutische hulp- balans","zvkx02","b520",null,"TY0V01"]
[null,null,null,null,"zvkx02_b520__TY1V01","*=Controleoverzicht!$L$40",null,"Farmaceutische hulp- balans","zvkx02","b520",null,"TY1V01"]
[null,null,null,null,"zvkx03_b530__TY0V01","*=Controleoverzicht!$K$41",null,"Verpleging en verzorging- balans","zvkx03","b530",null,"TY0V01"]
[null,null,null,null,"zvkx03_b530__TY1V01","*=Controleoverzicht!$L$41",null,"Verpleging en verzorging- balans","zvkx03","b530",null,"TY1V01"]
[null,null,null,null,"zvkx04_b5601__TY0V01","*=Controleoverzicht!$K$43",null,"Mondzorg- volwassen verzekerden- balans","zvkx04","b5601",null,"TY0V01"]
[null,null,null,null,"zvkx04_b5601__TY1V01","*=Controleoverzicht!$L$43",null,"Mondzorg- volwassen verzekerden- balans","zvkx04","b5601",null,"TY1V01"]
[null,null,null,null,"zvkx04_b5602__TY0V01","*=Controleoverzicht!$K$44",null,"Mondzorg- jeugdige verzekerden- balans","zvkx04","b5602",null,"TY0V01"]
[null,null,null,null,"zvkx04_b5602__TY1V01","*=Controleoverzicht!$L$44",null,"Mondzorg- jeugdige verzekerden- balans","zvkx04","b5602",null,"TY1V01"]
[null,null,null,null,"zvkx04_b561__TY0V01","*=Controleoverzicht!$K$45",null,"Mondzorg- gebitsprothesen- balans","zvkx04","b561",null,"TY0V01"]
[null,null,null,null,"zvkx04_b561__TY1V01","*=Controleoverzicht!$L$45",null,"Mondzorg- gebitsprothesen- balans","zvkx04","b561",null,"TY1V01"]
[null,null,null,null,"zvkx05_b580__TY0V01","*=Controleoverzicht!$K$46",null,"Verloskundige hulp- door verloskundigen- balans","zvkx05","b580",null,"TY0V01"]
[null,null,null,null,"zvkx05_b580__TY1V01","*=Controleoverzicht!$L$46",null,"Verloskundige hulp- door verloskundigen- balans","zvkx05","b580",null,"TY1V01"]
[null,null,null,null,"zvkx05_b581__TY1V01","*=Controleoverzicht!$K$47",null,"Verloskundige hulp- door huisartsen- balans","zvkx05","b581",null,"TY1V01"]
[null,null,null,null,"zvkx06_b545__TY0V01","*=Controleoverzicht!$K$42",null,"Medisch specialistische hulp- mondziekten en kaakchirurgie- balans","zvkx06","b545",null,"TY0V01"]
[null,null,null,null,"zvkx06_b545__TY1V01","*=Controleoverzicht!$L$42",null,"Medisch specialistische hulp- mondziekten en kaakchirurgie- balans","zvkx06","b545",null,"TY1V01"]
[null,null,null,null,"zvkx06_b610__TY0V01","*=Controleoverzicht!$K$48",null,"Medisch specialistische hulp- Overige ziekenhuiszorg,curatief- balans","zvkx06","b610",null,"TY0V01"]
[null,null,null,null,"zvkx06_b610__TY1V01","*=Controleoverzicht!$L$48",null,"Medisch specialistische hulp- Overige ziekenhuiszorg,curatief- balans","zvkx06","b610",null,"TY1V01"]
[null,null,null,null,"zvkx06_b611__TY0V01","*=Controleoverzicht!$K$49",null,"Medisch specialistische hulp- Overige zorg- balans","zvkx06","b611",null,"TY0V01"]
[null,null,null,null,"zvkx06_b611__TY1V01","*=Controleoverzicht!$L$49",null,"Medisch specialistische hulp- Overige zorg- balans","zvkx06","b611",null,"TY1V01"]
[null,null,null,null,"zvkx06_b612__TY0V01","*=Controleoverzicht!$K$58",null,"Medisch specialistische hulp- add-on's- balans","zvkx06","b612",null,"TY0V01"]
[null,null,null,null,"zvkx06_b612__TY1V01","*=Controleoverzicht!$L$58",null,"Medisch specialistische hulp- add-on's- balans","zvkx06","b612",null,"TY1V01"]
[null,null,null,null,"zvkx06_b6131__TY0V01","*=Controleoverzicht!$K$59",null,"Medisch specialistische hulp- Integraal DBC-zorgproduct gereguleerd- balans","zvkx06","b6131",null,"TY0V01"]
[null,null,null,null,"zvkx06_b6131__TY1V01","*=Controleoverzicht!$L$59",null,"Medisch specialistische hulp- Integraal DBC-zorgproduct gereguleerd- balans","zvkx06","b6131",null,"TY1V01"]
[null,null,null,null,"zvkx06_b6151__TY0V01","*=Controleoverzicht!$K$60",null,"Medisch specialistische hulp- Integraal DBC-zorgproduct vrije segment- balans","zvkx06","b6151",null,"TY0V01"]
[null,null,null,null,"zvkx06_b6151__TY1V01","*=Controleoverzicht!$L$60",null,"Medisch specialistische hulp- Integraal DBC-zorgproduct vrije segment- balans","zvkx06","b6151",null,"TY1V01"]
[null,null,null,null,"zvkx06_b619__TY0V01","*=Controleoverzicht!$K$61",null,"Medisch specialistische hulp- honoraria extramuraal- balans","zvkx06","b619",null,"TY0V01"]
[null,null,null,null,"zvkx06_b619__TY1V01","*=Controleoverzicht!$L$61",null,"Medisch specialistische hulp- honoraria extramuraal- balans","zvkx06","b619",null,"TY1V01"]
[null,null,null,null,"zvkx07_b620__TY0V01","*=Controleoverzicht!$K$62",null,"Paramedische hulp- fysiotherapie- balans","zvkx07","b620",null,"TY0V01"]
[null,null,null,null,"zvkx07_b620__TY1V01","*=Controleoverzicht!$L$62",null,"Paramedische hulp- fysiotherapie- balans","zvkx07","b620",null,"TY1V01"]
[null,null,null,null,"zvkx07_b621__TY0V01","*=Controleoverzicht!$K$63",null,"Paramedische hulp- Mensendieck/Cesar- balans","zvkx07","b621",null,"TY0V01"]
[null,null,null,null,"zvkx07_b621__TY1V01","*=Controleoverzicht!$L$63",null,"Paramedische hulp- Mensendieck/Cesar- balans","zvkx07","b621",null,"TY1V01"]
[null,null,null,null,"zvkx07_b623__TY0V01","*=Controleoverzicht!$K$64",null,"Paramedische hulp- logopedie- balans","zvkx07","b623",null,"TY0V01"]
[null,null,null,null,"zvkx07_b623__TY1V01","*=Controleoverzicht!$L$64",null,"Paramedische hulp- logopedie- balans","zvkx07","b623",null,"TY1V01"]
[null,null,null,null,"zvkx07_b624__TY0V01","*=Controleoverzicht!$K$65",null,"Paramedische hulp- ergotherapie- balans","zvkx07","b624",null,"TY0V01"]
[null,null,null,null,"zvkx07_b624__TY1V01","*=Controleoverzicht!$L$65",null,"Paramedische hulp- ergotherapie- balans","zvkx07","b624",null,"TY1V01"]
[null,null,null,null,"zvkx07_b625__TY0V01","*=Controleoverzicht!$K$66",null,"Paramedische hulp- dieetadvisering- balans","zvkx07","b625",null,"TY0V01"]
[null,null,null,null,"zvkx07_b625__TY1V01","*=Controleoverzicht!$L$66",null,"Paramedische hulp- dieetadvisering- balans","zvkx07","b625",null,"TY1V01"]
[null,null,null,null,"zvkx08_b640__TY0V01","*=Controleoverzicht!$K$67",null,"Hulpmiddelen-- balans","zvkx08","b640",null,"TY0V01"]
[null,null,null,null,"zvkx08_b640__TY1V01","*=Controleoverzicht!$L$67",null,"Hulpmiddelen-- balans","zvkx08","b640",null,"TY1V01"]
[null,null,null,null,"zvkx09_b650__TY0V01","*=Controleoverzicht!$K$68",null,"Ziekenvervoer- ambulance/helicopter- balans","zvkx09","b650",null,"TY0V01"]
[null,null,null,null,"zvkx09_b650__TY1V01","*=Controleoverzicht!$L$68",null,"Ziekenvervoer- ambulance/helicopter- balans","zvkx09","b650",null,"TY1V01"]
[null,null,null,null,"zvkx09_b6501__TY0V01","*=Controleoverzicht!$K$69",null,"Ziekenvervoer- regionale ambulance- balans","zvkx09","b6501",null,"TY0V01"]
[null,null,null,null,"zvkx09_b6501__TY1V01","*=Controleoverzicht!$L$69",null,"Ziekenvervoer- regionale ambulance- balans","zvkx09","b6501",null,"TY1V01"]
[null,null,null,null,"zvkx09_b651__TY0V01","*=Controleoverzicht!$K$70",null,"Ziekenvervoer- ov, taxi en eigen auto- balans","zvkx09","b651",null,"TY0V01"]
[null,null,null,null,"zvkx09_b651__TY1V01","*=Controleoverzicht!$L$70",null,"Ziekenvervoer- ov, taxi en eigen auto- balans","zvkx09","b651",null,"TY1V01"]
[null,null,null,null,"zvkx10_b661__TY0V01","*=Controleoverzicht!$K$71",null,"Geneeskundige GGZ- GGZ met verblijf- balans","zvkx10","b661",null,"TY0V01"]
[null,null,null,null,"zvkx10_b661__TY1V01","*=Controleoverzicht!$L$71",null,"Geneeskundige GGZ- GGZ met verblijf- balans","zvkx10","b661",null,"TY1V01"]
[null,null,null,null,"zvkx10_b6611__TY0V01","*=Controleoverzicht!$K$72",null,"Geneeskundige GGZ- GGZ jaar 2 en 3- balans","zvkx10","b6611",null,"TY0V01"]
[null,null,null,null,"zvkx10_b6611__TY1V01","*=Controleoverzicht!$L$72",null,"Geneeskundige GGZ- GGZ jaar 2 en 3- balans","zvkx10","b6611",null,"TY1V01"]
[null,null,null,null,"zvkx10_b662__TY0V01","*=Controleoverzicht!$K$73",null,"Geneeskundige GGZ- GGZ zonder verblijf- balans","zvkx10","b662",null,"TY0V01"]
[null,null,null,null,"zvkx10_b662__TY1V01","*=Controleoverzicht!$L$73",null,"Geneeskundige GGZ- GGZ zonder verblijf- balans","zvkx10","b662",null,"TY1V01"]
[null,null,null,null,"zvkx10_b665__TY0V01","*=Controleoverzicht!$K$74",null,"Geneeskundige GGZ- basis GGZ- balans","zvkx10","b665",null,"TY0V01"]
[null,null,null,null,"zvkx10_b665__TY1V01","*=Controleoverzicht!$L$74",null,"Geneeskundige GGZ- basis GGZ- balans","zvkx10","b665",null,"TY1V01"]
[null,null,null,null,"zvkx11_b670__TY0V01","*=Controleoverzicht!$K$75",null,"Geriatische revalidatiezorg-- balans","zvkx11","b670",null,"TY0V01"]
[null,null,null,null,"zvkx11_b670__TY1V01","*=Controleoverzicht!$L$75",null,"Geriatische revalidatiezorg-- balans","zvkx11","b670",null,"TY1V01"]
[null,null,null,null,"zvkx11_b671__TY0V01","*=Controleoverzicht!$K$76",null,"Geriatische revalidatiezorg- Eerstelijnsverblijf- balans","zvkx11","b671",null,"TY0V01"]
[null,null,null,null,"zvkx11_b671__TY1V01","*=Controleoverzicht!$L$76",null,"Geriatische revalidatiezorg- Eerstelijnsverblijf- balans","zvkx11","b671",null,"TY1V01"]
[null,null,null,null,"zvkx12_b680__TY0V01","*=Controleoverzicht!$K$77",null,"Kraamzorg-- balans","zvkx12","b680",null,"TY0V01"]
[null,null,null,null,"zvkx12_b680__TY1V01","*=Controleoverzicht!$L$77",null,"Kraamzorg-- balans","zvkx12","b680",null,"TY1V01"]
[null,null,null,null,"zvkx13_b700__TY0V01","*=Controleoverzicht!$K$78",null,"Overige kosten-- balans","zvkx13","b700",null,"TY0V01"]
[null,null,null,null,"zvkx13_b700__TY1V01","*=Controleoverzicht!$L$78",null,"Overige kosten-- balans","zvkx13","b700",null,"TY1V01"]
[null,null,null,null,"zvkx13_b701__TY0V01","*=Controleoverzicht!$K$79",null,"Overige kosten- geneeskundige zorg- balans","zvkx13","b701",null,"TY0V01"]
[null,null,null,null,"zvkx13_b701__TY1V01","*=Controleoverzicht!$L$79",null,"Overige kosten- geneeskundige zorg- balans","zvkx13","b701",null,"TY1V01"]
[null,null,null,null,"zvkx13_b702__TY0V01","*=Controleoverzicht!$K$80",null,"Overige kosten- zintuiglijk gehandicapten- balans","zvkx13","b702",null,"TY0V01"]
[null,null,null,null,"zvkx13_b702__TY1V01","*=Controleoverzicht!$L$80",null,"Overige kosten- zintuiglijk gehandicapten- balans","zvkx13","b702",null,"TY1V01"]
[null,null,null,null,"zvkx15_b720__TY0V01","*=Controleoverzicht!$K$81",null,"Grensoverschrijdende zorg- via verzekeraar- balans","zvkx15","b720",null,"TY0V01"]
[null,null,null,null,"zvkx15_b720__TY1V01","*=Controleoverzicht!$L$81",null,"Grensoverschrijdende zorg- via verzekeraar- balans","zvkx15","b720",null,"TY1V01"]
[null,null,null,null,"zvkx15_b721__TY0V01","*=Controleoverzicht!$K$82",null,"Grensoverschrijdende zorg- via verbindingsorgaan- balans","zvkx15","b721",null,"TY0V01"]
[null,null,null,null,"zvkx15_b721__TY1V01","*=Controleoverzicht!$L$82",null,"Grensoverschrijdende zorg- via verbindingsorgaan- balans","zvkx15","b721",null,"TY1V01"]
[null,null,null,null,"zvkx16_b730__TY0V01","*=Controleoverzicht!$K$83",null,"Kwaliteitsgelden-- balans","zvkx16","b730",null,"TY0V01"]
[null,null,null,null,"zvkx16_b730__TY1V01","*=Controleoverzicht!$L$83",null,"Kwaliteitsgelden-- balans","zvkx16","b730",null,"TY1V01"]

{"sheet":"Parameters","index":10,"n_rows":41,"n_cols":3,"rows_kept":41,"cut":false,"hidden":true,"merged":[]}
[]
["Kwartaal:"]
["Jaar:",2019]
["Wet:","ZVW"]
["Document:",{"$f":"CONCATENATE(\"JS\",jaar_id,wet_id,\".\",kwartaal_id,revisie_id)","v":"JS2019ZVW.C"}]
["Revisie:","C"]
["Revisiedatum:","2019-01-01"]
["Versie:",{"$f":"CONCATENATE(document_id,)","v":"JS2019ZVW.C"}]
[]
[]
[]
["NUMMER_UO","NAAM_UO","FORMAT_UO1"]
["0000","KIES UW UZOVI-NUMMER",{"$f":"CONCATENATE(A13,\" \",B13)","v":"0000 KIES UW UZOVI-NUMMER"}]
["0101","UNIVÉ ZORG","0101 UNIVÉ ZORG"]
["0104","NATIONALE-NEDERLANDEN ZORG","0104 NATIONALE-NEDERLANDEN ZORG"]
["0201","OHRA ZIEKTEKOSTENVERZEKERINGEN","0201 OHRA ZIEKTEKOSTENVERZEKERINGEN"]
["0211","FBTO","0211 FBTO"]
["0403","ASR ","0403 ASR "]
["0420","CARES ","0420 CARES "]
["0699","IZA","0699 IZA"]
["0736","UMC","0736 UMC"]
["3311","ZILVEREN KRUIS","3311 ZILVEREN KRUIS"]
["3313","INTERPOLIS","3313 INTERPOLIS"]
["3314","OZF","3314 OZF"]
["3329","AVERO",{"$f":"CONCATENATE(A25,\" \",B25)","v":"3329 AVERO"}]
["3332","MENZIS","3332 MENZIS"]
["3333","ANDERZORG","3333 ANDERZORG"]
["3343","ONVZ",{"$f":"CONCATENATE(A28,\" \",B28)","v":"3343 ONVZ"}]
["3351","FBTO",{"$f":"CONCATENATE(A29,\" \",B29)","v":"3351 FBTO"}]
["3352","IPTIQ",{"$f":"CONCATENATE(A30,\" \",B30)","v":"3352 IPTIQ"}]
["3358","DE FRIESLAND",{"$f":"CONCATENATE(A31,\" \",B31)","v":"3358 DE FRIESLAND"}]
["3359","EUCARE INSURANCE PCC LTD","3359 EUCARE INSURANCE PCC LTD"]
["7029","DSW","7029 DSW"]
["7032","ENO","7032 ENO"]
["7037","STAD HOLLAND","7037 STAD HOLLAND"]
["7053","OHRA ZORGVERZEKERINGEN","7053 OHRA ZORGVERZEKERINGEN"]
["7084","DE FRIESLAND","7084 DE FRIESLAND"]
["7085","ZORG EN ZEKERHEID","7085 ZORG EN ZEKERHEID"]
["7095","VGZ ZORGVERZEKERAAR","7095 VGZ ZORGVERZEKERAAR"]
["7119","CZ","7119 CZ"]
["9015","VGZ VOOR DE ZORG",{"$f":"CONCATENATE(A41,\" \",B41)","v":"9015 VGZ VOOR DE ZORG"}]